Workbook

Sheet H - List of Data Indicators (hidden)
A1: Data Indicator
A2: English Language Arts - FSA Data
A3: Math - FSA Data
A4: ELL Data
A5: Graduation Rates
A6: Graduation Rate Gap - SWD
A7: Early Warning System Data
A8: Progress Monitoring Data

Sheet 18-19 Prelim Allocations (hidden)
A1: School | B1: Center | C1: Option 2 CLIF Number Final | D1: Option 2 CLIF % | E1: PPA Amount | F1: Cost Sharing Total | G1: Basic Allocation | H1: Projected Staff Costs (LookUP) | I1: Remaining Allocation | J1: Prelim PFE
A2: Choose School Name | B2: #### | F2: 0 | G2: 0 | H2: 0 | J2: 0
A3: Alta Vista Elementary | B3: 331 | C3: 716 | D3: 100 | E3: 478 | F3: 29485 | G3: 342248 | H3: 257891 | I3: 54872 | J3: 0
A4: Alturas Elementary | B4: 1041 | C4: 345 | D4: 100 | E4: 454 | F4: 14207 | G4: 156630 | H4: 96054 | I4: 46369 | J4: 0
A5: Auburndale Central Elementary | B5: 851 | C5: 369 | D5: 100 | E5: 478 | F5: 15195 | G5: 176382 | H5: 271337 | I5: -110150 | J5: 0
A6: Auburndale Senior High | B6: 811 | C6: 776 | D6: 69 | E6: 400 | F6: 31956 | G6: 310400 | H6: 0 | I6: 278444 | J6: 0
A7: Bartow Middle | B7: 931 | C7: 781 | D7: 89 | E7: 402 | F7: 32162 | G7: 313962 | H7: 469372 | I7: -187572 | J7: 0
A8: Ben Hill Griffin Jr. Elementary | B8: 1921 | C8: 427 | D8: 100 | E8: 454 | F8: 17584 | G8: 193858 | H8: 95091 | I8: 81183 | J8: 0
A9: Bethune Academy | B9: 391 | C9: 338 | D9: 74 | E9: 400 | F9: 13919 | G9: 135200 | H9: 65942 | I9: 55339 | J9: 0
A10: Carlton Palmore Elementary | B10: 61 | C10: 402 | D10: 92 | E10: 402 | F10: 16554 | G10: 161604 | H10: 94772 | I10: 50278 | J10: 0
A11: Chain Of Lakes Elementary | B11: 933 | C11: 776 | D11: 73 | E11: 400 | F11: 31956 | G11: 310400 | H11: 171978 | I11: 106466 | J11: 0
A12: Citrus Ridge A Civics Academy | B12: 1032 | C12: 1466 | D12: 83 | E12: 400 | F12: 60370 | G12: 586400 | H12: 178184 | I12: 347846 | J12: 0
A13: Clarence Boswell Elementary | B13: 1811 | C13: 505 | D13: 100 | E13: 454 | F13: 20796 | G13: 229270 | H13: 148749 | I13: 59725 | J13: 0
A14: Cleveland Court Elementary | B14: 81 | C14: 304 | D14: 72 | E14: 400 | F14: 12519 | G14: 121600 | H14: 61653 | I14: 47428 | J14: 0
A15: Combee Academy of Design and Engineering | B15: 91 | C15: 617 | D15: 100 | E15: 478 | F15: 25408 | G15: 294926 | H15: 365515 | I15: -95997 | J15: 0
A16: Compass Middle Charter | B16: 932 | C16: 141 | D16: 100 | E16: 501 | F16: 5806 | G16: 70641 | H16: 0 | I16: 64835 | J16: 0
A17: Crystal Lake Elementary | B17: 101 | C17: 450 | D17: 100 | E17: 533 | F17: 18531 | G17: 239850 | H17: 221093 | I17: 226 | J17: 0
A18: Crystal Lake Middle | B18: 1501 | C18: 908 | D18: 100 | E18: 478 | F18: 37391 | G18: 434024 | H18: 390297 | I18: 6336 | J18: 0
A19: Denison Middle | B19: 491 | C19: 816 | D19: 93 | E19: 403 | F19: 33603 | G19: 328848 | H19: 373747 | I19: -78502 | J19: 0
A20: Discovery Academy of Lake Alfred | B20: 1961 | C20: 814 | D20: 85 | E20: 400 | F20: 33521 | G20: 325600 | H20: 0 | I20: 292079 | J20: 0
A21: Discovery High School | B21: 8181 | C21: 349 | D21: 76 | E21: 400 | F21: 14372 | G21: 139600 | H21: 0 | I21: 125228 | J21: 0
A22: Dixieland Elementary | B22: 131 | C22: 436 | D22: 100 | E22: 478 | F22: 17954 | G22: 208408 | H22: 139288 | I22: 51166 | J22: 0
A23: Doris A. Sanders Learning Center | B23: 92 | C23: 54 | D23: 70 | E23: 400 | F23: 2224 | G23: 21600 | H23: 0 | I23: 19376 | J23: 0
A24: Dr. NE Roberts Elementary | B24: 1851 | C24: 682 | D24: 90 | E24: 402 | F24: 28085 | G24: 274164 | H24: 188433 | I24: 57646 | J24: 0
A25: Dundee Elementary Academy | B25: 1781 | C25: 432 | D25: 87 | E25: 400 | F25: 17790 | G25: 172800 | H25: 65582 | I25: 89428 | J25: 0
A26: Dundee Ridge Middle Academy | B26: 1981 | C26: 581 | D26: 77 | E26: 400 | F26: 23926 | G26: 232400 | H26: 139682 | I26: 68792 | J26: 0
A27: Eagle Lake Elementary | B27: 1701 | C27: 480 | D27: 100 | E27: 454 | F27: 19766 | G27: 217920 | H27: 210696 | I27: -12542 | J27: 0
A28: Eastside Elementary | B28: 361 | C28: 641 | D28: 100 | E28: 478 | F28: 26396 | G28: 306398 | H28: 275365 | I28: 4637 | J28: 0
A29: Edgar L. Padgett Elementary | B29: 1451 | C29: 475 | D29: 94 | E29: 403 | F29: 19561 | G29: 191425 | H29: 131879 | I29: 39985 | J29: 0
A30: Elbert Elementary | B30: 591 | C30: 779 | D30: 99 | E30: 403 | F30: 32079 | G30: 313937 | H30: 150701 | I30: 131157 | J30: 0
A31: Floral Avenue Elementary | B31: 961 | C31: 514 | D31: 100 | E31: 454 | F31: 21167 | G31: 233356 | H31: 117501 | I31: 94688 | J31: 0
A32: Fort Meade Middle Senior High | B32: 791 | C32: 627 | D32: 99 | E32: 403 | F32: 25820 | G32: 252681 | H32: 144195 | I32: 82666 | J32: 0
A33: Fred G. Garner Elementary | B33: 601 | C33: 644 | D33: 100 | E33: 478 | F33: 26520 | G33: 307832 | H33: 304684 | I33: -23372 | J33: 0
A34: Frostproof Elementary | B34: 1291 | C34: 417 | D34: 100 | E34: 478 | F34: 17172 | G34: 199326 | H34: 113847 | I34: 68307 | J34: 0
A35: Frostproof Middle Senior High | B35: 1801 | C35: 875 | D35: 91 | E35: 402 | F35: 36033 | G35: 351750 | H35: 169714 | I35: 146003 | J35: 0
A36: Garden Grove Elementary | B36: 1711 | C36: 434 | D36: 85 | E36: 400 | F36: 17872 | G36: 173600 | H36: 127137 | I36: 28591 | J36: 0
A37: Gause Academy of Leadership | B37: 1491 | C37: 129 | D37: 100 | E37: 478 | F37: 5312 | G37: 61662 | H37: 0 | I37: 56350 | J37: 0
A38: Gibbons Street Elementary | B38: 981 | C38: 186 | D38: 100 | E38: 533 | F38: 7659 | G38: 99138 | H38: 121776 | I38: -30297 | J38: 0
A39: Griffin Elementary | B39: 1231 | C39: 349 | D39: 100 | E39: 478 | F39: 14372 | G39: 166822 | H39: 216445 | I39: -63995 | J39: 0
A40: Haines City Senior High | B40: 1791 | C40: 1437 | D40: 82 | E40: 400 | F40: 59176 | G40: 574800 | H40: 225135 | I40: 290489 | J40: 0
A41: Highland City Elementary | B41: 1061 | C41: 344 | D41: 81 | E41: 400 | F41: 14166 | G41: 137600 | H41: 75493 | I41: 47941 | J41: 0
A42: Highlands Grove Elementary | B42: 1281 | C42: 483 | D42: 63 | E42: 400 | F42: 19890 | G42: 193200 | H42: 74063 | I42: 99247 | J42: 0
A43: Horizons Elementary | B43: 1362 | C43: 1216 | D43: 94 | E43: 403 | F43: 50075 | G43: 490048 | H43: 422448 | I43: 17525 | J43: 0
A44: Inwood Elementary | B44: 611 | C44: 356 | D44: 100 | E44: 478 | F44: 14660 | G44: 170168 | H44: 216586 | I44: -61078 | J44: 0
A45: James E. Stephens Elementary | B45: 1751 | C45: 375 | D45: 100 | E45: 501 | F45: 15443 | G45: 187875 | H45: 172309 | I45: 123 | J45: 0
A46: James W. Sikes Elementary | B46: 1821 | C46: 675 | D46: 77 | E46: 400 | F46: 27797 | G46: 270000 | H46: 119180 | I46: 123023 | J46: 0
A47: Jere L. Stambaugh Middle | B47: 821 | C47: 1061 | D47: 99 | E47: 403 | F47: 43692 | G47: 427583 | H47: 282874 | I47: 101017 | J47: 0
A48: Jesse Keen Elementary | B48: 1241 | C48: 583 | D48: 100 | E48: 533 | F48: 24008 | G48: 310739 | H48: 146924 | I48: 139807 | J48: 0
A49: John Snively Elementary | B49: 631 | C49: 392 | D49: 100 | E49: 533 | F49: 16143 | G49: 208936 | H49: 234268 | I49: -41475 | J49: 0
A50: Kathleen Elementary | B50: 1221 | C50: 540 | D50: 100 | E50: 478 | F50: 22237 | G50: 258120 | H50: 144902 | I50: 90981 | J50: 0
A51: Kathleen Middle | B51: 1191 | C51: 621 | D51: 100 | E51: 454 | F51: 25573 | G51: 281934 | H51: 415996 | I51: -159635 | J51: 0
A52: Kathleen Senior High | B52: 1181 | C52: 1162 | D52: 80 | E52: 400 | F52: 47851 | G52: 464800 | H52: 320059 | I52: 96890 | J52: 0
A53: Kingsford Elementary | B53: 1151 | C53: 605 | D53: 100 | E53: 478 | F53: 24914 | G53: 289190 | H53: 188760 | I53: 75516 | J53: 0
A54: Lake Alfred Elementary | B54: 651 | C54: 611 | D54: 100 | E54: 454 | F54: 25161 | G54: 277394 | H54: 129581 | I54: 122652 | J54: 0
A55: Lake Alfred Polytech Academy | B55: 1662 | C55: 532 | D55: 100 | E55: 454 | F55: 21908 | G55: 241528 | H55: 451628 | I55: -232008 | J55: 0
A56: Lake Gibson Middle | B56: 1761 | C56: 966 | D56: 77 | E56: 400 | F56: 39780 | G56: 386400 | H56: 197663 | I56: 148957 | J56: 0
A57: Lake Marion Creek Middle | B57: 1831 | C57: 995 | D57: 100 | E57: 454 | F57: 40974 | G57: 451730 | H57: 555864 | I57: -145108 | J57: 0
A58: Lake Region High | B58: 1991 | C58: 902 | D58: 80 | E58: 400 | F58: 37144 | G58: 360800 | H58: 269742 | I58: 53914 | J58: 0
A59: Lake Shipp Elementary | B59: 621 | C59: 502 | D59: 100 | E59: 454 | F59: 20672 | G59: 227908 | H59: 155988 | I59: 51248 | J59: 0
A60: Laurel Elementary | B60: 1611 | C60: 754 | D60: 100 | E60: 478 | F60: 31050 | G60: 360412 | H60: 339135 | I60: -9773 | J60: 0
A61: Lena Vista Elementary | B61: 841 | C61: 851 | D61: 100 | E61: 454 | F61: 35044 | G61: 386354 | H61: 249868 | I61: 101442 | J61: 0
A62: Lewis Anna Woodbury Elementary | B62: 802 | C62: 655 | D62: 100 | E62: 478 | F62: 26973 | G62: 313090 | H62: 178660 | I62: 107457 | J62: 0
A63: Loughman Oaks Elementary | B63: 1941 | C63: 802 | D63: 98 | E63: 403 | F63: 33026 | G63: 323206 | H63: 273534 | I63: 16646 | J63: 0
A64: McLaughlin Middle Fine Arts Academy | B64: 1341 | C64: 786 | D64: 100 | E64: 478 | F64: 32367 | G64: 375708 | H64: 341406 | I64: 1935 | J64: 0
A65: Medulla Elementary | B65: 181 | C65: 574 | D65: 90 | E65: 402 | F65: 23637 | G65: 230748 | H65: 138100 | I65: 69011 | J65: 0
A66: Mulberry Middle | B66: 1161 | C66: 1072 | D66: 90 | E66: 402 | F66: 44145 | G66: 430944 | H66: 195967 | I66: 190832 | J66: 0
A67: Mulberry Senior High | B67: 1131 | C67: 635 | D67: 76 | E67: 400 | F67: 26149 | G67: 254000 | H67: 62296 | I67: 165555 | J67: 0
A68: New Beginnings High | B68: 8004 | C68: 275 | D68: 100 | E68: 478 | F68: 11325 | G68: 131450 | H68: 0 | I68: 120125 | J68: 0
A69: North Lakeland Elem. School of Choice | B69: 201 | C69: 675 | D69: 100 | E69: 454 | F69: 27797 | G69: 306450 | H69: 188437 | I69: 90216 | J69: 0
A70: Oscar J. Pope Elementary | B70: 1521 | C70: 449 | D70: 100 | E70: 533 | F70: 18490 | G70: 239317 | H70: 133904 | I70: 86923 | J70: 0
A71: Palmetto Elementary | B71: 1702 | C71: 542 | D71: 100 | E71: 478 | F71: 22320 | G71: 259076 | H71: 285809 | I71: -49053 | J71: 0
A72: Philip O Brien Elementary | B72: 151 | C72: 687 | D72: 100 | E72: 478 | F72: 28291 | G72: 328386 | H72: 58698 | I72: 241397 | J72: 0
A73: Pinewood Elementary | B73: 1731 | C73: 628 | D73: 100 | E73: 454 | F73: 25861 | G73: 285112 | H73: 275716 | I73: -16465 | J73: 0
A74: Polk City Elementary | B74: 881 | C74: 477 | D74: 96 | E74: 403 | F74: 19643 | G74: 192231 | H74: 97629 | I74: 74959 | J74: 0
A75: Purcell Elementary | B75: 1141 | C75: 473 | D75: 100 | E75: 478 | F75: 19478 | G75: 226094 | H75: 131308 | I75: 75308 | J75: 0
A76: R. Bruce Wagner Elementary | B76: 191 | C76: 723 | D76: 90 | E76: 402 | F76: 29773 | G76: 290646 | H76: 215732 | I76: 45141 | J76: 0
A77: R. Clem Churchwell Elementary | B77: 1841 | C77: 544 | D77: 84 | E77: 400 | F77: 22402 | G77: 217600 | H77: 137767 | I77: 57431 | J77: 0
A78: R.E.A.L. Academy | B78: 921 | C78: 281 | D78: 100 | E78: 533 | F78: 11572 | G78: 149773 | H78: 132530 | I78: 5671 | J78: 0
A79: Ridge Community High | B79: 937 | C79: 1466 | D79: 69 | E79: 400 | F79: 60370 | G79: 586400 | H79: 209250 | I79: 316780 | J79: 0
A80: Rochelle School Of The Arts | B80: 261 | C80: 574 | D80: 71 | E80: 400 | F80: 23637 | G80: 229600 | H80: 100133 | I80: 105830 | J80: 0
A81: Roosevelt Academy | B81: 1381 | C81: 208 | D81: 100 | E81: 454 | F81: 8565 | G81: 94432 | H81: 72634 | I81: 13233 | J81: 0
A82: Rosabelle W. Blake Academy | B82: 1861 | C82: 546 | D82: 77 | E82: 400 | F82: 22484 | G82: 218400 | H82: 169178 | I82: 26738 | J82: 0
A83: Sandhill Elementary | B83: 341 | C83: 909 | D83: 95 | E83: 403 | F83: 37433 | G83: 366327 | H83: 196815 | I83: 132079 | J83: 0
A84: Scott Lake Elementary | B84: 1681 | C84: 562 | D84: 69 | E84: 400 | F84: 23143 | G84: 224800 | H84: 126067 | I84: 75590 | J84: 0
A85: Shelley S. Boone Middle | B85: 321 | C85: 1120 | D85: 100 | E85: 454 | F85: 46122 | G85: 508480 | H85: 423674 | I85: 38684 | J85: 0
A86: Sleepy Hill Elementary | B86: 1271 | C86: 682 | D86: 100 | E86: 454 | F86: 28085 | G86: 309628 | H86: 131236 | I86: 150307 | J86: 0
A87: Sleepy Hill Middle | B87: 1971 | C87: 1058 | D87: 96 | E87: 403 | F87: 43568 | G87: 426374 | H87: 266711 | I87: 116095 | J87: 0
A88: Socrum Elementary | B88: 1901 | C88: 454 | D88: 93 | E88: 403 | F88: 18696 | G88: 182962 | H88: 216569 | I88: -52303 | J88: 0
A89: Southwest Elementary | B89: 231 | C89: 411 | D89: 100 | E89: 454 | F89: 16925 | G89: 186594 | H89: 85461 | I89: 84208 | J89: 0
A90: Southwest Middle | B90: 51 | C90: 746 | D90: 96 | E90: 403 | F90: 30720 | G90: 300638 | H90: 218537 | I90: 51381 | J90: 0
A91: Spessard L Holland Elementary | B91: 1908 | C91: 450 | D91: 66 | E91: 400 | F91: 18531 | G91: 180000 | H91: 121418 | I91: 40051 | J91: 0
A92: Spook Hill Elementary | B92: 1371 | C92: 599 | D92: 100 | E92: 478 | F92: 24667 | G92: 286322 | H92: 186744 | I92: 74911 | J92: 0
A93: Tenoroc High | B93: 1051 | C93: 683 | D93: 89 | E93: 402 | F93: 28126 | G93: 274566 | H93: 122399 | I93: 124041 | J93: 0
A94: Victory Ridge Academy | B94: 8143 | C94: 168 | D94: 100 | E94: 478 | F94: 6918 | G94: 80304 | H94: 0 | I94: 73386 | J94: 0
A95: Wahneta Elementary | B95: 681 | C95: 410 | D95: 100 | E95: 533 | F95: 16884 | G95: 218530 | H95: 319143 | I95: -117497 | J95: 0
A96: Walter Caldwell Elementary | B96: 861 | C96: 622 | D96: 99 | E96: 403 | F96: 25614 | G96: 250666 | H96: 304416 | I96: -79364 | J96: 0
A97: Wendell Watson Elementary | B97: 1881 | C97: 581 | D97: 69 | E97: 400 | F97: 23926 | G97: 232400 | H97: 138612 | I97: 69862 | J97: 0
A98: Westwood Middle | B98: 571 | C98: 755 | D98: 100 | E98: 478 | F98: 31091 | G98: 360890 | H98: 456433 | I98: -126634 | J98: 0
A99: Winston Academy of Engineering | B99: 1251 | C99: 374 | D99: 74 | E99: 400 | F99: 15401 | G99: 149600 | H99: 89656 | I99: 44543 | J99: 0
A100: Winter Haven Senior High | B100: 481 | C100: 1067 | D100: 69 | E100: 400 | F100: 43939 | G100: 426800 | H100: 262852 | I100: 120009 | J100: 0

Sheet 18-19_Final_Allocations (hidden)
A1: Name | B1: Location Number | C1: Basic Allocation | D1: PFE Allocation
A2: ROOSEVELT ACADEMY | B2: 1381 | C2: 94432 | D2: 957
A3: VICTORY RIDGE ACADEMY | B3: 8143 | C3: 82694 | D3: 832
A4: COMPASS MIDDLE CHARTER SCHOOL | B4: 932 | C4: 70641 | D4: 698
A5: CITRUS RIDGE A CIVICS ACADEMY | B5: 1032 | C5: 585600 | D5: 6876
A6: HAINES CITY SENIOR HIGH SCHOOL | B6: 1791 | C6: 574000 | D6: 6740
A7: GAUSE ACADEMY OF LEADERSHIP | B7: 1491 | C7: 61662 | D7: 639
A8: HORIZONS ELEMENTARY SCHOOL | B8: 1362 | C8: 489242 | D8: 5594
A9: SHELLEY S. BOONE MIDDLE SCHOOL | B9: 321 | C9: 507572 | D9: 5544
A10: KATHLEEN SENIOR HIGH SCHOOL | B10: 1181 | C10: 464400 | D10: 5450
A11: MULBERRY MIDDLE SCHOOL | B11: 1161 | C11: 430944 | D11: 5028
A12: JERE L. STAMBAUGH MIDDLE | B12: 821 | C12: 427986 | D12: 4976
A13: SLEEPY HILL MIDDLE SCHOOL | B13: 1971 | C13: 425568 | D13: 4962
A14: LAKE GIBSON MIDDLE SCHOOL | B14: 1761 | C14: 386400 | D14: 4531
A15: CRYSTAL LAKE MIDDLE SCHOOL | B15: 1501 | C15: 434502 | D15: 4259
A16: LAKE REGION HIGH SCHOOL | B16: 1991 | C16: 360800 | D16: 4230
A17: SANDHILL ELEMENTARY SCHOOL | B17: 341 | C17: 365924 | D17: 4181
A18: FROSTPROOF MIDDLE/SENIOR HIGH | B18: 1801 | C18: 351750 | D18: 4104
A19: LAUREL ELEMENTARY SCHOOL | B19: 1611 | C19: 410602 | D19: 4029
A20: LENA VISTA ELEMENTARY SCHOOL | B20: 841 | C20: 387262 | D20: 3915
A21: DENISON MIDDLE SCHOOL | B21: 491 | C21: 327236 | D21: 3827
A22: WESTWOOD MIDDLE SCHOOL | B22: 571 | C22: 360890 | D22: 3737
A23: LOUGHMAN OAKS ELEMENTARY SCHL | B23: 1941 | C23: 321594 | D23: 3689
A24: MCLAUGHLIN MIDDLE SCHOOL AND FINE ARTS ACAD | B24: 1341 | C24: 375230 | D24: 3686
A25: DISCOVERY ACADEMY OF LAKE ALFRED | B25: 1961 | C25: 296800 | D25: 3673
A26: BARTOW MIDDLE SCHOOL | B26: 931 | C26: 313560 | D26: 3663
A27: ELBERT ELEMENTARY SCHOOL | B27: 591 | C27: 313937 | D27: 3583
A28: SOUTHWEST MIDDLE SCHOOL | B28: 51 | C28: 299832 | D28: 3499
A29: R. BRUCE WAGNER ELEMENTARY SCHOOL | B29: 191 | C29: 291048 | D29: 3326
A30: LAKE MARION CREEK MIDDLE SCHOOL | B30: 1831 | C30: 284214 | D30: 3316
A31: ALTA VISTA ELEMENTARY SCHOOL | B31: 331 | C31: 342726 | D31: 3294
A32: LEWIS ANNA WOODBURY ELEMENTARY SCHOOL | B32: 802 | C32: 313090 | D32: 3242
A33: TENOROC HIGH SCHOOL | B33: 1051 | C33: 274566 | D33: 3203
A34: SLEEPY HILL ELEMENTARY SCHOOL | B34: 1271 | C34: 309628 | D34: 3199
A35: FRED G. GARNER ELEMENTARY SCHL | B35: 601 | C35: 307832 | D35: 3189
A36: NORTH LAKELAND ELEMENTARY SCHOOL OF CHOICE | B36: 201 | C36: 307358 | D36: 3166
A37: JAMES W. SIKES ELEMENTARY SCHL | B37: 1821 | C37: 270000 | D37: 3166
A38: PHILIP O'BRIEN ELEMENTARY SCHOOL | B38: 151 | C38: 328386 | D38: 3160
A39: DR. NE ROBERTS ELEMENTARY SCHOOL | B39: 1851 | C39: 273360 | D39: 3137
A40: PALMETTO ELEMENTARY SCHOOL | B40: 1702 | C40: 344851 | D40: 3034
A41: EASTSIDE ELEMENTARY SCHOOL | B41: 361 | C41: 306876 | D41: 3006
A42: MULBERRY SENIOR HIGH SCHOOL | B42: 1131 | C42: 252800 | D42: 2978
A43: FT. MEADE MIDDLE/SR. HIGH SCHL | B43: 791 | C43: 252681 | D43: 2941
A44: WALTER CALDWELL ELEM. SCHOOL | B44: 861 | C44: 250666 | D44: 2917
A45: KATHLEEN MIDDLE SCHOOL | B45: 1191 | C45: 281934 | D45: 2913
A46: PINEWOOD ELEMENTARY SCHOOL | B46: 1731 | C46: 284658 | D46: 2889
A47: COMBEE ACADEMY OF DESIGN AND ENGINEERING | B47: 91 | C47: 294448 | D47: 2838
A48: LAKE ALFRED ELEMENTARY SCHOOL | B48: 651 | C48: 277394 | D48: 2811
A49: SPOOK HILL ELEMENTARY SCHOOL | B49: 1371 | C49: 286800 | D49: 2809
A50: KINGSFORD ELEMENTARY SCHOOL | B50: 1151 | C50: 289190 | D50: 2783
A51: DUNDEE RIDGE MIDDLE ACADEMY | B51: 1981 | C51: 232000 | D51: 2725
A52: MEDULLA ELEMENTARY SCHOOL | B52: 181 | C52: 230748 | D52: 2692
A53: JESSE KEEN ELEMENTARY SCHOOL | B53: 1241 | C53: 312338 | D53: 2682
A54: ROSABELLE W. BLAKE ACADEMY | B54: 1861 | C54: 218000 | D54: 2512
A55: R. CLEM CHURCHWELL ELEMENTARY | B55: 1841 | C55: 216800 | D55: 2502
A56: LAKE ALFRED POLYTECH ACADEMY | B56: 1662 | C56: 241982 | D56: 2495
A57: KATHLEEN ELEMENTARY SCHOOL | B57: 1221 | C57: 257642 | D57: 2484
A58: EAGLE LAKE ELEMENTARY SCHOOL | B58: 1701 | C58: 249516 | D58: 2448
A59: FLORAL AVENUE ELEMENTARY SCHOOL | B59: 961 | C59: 238350 | D59: 2415
A60: CLARENCE BOSWELL ELEM. SCHOOL | B60: 1811 | C60: 228816 | D60: 2368
A61: LAKE SHIPP ELEMENTARY SCHOOL | B61: 621 | C61: 227908 | D61: 2354
A62: POLK CITY ELEMENTARY SCHOOL | B62: 881 | C62: 191828 | D62: 2194
A63: EDGAR L. PADGETT ELEMENTARY | B63: 1451 | C63: 190619 | D63: 2185
A64: PURCELL ELEMENTARY SCHOOL | B64: 1141 | C64: 226094 | D64: 2176
A65: SOCRUM ELEMENTARY SCHOOL | B65: 1901 | C65: 183768 | D65: 2129
A66: CRYSTAL LAKE ELEMENTARY SCHOOL | B66: 101 | C66: 240916 | D66: 2111
A67: OSCAR J. POPE ELEMENTARY SCHOOL | B67: 1521 | C67: 239850 | D67: 2065
A68: DIXIELAND ELEMENTARY SCHOOL | B68: 131 | C68: 209364 | D68: 2045
A69: GARDEN GROVE ELEMENTARY SCHOOL | B69: 1711 | C69: 173200 | D69: 2035
A70: WAHNETA ELEMENTARY SCHOOL | B70: 681 | C70: 218530 | D70: 2030
A71: JAMES E. STEPHENS ELEM. SCHOOL | B71: 1751 | C71: 231855 | D71: 2006
A72: BEN HILL GRIFFIN JR ELEMENTARY SCHOOL | B72: 1921 | C72: 193858 | D72: 2003
A73: DUNDEE ELEMENTARY ACADEMY | B73: 1781 | C73: 172800 | D73: 1987
A74: FROSTPROOF ELEMENTARY SCHOOL | B74: 1291 | C74: 199326 | D74: 1918
A75: SOUTHWEST ELEMENTARY SCHOOL | B75: 231 | C75: 186140 | D75: 1891
A76: CARLTON PALMORE ELEM. SCHOOL | B76: 61 | C76: 161202 | D76: 1885
A77: JOHN SNIVELY ELEMENTARY | B77: 631 | C77: 208936 | D77: 1803
A78: AUBURNDALE CENTRAL ELEMENTARY | B78: 851 | C78: 175904 | D78: 1731
A79: DISCOVERY HIGH SCHOOL | B79: 8181 | C79: 140800 | D79: 1728
A80: INWOOD ELEMENTARY SCHOOL | B80: 611 | C80: 169690 | D80: 1638
A81: GRIFFIN ELEMENTARY SCHOOL | B81: 1231 | C81: 166822 | D81: 1637
A82: ALTURAS ELEMENTARY SCHOOL | B82: 1041 | C82: 157084 | D82: 1587
A83: HIGHLAND CITY ELEMENTARY SCHOOL | B83: 1061 | C83: 137600 | D83: 1582
A84: NEW BEGINNINGS HIGH SCHOOL | B84: 8004 | C84: 132406 | D84: 1361
A85: REAL ACADEMY | B85: 921 | C85: 149773 | D85: 1293
A86: POLK ACCELERATION ACADEMY | B86: 917 | C86: 3198 | D86: 0
A87: BILL DUNCAN OPPORTUNITY CENTER | B87: 2001 | C87: 29559 | D87: 0
A88: RIDGE TEEN PARENT PROGRAM | B88: 9205 | C88: 3198 | D88: 0
A89: DON E WOODS OPPORTUNITY CENTER | B89: 421 | C89: 24378 | D89: 0
A90: DAVENPORT COMMUNITY CAMPUS | B90: 916 | C90: 4433 | D90: 0
A91: RIDGE COMMUNITY HIGH SCHOOL | B91: 937 | C91: 586000 | D91: 6876
A92: WINTER HAVEN SENIOR HIGH SCHL | B92: 481 | C92: 427200 | D92: 5004
A93: AUBURNDALE SENIOR HIGH SCHOOL | B93: 811 | C93: 310400 | D93: 3639
A94: CHAIN OF LAKES ELEMENTARY SCHOOL | B94: 933 | C94: 310400 | D94: 3570
A95: WENDELL WATSON ELEMENTARY SCHOOL | B95: 1881 | C95: 232000 | D95: 2725
A96: SCOTT LAKE ELEMENTARY SCHOOL | B96: 1681 | C96: 224400 | D96: 2585
A97: ROCHELLE SCHOOL OF THE ARTS | B97: 261 | C97: 229600 | D97: 2460
A98: SPESSARD L HOLLAND ELEMENTARY | B98: 1908 | C98: 200400 | D98: 2438
A99: HIGHLANDS GROVE ELEMENTARY SCHOOL | B99: 1281 | C99: 193200 | D99: 2222
A100: WINSTON ACADEMY OF ENGINEERING | B100: 1251 | C100: 149600 | D100: 1720
A101: BETHUNE ACADEMY | B101: 391 | C101: 134800 | D101: 1555
A102: CLEVELAND COURT ELEM. SCHOOL | B102: 81 | C102: 121600 | D102: 1398
A103: DORIS A. SANDERS LEARNING CTR | B103: 92 | C103: 21600 | D103: 248
A104: RIDGEVIEW GLOBAL STUDIES ACAD. | B104: 441 | C104: 0 | D104: 0
A105: KAREN M. SIEGEL ACADEMY | B105: 661 | C105: 0 | D105: 0
A106: JEWETT SCHOOL OF THE ARTS | B106: 712 | C106: 0 | D106: 0
A107: DAVENPORT SCHOOL OF THE ARTS | B107: 401 | C107: 0 | D107: 0
A108: JEAN O'DELL LEARNING CENTER | B108: 962 | C108: 0 | D108: 0
A109: POLK FULL TIME ESCHOOL | B109: 7023 | C109: 0 | D109: 0
A110: SOUTH MCKEEL ACADEMY | B110: 1692 | C110: 0 | D110: 0
A111: CYPRESS JUNCTION MONTESSORI | B111: 8171 | C111: 0 | D111: 0
A112: HARTRIDGE ACADEMY | B112: 8121 | C112: 0 | D112: 0
A113: ACHIEVEMENT ACADEMY | B113: 8031 | C113: 0 | D113: 0
A114: BERKLEY ELEMENTARY SCHOOL | B114: 1951 | C114: 0 | D114: 0
A115: VALLEYVIEW ELEMENTARY SCHOOL | B115: 1891 | C115: 0 | D115: 0
A116: FRANK E. BRIGHAM ACADEMY | B116: 531 | C116: 0 | D116: 0
A117: BARTOW ELEMENTARY ACADEMY | B117: 941 | C117: 0 | D117: 0
A118: MCKEEL ELEMENTARY ACADEMY | B118: 1682 | C118: 0 | D118: 0
A119: LINCOLN AVENUE ACADEMY | B119: 251 | C119: 0 | D119: 0
A120: LAKELAND MONTESSORI SCHOOL HOUSE | B120: 8141 | C120: 0 | D120: 0
A121: GIBBONS STREET ELEMENTARY SCHOOL | B121: 981 | C121: 0 | D121: 0
A122: MAGNOLIA MONTESSORI ACADEMY | B122: 8005 | C122: 0 | D122: 0
A123: DANIEL JENKINS ACADEMY TECH | B123: 311 | C123: 0 | D123: 0
A124: LAKELAND HIGHLANDS MIDDLE SCHL | B124: 1771 | C124: 0 | D124: 0
A125: BERKLEY ACCELERATED MIDDLE SCHOOL | B125: 8142 | C125: 0 | D125: 0
A126: JEWETT MIDDLE ACADEMY MAGNET | B126: 711 | C126: 0 | D126: 0
A127: UNION ACADEMY | B127: 971 | C127: 0 | D127: 0
A128: LAWTON CHILES MIDDLE ACADEMY | B128: 43 | C128: 0 | D128: 0
A129: LAKELAND MONTESSORI MIDDLE SCHOOL | B129: 8140 | C129: 0 | D129: 0
A130: LAKE GIBSON SENIOR HIGH SCHOOL | B130: 1762 | C130: 0 | D130: 0
A131: BARTOW SENIOR HIGH SCHOOL | B131: 901 | C131: 0 | D131: 0
A132: MAYNARD A TRAVISS TECHNICAL COLLEGE | B132: 1591 | C132: 0 | D132: 0
A133: LAKELAND SENIOR HIGH SCHOOL | B133: 31 | C133: 0 | D133: 0
A134: GEORGE W. JENKINS SENIOR HIGH | B134: 1931 | C134: 0 | D134: 0
A135: MCKEEL ACADEMY OF TECHNOLOGY | B135: 1671 | C135: 0 | D135: 0
A136: RIDGE TECHNICAL COLLEGE | B136: 1691 | C136: 0 | D136: 0
A137: POLK PRE-COLLEGIATE ACADEMY | B137: 8002 | C137: 0 | D137: 0
A138: PS LAKELAND GATEWAY TO COLLEGE CHS | B138: 8003 | C138: 0 | D138: 0
A139: CHAIN OF LAKES COLLEGIATE HIGH | B139: 8133 | C139: 0 | D139: 0
A140: POLK STATE COLLEGE COLLEGIATE HIGH SCHOOL | B140: 8131 | C140: 0

Sheet Budget Overview
A1: Tenoroc High
A2: =IFERROR(INDEX('18-19 Prelim Allocations'!B:B,MATCH('Budget Overview'!$A$1,'18-19 Prelim Allocations'!A:A,0)),"") -> 1051
A4: Budget | D4: Planned Expenditures | G4: Plan Summary
A5: Basic Allocation | B5: =INDEX('18-19_Final_Allocations'!C:C,MATCH('Budget Overview'!$A$2,'18-19_Final_Allocations'!B:B,0)) -> 274566 | D5: Parent and Family Engagement Non Staff Expenditures | E5: =IFERROR(GETPIVOTDATA("Total Cost of Expenditure",'H - Pivots'!$A$72,"Functional Area","6150 - Family Engagement"),0) -> 5830.41 | G5: Remaining Parent and Family Engagment Minimum | H5: =IFERROR(IF(B7-(E5+E7)<0,0,B7-(E5+E7)),"") -> 0
A7: Parent and Family Engagement Allocation | B7: =INDEX('18-19_Final_Allocations'!D:D,MATCH('Budget Overview'!A2,'18-19_Final_Allocations'!B:B,0)) -> 3203 | D7: Parent and Family Engagement Staff Expenditures | E7: =GETPIVOTDATA("Cost",'H - Pivots'!$A$134) -> 0 | G7: % Spent on Full Time Salaries (<95%) | H7: =IFERROR(GETPIVOTDATA("Total Cost of Expenditure",'H - Pivots'!$A$14,"Type of Expenditure","Full Time Personnel")/'Budget Overview'!B9,0) -> 0.3864698364
A8: District Coach and Curriculum Specialist Cost Sharing | B8: =-INDEX('18-19 Prelim Allocations'!F:F,MATCH('Budget Overview'!$A$2,'18-19 Prelim Allocations'!B:B,0)) -> -28126
A9: Total Allocation | B9: =SUM(B5,B7) -> 277769 | D9: Total Planned Expenditures | E9: =SUM(Expenditures!M:M) -> 277769 | G9: Remaining Unplanned Allocation | H9: =B9-E9 -> 0
H11: GUIDANCE
A32: Template Version 18-21

Sheet Goals and Strategies (hidden)
A1: Title I (School Improvement) Plan Goals, Barriers, and Strategies
A3: ='Budget Overview'!A1 -> Tenoroc High | B3: ='Budget Overview'!A2 -> 1051 | C3: Guidance
A5: School Improvement Plan Goals | B5: Which of your SIP strategies can be supplemented with funding from Title I?
A6: Goal 1 - | B6: G1S1
B7: G1S2
B8: G1S3
B9: G1S4
B10: G1S5
B11: G1S6
B12: G1S7
B13: G1S8
A14: Goal 2 - | B14: G2S1
B15: G2S2
B16: G2S3
B17: G2S4
B18: G2S5
B19: G2S6
B20: G2S7
B21: G2S8
A22: Goal 3 - | B22: G3S1
B23: G3S2
B24: G3S3
B25: G3S4
B26: G3S5
B27: G3S6
B28: G3S7
B29: G3S8

Sheet Personnel Expenditures
B1: Title I Personnel Expenditures Funded by School Allocation | AJ1: Guidance
D2: ='Budget Overview'!A1 -> Tenoroc High | J2: ='Budget Overview'!A2 -> 1051
G4: Full Time Personnel Info Only | P4: Special Activity Only | BH4: Office Use Only
A5: Funding | B5: Type of Personnel Expense | C5: Staff Name or Description of Special Activity | D5: Strategy | E5: Job Title | F5: Functional Area | G5: Position # | H5: SAP # | I5: New Hire | J5: Start Date | K5: End Date | L5: % Title I | M5: Current Total Salary | N5: Currently In DROP | O5: Health Insurance Taken | P5: Number of Special Activity Hours | Q5: Special Activity Pay Rate | R5: GL Account | S5: Funct-GL Account | T5: Functional Area2 | U5: Total Worked Days | V5: Title I Paid Salary Final | W5: Retirement Final | X5: Social Security Final | Y5: Health Insurance | Z5: Life Insurance | AA5: Worker Comp | AB5: School Number | AC5: SA - Pay Rate | AD5: SA - Total Salary | AE5: SA - Retirement | AF5: SA - SS | AG5: SA - WC | AH5: SA - Total Salary and Benefits | AI5: FTP - Total Salary and Benefits | AJ5: Total Salary and Benefits | AK5: Class # | AL5: Workdays If Teacher | AM5: Is personnel teacher | AN5: Is network manager | AO5: workdays if Para | AP5: Is para | AQ5: Is PI Para | AR5: Is Media Para | AS5: Workdays if Guidance | AT5: Is Guidance | AU5: Works Psych | AV5: Is Psych | AW5: Is Media Spec | AX5: Is Coach | AY5: Count months worked from Health | AZ5: Adjust Health Months for New Hires | BA5: Adjust Month total greater than 12 | BB5: Final Health Months | BC5: 121 | BD5: Title I Paid Salary | BE5: Retirement | BF5: Social Security | BG5: Health hidden | BH5: Status | BI5: SA Pre Approved Amount | BJ5: Notes | BK5: SA Unapproved Amount
A6: School TTI | B6: Full Time Personnel | C6: TBA | E6: Math Coach | F6: 6400 - Staff Development | G6: 50062366 | I6: No | J6: 2018-08-01 | K6: 2019-07-31 | L6: 1 | M6: 50000 | N6: No | O6: Yes | R6: =IF(E6="","",VLOOKUP(E6,'H - Classifications'!A:F,6,FALSE)) -> 4130000 | S6: =IF(R6="","",Table2[[#This Row],[Functional Area2]]&"-"&Table2[[#This Row],[GL Account]]) -> 6400-4130000 | T6: =IF(E6="","",INDEX('H - Functional Areas'!B:B,MATCH(Table2[[#This Row],[Functional Area]],'H - Functional Areas'!C:C,0))) -> 6400 | U6: =IF(Table2[[#This Row],[Type of Personnel Expense]]="Special Activity Payroll","",IF(SUM(AM6,AN6,AP6,AQ6,AR6,AT6,AV6,AW6,AX6)>Table2[[#This Row],[121]],Table2[[#This Row],[121]],SUM(AM6,AN6,AP6,AQ6,AR6,AT6,AV6,AW6,AX6))) -> 196 | V6: =IF(BD6="","",SUM(AD6,BD6)) -> 50500 | W6: =IF(BE6="","",SUM(AE6,BE6)) -> 4171.3 | X6: =IF(BF6="","",SUM(AF6,BF6)) -> 3863.25 | Y6: =IF(O6="","",IF(O6="no",0,BG6*L6)) -> 7368 | Z6: =IF(M6="","",('H - Benefit Rates'!$B$4/12*'Personnel Expenditures'!BB6)*'Personnel Expenditures'!L6) -> 19.2 | AA6: =IF(B6="","",V6*'H - Benefit Rates'!$B$6) -> 282.8 | AB6: =IF(Table2[[#This Row],[Type of Personnel Expense]]="","",'Budget Overview'!$A$2) -> 1051 | AC6: =Table2[[#This Row],[Special Activity Pay Rate]] -> 0 | AD6: =IF(Table2[[#This Row],[SA - Pay Rate]]="","",Table2[[#This Row],[SA - Pay Rate]]*Table2[[#This Row],[Number of Special Activity Hours]]) -> 0 | AE6: =IF(Table2[[#This Row],[SA - Pay Rate]]="","",Table2[[#This Row],[SA - Total Salary]]*'H - Benefit Rates'!$B$1) -> 0 | AF6: =IF(Table2[[#This Row],[SA - Pay Rate]]="","",Table2[[#This Row],[SA - Total Salary]]*'H - Benefit Rates'!$B$2) -> 0 | AG6: =IF(Table2[[#This Row],[SA - Pay Rate]]="","",Table2[[#This Row],[SA - Total Salary]]*'H - Benefit Rates'!$B$6) -> 0 | AH6: =SUM(AD6,AE6,AF6,AG6) -> 0 | AI6: =IF(M6="","",ROUND(SUM(Z6,Y6,W6,BF6,BD6,AA6),2)) -> 66204.55 | AJ6: =IF(B6="","",ROUND(SUM(Table2[[#This Row],[SA - Total Salary and Benefits]:[FTP - Total Salary and Benefits]]),2)) -> 66204.55 | AK6: =IF(E6="","",VLOOKUP(E6,'H - Classifications'!A:D,3,FALSE)) -> 9 | AL6: =NETWORKDAYS(J6,K6,'H - Teacher Unpaid Days Off'!A:A) -> 198 | AM6: =IF(AK6=1,AL6,0) -> 0 | AN6: =IF(AK6=2,AL6,0) -> 0 | AO6: =NETWORKDAYS(J6,K6,'H - Para Unpaid Days Off'!A:A) -> 189 | AP6: =IF(AK6=3,AO6,0) -> 0 | AQ6: =IF(AK6=6,AO6,0) -> 0 | AR6: =IF(AK6=8,AO6,0) -> 0 | AS6: =NETWORKDAYS(J6,K6,'H - Guidance Counselor Days Off'!A:A) -> 210 | AT6: =IF(AK6=4,AS6,0) -> 0 | AU6: =NETWORKDAYS(J6,K6,'H- School Psychologist Days Off'!A:A) -> 198 | AV6: =IF(AK6=5,AU6,0) -> 0 | AW6: =IF(AK6=7,AL6,0) -> 0 | AX6: =IF(AK6=9,AL6,0) -> 198 | AY6: =IF(Table2[[#This Row],[Health Insurance Taken]]="","",(DATEDIF(Table2[[#This Row],[Start Date]],Table2[[#This Row],[End Date]],"m"))+1) -> 12 | AZ6: =IF(I6="yes",(AY6-3),AY6) -> 12 | BA6: =IF(AZ6>12,12,AZ6) -> 12 | BB6: =IF(Table2[[#This Row],[Adjust Month total greater than 12]]<0,0,Table2[[#This Row],[Adjust Month total greater than 12]]) -> 12 | BC6: =IF(E6="","",VLOOKUP(E6,'H - Classifications'!A:D,4,FALSE)) -> 196 | BD6: =IF(U6="","0",(((M6*L6)/BC6)*U6)*(1+'H - Benefit Rates'!$B$7)) -> 50500 | BE6: =IF(U6="","0",IF(N6="yes",ROUND(BD6*'H - Benefit Rates'!$B$5,2),ROUND(BD6*'H - Benefit Rates'!$B$1,2))) -> 4171.3 | BF6: =IF(U6="","0",ROUND('H - Benefit Rates'!$B$2*BD6,2)) -> 3863.25 | BG6: =('H - Benefit Rates'!$B$3/12)*BB6 -> 7368 | BK6: =IF(Table2[[#This Row],[SA Pre Approved Amount]]="","",Table2[[#This Row],[Total Salary and Benefits]]-Table2[[#This Row],[SA Pre Approved Amount]]) -> 
A7: School TTI | B7: Full Time Personnel | C7: Fatmeh Hafer (UniSIg for 3mos) | E7: Literacy Coach | F7: 6400 - Staff Development | G7: 50062367 | H7: 28036 | I7: No | J7: 2018-11-01 | K7: 2019-07-31 | L7: 1 | M7: 44271 | N7: No | O7: Yes | R7: =IF(E7="","",VLOOKUP(E7,'H - Classifications'!A:F,6,FALSE)) -> 4130000 | S7: =IF(R7="","",Table2[[#This Row],[Functional Area2]]&"-"&Table2[[#This Row],[GL Account]]) -> 6400-4130000 | T7: =IF(E7="","",INDEX('H - Functional Areas'!B:B,MATCH(Table2[[#This Row],[Functional Area]],'H - Functional Areas'!C:C,0))) -> 6400 | U7: =IF(Table2[[#This Row],[Type of Personnel Expense]]="Special Activity Payroll","",IF(SUM(AM7,AN7,AP7,AQ7,AR7,AT7,AV7,AW7,AX7)>Table2[[#This Row],[121]],Table2[[#This Row],[121]],SUM(AM7,AN7,AP7,AQ7,AR7,AT7,AV7,AW7,AX7))) -> 134 | V7: 30569.57724 | W7: 2525.05 | X7: 2338.57 | Y7: 5526 | Z7: =IF(M7="","",('H - Benefit Rates'!$B$4/12*'Personnel Expenditures'!BB7)*'Personnel Expenditures'!L7) -> 14.4 | AA7: =IF(B7="","",V7*'H - Benefit Rates'!$B$6) -> 171.1896326 | AB7: =IF(Table2[[#This Row],[Type of Personnel Expense]]="","",'Budget Overview'!$A$2) -> 1051 | AC7: =Table2[[#This Row],[Special Activity Pay Rate]] -> 0 | AD7: =IF(Table2[[#This Row],[SA - Pay Rate]]="","",Table2[[#This Row],[SA - Pay Rate]]*Table2[[#This Row],[Number of Special Activity Hours]]) -> 0 | AE7: =IF(Table2[[#This Row],[SA - Pay Rate]]="","",Table2[[#This Row],[SA - Total Salary]]*'H - Benefit Rates'!$B$1) -> 0 | AF7: =IF(Table2[[#This Row],[SA - Pay Rate]]="","",Table2[[#This Row],[SA - Total Salary]]*'H - Benefit Rates'!$B$2) -> 0 | AG7: =IF(Table2[[#This Row],[SA - Pay Rate]]="","",Table2[[#This Row],[SA - Total Salary]]*'H - Benefit Rates'!$B$6) -> 0 | AH7: 0 | AI7: 41144.79 | AJ7: =IF(B7="","",ROUND(SUM(Table2[[#This Row],[SA - Total Salary and Benefits]:[FTP - Total Salary and Benefits]]),2)) -> 41144.79 | AK7: =IF(E7="","",VLOOKUP(E7,'H - Classifications'!A:D,3,FALSE)) -> 9 | AL7: =NETWORKDAYS(J7,K7,'H - Teacher Unpaid Days Off'!A:A) -> 134 | AM7: 0 | AN7: 0 | AO7: =NETWORKDAYS(J7,K7,'H - Para Unpaid Days Off'!A:A) -> 130 | AP7: 0 | AQ7: 0 | AR7: 0 | AS7: =NETWORKDAYS(J7,K7,'H - Guidance Counselor Days Off'!A:A) -> 144 | AT7: 0 | AU7: =NETWORKDAYS(J7,K7,'H- School Psychologist Days Off'!A:A) -> 134 | AV7: 0 | AW7: 0 | AX7: 134 | AY7: =IF(Table2[[#This Row],[Health Insurance Taken]]="","",(DATEDIF(Table2[[#This Row],[Start Date]],Table2[[#This Row],[End Date]],"m"))+1) -> 9 | AZ7: 9 | BA7: 9 | BB7: =IF(Table2[[#This Row],[Adjust Month total greater than 12]]<0,0,Table2[[#This Row],[Adjust Month total greater than 12]]) -> 9 | BC7: =IF(E7="","",VLOOKUP(E7,'H - Classifications'!A:D,4,FALSE)) -> 196 | BD7: =IF(U7="","0",(((M7*L7)/BC7)*U7)*(1+'H - Benefit Rates'!$B$7)) -> 30569.57724 | BE7: =IF(U7="","0",IF(N7="yes",ROUND(BD7*'H - Benefit Rates'!$B$5,2),ROUND(BD7*'H - Benefit Rates'!$B$1,2))) -> 2525.05 | BF7: =IF(U7="","0",ROUND('H - Benefit Rates'!$B$2*BD7,2)) -> 2338.57 | BG7: =('H - Benefit Rates'!$B$3/12)*BB7 -> 5526 | BK7: =IF(Table2[[#This Row],[SA Pre Approved Amount]]="","",Table2[[#This Row],[Total Salary and Benefits]]-Table2[[#This Row],[SA Pre Approved Amount]]) -> 
A8: School TTI | B8: Special Activity Payroll | C8: Extended Learning | E8: Classroom Teacher | F8: 5900 - Extended Learning | P8: 185 | Q8: 19.42 | R8: =IF(E8="","",VLOOKUP(E8,'H - Classifications'!A:F,6,FALSE)) -> 4120000 | S8: =IF(R8="","",Table2[[#This Row],[Functional Area2]]&"-"&Table2[[#This Row],[GL Account]]) -> 5900-4120000 | T8: =IF(E8="","",INDEX('H - Functional Areas'!B:B,MATCH(Table2[[#This Row],[Functional Area]],'H - Functional Areas'!C:C,0))) -> 5900 | U8: =IF(Table2[[#This Row],[Type of Personnel Expense]]="Special Activity Payroll","",IF(SUM(AM8,AN8,AP8,AQ8,AR8,AT8,AV8,AW8,AX8)>Table2[[#This Row],[121]],Table2[[#This Row],[121]],SUM(AM8,AN8,AP8,AQ8,AR8,AT8,AV8,AW8,AX8))) ->  | V8: 3592.7 | W8: 296.75702 | X8: 274.84155 | Z8: =IF(M8="","",('H - Benefit Rates'!$B$4/12*'Personnel Expenditures'!BB8)*'Personnel Expenditures'!L8) ->  | AA8: =IF(B8="","",V8*'H - Benefit Rates'!$B$6) -> 20.11912 | AB8: =IF(Table2[[#This Row],[Type of Personnel Expense]]="","",'Budget Overview'!$A$2) -> 1051 | AC8: =Table2[[#This Row],[Special Activity Pay Rate]] -> 19.42 | AD8: =IF(Table2[[#This Row],[SA - Pay Rate]]="","",Table2[[#This Row],[SA - Pay Rate]]*Table2[[#This Row],[Number of Special Activity Hours]]) -> 3592.7 | AE8: =IF(Table2[[#This Row],[SA - Pay Rate]]="","",Table2[[#This Row],[SA - Total Salary]]*'H - Benefit Rates'!$B$1) -> 296.75702 | AF8: =IF(Table2[[#This Row],[SA - Pay Rate]]="","",Table2[[#This Row],[SA - Total Salary]]*'H - Benefit Rates'!$B$2) -> 274.84155 | AG8: =IF(Table2[[#This Row],[SA - Pay Rate]]="","",Table2[[#This Row],[SA - Total Salary]]*'H - Benefit Rates'!$B$6) -> 20.11912 | AH8: 4184.41769 | AJ8: =IF(B8="","",ROUND(SUM(Table2[[#This Row],[SA - Total Salary and Benefits]:[FTP - Total Salary and Benefits]]),2)) -> 4184.42 | AK8: =IF(E8="","",VLOOKUP(E8,'H - Classifications'!A:D,3,FALSE)) -> 1 | AL8: =NETWORKDAYS(J8,K8,'H - Teacher Unpaid Days Off'!A:A) -> 0 | AM8: 0 | AN8: 0 | AO8: =NETWORKDAYS(J8,K8,'H - Para Unpaid Days Off'!A:A) -> 0 | AP8: 0 | AQ8: 0 | AR8: 0 | AS8: =NETWORKDAYS(J8,K8,'H - Guidance Counselor Days Off'!A:A) -> 0 | AT8: 0 | AU8: =NETWORKDAYS(J8,K8,'H- School Psychologist Days Off'!A:A) -> 0 | AV8: 0 | AW8: 0 | AX8: 0 | AY8: =IF(Table2[[#This Row],[Health Insurance Taken]]="","",(DATEDIF(Table2[[#This Row],[Start Date]],Table2[[#This Row],[End Date]],"m"))+1) ->  | BA8: 12 | BB8: =IF(Table2[[#This Row],[Adjust Month total greater than 12]]<0,0,Table2[[#This Row],[Adjust Month total greater than 12]]) -> 12 | BC8: =IF(E8="","",VLOOKUP(E8,'H - Classifications'!A:D,4,FALSE)) -> 196 | BD8: =IF(U8="","0",(((M8*L8)/BC8)*U8)*(1+'H - Benefit Rates'!$B$7)) -> 0 | BE8: =IF(U8="","0",IF(N8="yes",ROUND(BD8*'H - Benefit Rates'!$B$5,2),ROUND(BD8*'H - Benefit Rates'!$B$1,2))) -> 0 | BF8: =IF(U8="","0",ROUND('H - Benefit Rates'!$B$2*BD8,2)) -> 0 | BG8: =('H - Benefit Rates'!$B$3/12)*BB8 -> 7368 | BK8: =IF(Table2[[#This Row],[SA Pre Approved Amount]]="","",Table2[[#This Row],[Total Salary and Benefits]]-Table2[[#This Row],[SA Pre Approved Amount]]) -> 
A9: School TTI | B9: Special Activity Payroll | C9: AVID tutoring | E9: Non Classroom Teacher | F9: 5900 - Extended Learning | P9: 960 | Q9: 10 | R9: =IF(E9="","",VLOOKUP(E9,'H - Classifications'!A:F,6,FALSE)) -> 4130000 | S9: =IF(R9="","",Table2[[#This Row],[Functional Area2]]&"-"&Table2[[#This Row],[GL Account]]) -> 5900-4130000 | T9: =IF(E9="","",INDEX('H - Functional Areas'!B:B,MATCH(Table2[[#This Row],[Functional Area]],'H - Functional Areas'!C:C,0))) -> 5900 | U9: =IF(Table2[[#This Row],[Type of Personnel Expense]]="Special Activity Payroll","",IF(SUM(AM9,AN9,AP9,AQ9,AR9,AT9,AV9,AW9,AX9)>Table2[[#This Row],[121]],Table2[[#This Row],[121]],SUM(AM9,AN9,AP9,AQ9,AR9,AT9,AV9,AW9,AX9))) ->  | V9: 9600 | W9: 792.96 | X9: 734.4 | Z9: =IF(M9="","",('H - Benefit Rates'!$B$4/12*'Personnel Expenditures'!BB9)*'Personnel Expenditures'!L9) ->  | AA9: =IF(B9="","",V9*'H - Benefit Rates'!$B$6) -> 53.76 | AB9: =IF(Table2[[#This Row],[Type of Personnel Expense]]="","",'Budget Overview'!$A$2) -> 1051 | AC9: =Table2[[#This Row],[Special Activity Pay Rate]] -> 10 | AD9: =IF(Table2[[#This Row],[SA - Pay Rate]]="","",Table2[[#This Row],[SA - Pay Rate]]*Table2[[#This Row],[Number of Special Activity Hours]]) -> 9600 | AE9: =IF(Table2[[#This Row],[SA - Pay Rate]]="","",Table2[[#This Row],[SA - Total Salary]]*'H - Benefit Rates'!$B$1) -> 792.96 | AF9: =IF(Table2[[#This Row],[SA - Pay Rate]]="","",Table2[[#This Row],[SA - Total Salary]]*'H - Benefit Rates'!$B$2) -> 734.4 | AG9: =IF(Table2[[#This Row],[SA - Pay Rate]]="","",Table2[[#This Row],[SA - Total Salary]]*'H - Benefit Rates'!$B$6) -> 53.76 | AH9: 11181.12 | AJ9: =IF(B9="","",ROUND(SUM(Table2[[#This Row],[SA - Total Salary and Benefits]:[FTP - Total Salary and Benefits]]),2)) -> 11181.12 | AK9: =IF(E9="","",VLOOKUP(E9,'H - Classifications'!A:D,3,FALSE)) -> 1 | AL9: =NETWORKDAYS(J9,K9,'H - Teacher Unpaid Days Off'!A:A) -> 0 | AM9: 0 | AN9: 0 | AO9: =NETWORKDAYS(J9,K9,'H - Para Unpaid Days Off'!A:A) -> 0 | AP9: 0 | AQ9: 0 | AR9: 0 | AS9: =NETWORKDAYS(J9,K9,'H - Guidance Counselor Days Off'!A:A) -> 0 | AT9: 0 | AU9: =NETWORKDAYS(J9,K9,'H- School Psychologist Days Off'!A:A) -> 0 | AV9: 0 | AW9: 0 | AX9: 0 | AY9: =IF(Table2[[#This Row],[Health Insurance Taken]]="","",(DATEDIF(Table2[[#This Row],[Start Date]],Table2[[#This Row],[End Date]],"m"))+1) ->  | BA9: 12 | BB9: =IF(Table2[[#This Row],[Adjust Month total greater than 12]]<0,0,Table2[[#This Row],[Adjust Month total greater than 12]]) -> 12 | BC9: =IF(E9="","",VLOOKUP(E9,'H - Classifications'!A:D,4,FALSE)) -> 196 | BD9: =IF(U9="","0",(((M9*L9)/BC9)*U9)*(1+'H - Benefit Rates'!$B$7)) -> 0 | BE9: =IF(U9="","0",IF(N9="yes",ROUND(BD9*'H - Benefit Rates'!$B$5,2),ROUND(BD9*'H - Benefit Rates'!$B$1,2))) -> 0 | BF9: =IF(U9="","0",ROUND('H - Benefit Rates'!$B$2*BD9,2)) -> 0 | BG9: =('H - Benefit Rates'!$B$3/12)*BB9 -> 7368 | BK9: =IF(Table2[[#This Row],[SA Pre Approved Amount]]="","",Table2[[#This Row],[Total Salary and Benefits]]-Table2[[#This Row],[SA Pre Approved Amount]]) -> 
R10: =IF(E10="","",VLOOKUP(E10,'H - Classifications'!A:F,6,FALSE)) ->  | S10: =IF(R10="","",Table2[[#This Row],[Functional Area2]]&"-"&Table2[[#This Row],[GL Account]]) ->  | T10: =IF(E10="","",INDEX('H - Functional Areas'!B:B,MATCH(Table2[[#This Row],[Functional Area]],'H - Functional Areas'!C:C,0))) ->  | U10: =IF(Table2[[#This Row],[Type of Personnel Expense]]="Special Activity Payroll","",IF(SUM(AM10,AN10,AP10,AQ10,AR10,AT10,AV10,AW10,AX10)>Table2[[#This Row],[121]],Table2[[#This Row],[121]],SUM(AM10,AN10,AP10,AQ10,AR10,AT10,AV10,AW10,AX10))) -> 0 | Z10: =IF(M10="","",('H - Benefit Rates'!$B$4/12*'Personnel Expenditures'!BB10)*'Personnel Expenditures'!L10) ->  | AA10: =IF(B10="","",V10*'H - Benefit Rates'!$B$6) ->  | AB10: =IF(Table2[[#This Row],[Type of Personnel Expense]]="","",'Budget Overview'!$A$2) ->  | AC10: =Table2[[#This Row],[Special Activity Pay Rate]] -> 0 | AD10: =IF(Table2[[#This Row],[SA - Pay Rate]]="","",Table2[[#This Row],[SA - Pay Rate]]*Table2[[#This Row],[Number of Special Activity Hours]]) -> 0 | AE10: =IF(Table2[[#This Row],[SA - Pay Rate]]="","",Table2[[#This Row],[SA - Total Salary]]*'H - Benefit Rates'!$B$1) -> 0 | AF10: =IF(Table2[[#This Row],[SA - Pay Rate]]="","",Table2[[#This Row],[SA - Total Salary]]*'H - Benefit Rates'!$B$2) -> 0 | AG10: =IF(Table2[[#This Row],[SA - Pay Rate]]="","",Table2[[#This Row],[SA - Total Salary]]*'H - Benefit Rates'!$B$6) -> 0 | AH10: 0 | AJ10: =IF(B10="","",ROUND(SUM(Table2[[#This Row],[SA - Total Salary and Benefits]:[FTP - Total Salary and Benefits]]),2)) ->  | AK10: =IF(E10="","",VLOOKUP(E10,'H - Classifications'!A:D,3,FALSE)) ->  | AL10: =NETWORKDAYS(J10,K10,'H - Teacher Unpaid Days Off'!A:A) -> 0 | AM10: 0 | AN10: 0 | AO10: =NETWORKDAYS(J10,K10,'H - Para Unpaid Days Off'!A:A) -> 0 | AP10: 0 | AQ10: 0 | AR10: 0 | AS10: =NETWORKDAYS(J10,K10,'H - Guidance Counselor Days Off'!A:A) -> 0 | AT10: 0 | AU10: =NETWORKDAYS(J10,K10,'H- School Psychologist Days Off'!A:A) -> 0 | AV10: 0 | AW10: 0 | AX10: 0 | AY10: =IF(Table2[[#This Row],[Health Insurance Taken]]="","",(DATEDIF(Table2[[#This Row],[Start Date]],Table2[[#This Row],[End Date]],"m"))+1) ->  | BA10: 12 | BB10: =IF(Table2[[#This Row],[Adjust Month total greater than 12]]<0,0,Table2[[#This Row],[Adjust Month total greater than 12]]) -> 12 | BC10: =IF(E10="","",VLOOKUP(E10,'H - Classifications'!A:D,4,FALSE)) ->  | BD10: =IF(U10="","0",(((M10*L10)/BC10)*U10)*(1+'H - Benefit Rates'!$B$7)) ->  | BE10: =IF(U10="","0",IF(N10="yes",ROUND(BD10*'H - Benefit Rates'!$B$5,2),ROUND(BD10*'H - Benefit Rates'!$B$1,2))) ->  | BF10: =IF(U10="","0",ROUND('H - Benefit Rates'!$B$2*BD10,2)) ->  | BG10: =('H - Benefit Rates'!$B$3/12)*BB10 -> 7368 | BK10: =IF(Table2[[#This Row],[SA Pre Approved Amount]]="","",Table2[[#This Row],[Total Salary and Benefits]]-Table2[[#This Row],[SA Pre Approved Amount]]) -> 
R11: =IF(E11="","",VLOOKUP(E11,'H - Classifications'!A:F,6,FALSE)) ->  | S11: =IF(R11="","",Table2[[#This Row],[Functional Area2]]&"-"&Table2[[#This Row],[GL Account]]) ->  | T11: =IF(E11="","",INDEX('H - Functional Areas'!B:B,MATCH(Table2[[#This Row],[Functional Area]],'H - Functional Areas'!C:C,0))) ->  | U11: =IF(Table2[[#This Row],[Type of Personnel Expense]]="Special Activity Payroll","",IF(SUM(AM11,AN11,AP11,AQ11,AR11,AT11,AV11,AW11,AX11)>Table2[[#This Row],[121]],Table2[[#This Row],[121]],SUM(AM11,AN11,AP11,AQ11,AR11,AT11,AV11,AW11,AX11))) -> 0 | Z11: =IF(M11="","",('H - Benefit Rates'!$B$4/12*'Personnel Expenditures'!BB11)*'Personnel Expenditures'!L11) ->  | AA11: =IF(B11="","",V11*'H - Benefit Rates'!$B$6) ->  | AB11: =IF(Table2[[#This Row],[Type of Personnel Expense]]="","",'Budget Overview'!$A$2) ->  | AC11: =Table2[[#This Row],[Special Activity Pay Rate]] -> 0 | AD11: =IF(Table2[[#This Row],[SA - Pay Rate]]="","",Table2[[#This Row],[SA - Pay Rate]]*Table2[[#This Row],[Number of Special Activity Hours]]) -> 0 | AE11: =IF(Table2[[#This Row],[SA - Pay Rate]]="","",Table2[[#This Row],[SA - Total Salary]]*'H - Benefit Rates'!$B$1) -> 0 | AF11: =IF(Table2[[#This Row],[SA - Pay Rate]]="","",Table2[[#This Row],[SA - Total Salary]]*'H - Benefit Rates'!$B$2) -> 0 | AG11: =IF(Table2[[#This Row],[SA - Pay Rate]]="","",Table2[[#This Row],[SA - Total Salary]]*'H - Benefit Rates'!$B$6) -> 0 | AH11: 0 | AJ11: =IF(B11="","",ROUND(SUM(Table2[[#This Row],[SA - Total Salary and Benefits]:[FTP - Total Salary and Benefits]]),2)) ->  | AK11: =IF(E11="","",VLOOKUP(E11,'H - Classifications'!A:D,3,FALSE)) ->  | AL11: =NETWORKDAYS(J11,K11,'H - Teacher Unpaid Days Off'!A:A) -> 0 | AM11: 0 | AN11: 0 | AO11: =NETWORKDAYS(J11,K11,'H - Para Unpaid Days Off'!A:A) -> 0 | AP11: 0 | AQ11: 0 | AR11: 0 | AS11: =NETWORKDAYS(J11,K11,'H - Guidance Counselor Days Off'!A:A) -> 0 | AT11: 0 | AU11: =NETWORKDAYS(J11,K11,'H- School Psychologist Days Off'!A:A) -> 0 | AV11: 0 | AW11: 0 | AX11: 0 | AY11: =IF(Table2[[#This Row],[Health Insurance Taken]]="","",(DATEDIF(Table2[[#This Row],[Start Date]],Table2[[#This Row],[End Date]],"m"))+1) ->  | BA11: 12 | BB11: =IF(Table2[[#This Row],[Adjust Month total greater than 12]]<0,0,Table2[[#This Row],[Adjust Month total greater than 12]]) -> 12 | BC11: =IF(E11="","",VLOOKUP(E11,'H - Classifications'!A:D,4,FALSE)) ->  | BD11: =IF(U11="","0",(((M11*L11)/BC11)*U11)*(1+'H - Benefit Rates'!$B$7)) ->  | BE11: =IF(U11="","0",IF(N11="yes",ROUND(BD11*'H - Benefit Rates'!$B$5,2),ROUND(BD11*'H - Benefit Rates'!$B$1,2))) ->  | BF11: =IF(U11="","0",ROUND('H - Benefit Rates'!$B$2*BD11,2)) ->  | BG11: =('H - Benefit Rates'!$B$3/12)*BB11 -> 7368 | BK11: =IF(Table2[[#This Row],[SA Pre Approved Amount]]="","",Table2[[#This Row],[Total Salary and Benefits]]-Table2[[#This Row],[SA Pre Approved Amount]]) -> 
R12: =IF(E12="","",VLOOKUP(E12,'H - Classifications'!A:F,6,FALSE)) ->  | S12: =IF(R12="","",Table2[[#This Row],[Functional Area2]]&"-"&Table2[[#This Row],[GL Account]]) ->  | T12: =IF(E12="","",INDEX('H - Functional Areas'!B:B,MATCH(Table2[[#This Row],[Functional Area]],'H - Functional Areas'!C:C,0))) ->  | U12: =IF(Table2[[#This Row],[Type of Personnel Expense]]="Special Activity Payroll","",IF(SUM(AM12,AN12,AP12,AQ12,AR12,AT12,AV12,AW12,AX12)>Table2[[#This Row],[121]],Table2[[#This Row],[121]],SUM(AM12,AN12,AP12,AQ12,AR12,AT12,AV12,AW12,AX12))) -> 0 | Z12: =IF(M12="","",('H - Benefit Rates'!$B$4/12*'Personnel Expenditures'!BB12)*'Personnel Expenditures'!L12) ->  | AA12: =IF(B12="","",V12*'H - Benefit Rates'!$B$6) ->  | AB12: =IF(Table2[[#This Row],[Type of Personnel Expense]]="","",'Budget Overview'!$A$2) ->  | AC12: =Table2[[#This Row],[Special Activity Pay Rate]] -> 0 | AD12: =IF(Table2[[#This Row],[SA - Pay Rate]]="","",Table2[[#This Row],[SA - Pay Rate]]*Table2[[#This Row],[Number of Special Activity Hours]]) -> 0 | AE12: =IF(Table2[[#This Row],[SA - Pay Rate]]="","",Table2[[#This Row],[SA - Total Salary]]*'H - Benefit Rates'!$B$1) -> 0 | AF12: =IF(Table2[[#This Row],[SA - Pay Rate]]="","",Table2[[#This Row],[SA - Total Salary]]*'H - Benefit Rates'!$B$2) -> 0 | AG12: =IF(Table2[[#This Row],[SA - Pay Rate]]="","",Table2[[#This Row],[SA - Total Salary]]*'H - Benefit Rates'!$B$6) -> 0 | AH12: 0 | AJ12: =IF(B12="","",ROUND(SUM(Table2[[#This Row],[SA - Total Salary and Benefits]:[FTP - Total Salary and Benefits]]),2)) ->  | AK12: =IF(E12="","",VLOOKUP(E12,'H - Classifications'!A:D,3,FALSE)) ->  | AL12: =NETWORKDAYS(J12,K12,'H - Teacher Unpaid Days Off'!A:A) -> 0 | AM12: =IF(AK12=1,AL12,0) -> 0 | AN12: =IF(AK12=2,AL12,0) -> 0 | AO12: =NETWORKDAYS(J12,K12,'H - Para Unpaid Days Off'!A:A) -> 0 | AP12: =IF(AK12=3,AO12,0) -> 0 | AQ12: =IF(AK12=6,AO12,0) -> 0 | AR12: =IF(AK12=8,AO12,0) -> 0 | AS12: =NETWORKDAYS(J12,K12,'H - Guidance Counselor Days Off'!A:A) -> 0 | AT12: =IF(AK12=4,AS12,0) -> 0 | AU12: =NETWORKDAYS(J12,K12,'H- School Psychologist Days Off'!A:A) -> 0 | AV12: =IF(AK12=5,AU12,0) -> 0 | AW12: =IF(AK12=7,AL12,0) -> 0 | AX12: =IF(AK12=9,AL12,0) -> 0 | AY12: =IF(Table2[[#This Row],[Health Insurance Taken]]="","",(DATEDIF(Table2[[#This Row],[Start Date]],Table2[[#This Row],[End Date]],"m"))+1) ->  | BA12: 12 | BB12: =IF(Table2[[#This Row],[Adjust Month total greater than 12]]<0,0,Table2[[#This Row],[Adjust Month total greater than 12]]) -> 12 | BC12: =IF(E12="","",VLOOKUP(E12,'H - Classifications'!A:D,4,FALSE)) ->  | BD12: =IF(U12="","0",(((M12*L12)/BC12)*U12)*(1+'H - Benefit Rates'!$B$7)) ->  | BE12: =IF(U12="","0",IF(N12="yes",ROUND(BD12*'H - Benefit Rates'!$B$5,2),ROUND(BD12*'H - Benefit Rates'!$B$1,2))) ->  | BF12: =IF(U12="","0",ROUND('H - Benefit Rates'!$B$2*BD12,2)) ->  | BG12: =('H - Benefit Rates'!$B$3/12)*BB12 -> 7368 | BK12: =IF(Table2[[#This Row],[SA Pre Approved Amount]]="","",Table2[[#This Row],[Total Salary and Benefits]]-Table2[[#This Row],[SA Pre Approved Amount]]) -> 
R13: =IF(E13="","",VLOOKUP(E13,'H - Classifications'!A:F,6,FALSE)) ->  | S13: =IF(R13="","",Table2[[#This Row],[Functional Area2]]&"-"&Table2[[#This Row],[GL Account]]) ->  | T13: =IF(E13="","",INDEX('H - Functional Areas'!B:B,MATCH(Table2[[#This Row],[Functional Area]],'H - Functional Areas'!C:C,0))) ->  | U13: =IF(Table2[[#This Row],[Type of Personnel Expense]]="Special Activity Payroll","",IF(SUM(AM13,AN13,AP13,AQ13,AR13,AT13,AV13,AW13,AX13)>Table2[[#This Row],[121]],Table2[[#This Row],[121]],SUM(AM13,AN13,AP13,AQ13,AR13,AT13,AV13,AW13,AX13))) -> 0 | Z13: =IF(M13="","",('H - Benefit Rates'!$B$4/12*'Personnel Expenditures'!BB13)*'Personnel Expenditures'!L13) ->  | AA13: =IF(B13="","",V13*'H - Benefit Rates'!$B$6) ->  | AB13: =IF(Table2[[#This Row],[Type of Personnel Expense]]="","",'Budget Overview'!$A$2) ->  | AC13: =Table2[[#This Row],[Special Activity Pay Rate]] -> 0 | AD13: =IF(Table2[[#This Row],[SA - Pay Rate]]="","",Table2[[#This Row],[SA - Pay Rate]]*Table2[[#This Row],[Number of Special Activity Hours]]) -> 0 | AE13: =IF(Table2[[#This Row],[SA - Pay Rate]]="","",Table2[[#This Row],[SA - Total Salary]]*'H - Benefit Rates'!$B$1) -> 0 | AF13: =IF(Table2[[#This Row],[SA - Pay Rate]]="","",Table2[[#This Row],[SA - Total Salary]]*'H - Benefit Rates'!$B$2) -> 0 | AG13: =IF(Table2[[#This Row],[SA - Pay Rate]]="","",Table2[[#This Row],[SA - Total Salary]]*'H - Benefit Rates'!$B$6) -> 0 | AH13: 0 | AJ13: =IF(B13="","",ROUND(SUM(Table2[[#This Row],[SA - Total Salary and Benefits]:[FTP - Total Salary and Benefits]]),2)) ->  | AK13: =IF(E13="","",VLOOKUP(E13,'H - Classifications'!A:D,3,FALSE)) ->  | AL13: =NETWORKDAYS(J13,K13,'H - Teacher Unpaid Days Off'!A:A) -> 0 | AM13: =IF(AK13=1,AL13,0) -> 0 | AN13: =IF(AK13=2,AL13,0) -> 0 | AO13: =NETWORKDAYS(J13,K13,'H - Para Unpaid Days Off'!A:A) -> 0 | AP13: =IF(AK13=3,AO13,0) -> 0 | AQ13: =IF(AK13=6,AO13,0) -> 0 | AR13: =IF(AK13=8,AO13,0) -> 0 | AS13: =NETWORKDAYS(J13,K13,'H - Guidance Counselor Days Off'!A:A) -> 0 | AT13: =IF(AK13=4,AS13,0) -> 0 | AU13: =NETWORKDAYS(J13,K13,'H- School Psychologist Days Off'!A:A) -> 0 | AV13: =IF(AK13=5,AU13,0) -> 0 | AW13: =IF(AK13=7,AL13,0) -> 0 | AX13: =IF(AK13=9,AL13,0) -> 0 | AY13: =IF(Table2[[#This Row],[Health Insurance Taken]]="","",(DATEDIF(Table2[[#This Row],[Start Date]],Table2[[#This Row],[End Date]],"m"))+1) ->  | BA13: 12 | BB13: =IF(Table2[[#This Row],[Adjust Month total greater than 12]]<0,0,Table2[[#This Row],[Adjust Month total greater than 12]]) -> 12 | BC13: =IF(E13="","",VLOOKUP(E13,'H - Classifications'!A:D,4,FALSE)) ->  | BD13: =IF(U13="","0",(((M13*L13)/BC13)*U13)*(1+'H - Benefit Rates'!$B$7)) ->  | BE13: =IF(U13="","0",IF(N13="yes",ROUND(BD13*'H - Benefit Rates'!$B$5,2),ROUND(BD13*'H - Benefit Rates'!$B$1,2))) ->  | BF13: =IF(U13="","0",ROUND('H - Benefit Rates'!$B$2*BD13,2)) ->  | BG13: =('H - Benefit Rates'!$B$3/12)*BB13 -> 7368 | BK13: =IF(Table2[[#This Row],[SA Pre Approved Amount]]="","",Table2[[#This Row],[Total Salary and Benefits]]-Table2[[#This Row],[SA Pre Approved Amount]]) -> 
R14: =IF(E14="","",VLOOKUP(E14,'H - Classifications'!A:F,6,FALSE)) ->  | S14: =IF(R14="","",Table2[[#This Row],[Functional Area2]]&"-"&Table2[[#This Row],[GL Account]]) ->  | T14: =IF(E14="","",INDEX('H - Functional Areas'!B:B,MATCH(Table2[[#This Row],[Functional Area]],'H - Functional Areas'!C:C,0))) ->  | U14: =IF(Table2[[#This Row],[Type of Personnel Expense]]="Special Activity Payroll","",IF(SUM(AM14,AN14,AP14,AQ14,AR14,AT14,AV14,AW14,AX14)>Table2[[#This Row],[121]],Table2[[#This Row],[121]],SUM(AM14,AN14,AP14,AQ14,AR14,AT14,AV14,AW14,AX14))) -> 0 | Z14: =IF(M14="","",('H - Benefit Rates'!$B$4/12*'Personnel Expenditures'!BB14)*'Personnel Expenditures'!L14) ->  | AA14: =IF(B14="","",V14*'H - Benefit Rates'!$B$6) ->  | AB14: =IF(Table2[[#This Row],[Type of Personnel Expense]]="","",'Budget Overview'!$A$2) ->  | AC14: =Table2[[#This Row],[Special Activity Pay Rate]] -> 0 | AD14: =IF(Table2[[#This Row],[SA - Pay Rate]]="","",Table2[[#This Row],[SA - Pay Rate]]*Table2[[#This Row],[Number of Special Activity Hours]]) -> 0 | AE14: =IF(Table2[[#This Row],[SA - Pay Rate]]="","",Table2[[#This Row],[SA - Total Salary]]*'H - Benefit Rates'!$B$1) -> 0 | AF14: =IF(Table2[[#This Row],[SA - Pay Rate]]="","",Table2[[#This Row],[SA - Total Salary]]*'H - Benefit Rates'!$B$2) -> 0 | AG14: =IF(Table2[[#This Row],[SA - Pay Rate]]="","",Table2[[#This Row],[SA - Total Salary]]*'H - Benefit Rates'!$B$6) -> 0 | AH14: 0 | AJ14: =IF(B14="","",ROUND(SUM(Table2[[#This Row],[SA - Total Salary and Benefits]:[FTP - Total Salary and Benefits]]),2)) ->  | AK14: =IF(E14="","",VLOOKUP(E14,'H - Classifications'!A:D,3,FALSE)) ->  | AL14: =NETWORKDAYS(J14,K14,'H - Teacher Unpaid Days Off'!A:A) -> 0 | AM14: 0 | AN14: 0 | AO14: =NETWORKDAYS(J14,K14,'H - Para Unpaid Days Off'!A:A) -> 0 | AP14: 0 | AQ14: 0 | AR14: 0 | AS14: =NETWORKDAYS(J14,K14,'H - Guidance Counselor Days Off'!A:A) -> 0 | AT14: 0 | AU14: =NETWORKDAYS(J14,K14,'H- School Psychologist Days Off'!A:A) -> 0 | AV14: 0 | AW14: 0 | AX14: 0 | AY14: =IF(Table2[[#This Row],[Health Insurance Taken]]="","",(DATEDIF(Table2[[#This Row],[Start Date]],Table2[[#This Row],[End Date]],"m"))+1) ->  | BA14: 12 | BB14: =IF(Table2[[#This Row],[Adjust Month total greater than 12]]<0,0,Table2[[#This Row],[Adjust Month total greater than 12]]) -> 12 | BC14: =IF(E14="","",VLOOKUP(E14,'H - Classifications'!A:D,4,FALSE)) ->  | BD14: =IF(U14="","0",(((M14*L14)/BC14)*U14)*(1+'H - Benefit Rates'!$B$7)) ->  | BE14: =IF(U14="","0",IF(N14="yes",ROUND(BD14*'H - Benefit Rates'!$B$5,2),ROUND(BD14*'H - Benefit Rates'!$B$1,2))) ->  | BF14: =IF(U14="","0",ROUND('H - Benefit Rates'!$B$2*BD14,2)) ->  | BG14: =('H - Benefit Rates'!$B$3/12)*BB14 -> 7368 | BK14: =IF(Table2[[#This Row],[SA Pre Approved Amount]]="","",Table2[[#This Row],[Total Salary and Benefits]]-Table2[[#This Row],[SA Pre Approved Amount]]) -> 
R15: =IF(E15="","",VLOOKUP(E15,'H - Classifications'!A:F,6,FALSE)) ->  | S15: =IF(R15="","",Table2[[#This Row],[Functional Area2]]&"-"&Table2[[#This Row],[GL Account]]) ->  | T15: =IF(E15="","",INDEX('H - Functional Areas'!B:B,MATCH(Table2[[#This Row],[Functional Area]],'H - Functional Areas'!C:C,0))) ->  | U15: =IF(Table2[[#This Row],[Type of Personnel Expense]]="Special Activity Payroll","",IF(SUM(AM15,AN15,AP15,AQ15,AR15,AT15,AV15,AW15,AX15)>Table2[[#This Row],[121]],Table2[[#This Row],[121]],SUM(AM15,AN15,AP15,AQ15,AR15,AT15,AV15,AW15,AX15))) -> 0 | Z15: =IF(M15="","",('H - Benefit Rates'!$B$4/12*'Personnel Expenditures'!BB15)*'Personnel Expenditures'!L15) ->  | AA15: =IF(B15="","",V15*'H - Benefit Rates'!$B$6) ->  | AB15: =IF(Table2[[#This Row],[Type of Personnel Expense]]="","",'Budget Overview'!$A$2) ->  | AC15: =Table2[[#This Row],[Special Activity Pay Rate]] -> 0 | AD15: =IF(Table2[[#This Row],[SA - Pay Rate]]="","",Table2[[#This Row],[SA - Pay Rate]]*Table2[[#This Row],[Number of Special Activity Hours]]) -> 0 | AE15: =IF(Table2[[#This Row],[SA - Pay Rate]]="","",Table2[[#This Row],[SA - Total Salary]]*'H - Benefit Rates'!$B$1) -> 0 | AF15: =IF(Table2[[#This Row],[SA - Pay Rate]]="","",Table2[[#This Row],[SA - Total Salary]]*'H - Benefit Rates'!$B$2) -> 0 | AG15: =IF(Table2[[#This Row],[SA - Pay Rate]]="","",Table2[[#This Row],[SA - Total Salary]]*'H - Benefit Rates'!$B$6) -> 0 | AH15: 0 | AJ15: =IF(B15="","",ROUND(SUM(Table2[[#This Row],[SA - Total Salary and Benefits]:[FTP - Total Salary and Benefits]]),2)) ->  | AK15: =IF(E15="","",VLOOKUP(E15,'H - Classifications'!A:D,3,FALSE)) ->  | AL15: =NETWORKDAYS(J15,K15,'H - Teacher Unpaid Days Off'!A:A) -> 0 | AM15: =IF(AK15=1,AL15,0) -> 0 | AN15: =IF(AK15=2,AL15,0) -> 0 | AO15: =NETWORKDAYS(J15,K15,'H - Para Unpaid Days Off'!A:A) -> 0 | AP15: =IF(AK15=3,AO15,0) -> 0 | AQ15: =IF(AK15=6,AO15,0) -> 0 | AR15: =IF(AK15=8,AO15,0) -> 0 | AS15: =NETWORKDAYS(J15,K15,'H - Guidance Counselor Days Off'!A:A) -> 0 | AT15: =IF(AK15=4,AS15,0) -> 0 | AU15: =NETWORKDAYS(J15,K15,'H- School Psychologist Days Off'!A:A) -> 0 | AV15: =IF(AK15=5,AU15,0) -> 0 | AW15: =IF(AK15=7,AL15,0) -> 0 | AX15: =IF(AK15=9,AL15,0) -> 0 | AY15: =IF(Table2[[#This Row],[Health Insurance Taken]]="","",(DATEDIF(Table2[[#This Row],[Start Date]],Table2[[#This Row],[End Date]],"m"))+1) ->  | BA15: 12 | BB15: =IF(Table2[[#This Row],[Adjust Month total greater than 12]]<0,0,Table2[[#This Row],[Adjust Month total greater than 12]]) -> 12 | BC15: =IF(E15="","",VLOOKUP(E15,'H - Classifications'!A:D,4,FALSE)) ->  | BD15: =IF(U15="","0",(((M15*L15)/BC15)*U15)*(1+'H - Benefit Rates'!$B$7)) ->  | BE15: =IF(U15="","0",IF(N15="yes",ROUND(BD15*'H - Benefit Rates'!$B$5,2),ROUND(BD15*'H - Benefit Rates'!$B$1,2))) ->  | BF15: =IF(U15="","0",ROUND('H - Benefit Rates'!$B$2*BD15,2)) ->  | BG15: =('H - Benefit Rates'!$B$3/12)*BB15 -> 7368 | BK15: =IF(Table2[[#This Row],[SA Pre Approved Amount]]="","",Table2[[#This Row],[Total Salary and Benefits]]-Table2[[#This Row],[SA Pre Approved Amount]]) -> 
R16: =IF(E16="","",VLOOKUP(E16,'H - Classifications'!A:F,6,FALSE)) ->  | S16: =IF(R16="","",Table2[[#This Row],[Functional Area2]]&"-"&Table2[[#This Row],[GL Account]]) ->  | T16: =IF(E16="","",INDEX('H - Functional Areas'!B:B,MATCH(Table2[[#This Row],[Functional Area]],'H - Functional Areas'!C:C,0))) ->  | U16: =IF(Table2[[#This Row],[Type of Personnel Expense]]="Special Activity Payroll","",IF(SUM(AM16,AN16,AP16,AQ16,AR16,AT16,AV16,AW16,AX16)>Table2[[#This Row],[121]],Table2[[#This Row],[121]],SUM(AM16,AN16,AP16,AQ16,AR16,AT16,AV16,AW16,AX16))) -> 0 | Z16: =IF(M16="","",('H - Benefit Rates'!$B$4/12*'Personnel Expenditures'!BB16)*'Personnel Expenditures'!L16) ->  | AA16: =IF(B16="","",V16*'H - Benefit Rates'!$B$6) ->  | AB16: =IF(Table2[[#This Row],[Type of Personnel Expense]]="","",'Budget Overview'!$A$2) ->  | AC16: =Table2[[#This Row],[Special Activity Pay Rate]] -> 0 | AD16: =IF(Table2[[#This Row],[SA - Pay Rate]]="","",Table2[[#This Row],[SA - Pay Rate]]*Table2[[#This Row],[Number of Special Activity Hours]]) -> 0 | AE16: =IF(Table2[[#This Row],[SA - Pay Rate]]="","",Table2[[#This Row],[SA - Total Salary]]*'H - Benefit Rates'!$B$1) -> 0 | AF16: =IF(Table2[[#This Row],[SA - Pay Rate]]="","",Table2[[#This Row],[SA - Total Salary]]*'H - Benefit Rates'!$B$2) -> 0 | AG16: =IF(Table2[[#This Row],[SA - Pay Rate]]="","",Table2[[#This Row],[SA - Total Salary]]*'H - Benefit Rates'!$B$6) -> 0 | AH16: 0 | AJ16: =IF(B16="","",ROUND(SUM(Table2[[#This Row],[SA - Total Salary and Benefits]:[FTP - Total Salary and Benefits]]),2)) ->  | AK16: =IF(E16="","",VLOOKUP(E16,'H - Classifications'!A:D,3,FALSE)) ->  | AL16: =NETWORKDAYS(J16,K16,'H - Teacher Unpaid Days Off'!A:A) -> 0 | AM16: =IF(AK16=1,AL16,0) -> 0 | AN16: =IF(AK16=2,AL16,0) -> 0 | AO16: =NETWORKDAYS(J16,K16,'H - Para Unpaid Days Off'!A:A) -> 0 | AP16: =IF(AK16=3,AO16,0) -> 0 | AQ16: =IF(AK16=6,AO16,0) -> 0 | AR16: =IF(AK16=8,AO16,0) -> 0 | AS16: =NETWORKDAYS(J16,K16,'H - Guidance Counselor Days Off'!A:A) -> 0 | AT16: =IF(AK16=4,AS16,0) -> 0 | AU16: =NETWORKDAYS(J16,K16,'H- School Psychologist Days Off'!A:A) -> 0 | AV16: =IF(AK16=5,AU16,0) -> 0 | AW16: =IF(AK16=7,AL16,0) -> 0 | AX16: =IF(AK16=9,AL16,0) -> 0 | AY16: =IF(Table2[[#This Row],[Health Insurance Taken]]="","",(DATEDIF(Table2[[#This Row],[Start Date]],Table2[[#This Row],[End Date]],"m"))+1) ->  | BA16: 12 | BB16: =IF(Table2[[#This Row],[Adjust Month total greater than 12]]<0,0,Table2[[#This Row],[Adjust Month total greater than 12]]) -> 12 | BC16: =IF(E16="","",VLOOKUP(E16,'H - Classifications'!A:D,4,FALSE)) ->  | BD16: =IF(U16="","0",(((M16*L16)/BC16)*U16)*(1+'H - Benefit Rates'!$B$7)) ->  | BE16: =IF(U16="","0",IF(N16="yes",ROUND(BD16*'H - Benefit Rates'!$B$5,2),ROUND(BD16*'H - Benefit Rates'!$B$1,2))) ->  | BF16: =IF(U16="","0",ROUND('H - Benefit Rates'!$B$2*BD16,2)) ->  | BG16: =('H - Benefit Rates'!$B$3/12)*BB16 -> 7368 | BK16: =IF(Table2[[#This Row],[SA Pre Approved Amount]]="","",Table2[[#This Row],[Total Salary and Benefits]]-Table2[[#This Row],[SA Pre Approved Amount]]) -> 
R17: =IF(E17="","",VLOOKUP(E17,'H - Classifications'!A:F,6,FALSE)) ->  | S17: =IF(R17="","",Table2[[#This Row],[Functional Area2]]&"-"&Table2[[#This Row],[GL Account]]) ->  | T17: =IF(E17="","",INDEX('H - Functional Areas'!B:B,MATCH(Table2[[#This Row],[Functional Area]],'H - Functional Areas'!C:C,0))) ->  | U17: =IF(Table2[[#This Row],[Type of Personnel Expense]]="Special Activity Payroll","",IF(SUM(AM17,AN17,AP17,AQ17,AR17,AT17,AV17,AW17,AX17)>Table2[[#This Row],[121]],Table2[[#This Row],[121]],SUM(AM17,AN17,AP17,AQ17,AR17,AT17,AV17,AW17,AX17))) -> 0 | Z17: =IF(M17="","",('H - Benefit Rates'!$B$4/12*'Personnel Expenditures'!BB17)*'Personnel Expenditures'!L17) ->  | AA17: =IF(B17="","",V17*'H - Benefit Rates'!$B$6) ->  | AB17: =IF(Table2[[#This Row],[Type of Personnel Expense]]="","",'Budget Overview'!$A$2) ->  | AC17: =Table2[[#This Row],[Special Activity Pay Rate]] -> 0 | AD17: =IF(Table2[[#This Row],[SA - Pay Rate]]="","",Table2[[#This Row],[SA - Pay Rate]]*Table2[[#This Row],[Number of Special Activity Hours]]) -> 0 | AE17: =IF(Table2[[#This Row],[SA - Pay Rate]]="","",Table2[[#This Row],[SA - Total Salary]]*'H - Benefit Rates'!$B$1) -> 0 | AF17: =IF(Table2[[#This Row],[SA - Pay Rate]]="","",Table2[[#This Row],[SA - Total Salary]]*'H - Benefit Rates'!$B$2) -> 0 | AG17: =IF(Table2[[#This Row],[SA - Pay Rate]]="","",Table2[[#This Row],[SA - Total Salary]]*'H - Benefit Rates'!$B$6) -> 0 | AH17: =SUM(AD17,AE17,AF17,AG17) -> 0 | AJ17: =IF(B17="","",ROUND(SUM(Table2[[#This Row],[SA - Total Salary and Benefits]:[FTP - Total Salary and Benefits]]),2)) ->  | AK17: =IF(E17="","",VLOOKUP(E17,'H - Classifications'!A:D,3,FALSE)) ->  | AL17: =NETWORKDAYS(J17,K17,'H - Teacher Unpaid Days Off'!A:A) -> 0 | AM17: 0 | AN17: 0 | AO17: =NETWORKDAYS(J17,K17,'H - Para Unpaid Days Off'!A:A) -> 0 | AP17: 0 | AQ17: 0 | AR17: 0 | AS17: =NETWORKDAYS(J17,K17,'H - Guidance Counselor Days Off'!A:A) -> 0 | AT17: 0 | AU17: =NETWORKDAYS(J17,K17,'H- School Psychologist Days Off'!A:A) -> 0 | AV17: 0 | AW17: 0 | AX17: 0 | AY17: =IF(Table2[[#This Row],[Health Insurance Taken]]="","",(DATEDIF(Table2[[#This Row],[Start Date]],Table2[[#This Row],[End Date]],"m"))+1) ->  | BA17: 12 | BB17: =IF(Table2[[#This Row],[Adjust Month total greater than 12]]<0,0,Table2[[#This Row],[Adjust Month total greater than 12]]) -> 12 | BC17: =IF(E17="","",VLOOKUP(E17,'H - Classifications'!A:D,4,FALSE)) ->  | BD17: =IF(U17="","0",(((M17*L17)/BC17)*U17)*(1+'H - Benefit Rates'!$B$7)) ->  | BE17: =IF(U17="","0",IF(N17="yes",ROUND(BD17*'H - Benefit Rates'!$B$5,2),ROUND(BD17*'H - Benefit Rates'!$B$1,2))) ->  | BF17: =IF(U17="","0",ROUND('H - Benefit Rates'!$B$2*BD17,2)) ->  | BG17: =('H - Benefit Rates'!$B$3/12)*BB17 -> 7368 | BK17: =IF(Table2[[#This Row],[SA Pre Approved Amount]]="","",Table2[[#This Row],[Total Salary and Benefits]]-Table2[[#This Row],[SA Pre Approved Amount]]) -> 
R18: =IF(E18="","",VLOOKUP(E18,'H - Classifications'!A:F,6,FALSE)) ->  | S18: =IF(R18="","",Table2[[#This Row],[Functional Area2]]&"-"&Table2[[#This Row],[GL Account]]) ->  | T18: =IF(E18="","",INDEX('H - Functional Areas'!B:B,MATCH(Table2[[#This Row],[Functional Area]],'H - Functional Areas'!C:C,0))) ->  | U18: =IF(Table2[[#This Row],[Type of Personnel Expense]]="Special Activity Payroll","",IF(SUM(AM18,AN18,AP18,AQ18,AR18,AT18,AV18,AW18,AX18)>Table2[[#This Row],[121]],Table2[[#This Row],[121]],SUM(AM18,AN18,AP18,AQ18,AR18,AT18,AV18,AW18,AX18))) -> 0 | Z18: =IF(M18="","",('H - Benefit Rates'!$B$4/12*'Personnel Expenditures'!BB18)*'Personnel Expenditures'!L18) ->  | AA18: =IF(B18="","",V18*'H - Benefit Rates'!$B$6) ->  | AB18: =IF(Table2[[#This Row],[Type of Personnel Expense]]="","",'Budget Overview'!$A$2) ->  | AC18: =Table2[[#This Row],[Special Activity Pay Rate]] -> 0 | AD18: =IF(Table2[[#This Row],[SA - Pay Rate]]="","",Table2[[#This Row],[SA - Pay Rate]]*Table2[[#This Row],[Number of Special Activity Hours]]) -> 0 | AE18: =IF(Table2[[#This Row],[SA - Pay Rate]]="","",Table2[[#This Row],[SA - Total Salary]]*'H - Benefit Rates'!$B$1) -> 0 | AF18: =IF(Table2[[#This Row],[SA - Pay Rate]]="","",Table2[[#This Row],[SA - Total Salary]]*'H - Benefit Rates'!$B$2) -> 0 | AG18: =IF(Table2[[#This Row],[SA - Pay Rate]]="","",Table2[[#This Row],[SA - Total Salary]]*'H - Benefit Rates'!$B$6) -> 0 | AH18: 0 | AJ18: =IF(B18="","",ROUND(SUM(Table2[[#This Row],[SA - Total Salary and Benefits]:[FTP - Total Salary and Benefits]]),2)) ->  | AK18: =IF(E18="","",VLOOKUP(E18,'H - Classifications'!A:D,3,FALSE)) ->  | AL18: =NETWORKDAYS(J18,K18,'H - Teacher Unpaid Days Off'!A:A) -> 0 | AM18: 0 | AN18: 0 | AO18: =NETWORKDAYS(J18,K18,'H - Para Unpaid Days Off'!A:A) -> 0 | AP18: 0 | AQ18: 0 | AR18: 0 | AS18: =NETWORKDAYS(J18,K18,'H - Guidance Counselor Days Off'!A:A) -> 0 | AT18: 0 | AU18: =NETWORKDAYS(J18,K18,'H- School Psychologist Days Off'!A:A) -> 0 | AV18: 0 | AW18: 0 | AX18: 0 | AY18: =IF(Table2[[#This Row],[Health Insurance Taken]]="","",(DATEDIF(Table2[[#This Row],[Start Date]],Table2[[#This Row],[End Date]],"m"))+1) ->  | BA18: 12 | BB18: =IF(Table2[[#This Row],[Adjust Month total greater than 12]]<0,0,Table2[[#This Row],[Adjust Month total greater than 12]]) -> 12 | BC18: =IF(E18="","",VLOOKUP(E18,'H - Classifications'!A:D,4,FALSE)) ->  | BD18: =IF(U18="","0",(((M18*L18)/BC18)*U18)*(1+'H - Benefit Rates'!$B$7)) ->  | BE18: =IF(U18="","0",IF(N18="yes",ROUND(BD18*'H - Benefit Rates'!$B$5,2),ROUND(BD18*'H - Benefit Rates'!$B$1,2))) ->  | BF18: =IF(U18="","0",ROUND('H - Benefit Rates'!$B$2*BD18,2)) ->  | BG18: =('H - Benefit Rates'!$B$3/12)*BB18 -> 7368 | BK18: =IF(Table2[[#This Row],[SA Pre Approved Amount]]="","",Table2[[#This Row],[Total Salary and Benefits]]-Table2[[#This Row],[SA Pre Approved Amount]]) -> 
R19: =IF(E19="","",VLOOKUP(E19,'H - Classifications'!A:F,6,FALSE)) ->  | S19: =IF(R19="","",Table2[[#This Row],[Functional Area2]]&"-"&Table2[[#This Row],[GL Account]]) ->  | T19: =IF(E19="","",INDEX('H - Functional Areas'!B:B,MATCH(Table2[[#This Row],[Functional Area]],'H - Functional Areas'!C:C,0))) ->  | U19: =IF(Table2[[#This Row],[Type of Personnel Expense]]="Special Activity Payroll","",IF(SUM(AM19,AN19,AP19,AQ19,AR19,AT19,AV19,AW19,AX19)>Table2[[#This Row],[121]],Table2[[#This Row],[121]],SUM(AM19,AN19,AP19,AQ19,AR19,AT19,AV19,AW19,AX19))) -> 0 | Z19: =IF(M19="","",('H - Benefit Rates'!$B$4/12*'Personnel Expenditures'!BB19)*'Personnel Expenditures'!L19) ->  | AA19: =IF(B19="","",V19*'H - Benefit Rates'!$B$6) ->  | AB19: =IF(Table2[[#This Row],[Type of Personnel Expense]]="","",'Budget Overview'!$A$2) ->  | AC19: =Table2[[#This Row],[Special Activity Pay Rate]] -> 0 | AD19: =IF(Table2[[#This Row],[SA - Pay Rate]]="","",Table2[[#This Row],[SA - Pay Rate]]*Table2[[#This Row],[Number of Special Activity Hours]]) -> 0 | AE19: =IF(Table2[[#This Row],[SA - Pay Rate]]="","",Table2[[#This Row],[SA - Total Salary]]*'H - Benefit Rates'!$B$1) -> 0 | AF19: =IF(Table2[[#This Row],[SA - Pay Rate]]="","",Table2[[#This Row],[SA - Total Salary]]*'H - Benefit Rates'!$B$2) -> 0 | AG19: =IF(Table2[[#This Row],[SA - Pay Rate]]="","",Table2[[#This Row],[SA - Total Salary]]*'H - Benefit Rates'!$B$6) -> 0 | AH19: 0 | AJ19: =IF(B19="","",ROUND(SUM(Table2[[#This Row],[SA - Total Salary and Benefits]:[FTP - Total Salary and Benefits]]),2)) ->  | AK19: =IF(E19="","",VLOOKUP(E19,'H - Classifications'!A:D,3,FALSE)) ->  | AL19: =NETWORKDAYS(J19,K19,'H - Teacher Unpaid Days Off'!A:A) -> 0 | AM19: 0 | AN19: 0 | AO19: =NETWORKDAYS(J19,K19,'H - Para Unpaid Days Off'!A:A) -> 0 | AP19: 0 | AQ19: 0 | AR19: 0 | AS19: =NETWORKDAYS(J19,K19,'H - Guidance Counselor Days Off'!A:A) -> 0 | AT19: 0 | AU19: =NETWORKDAYS(J19,K19,'H- School Psychologist Days Off'!A:A) -> 0 | AV19: 0 | AW19: 0 | AX19: 0 | AY19: =IF(Table2[[#This Row],[Health Insurance Taken]]="","",(DATEDIF(Table2[[#This Row],[Start Date]],Table2[[#This Row],[End Date]],"m"))+1) ->  | BA19: 12 | BB19: =IF(Table2[[#This Row],[Adjust Month total greater than 12]]<0,0,Table2[[#This Row],[Adjust Month total greater than 12]]) -> 12 | BC19: =IF(E19="","",VLOOKUP(E19,'H - Classifications'!A:D,4,FALSE)) ->  | BD19: =IF(U19="","0",(((M19*L19)/BC19)*U19)*(1+'H - Benefit Rates'!$B$7)) ->  | BE19: =IF(U19="","0",IF(N19="yes",ROUND(BD19*'H - Benefit Rates'!$B$5,2),ROUND(BD19*'H - Benefit Rates'!$B$1,2))) ->  | BF19: =IF(U19="","0",ROUND('H - Benefit Rates'!$B$2*BD19,2)) ->  | BG19: =('H - Benefit Rates'!$B$3/12)*BB19 -> 7368 | BK19: =IF(Table2[[#This Row],[SA Pre Approved Amount]]="","",Table2[[#This Row],[Total Salary and Benefits]]-Table2[[#This Row],[SA Pre Approved Amount]]) -> 
R20: =IF(E20="","",VLOOKUP(E20,'H - Classifications'!A:F,6,FALSE)) ->  | S20: =IF(R20="","",Table2[[#This Row],[Functional Area2]]&"-"&Table2[[#This Row],[GL Account]]) ->  | T20: =IF(E20="","",INDEX('H - Functional Areas'!B:B,MATCH(Table2[[#This Row],[Functional Area]],'H - Functional Areas'!C:C,0))) ->  | U20: =IF(Table2[[#This Row],[Type of Personnel Expense]]="Special Activity Payroll","",IF(SUM(AM20,AN20,AP20,AQ20,AR20,AT20,AV20,AW20,AX20)>Table2[[#This Row],[121]],Table2[[#This Row],[121]],SUM(AM20,AN20,AP20,AQ20,AR20,AT20,AV20,AW20,AX20))) -> 0 | Z20: =IF(M20="","",('H - Benefit Rates'!$B$4/12*'Personnel Expenditures'!BB20)*'Personnel Expenditures'!L20) ->  | AA20: =IF(B20="","",V20*'H - Benefit Rates'!$B$6) ->  | AB20: =IF(Table2[[#This Row],[Type of Personnel Expense]]="","",'Budget Overview'!$A$2) ->  | AC20: =Table2[[#This Row],[Special Activity Pay Rate]] -> 0 | AD20: =IF(Table2[[#This Row],[SA - Pay Rate]]="","",Table2[[#This Row],[SA - Pay Rate]]*Table2[[#This Row],[Number of Special Activity Hours]]) -> 0 | AE20: =IF(Table2[[#This Row],[SA - Pay Rate]]="","",Table2[[#This Row],[SA - Total Salary]]*'H - Benefit Rates'!$B$1) -> 0 | AF20: =IF(Table2[[#This Row],[SA - Pay Rate]]="","",Table2[[#This Row],[SA - Total Salary]]*'H - Benefit Rates'!$B$2) -> 0 | AG20: =IF(Table2[[#This Row],[SA - Pay Rate]]="","",Table2[[#This Row],[SA - Total Salary]]*'H - Benefit Rates'!$B$6) -> 0 | AH20: 0 | AJ20: =IF(B20="","",ROUND(SUM(Table2[[#This Row],[SA - Total Salary and Benefits]:[FTP - Total Salary and Benefits]]),2)) ->  | AK20: =IF(E20="","",VLOOKUP(E20,'H - Classifications'!A:D,3,FALSE)) ->  | AL20: =NETWORKDAYS(J20,K20,'H - Teacher Unpaid Days Off'!A:A) -> 0 | AM20: 0 | AN20: 0 | AO20: =NETWORKDAYS(J20,K20,'H - Para Unpaid Days Off'!A:A) -> 0 | AP20: 0 | AQ20: 0 | AR20: 0 | AS20: =NETWORKDAYS(J20,K20,'H - Guidance Counselor Days Off'!A:A) -> 0 | AT20: 0 | AU20: =NETWORKDAYS(J20,K20,'H- School Psychologist Days Off'!A:A) -> 0 | AV20: 0 | AW20: 0 | AX20: 0 | AY20: =IF(Table2[[#This Row],[Health Insurance Taken]]="","",(DATEDIF(Table2[[#This Row],[Start Date]],Table2[[#This Row],[End Date]],"m"))+1) ->  | BA20: 12 | BB20: =IF(Table2[[#This Row],[Adjust Month total greater than 12]]<0,0,Table2[[#This Row],[Adjust Month total greater than 12]]) -> 12 | BC20: =IF(E20="","",VLOOKUP(E20,'H - Classifications'!A:D,4,FALSE)) ->  | BD20: =IF(U20="","0",(((M20*L20)/BC20)*U20)*(1+'H - Benefit Rates'!$B$7)) ->  | BE20: =IF(U20="","0",IF(N20="yes",ROUND(BD20*'H - Benefit Rates'!$B$5,2),ROUND(BD20*'H - Benefit Rates'!$B$1,2))) ->  | BF20: =IF(U20="","0",ROUND('H - Benefit Rates'!$B$2*BD20,2)) ->  | BG20: =('H - Benefit Rates'!$B$3/12)*BB20 -> 7368 | BK20: =IF(Table2[[#This Row],[SA Pre Approved Amount]]="","",Table2[[#This Row],[Total Salary and Benefits]]-Table2[[#This Row],[SA Pre Approved Amount]]) -> 
R21: =IF(E21="","",VLOOKUP(E21,'H - Classifications'!A:F,6,FALSE)) ->  | S21: =IF(R21="","",Table2[[#This Row],[Functional Area2]]&"-"&Table2[[#This Row],[GL Account]]) ->  | T21: =IF(E21="","",INDEX('H - Functional Areas'!B:B,MATCH(Table2[[#This Row],[Functional Area]],'H - Functional Areas'!C:C,0))) ->  | U21: =IF(Table2[[#This Row],[Type of Personnel Expense]]="Special Activity Payroll","",IF(SUM(AM21,AN21,AP21,AQ21,AR21,AT21,AV21,AW21,AX21)>Table2[[#This Row],[121]],Table2[[#This Row],[121]],SUM(AM21,AN21,AP21,AQ21,AR21,AT21,AV21,AW21,AX21))) -> 0 | Z21: =IF(M21="","",('H - Benefit Rates'!$B$4/12*'Personnel Expenditures'!BB21)*'Personnel Expenditures'!L21) ->  | AA21: =IF(B21="","",V21*'H - Benefit Rates'!$B$6) ->  | AB21: =IF(Table2[[#This Row],[Type of Personnel Expense]]="","",'Budget Overview'!$A$2) ->  | AC21: =Table2[[#This Row],[Special Activity Pay Rate]] -> 0 | AD21: =IF(Table2[[#This Row],[SA - Pay Rate]]="","",Table2[[#This Row],[SA - Pay Rate]]*Table2[[#This Row],[Number of Special Activity Hours]]) -> 0 | AE21: =IF(Table2[[#This Row],[SA - Pay Rate]]="","",Table2[[#This Row],[SA - Total Salary]]*'H - Benefit Rates'!$B$1) -> 0 | AF21: =IF(Table2[[#This Row],[SA - Pay Rate]]="","",Table2[[#This Row],[SA - Total Salary]]*'H - Benefit Rates'!$B$2) -> 0 | AG21: =IF(Table2[[#This Row],[SA - Pay Rate]]="","",Table2[[#This Row],[SA - Total Salary]]*'H - Benefit Rates'!$B$6) -> 0 | AH21: 0 | AJ21: =IF(B21="","",ROUND(SUM(Table2[[#This Row],[SA - Total Salary and Benefits]:[FTP - Total Salary and Benefits]]),2)) ->  | AK21: =IF(E21="","",VLOOKUP(E21,'H - Classifications'!A:D,3,FALSE)) ->  | AL21: =NETWORKDAYS(J21,K21,'H - Teacher Unpaid Days Off'!A:A) -> 0 | AM21: 0 | AN21: 0 | AO21: =NETWORKDAYS(J21,K21,'H - Para Unpaid Days Off'!A:A) -> 0 | AP21: 0 | AQ21: 0 | AR21: 0 | AS21: =NETWORKDAYS(J21,K21,'H - Guidance Counselor Days Off'!A:A) -> 0 | AT21: 0 | AU21: =NETWORKDAYS(J21,K21,'H- School Psychologist Days Off'!A:A) -> 0 | AV21: 0 | AW21: 0 | AX21: 0 | AY21: =IF(Table2[[#This Row],[Health Insurance Taken]]="","",(DATEDIF(Table2[[#This Row],[Start Date]],Table2[[#This Row],[End Date]],"m"))+1) ->  | BA21: 12 | BB21: =IF(Table2[[#This Row],[Adjust Month total greater than 12]]<0,0,Table2[[#This Row],[Adjust Month total greater than 12]]) -> 12 | BC21: =IF(E21="","",VLOOKUP(E21,'H - Classifications'!A:D,4,FALSE)) ->  | BD21: =IF(U21="","0",(((M21*L21)/BC21)*U21)*(1+'H - Benefit Rates'!$B$7)) ->  | BE21: =IF(U21="","0",IF(N21="yes",ROUND(BD21*'H - Benefit Rates'!$B$5,2),ROUND(BD21*'H - Benefit Rates'!$B$1,2))) ->  | BF21: =IF(U21="","0",ROUND('H - Benefit Rates'!$B$2*BD21,2)) ->  | BG21: =('H - Benefit Rates'!$B$3/12)*BB21 -> 7368 | BK21: =IF(Table2[[#This Row],[SA Pre Approved Amount]]="","",Table2[[#This Row],[Total Salary and Benefits]]-Table2[[#This Row],[SA Pre Approved Amount]]) -> 
R22: =IF(E22="","",VLOOKUP(E22,'H - Classifications'!A:F,6,FALSE)) ->  | S22: =IF(R22="","",Table2[[#This Row],[Functional Area2]]&"-"&Table2[[#This Row],[GL Account]]) ->  | T22: =IF(E22="","",INDEX('H - Functional Areas'!B:B,MATCH(Table2[[#This Row],[Functional Area]],'H - Functional Areas'!C:C,0))) ->  | U22: =IF(Table2[[#This Row],[Type of Personnel Expense]]="Special Activity Payroll","",IF(SUM(AM22,AN22,AP22,AQ22,AR22,AT22,AV22,AW22,AX22)>Table2[[#This Row],[121]],Table2[[#This Row],[121]],SUM(AM22,AN22,AP22,AQ22,AR22,AT22,AV22,AW22,AX22))) -> 0 | Z22: =IF(M22="","",('H - Benefit Rates'!$B$4/12*'Personnel Expenditures'!BB22)*'Personnel Expenditures'!L22) ->  | AA22: =IF(B22="","",V22*'H - Benefit Rates'!$B$6) ->  | AB22: =IF(Table2[[#This Row],[Type of Personnel Expense]]="","",'Budget Overview'!$A$2) ->  | AC22: =Table2[[#This Row],[Special Activity Pay Rate]] -> 0 | AD22: =IF(Table2[[#This Row],[SA - Pay Rate]]="","",Table2[[#This Row],[SA - Pay Rate]]*Table2[[#This Row],[Number of Special Activity Hours]]) -> 0 | AE22: =IF(Table2[[#This Row],[SA - Pay Rate]]="","",Table2[[#This Row],[SA - Total Salary]]*'H - Benefit Rates'!$B$1) -> 0 | AF22: =IF(Table2[[#This Row],[SA - Pay Rate]]="","",Table2[[#This Row],[SA - Total Salary]]*'H - Benefit Rates'!$B$2) -> 0 | AG22: =IF(Table2[[#This Row],[SA - Pay Rate]]="","",Table2[[#This Row],[SA - Total Salary]]*'H - Benefit Rates'!$B$6) -> 0 | AH22: 0 | AJ22: =IF(B22="","",ROUND(SUM(Table2[[#This Row],[SA - Total Salary and Benefits]:[FTP - Total Salary and Benefits]]),2)) ->  | AK22: =IF(E22="","",VLOOKUP(E22,'H - Classifications'!A:D,3,FALSE)) ->  | AL22: =NETWORKDAYS(J22,K22,'H - Teacher Unpaid Days Off'!A:A) -> 0 | AM22: 0 | AN22: 0 | AO22: =NETWORKDAYS(J22,K22,'H - Para Unpaid Days Off'!A:A) -> 0 | AP22: 0 | AQ22: 0 | AR22: 0 | AS22: =NETWORKDAYS(J22,K22,'H - Guidance Counselor Days Off'!A:A) -> 0 | AT22: 0 | AU22: =NETWORKDAYS(J22,K22,'H- School Psychologist Days Off'!A:A) -> 0 | AV22: 0 | AW22: 0 | AX22: 0 | AY22: =IF(Table2[[#This Row],[Health Insurance Taken]]="","",(DATEDIF(Table2[[#This Row],[Start Date]],Table2[[#This Row],[End Date]],"m"))+1) ->  | BA22: 12 | BB22: =IF(Table2[[#This Row],[Adjust Month total greater than 12]]<0,0,Table2[[#This Row],[Adjust Month total greater than 12]]) -> 12 | BC22: =IF(E22="","",VLOOKUP(E22,'H - Classifications'!A:D,4,FALSE)) ->  | BD22: =IF(U22="","0",(((M22*L22)/BC22)*U22)*(1+'H - Benefit Rates'!$B$7)) ->  | BE22: =IF(U22="","0",IF(N22="yes",ROUND(BD22*'H - Benefit Rates'!$B$5,2),ROUND(BD22*'H - Benefit Rates'!$B$1,2))) ->  | BF22: =IF(U22="","0",ROUND('H - Benefit Rates'!$B$2*BD22,2)) ->  | BG22: =('H - Benefit Rates'!$B$3/12)*BB22 -> 7368 | BK22: =IF(Table2[[#This Row],[SA Pre Approved Amount]]="","",Table2[[#This Row],[Total Salary and Benefits]]-Table2[[#This Row],[SA Pre Approved Amount]]) -> 
R23: =IF(E23="","",VLOOKUP(E23,'H - Classifications'!A:F,6,FALSE)) ->  | S23: =IF(R23="","",Table2[[#This Row],[Functional Area2]]&"-"&Table2[[#This Row],[GL Account]]) ->  | T23: =IF(E23="","",INDEX('H - Functional Areas'!B:B,MATCH(Table2[[#This Row],[Functional Area]],'H - Functional Areas'!C:C,0))) ->  | U23: =IF(Table2[[#This Row],[Type of Personnel Expense]]="Special Activity Payroll","",IF(SUM(AM23,AN23,AP23,AQ23,AR23,AT23,AV23,AW23,AX23)>Table2[[#This Row],[121]],Table2[[#This Row],[121]],SUM(AM23,AN23,AP23,AQ23,AR23,AT23,AV23,AW23,AX23))) -> 0 | Z23: =IF(M23="","",('H - Benefit Rates'!$B$4/12*'Personnel Expenditures'!BB23)*'Personnel Expenditures'!L23) ->  | AA23: =IF(B23="","",V23*'H - Benefit Rates'!$B$6) ->  | AB23: =IF(Table2[[#This Row],[Type of Personnel Expense]]="","",'Budget Overview'!$A$2) ->  | AC23: =Table2[[#This Row],[Special Activity Pay Rate]] -> 0 | AD23: =IF(Table2[[#This Row],[SA - Pay Rate]]="","",Table2[[#This Row],[SA - Pay Rate]]*Table2[[#This Row],[Number of Special Activity Hours]]) -> 0 | AE23: =IF(Table2[[#This Row],[SA - Pay Rate]]="","",Table2[[#This Row],[SA - Total Salary]]*'H - Benefit Rates'!$B$1) -> 0 | AF23: =IF(Table2[[#This Row],[SA - Pay Rate]]="","",Table2[[#This Row],[SA - Total Salary]]*'H - Benefit Rates'!$B$2) -> 0 | AG23: =IF(Table2[[#This Row],[SA - Pay Rate]]="","",Table2[[#This Row],[SA - Total Salary]]*'H - Benefit Rates'!$B$6) -> 0 | AH23: 0 | AJ23: =IF(B23="","",ROUND(SUM(Table2[[#This Row],[SA - Total Salary and Benefits]:[FTP - Total Salary and Benefits]]),2)) ->  | AK23: =IF(E23="","",VLOOKUP(E23,'H - Classifications'!A:D,3,FALSE)) ->  | AL23: =NETWORKDAYS(J23,K23,'H - Teacher Unpaid Days Off'!A:A) -> 0 | AM23: 0 | AN23: 0 | AO23: =NETWORKDAYS(J23,K23,'H - Para Unpaid Days Off'!A:A) -> 0 | AP23: 0 | AQ23: 0 | AR23: 0 | AS23: =NETWORKDAYS(J23,K23,'H - Guidance Counselor Days Off'!A:A) -> 0 | AT23: 0 | AU23: =NETWORKDAYS(J23,K23,'H- School Psychologist Days Off'!A:A) -> 0 | AV23: 0 | AW23: 0 | AX23: 0 | AY23: =IF(Table2[[#This Row],[Health Insurance Taken]]="","",(DATEDIF(Table2[[#This Row],[Start Date]],Table2[[#This Row],[End Date]],"m"))+1) ->  | BA23: 12 | BB23: =IF(Table2[[#This Row],[Adjust Month total greater than 12]]<0,0,Table2[[#This Row],[Adjust Month total greater than 12]]) -> 12 | BC23: =IF(E23="","",VLOOKUP(E23,'H - Classifications'!A:D,4,FALSE)) ->  | BD23: =IF(U23="","0",(((M23*L23)/BC23)*U23)*(1+'H - Benefit Rates'!$B$7)) ->  | BE23: =IF(U23="","0",IF(N23="yes",ROUND(BD23*'H - Benefit Rates'!$B$5,2),ROUND(BD23*'H - Benefit Rates'!$B$1,2))) ->  | BF23: =IF(U23="","0",ROUND('H - Benefit Rates'!$B$2*BD23,2)) ->  | BG23: =('H - Benefit Rates'!$B$3/12)*BB23 -> 7368 | BK23: =IF(Table2[[#This Row],[SA Pre Approved Amount]]="","",Table2[[#This Row],[Total Salary and Benefits]]-Table2[[#This Row],[SA Pre Approved Amount]]) -> 
R24: =IF(E24="","",VLOOKUP(E24,'H - Classifications'!A:F,6,FALSE)) ->  | S24: =IF(R24="","",Table2[[#This Row],[Functional Area2]]&"-"&Table2[[#This Row],[GL Account]]) ->  | T24: =IF(E24="","",INDEX('H - Functional Areas'!B:B,MATCH(Table2[[#This Row],[Functional Area]],'H - Functional Areas'!C:C,0))) ->  | U24: =IF(Table2[[#This Row],[Type of Personnel Expense]]="Special Activity Payroll","",IF(SUM(AM24,AN24,AP24,AQ24,AR24,AT24,AV24,AW24,AX24)>Table2[[#This Row],[121]],Table2[[#This Row],[121]],SUM(AM24,AN24,AP24,AQ24,AR24,AT24,AV24,AW24,AX24))) -> 0 | Z24: =IF(M24="","",('H - Benefit Rates'!$B$4/12*'Personnel Expenditures'!BB24)*'Personnel Expenditures'!L24) ->  | AA24: =IF(B24="","",V24*'H - Benefit Rates'!$B$6) ->  | AB24: =IF(Table2[[#This Row],[Type of Personnel Expense]]="","",'Budget Overview'!$A$2) ->  | AC24: =Table2[[#This Row],[Special Activity Pay Rate]] -> 0 | AD24: =IF(Table2[[#This Row],[SA - Pay Rate]]="","",Table2[[#This Row],[SA - Pay Rate]]*Table2[[#This Row],[Number of Special Activity Hours]]) -> 0 | AE24: =IF(Table2[[#This Row],[SA - Pay Rate]]="","",Table2[[#This Row],[SA - Total Salary]]*'H - Benefit Rates'!$B$1) -> 0 | AF24: =IF(Table2[[#This Row],[SA - Pay Rate]]="","",Table2[[#This Row],[SA - Total Salary]]*'H - Benefit Rates'!$B$2) -> 0 | AG24: =IF(Table2[[#This Row],[SA - Pay Rate]]="","",Table2[[#This Row],[SA - Total Salary]]*'H - Benefit Rates'!$B$6) -> 0 | AH24: 0 | AJ24: =IF(B24="","",ROUND(SUM(Table2[[#This Row],[SA - Total Salary and Benefits]:[FTP - Total Salary and Benefits]]),2)) ->  | AK24: =IF(E24="","",VLOOKUP(E24,'H - Classifications'!A:D,3,FALSE)) ->  | AL24: =NETWORKDAYS(J24,K24,'H - Teacher Unpaid Days Off'!A:A) -> 0 | AM24: 0 | AN24: 0 | AO24: =NETWORKDAYS(J24,K24,'H - Para Unpaid Days Off'!A:A) -> 0 | AP24: 0 | AQ24: 0 | AR24: 0 | AS24: =NETWORKDAYS(J24,K24,'H - Guidance Counselor Days Off'!A:A) -> 0 | AT24: 0 | AU24: =NETWORKDAYS(J24,K24,'H- School Psychologist Days Off'!A:A) -> 0 | AV24: 0 | AW24: 0 | AX24: 0 | AY24: =IF(Table2[[#This Row],[Health Insurance Taken]]="","",(DATEDIF(Table2[[#This Row],[Start Date]],Table2[[#This Row],[End Date]],"m"))+1) ->  | BA24: 12 | BB24: =IF(Table2[[#This Row],[Adjust Month total greater than 12]]<0,0,Table2[[#This Row],[Adjust Month total greater than 12]]) -> 12 | BC24: =IF(E24="","",VLOOKUP(E24,'H - Classifications'!A:D,4,FALSE)) ->  | BD24: =IF(U24="","0",(((M24*L24)/BC24)*U24)*(1+'H - Benefit Rates'!$B$7)) ->  | BE24: =IF(U24="","0",IF(N24="yes",ROUND(BD24*'H - Benefit Rates'!$B$5,2),ROUND(BD24*'H - Benefit Rates'!$B$1,2))) ->  | BF24: =IF(U24="","0",ROUND('H - Benefit Rates'!$B$2*BD24,2)) ->  | BG24: =('H - Benefit Rates'!$B$3/12)*BB24 -> 7368 | BK24: =IF(Table2[[#This Row],[SA Pre Approved Amount]]="","",Table2[[#This Row],[Total Salary and Benefits]]-Table2[[#This Row],[SA Pre Approved Amount]]) -> 
R25: =IF(E25="","",VLOOKUP(E25,'H - Classifications'!A:F,6,FALSE)) ->  | S25: =IF(R25="","",Table2[[#This Row],[Functional Area2]]&"-"&Table2[[#This Row],[GL Account]]) ->  | T25: =IF(E25="","",INDEX('H - Functional Areas'!B:B,MATCH(Table2[[#This Row],[Functional Area]],'H - Functional Areas'!C:C,0))) ->  | U25: =IF(Table2[[#This Row],[Type of Personnel Expense]]="Special Activity Payroll","",IF(SUM(AM25,AN25,AP25,AQ25,AR25,AT25,AV25,AW25,AX25)>Table2[[#This Row],[121]],Table2[[#This Row],[121]],SUM(AM25,AN25,AP25,AQ25,AR25,AT25,AV25,AW25,AX25))) -> 0 | Z25: =IF(M25="","",('H - Benefit Rates'!$B$4/12*'Personnel Expenditures'!BB25)*'Personnel Expenditures'!L25) ->  | AA25: =IF(B25="","",V25*'H - Benefit Rates'!$B$6) ->  | AB25: =IF(Table2[[#This Row],[Type of Personnel Expense]]="","",'Budget Overview'!$A$2) ->  | AC25: =Table2[[#This Row],[Special Activity Pay Rate]] -> 0 | AD25: =IF(Table2[[#This Row],[SA - Pay Rate]]="","",Table2[[#This Row],[SA - Pay Rate]]*Table2[[#This Row],[Number of Special Activity Hours]]) -> 0 | AE25: =IF(Table2[[#This Row],[SA - Pay Rate]]="","",Table2[[#This Row],[SA - Total Salary]]*'H - Benefit Rates'!$B$1) -> 0 | AF25: =IF(Table2[[#This Row],[SA - Pay Rate]]="","",Table2[[#This Row],[SA - Total Salary]]*'H - Benefit Rates'!$B$2) -> 0 | AG25: =IF(Table2[[#This Row],[SA - Pay Rate]]="","",Table2[[#This Row],[SA - Total Salary]]*'H - Benefit Rates'!$B$6) -> 0 | AH25: 0 | AJ25: =IF(B25="","",ROUND(SUM(Table2[[#This Row],[SA - Total Salary and Benefits]:[FTP - Total Salary and Benefits]]),2)) ->  | AK25: =IF(E25="","",VLOOKUP(E25,'H - Classifications'!A:D,3,FALSE)) ->  | AL25: =NETWORKDAYS(J25,K25,'H - Teacher Unpaid Days Off'!A:A) -> 0 | AM25: 0 | AN25: 0 | AO25: =NETWORKDAYS(J25,K25,'H - Para Unpaid Days Off'!A:A) -> 0 | AP25: 0 | AQ25: 0 | AR25: 0 | AS25: =NETWORKDAYS(J25,K25,'H - Guidance Counselor Days Off'!A:A) -> 0 | AT25: 0 | AU25: =NETWORKDAYS(J25,K25,'H- School Psychologist Days Off'!A:A) -> 0 | AV25: 0 | AW25: 0 | AX25: 0 | AY25: =IF(Table2[[#This Row],[Health Insurance Taken]]="","",(DATEDIF(Table2[[#This Row],[Start Date]],Table2[[#This Row],[End Date]],"m"))+1) ->  | BA25: 12 | BB25: =IF(Table2[[#This Row],[Adjust Month total greater than 12]]<0,0,Table2[[#This Row],[Adjust Month total greater than 12]]) -> 12 | BC25: =IF(E25="","",VLOOKUP(E25,'H - Classifications'!A:D,4,FALSE)) ->  | BD25: =IF(U25="","0",(((M25*L25)/BC25)*U25)*(1+'H - Benefit Rates'!$B$7)) ->  | BE25: =IF(U25="","0",IF(N25="yes",ROUND(BD25*'H - Benefit Rates'!$B$5,2),ROUND(BD25*'H - Benefit Rates'!$B$1,2))) ->  | BF25: =IF(U25="","0",ROUND('H - Benefit Rates'!$B$2*BD25,2)) ->  | BG25: =('H - Benefit Rates'!$B$3/12)*BB25 -> 7368 | BK25: =IF(Table2[[#This Row],[SA Pre Approved Amount]]="","",Table2[[#This Row],[Total Salary and Benefits]]-Table2[[#This Row],[SA Pre Approved Amount]]) -> 
R26: =IF(E26="","",VLOOKUP(E26,'H - Classifications'!A:F,6,FALSE)) ->  | S26: =IF(R26="","",Table2[[#This Row],[Functional Area2]]&"-"&Table2[[#This Row],[GL Account]]) ->  | T26: =IF(E26="","",INDEX('H - Functional Areas'!B:B,MATCH(Table2[[#This Row],[Functional Area]],'H - Functional Areas'!C:C,0))) ->  | U26: =IF(Table2[[#This Row],[Type of Personnel Expense]]="Special Activity Payroll","",IF(SUM(AM26,AN26,AP26,AQ26,AR26,AT26,AV26,AW26,AX26)>Table2[[#This Row],[121]],Table2[[#This Row],[121]],SUM(AM26,AN26,AP26,AQ26,AR26,AT26,AV26,AW26,AX26))) -> 0 | Z26: =IF(M26="","",('H - Benefit Rates'!$B$4/12*'Personnel Expenditures'!BB26)*'Personnel Expenditures'!L26) ->  | AA26: =IF(B26="","",V26*'H - Benefit Rates'!$B$6) ->  | AB26: =IF(Table2[[#This Row],[Type of Personnel Expense]]="","",'Budget Overview'!$A$2) ->  | AC26: =Table2[[#This Row],[Special Activity Pay Rate]] -> 0 | AD26: =IF(Table2[[#This Row],[SA - Pay Rate]]="","",Table2[[#This Row],[SA - Pay Rate]]*Table2[[#This Row],[Number of Special Activity Hours]]) -> 0 | AE26: =IF(Table2[[#This Row],[SA - Pay Rate]]="","",Table2[[#This Row],[SA - Total Salary]]*'H - Benefit Rates'!$B$1) -> 0 | AF26: =IF(Table2[[#This Row],[SA - Pay Rate]]="","",Table2[[#This Row],[SA - Total Salary]]*'H - Benefit Rates'!$B$2) -> 0 | AG26: =IF(Table2[[#This Row],[SA - Pay Rate]]="","",Table2[[#This Row],[SA - Total Salary]]*'H - Benefit Rates'!$B$6) -> 0 | AH26: 0 | AJ26: =IF(B26="","",ROUND(SUM(Table2[[#This Row],[SA - Total Salary and Benefits]:[FTP - Total Salary and Benefits]]),2)) ->  | AK26: =IF(E26="","",VLOOKUP(E26,'H - Classifications'!A:D,3,FALSE)) ->  | AL26: =NETWORKDAYS(J26,K26,'H - Teacher Unpaid Days Off'!A:A) -> 0 | AM26: 0 | AN26: 0 | AO26: =NETWORKDAYS(J26,K26,'H - Para Unpaid Days Off'!A:A) -> 0 | AP26: 0 | AQ26: 0 | AR26: 0 | AS26: =NETWORKDAYS(J26,K26,'H - Guidance Counselor Days Off'!A:A) -> 0 | AT26: 0 | AU26: =NETWORKDAYS(J26,K26,'H- School Psychologist Days Off'!A:A) -> 0 | AV26: 0 | AW26: 0 | AX26: 0 | AY26: =IF(Table2[[#This Row],[Health Insurance Taken]]="","",(DATEDIF(Table2[[#This Row],[Start Date]],Table2[[#This Row],[End Date]],"m"))+1) ->  | BA26: 12 | BB26: =IF(Table2[[#This Row],[Adjust Month total greater than 12]]<0,0,Table2[[#This Row],[Adjust Month total greater than 12]]) -> 12 | BC26: =IF(E26="","",VLOOKUP(E26,'H - Classifications'!A:D,4,FALSE)) ->  | BD26: =IF(U26="","0",(((M26*L26)/BC26)*U26)*(1+'H - Benefit Rates'!$B$7)) ->  | BE26: =IF(U26="","0",IF(N26="yes",ROUND(BD26*'H - Benefit Rates'!$B$5,2),ROUND(BD26*'H - Benefit Rates'!$B$1,2))) ->  | BF26: =IF(U26="","0",ROUND('H - Benefit Rates'!$B$2*BD26,2)) ->  | BG26: =('H - Benefit Rates'!$B$3/12)*BB26 -> 7368 | BK26: =IF(Table2[[#This Row],[SA Pre Approved Amount]]="","",Table2[[#This Row],[Total Salary and Benefits]]-Table2[[#This Row],[SA Pre Approved Amount]]) -> 
R27: =IF(E27="","",VLOOKUP(E27,'H - Classifications'!A:F,6,FALSE)) ->  | S27: =IF(R27="","",Table2[[#This Row],[Functional Area2]]&"-"&Table2[[#This Row],[GL Account]]) ->  | T27: =IF(E27="","",INDEX('H - Functional Areas'!B:B,MATCH(Table2[[#This Row],[Functional Area]],'H - Functional Areas'!C:C,0))) ->  | U27: =IF(Table2[[#This Row],[Type of Personnel Expense]]="Special Activity Payroll","",IF(SUM(AM27,AN27,AP27,AQ27,AR27,AT27,AV27,AW27,AX27)>Table2[[#This Row],[121]],Table2[[#This Row],[121]],SUM(AM27,AN27,AP27,AQ27,AR27,AT27,AV27,AW27,AX27))) -> 0 | Z27: =IF(M27="","",('H - Benefit Rates'!$B$4/12*'Personnel Expenditures'!BB27)*'Personnel Expenditures'!L27) ->  | AA27: =IF(B27="","",V27*'H - Benefit Rates'!$B$6) ->  | AB27: =IF(Table2[[#This Row],[Type of Personnel Expense]]="","",'Budget Overview'!$A$2) ->  | AC27: =Table2[[#This Row],[Special Activity Pay Rate]] -> 0 | AD27: =IF(Table2[[#This Row],[SA - Pay Rate]]="","",Table2[[#This Row],[SA - Pay Rate]]*Table2[[#This Row],[Number of Special Activity Hours]]) -> 0 | AE27: =IF(Table2[[#This Row],[SA - Pay Rate]]="","",Table2[[#This Row],[SA - Total Salary]]*'H - Benefit Rates'!$B$1) -> 0 | AF27: =IF(Table2[[#This Row],[SA - Pay Rate]]="","",Table2[[#This Row],[SA - Total Salary]]*'H - Benefit Rates'!$B$2) -> 0 | AG27: =IF(Table2[[#This Row],[SA - Pay Rate]]="","",Table2[[#This Row],[SA - Total Salary]]*'H - Benefit Rates'!$B$6) -> 0 | AH27: =SUM(AD27,AE27,AF27,AG27) -> 0 | AJ27: =IF(B27="","",ROUND(SUM(Table2[[#This Row],[SA - Total Salary and Benefits]:[FTP - Total Salary and Benefits]]),2)) ->  | AK27: =IF(E27="","",VLOOKUP(E27,'H - Classifications'!A:D,3,FALSE)) ->  | AL27: =NETWORKDAYS(J27,K27,'H - Teacher Unpaid Days Off'!A:A) -> 0 | AM27: =IF(AK27=1,AL27,0) -> 0 | AN27: =IF(AK27=2,AL27,0) -> 0 | AO27: =NETWORKDAYS(J27,K27,'H - Para Unpaid Days Off'!A:A) -> 0 | AP27: =IF(AK27=3,AO27,0) -> 0 | AQ27: =IF(AK27=6,AO27,0) -> 0 | AR27: =IF(AK27=8,AO27,0) -> 0 | AS27: =NETWORKDAYS(J27,K27,'H - Guidance Counselor Days Off'!A:A) -> 0 | AT27: =IF(AK27=4,AS27,0) -> 0 | AU27: =NETWORKDAYS(J27,K27,'H- School Psychologist Days Off'!A:A) -> 0 | AV27: =IF(AK27=5,AU27,0) -> 0 | AW27: =IF(AK27=7,AL27,0) -> 0 | AX27: =IF(AK27=9,AL27,0) -> 0 | AY27: =IF(Table2[[#This Row],[Health Insurance Taken]]="","",(DATEDIF(Table2[[#This Row],[Start Date]],Table2[[#This Row],[End Date]],"m"))+1) ->  | BA27: =IF(AZ27>12,12,AZ27) -> 12 | BB27: =IF(Table2[[#This Row],[Adjust Month total greater than 12]]<0,0,Table2[[#This Row],[Adjust Month total greater than 12]]) -> 12 | BC27: =IF(E27="","",VLOOKUP(E27,'H - Classifications'!A:D,4,FALSE)) ->  | BD27: =IF(U27="","0",(((M27*L27)/BC27)*U27)*(1+'H - Benefit Rates'!$B$7)) ->  | BE27: =IF(U27="","0",IF(N27="yes",ROUND(BD27*'H - Benefit Rates'!$B$5,2),ROUND(BD27*'H - Benefit Rates'!$B$1,2))) ->  | BF27: =IF(U27="","0",ROUND('H - Benefit Rates'!$B$2*BD27,2)) ->  | BG27: =('H - Benefit Rates'!$B$3/12)*BB27 -> 7368 | BK27: =IF(Table2[[#This Row],[SA Pre Approved Amount]]="","",Table2[[#This Row],[Total Salary and Benefits]]-Table2[[#This Row],[SA Pre Approved Amount]]) -> 
R28: =IF(E28="","",VLOOKUP(E28,'H - Classifications'!A:F,6,FALSE)) ->  | S28: =IF(R28="","",Table2[[#This Row],[Functional Area2]]&"-"&Table2[[#This Row],[GL Account]]) ->  | T28: =IF(E28="","",INDEX('H - Functional Areas'!B:B,MATCH(Table2[[#This Row],[Functional Area]],'H - Functional Areas'!C:C,0))) ->  | U28: =IF(Table2[[#This Row],[Type of Personnel Expense]]="Special Activity Payroll","",IF(SUM(AM28,AN28,AP28,AQ28,AR28,AT28,AV28,AW28,AX28)>Table2[[#This Row],[121]],Table2[[#This Row],[121]],SUM(AM28,AN28,AP28,AQ28,AR28,AT28,AV28,AW28,AX28))) -> 0 | Z28: =IF(M28="","",('H - Benefit Rates'!$B$4/12*'Personnel Expenditures'!BB28)*'Personnel Expenditures'!L28) ->  | AA28: =IF(B28="","",V28*'H - Benefit Rates'!$B$6) ->  | AB28: =IF(Table2[[#This Row],[Type of Personnel Expense]]="","",'Budget Overview'!$A$2) ->  | AC28: =Table2[[#This Row],[Special Activity Pay Rate]] -> 0 | AD28: =IF(Table2[[#This Row],[SA - Pay Rate]]="","",Table2[[#This Row],[SA - Pay Rate]]*Table2[[#This Row],[Number of Special Activity Hours]]) -> 0 | AE28: =IF(Table2[[#This Row],[SA - Pay Rate]]="","",Table2[[#This Row],[SA - Total Salary]]*'H - Benefit Rates'!$B$1) -> 0 | AF28: =IF(Table2[[#This Row],[SA - Pay Rate]]="","",Table2[[#This Row],[SA - Total Salary]]*'H - Benefit Rates'!$B$2) -> 0 | AG28: =IF(Table2[[#This Row],[SA - Pay Rate]]="","",Table2[[#This Row],[SA - Total Salary]]*'H - Benefit Rates'!$B$6) -> 0 | AH28: 0 | AJ28: =IF(B28="","",ROUND(SUM(Table2[[#This Row],[SA - Total Salary and Benefits]:[FTP - Total Salary and Benefits]]),2)) ->  | AK28: =IF(E28="","",VLOOKUP(E28,'H - Classifications'!A:D,3,FALSE)) ->  | AL28: =NETWORKDAYS(J28,K28,'H - Teacher Unpaid Days Off'!A:A) -> 0 | AM28: 0 | AN28: 0 | AO28: =NETWORKDAYS(J28,K28,'H - Para Unpaid Days Off'!A:A) -> 0 | AP28: 0 | AQ28: 0 | AR28: 0 | AS28: =NETWORKDAYS(J28,K28,'H - Guidance Counselor Days Off'!A:A) -> 0 | AT28: 0 | AU28: =NETWORKDAYS(J28,K28,'H- School Psychologist Days Off'!A:A) -> 0 | AV28: 0 | AW28: 0 | AX28: 0 | AY28: =IF(Table2[[#This Row],[Health Insurance Taken]]="","",(DATEDIF(Table2[[#This Row],[Start Date]],Table2[[#This Row],[End Date]],"m"))+1) ->  | BA28: 12 | BB28: =IF(Table2[[#This Row],[Adjust Month total greater than 12]]<0,0,Table2[[#This Row],[Adjust Month total greater than 12]]) -> 12 | BC28: =IF(E28="","",VLOOKUP(E28,'H - Classifications'!A:D,4,FALSE)) ->  | BD28: =IF(U28="","0",(((M28*L28)/BC28)*U28)*(1+'H - Benefit Rates'!$B$7)) ->  | BE28: =IF(U28="","0",IF(N28="yes",ROUND(BD28*'H - Benefit Rates'!$B$5,2),ROUND(BD28*'H - Benefit Rates'!$B$1,2))) ->  | BF28: =IF(U28="","0",ROUND('H - Benefit Rates'!$B$2*BD28,2)) ->  | BG28: =('H - Benefit Rates'!$B$3/12)*BB28 -> 7368 | BK28: =IF(Table2[[#This Row],[SA Pre Approved Amount]]="","",Table2[[#This Row],[Total Salary and Benefits]]-Table2[[#This Row],[SA Pre Approved Amount]]) -> 
R29: =IF(E29="","",VLOOKUP(E29,'H - Classifications'!A:F,6,FALSE)) ->  | S29: =IF(R29="","",Table2[[#This Row],[Functional Area2]]&"-"&Table2[[#This Row],[GL Account]]) ->  | T29: =IF(E29="","",INDEX('H - Functional Areas'!B:B,MATCH(Table2[[#This Row],[Functional Area]],'H - Functional Areas'!C:C,0))) ->  | U29: =IF(Table2[[#This Row],[Type of Personnel Expense]]="Special Activity Payroll","",IF(SUM(AM29,AN29,AP29,AQ29,AR29,AT29,AV29,AW29,AX29)>Table2[[#This Row],[121]],Table2[[#This Row],[121]],SUM(AM29,AN29,AP29,AQ29,AR29,AT29,AV29,AW29,AX29))) -> 0 | Z29: =IF(M29="","",('H - Benefit Rates'!$B$4/12*'Personnel Expenditures'!BB29)*'Personnel Expenditures'!L29) ->  | AA29: =IF(B29="","",V29*'H - Benefit Rates'!$B$6) ->  | AB29: =IF(Table2[[#This Row],[Type of Personnel Expense]]="","",'Budget Overview'!$A$2) ->  | AC29: =Table2[[#This Row],[Special Activity Pay Rate]] -> 0 | AD29: =IF(Table2[[#This Row],[SA - Pay Rate]]="","",Table2[[#This Row],[SA - Pay Rate]]*Table2[[#This Row],[Number of Special Activity Hours]]) -> 0 | AE29: =IF(Table2[[#This Row],[SA - Pay Rate]]="","",Table2[[#This Row],[SA - Total Salary]]*'H - Benefit Rates'!$B$1) -> 0 | AF29: =IF(Table2[[#This Row],[SA - Pay Rate]]="","",Table2[[#This Row],[SA - Total Salary]]*'H - Benefit Rates'!$B$2) -> 0 | AG29: =IF(Table2[[#This Row],[SA - Pay Rate]]="","",Table2[[#This Row],[SA - Total Salary]]*'H - Benefit Rates'!$B$6) -> 0 | AH29: 0 | AJ29: =IF(B29="","",ROUND(SUM(Table2[[#This Row],[SA - Total Salary and Benefits]:[FTP - Total Salary and Benefits]]),2)) ->  | AK29: =IF(E29="","",VLOOKUP(E29,'H - Classifications'!A:D,3,FALSE)) ->  | AL29: =NETWORKDAYS(J29,K29,'H - Teacher Unpaid Days Off'!A:A) -> 0 | AM29: 0 | AN29: 0 | AO29: =NETWORKDAYS(J29,K29,'H - Para Unpaid Days Off'!A:A) -> 0 | AP29: 0 | AQ29: 0 | AR29: 0 | AS29: =NETWORKDAYS(J29,K29,'H - Guidance Counselor Days Off'!A:A) -> 0 | AT29: 0 | AU29: =NETWORKDAYS(J29,K29,'H- School Psychologist Days Off'!A:A) -> 0 | AV29: 0 | AW29: 0 | AX29: 0 | AY29: =IF(Table2[[#This Row],[Health Insurance Taken]]="","",(DATEDIF(Table2[[#This Row],[Start Date]],Table2[[#This Row],[End Date]],"m"))+1) ->  | BA29: 12 | BB29: =IF(Table2[[#This Row],[Adjust Month total greater than 12]]<0,0,Table2[[#This Row],[Adjust Month total greater than 12]]) -> 12 | BC29: =IF(E29="","",VLOOKUP(E29,'H - Classifications'!A:D,4,FALSE)) ->  | BD29: =IF(U29="","0",(((M29*L29)/BC29)*U29)*(1+'H - Benefit Rates'!$B$7)) ->  | BE29: =IF(U29="","0",IF(N29="yes",ROUND(BD29*'H - Benefit Rates'!$B$5,2),ROUND(BD29*'H - Benefit Rates'!$B$1,2))) ->  | BF29: =IF(U29="","0",ROUND('H - Benefit Rates'!$B$2*BD29,2)) ->  | BG29: =('H - Benefit Rates'!$B$3/12)*BB29 -> 7368 | BK29: =IF(Table2[[#This Row],[SA Pre Approved Amount]]="","",Table2[[#This Row],[Total Salary and Benefits]]-Table2[[#This Row],[SA Pre Approved Amount]]) -> 
R30: =IF(E30="","",VLOOKUP(E30,'H - Classifications'!A:F,6,FALSE)) ->  | S30: =IF(R30="","",Table2[[#This Row],[Functional Area2]]&"-"&Table2[[#This Row],[GL Account]]) ->  | T30: =IF(E30="","",INDEX('H - Functional Areas'!B:B,MATCH(Table2[[#This Row],[Functional Area]],'H - Functional Areas'!C:C,0))) ->  | U30: =IF(Table2[[#This Row],[Type of Personnel Expense]]="Special Activity Payroll","",IF(SUM(AM30,AN30,AP30,AQ30,AR30,AT30,AV30,AW30,AX30)>Table2[[#This Row],[121]],Table2[[#This Row],[121]],SUM(AM30,AN30,AP30,AQ30,AR30,AT30,AV30,AW30,AX30))) -> 0 | Z30: =IF(M30="","",('H - Benefit Rates'!$B$4/12*'Personnel Expenditures'!BB30)*'Personnel Expenditures'!L30) ->  | AA30: =IF(B30="","",V30*'H - Benefit Rates'!$B$6) ->  | AB30: =IF(Table2[[#This Row],[Type of Personnel Expense]]="","",'Budget Overview'!$A$2) ->  | AC30: =Table2[[#This Row],[Special Activity Pay Rate]] -> 0 | AD30: =IF(Table2[[#This Row],[SA - Pay Rate]]="","",Table2[[#This Row],[SA - Pay Rate]]*Table2[[#This Row],[Number of Special Activity Hours]]) -> 0 | AE30: =IF(Table2[[#This Row],[SA - Pay Rate]]="","",Table2[[#This Row],[SA - Total Salary]]*'H - Benefit Rates'!$B$1) -> 0 | AF30: =IF(Table2[[#This Row],[SA - Pay Rate]]="","",Table2[[#This Row],[SA - Total Salary]]*'H - Benefit Rates'!$B$2) -> 0 | AG30: =IF(Table2[[#This Row],[SA - Pay Rate]]="","",Table2[[#This Row],[SA - Total Salary]]*'H - Benefit Rates'!$B$6) -> 0 | AH30: 0 | AJ30: =IF(B30="","",ROUND(SUM(Table2[[#This Row],[SA - Total Salary and Benefits]:[FTP - Total Salary and Benefits]]),2)) ->  | AK30: =IF(E30="","",VLOOKUP(E30,'H - Classifications'!A:D,3,FALSE)) ->  | AL30: =NETWORKDAYS(J30,K30,'H - Teacher Unpaid Days Off'!A:A) -> 0 | AM30: 0 | AN30: 0 | AO30: =NETWORKDAYS(J30,K30,'H - Para Unpaid Days Off'!A:A) -> 0 | AP30: 0 | AQ30: 0 | AR30: 0 | AS30: =NETWORKDAYS(J30,K30,'H - Guidance Counselor Days Off'!A:A) -> 0 | AT30: 0 | AU30: =NETWORKDAYS(J30,K30,'H- School Psychologist Days Off'!A:A) -> 0 | AV30: 0 | AW30: 0 | AX30: 0 | AY30: =IF(Table2[[#This Row],[Health Insurance Taken]]="","",(DATEDIF(Table2[[#This Row],[Start Date]],Table2[[#This Row],[End Date]],"m"))+1) ->  | BA30: 12 | BB30: =IF(Table2[[#This Row],[Adjust Month total greater than 12]]<0,0,Table2[[#This Row],[Adjust Month total greater than 12]]) -> 12 | BC30: =IF(E30="","",VLOOKUP(E30,'H - Classifications'!A:D,4,FALSE)) ->  | BD30: =IF(U30="","0",(((M30*L30)/BC30)*U30)*(1+'H - Benefit Rates'!$B$7)) ->  | BE30: =IF(U30="","0",IF(N30="yes",ROUND(BD30*'H - Benefit Rates'!$B$5,2),ROUND(BD30*'H - Benefit Rates'!$B$1,2))) ->  | BF30: =IF(U30="","0",ROUND('H - Benefit Rates'!$B$2*BD30,2)) ->  | BG30: =('H - Benefit Rates'!$B$3/12)*BB30 -> 7368 | BK30: =IF(Table2[[#This Row],[SA Pre Approved Amount]]="","",Table2[[#This Row],[Total Salary and Benefits]]-Table2[[#This Row],[SA Pre Approved Amount]]) -> 
R31: =IF(E31="","",VLOOKUP(E31,'H - Classifications'!A:F,6,FALSE)) ->  | S31: =IF(R31="","",Table2[[#This Row],[Functional Area2]]&"-"&Table2[[#This Row],[GL Account]]) ->  | T31: =IF(E31="","",INDEX('H - Functional Areas'!B:B,MATCH(Table2[[#This Row],[Functional Area]],'H - Functional Areas'!C:C,0))) ->  | U31: =IF(Table2[[#This Row],[Type of Personnel Expense]]="Special Activity Payroll","",IF(SUM(AM31,AN31,AP31,AQ31,AR31,AT31,AV31,AW31,AX31)>Table2[[#This Row],[121]],Table2[[#This Row],[121]],SUM(AM31,AN31,AP31,AQ31,AR31,AT31,AV31,AW31,AX31))) -> 0 | Z31: =IF(M31="","",('H - Benefit Rates'!$B$4/12*'Personnel Expenditures'!BB31)*'Personnel Expenditures'!L31) ->  | AA31: =IF(B31="","",V31*'H - Benefit Rates'!$B$6) ->  | AB31: =IF(Table2[[#This Row],[Type of Personnel Expense]]="","",'Budget Overview'!$A$2) ->  | AC31: =Table2[[#This Row],[Special Activity Pay Rate]] -> 0 | AD31: =IF(Table2[[#This Row],[SA - Pay Rate]]="","",Table2[[#This Row],[SA - Pay Rate]]*Table2[[#This Row],[Number of Special Activity Hours]]) -> 0 | AE31: =IF(Table2[[#This Row],[SA - Pay Rate]]="","",Table2[[#This Row],[SA - Total Salary]]*'H - Benefit Rates'!$B$1) -> 0 | AF31: =IF(Table2[[#This Row],[SA - Pay Rate]]="","",Table2[[#This Row],[SA - Total Salary]]*'H - Benefit Rates'!$B$2) -> 0 | AG31: =IF(Table2[[#This Row],[SA - Pay Rate]]="","",Table2[[#This Row],[SA - Total Salary]]*'H - Benefit Rates'!$B$6) -> 0 | AH31: 0 | AJ31: =IF(B31="","",ROUND(SUM(Table2[[#This Row],[SA - Total Salary and Benefits]:[FTP - Total Salary and Benefits]]),2)) ->  | AK31: =IF(E31="","",VLOOKUP(E31,'H - Classifications'!A:D,3,FALSE)) ->  | AL31: =NETWORKDAYS(J31,K31,'H - Teacher Unpaid Days Off'!A:A) -> 0 | AM31: 0 | AN31: 0 | AO31: =NETWORKDAYS(J31,K31,'H - Para Unpaid Days Off'!A:A) -> 0 | AP31: 0 | AQ31: 0 | AR31: 0 | AS31: =NETWORKDAYS(J31,K31,'H - Guidance Counselor Days Off'!A:A) -> 0 | AT31: 0 | AU31: =NETWORKDAYS(J31,K31,'H- School Psychologist Days Off'!A:A) -> 0 | AV31: 0 | AW31: 0 | AX31: 0 | AY31: =IF(Table2[[#This Row],[Health Insurance Taken]]="","",(DATEDIF(Table2[[#This Row],[Start Date]],Table2[[#This Row],[End Date]],"m"))+1) ->  | BA31: 12 | BB31: =IF(Table2[[#This Row],[Adjust Month total greater than 12]]<0,0,Table2[[#This Row],[Adjust Month total greater than 12]]) -> 12 | BC31: =IF(E31="","",VLOOKUP(E31,'H - Classifications'!A:D,4,FALSE)) ->  | BD31: =IF(U31="","0",(((M31*L31)/BC31)*U31)*(1+'H - Benefit Rates'!$B$7)) ->  | BE31: =IF(U31="","0",IF(N31="yes",ROUND(BD31*'H - Benefit Rates'!$B$5,2),ROUND(BD31*'H - Benefit Rates'!$B$1,2))) ->  | BF31: =IF(U31="","0",ROUND('H - Benefit Rates'!$B$2*BD31,2)) ->  | BG31: =('H - Benefit Rates'!$B$3/12)*BB31 -> 7368 | BK31: =IF(Table2[[#This Row],[SA Pre Approved Amount]]="","",Table2[[#This Row],[Total Salary and Benefits]]-Table2[[#This Row],[SA Pre Approved Amount]]) -> 
R32: =IF(E32="","",VLOOKUP(E32,'H - Classifications'!A:F,6,FALSE)) ->  | S32: =IF(R32="","",Table2[[#This Row],[Functional Area2]]&"-"&Table2[[#This Row],[GL Account]]) ->  | T32: =IF(E32="","",INDEX('H - Functional Areas'!B:B,MATCH(Table2[[#This Row],[Functional Area]],'H - Functional Areas'!C:C,0))) ->  | U32: =IF(Table2[[#This Row],[Type of Personnel Expense]]="Special Activity Payroll","",IF(SUM(AM32,AN32,AP32,AQ32,AR32,AT32,AV32,AW32,AX32)>Table2[[#This Row],[121]],Table2[[#This Row],[121]],SUM(AM32,AN32,AP32,AQ32,AR32,AT32,AV32,AW32,AX32))) -> 0 | Z32: =IF(M32="","",('H - Benefit Rates'!$B$4/12*'Personnel Expenditures'!BB32)*'Personnel Expenditures'!L32) ->  | AA32: =IF(B32="","",V32*'H - Benefit Rates'!$B$6) ->  | AB32: =IF(Table2[[#This Row],[Type of Personnel Expense]]="","",'Budget Overview'!$A$2) ->  | AC32: =Table2[[#This Row],[Special Activity Pay Rate]] -> 0 | AD32: =IF(Table2[[#This Row],[SA - Pay Rate]]="","",Table2[[#This Row],[SA - Pay Rate]]*Table2[[#This Row],[Number of Special Activity Hours]]) -> 0 | AE32: =IF(Table2[[#This Row],[SA - Pay Rate]]="","",Table2[[#This Row],[SA - Total Salary]]*'H - Benefit Rates'!$B$1) -> 0 | AF32: =IF(Table2[[#This Row],[SA - Pay Rate]]="","",Table2[[#This Row],[SA - Total Salary]]*'H - Benefit Rates'!$B$2) -> 0 | AG32: =IF(Table2[[#This Row],[SA - Pay Rate]]="","",Table2[[#This Row],[SA - Total Salary]]*'H - Benefit Rates'!$B$6) -> 0 | AH32: 0 | AJ32: =IF(B32="","",ROUND(SUM(Table2[[#This Row],[SA - Total Salary and Benefits]:[FTP - Total Salary and Benefits]]),2)) ->  | AK32: =IF(E32="","",VLOOKUP(E32,'H - Classifications'!A:D,3,FALSE)) ->  | AL32: =NETWORKDAYS(J32,K32,'H - Teacher Unpaid Days Off'!A:A) -> 0 | AM32: 0 | AN32: 0 | AO32: =NETWORKDAYS(J32,K32,'H - Para Unpaid Days Off'!A:A) -> 0 | AP32: 0 | AQ32: 0 | AR32: 0 | AS32: =NETWORKDAYS(J32,K32,'H - Guidance Counselor Days Off'!A:A) -> 0 | AT32: 0 | AU32: =NETWORKDAYS(J32,K32,'H- School Psychologist Days Off'!A:A) -> 0 | AV32: 0 | AW32: 0 | AX32: 0 | AY32: =IF(Table2[[#This Row],[Health Insurance Taken]]="","",(DATEDIF(Table2[[#This Row],[Start Date]],Table2[[#This Row],[End Date]],"m"))+1) ->  | BA32: 12 | BB32: =IF(Table2[[#This Row],[Adjust Month total greater than 12]]<0,0,Table2[[#This Row],[Adjust Month total greater than 12]]) -> 12 | BC32: =IF(E32="","",VLOOKUP(E32,'H - Classifications'!A:D,4,FALSE)) ->  | BD32: =IF(U32="","0",(((M32*L32)/BC32)*U32)*(1+'H - Benefit Rates'!$B$7)) ->  | BE32: =IF(U32="","0",IF(N32="yes",ROUND(BD32*'H - Benefit Rates'!$B$5,2),ROUND(BD32*'H - Benefit Rates'!$B$1,2))) ->  | BF32: =IF(U32="","0",ROUND('H - Benefit Rates'!$B$2*BD32,2)) ->  | BG32: =('H - Benefit Rates'!$B$3/12)*BB32 -> 7368 | BK32: =IF(Table2[[#This Row],[SA Pre Approved Amount]]="","",Table2[[#This Row],[Total Salary and Benefits]]-Table2[[#This Row],[SA Pre Approved Amount]]) -> 
R33: =IF(E33="","",VLOOKUP(E33,'H - Classifications'!A:F,6,FALSE)) ->  | S33: =IF(R33="","",Table2[[#This Row],[Functional Area2]]&"-"&Table2[[#This Row],[GL Account]]) ->  | T33: =IF(E33="","",INDEX('H - Functional Areas'!B:B,MATCH(Table2[[#This Row],[Functional Area]],'H - Functional Areas'!C:C,0))) ->  | U33: =IF(Table2[[#This Row],[Type of Personnel Expense]]="Special Activity Payroll","",IF(SUM(AM33,AN33,AP33,AQ33,AR33,AT33,AV33,AW33,AX33)>Table2[[#This Row],[121]],Table2[[#This Row],[121]],SUM(AM33,AN33,AP33,AQ33,AR33,AT33,AV33,AW33,AX33))) -> 0 | Z33: =IF(M33="","",('H - Benefit Rates'!$B$4/12*'Personnel Expenditures'!BB33)*'Personnel Expenditures'!L33) ->  | AA33: =IF(B33="","",V33*'H - Benefit Rates'!$B$6) ->  | AB33: =IF(Table2[[#This Row],[Type of Personnel Expense]]="","",'Budget Overview'!$A$2) ->  | AC33: =Table2[[#This Row],[Special Activity Pay Rate]] -> 0 | AD33: =IF(Table2[[#This Row],[SA - Pay Rate]]="","",Table2[[#This Row],[SA - Pay Rate]]*Table2[[#This Row],[Number of Special Activity Hours]]) -> 0 | AE33: =IF(Table2[[#This Row],[SA - Pay Rate]]="","",Table2[[#This Row],[SA - Total Salary]]*'H - Benefit Rates'!$B$1) -> 0 | AF33: =IF(Table2[[#This Row],[SA - Pay Rate]]="","",Table2[[#This Row],[SA - Total Salary]]*'H - Benefit Rates'!$B$2) -> 0 | AG33: =IF(Table2[[#This Row],[SA - Pay Rate]]="","",Table2[[#This Row],[SA - Total Salary]]*'H - Benefit Rates'!$B$6) -> 0 | AH33: 0 | AJ33: =IF(B33="","",ROUND(SUM(Table2[[#This Row],[SA - Total Salary and Benefits]:[FTP - Total Salary and Benefits]]),2)) ->  | AK33: =IF(E33="","",VLOOKUP(E33,'H - Classifications'!A:D,3,FALSE)) ->  | AL33: =NETWORKDAYS(J33,K33,'H - Teacher Unpaid Days Off'!A:A) -> 0 | AM33: 0 | AN33: 0 | AO33: =NETWORKDAYS(J33,K33,'H - Para Unpaid Days Off'!A:A) -> 0 | AP33: 0 | AQ33: 0 | AR33: 0 | AS33: =NETWORKDAYS(J33,K33,'H - Guidance Counselor Days Off'!A:A) -> 0 | AT33: 0 | AU33: =NETWORKDAYS(J33,K33,'H- School Psychologist Days Off'!A:A) -> 0 | AV33: 0 | AW33: 0 | AX33: 0 | AY33: =IF(Table2[[#This Row],[Health Insurance Taken]]="","",(DATEDIF(Table2[[#This Row],[Start Date]],Table2[[#This Row],[End Date]],"m"))+1) ->  | BA33: 12 | BB33: =IF(Table2[[#This Row],[Adjust Month total greater than 12]]<0,0,Table2[[#This Row],[Adjust Month total greater than 12]]) -> 12 | BC33: =IF(E33="","",VLOOKUP(E33,'H - Classifications'!A:D,4,FALSE)) ->  | BD33: =IF(U33="","0",(((M33*L33)/BC33)*U33)*(1+'H - Benefit Rates'!$B$7)) ->  | BE33: =IF(U33="","0",IF(N33="yes",ROUND(BD33*'H - Benefit Rates'!$B$5,2),ROUND(BD33*'H - Benefit Rates'!$B$1,2))) ->  | BF33: =IF(U33="","0",ROUND('H - Benefit Rates'!$B$2*BD33,2)) ->  | BG33: =('H - Benefit Rates'!$B$3/12)*BB33 -> 7368 | BK33: =IF(Table2[[#This Row],[SA Pre Approved Amount]]="","",Table2[[#This Row],[Total Salary and Benefits]]-Table2[[#This Row],[SA Pre Approved Amount]]) -> 
R34: =IF(E34="","",VLOOKUP(E34,'H - Classifications'!A:F,6,FALSE)) ->  | S34: =IF(R34="","",Table2[[#This Row],[Functional Area2]]&"-"&Table2[[#This Row],[GL Account]]) ->  | T34: =IF(E34="","",INDEX('H - Functional Areas'!B:B,MATCH(Table2[[#This Row],[Functional Area]],'H - Functional Areas'!C:C,0))) ->  | U34: =IF(Table2[[#This Row],[Type of Personnel Expense]]="Special Activity Payroll","",IF(SUM(AM34,AN34,AP34,AQ34,AR34,AT34,AV34,AW34,AX34)>Table2[[#This Row],[121]],Table2[[#This Row],[121]],SUM(AM34,AN34,AP34,AQ34,AR34,AT34,AV34,AW34,AX34))) -> 0 | Z34: =IF(M34="","",('H - Benefit Rates'!$B$4/12*'Personnel Expenditures'!BB34)*'Personnel Expenditures'!L34) ->  | AA34: =IF(B34="","",V34*'H - Benefit Rates'!$B$6) ->  | AB34: =IF(Table2[[#This Row],[Type of Personnel Expense]]="","",'Budget Overview'!$A$2) ->  | AC34: =Table2[[#This Row],[Special Activity Pay Rate]] -> 0 | AD34: =IF(Table2[[#This Row],[SA - Pay Rate]]="","",Table2[[#This Row],[SA - Pay Rate]]*Table2[[#This Row],[Number of Special Activity Hours]]) -> 0 | AE34: =IF(Table2[[#This Row],[SA - Pay Rate]]="","",Table2[[#This Row],[SA - Total Salary]]*'H - Benefit Rates'!$B$1) -> 0 | AF34: =IF(Table2[[#This Row],[SA - Pay Rate]]="","",Table2[[#This Row],[SA - Total Salary]]*'H - Benefit Rates'!$B$2) -> 0 | AG34: =IF(Table2[[#This Row],[SA - Pay Rate]]="","",Table2[[#This Row],[SA - Total Salary]]*'H - Benefit Rates'!$B$6) -> 0 | AH34: 0 | AJ34: =IF(B34="","",ROUND(SUM(Table2[[#This Row],[SA - Total Salary and Benefits]:[FTP - Total Salary and Benefits]]),2)) ->  | AK34: =IF(E34="","",VLOOKUP(E34,'H - Classifications'!A:D,3,FALSE)) ->  | AL34: =NETWORKDAYS(J34,K34,'H - Teacher Unpaid Days Off'!A:A) -> 0 | AM34: 0 | AN34: 0 | AO34: =NETWORKDAYS(J34,K34,'H - Para Unpaid Days Off'!A:A) -> 0 | AP34: 0 | AQ34: 0 | AR34: 0 | AS34: =NETWORKDAYS(J34,K34,'H - Guidance Counselor Days Off'!A:A) -> 0 | AT34: 0 | AU34: =NETWORKDAYS(J34,K34,'H- School Psychologist Days Off'!A:A) -> 0 | AV34: 0 | AW34: 0 | AX34: 0 | AY34: =IF(Table2[[#This Row],[Health Insurance Taken]]="","",(DATEDIF(Table2[[#This Row],[Start Date]],Table2[[#This Row],[End Date]],"m"))+1) ->  | BA34: 12 | BB34: =IF(Table2[[#This Row],[Adjust Month total greater than 12]]<0,0,Table2[[#This Row],[Adjust Month total greater than 12]]) -> 12 | BC34: =IF(E34="","",VLOOKUP(E34,'H - Classifications'!A:D,4,FALSE)) ->  | BD34: =IF(U34="","0",(((M34*L34)/BC34)*U34)*(1+'H - Benefit Rates'!$B$7)) ->  | BE34: =IF(U34="","0",IF(N34="yes",ROUND(BD34*'H - Benefit Rates'!$B$5,2),ROUND(BD34*'H - Benefit Rates'!$B$1,2))) ->  | BF34: =IF(U34="","0",ROUND('H - Benefit Rates'!$B$2*BD34,2)) ->  | BG34: =('H - Benefit Rates'!$B$3/12)*BB34 -> 7368 | BK34: =IF(Table2[[#This Row],[SA Pre Approved Amount]]="","",Table2[[#This Row],[Total Salary and Benefits]]-Table2[[#This Row],[SA Pre Approved Amount]]) -> 
R35: =IF(E35="","",VLOOKUP(E35,'H - Classifications'!A:F,6,FALSE)) ->  | S35: =IF(R35="","",Table2[[#This Row],[Functional Area2]]&"-"&Table2[[#This Row],[GL Account]]) ->  | T35: =IF(E35="","",INDEX('H - Functional Areas'!B:B,MATCH(Table2[[#This Row],[Functional Area]],'H - Functional Areas'!C:C,0))) ->  | U35: =IF(Table2[[#This Row],[Type of Personnel Expense]]="Special Activity Payroll","",IF(SUM(AM35,AN35,AP35,AQ35,AR35,AT35,AV35,AW35,AX35)>Table2[[#This Row],[121]],Table2[[#This Row],[121]],SUM(AM35,AN35,AP35,AQ35,AR35,AT35,AV35,AW35,AX35))) -> 0 | Z35: =IF(M35="","",('H - Benefit Rates'!$B$4/12*'Personnel Expenditures'!BB35)*'Personnel Expenditures'!L35) ->  | AA35: =IF(B35="","",V35*'H - Benefit Rates'!$B$6) ->  | AB35: =IF(Table2[[#This Row],[Type of Personnel Expense]]="","",'Budget Overview'!$A$2) ->  | AC35: =Table2[[#This Row],[Special Activity Pay Rate]] -> 0 | AD35: =IF(Table2[[#This Row],[SA - Pay Rate]]="","",Table2[[#This Row],[SA - Pay Rate]]*Table2[[#This Row],[Number of Special Activity Hours]]) -> 0 | AE35: =IF(Table2[[#This Row],[SA - Pay Rate]]="","",Table2[[#This Row],[SA - Total Salary]]*'H - Benefit Rates'!$B$1) -> 0 | AF35: =IF(Table2[[#This Row],[SA - Pay Rate]]="","",Table2[[#This Row],[SA - Total Salary]]*'H - Benefit Rates'!$B$2) -> 0 | AG35: =IF(Table2[[#This Row],[SA - Pay Rate]]="","",Table2[[#This Row],[SA - Total Salary]]*'H - Benefit Rates'!$B$6) -> 0 | AH35: 0 | AJ35: =IF(B35="","",ROUND(SUM(Table2[[#This Row],[SA - Total Salary and Benefits]:[FTP - Total Salary and Benefits]]),2)) ->  | AK35: =IF(E35="","",VLOOKUP(E35,'H - Classifications'!A:D,3,FALSE)) ->  | AL35: =NETWORKDAYS(J35,K35,'H - Teacher Unpaid Days Off'!A:A) -> 0 | AM35: 0 | AN35: 0 | AO35: =NETWORKDAYS(J35,K35,'H - Para Unpaid Days Off'!A:A) -> 0 | AP35: 0 | AQ35: 0 | AR35: 0 | AS35: =NETWORKDAYS(J35,K35,'H - Guidance Counselor Days Off'!A:A) -> 0 | AT35: 0 | AU35: =NETWORKDAYS(J35,K35,'H- School Psychologist Days Off'!A:A) -> 0 | AV35: 0 | AW35: 0 | AX35: 0 | AY35: =IF(Table2[[#This Row],[Health Insurance Taken]]="","",(DATEDIF(Table2[[#This Row],[Start Date]],Table2[[#This Row],[End Date]],"m"))+1) ->  | BA35: 12 | BB35: =IF(Table2[[#This Row],[Adjust Month total greater than 12]]<0,0,Table2[[#This Row],[Adjust Month total greater than 12]]) -> 12 | BC35: =IF(E35="","",VLOOKUP(E35,'H - Classifications'!A:D,4,FALSE)) ->  | BD35: =IF(U35="","0",(((M35*L35)/BC35)*U35)*(1+'H - Benefit Rates'!$B$7)) ->  | BE35: =IF(U35="","0",IF(N35="yes",ROUND(BD35*'H - Benefit Rates'!$B$5,2),ROUND(BD35*'H - Benefit Rates'!$B$1,2))) ->  | BF35: =IF(U35="","0",ROUND('H - Benefit Rates'!$B$2*BD35,2)) ->  | BG35: =('H - Benefit Rates'!$B$3/12)*BB35 -> 7368 | BK35: =IF(Table2[[#This Row],[SA Pre Approved Amount]]="","",Table2[[#This Row],[Total Salary and Benefits]]-Table2[[#This Row],[SA Pre Approved Amount]]) -> 
R36: =IF(E36="","",VLOOKUP(E36,'H - Classifications'!A:F,6,FALSE)) ->  | S36: =IF(R36="","",Table2[[#This Row],[Functional Area2]]&"-"&Table2[[#This Row],[GL Account]]) ->  | T36: =IF(E36="","",INDEX('H - Functional Areas'!B:B,MATCH(Table2[[#This Row],[Functional Area]],'H - Functional Areas'!C:C,0))) ->  | U36: =IF(Table2[[#This Row],[Type of Personnel Expense]]="Special Activity Payroll","",IF(SUM(AM36,AN36,AP36,AQ36,AR36,AT36,AV36,AW36,AX36)>Table2[[#This Row],[121]],Table2[[#This Row],[121]],SUM(AM36,AN36,AP36,AQ36,AR36,AT36,AV36,AW36,AX36))) -> 0 | Z36: =IF(M36="","",('H - Benefit Rates'!$B$4/12*'Personnel Expenditures'!BB36)*'Personnel Expenditures'!L36) ->  | AA36: =IF(B36="","",V36*'H - Benefit Rates'!$B$6) ->  | AB36: =IF(Table2[[#This Row],[Type of Personnel Expense]]="","",'Budget Overview'!$A$2) ->  | AC36: =Table2[[#This Row],[Special Activity Pay Rate]] -> 0 | AD36: =IF(Table2[[#This Row],[SA - Pay Rate]]="","",Table2[[#This Row],[SA - Pay Rate]]*Table2[[#This Row],[Number of Special Activity Hours]]) -> 0 | AE36: =IF(Table2[[#This Row],[SA - Pay Rate]]="","",Table2[[#This Row],[SA - Total Salary]]*'H - Benefit Rates'!$B$1) -> 0 | AF36: =IF(Table2[[#This Row],[SA - Pay Rate]]="","",Table2[[#This Row],[SA - Total Salary]]*'H - Benefit Rates'!$B$2) -> 0 | AG36: =IF(Table2[[#This Row],[SA - Pay Rate]]="","",Table2[[#This Row],[SA - Total Salary]]*'H - Benefit Rates'!$B$6) -> 0 | AH36: 0 | AJ36: =IF(B36="","",ROUND(SUM(Table2[[#This Row],[SA - Total Salary and Benefits]:[FTP - Total Salary and Benefits]]),2)) ->  | AK36: =IF(E36="","",VLOOKUP(E36,'H - Classifications'!A:D,3,FALSE)) ->  | AL36: =NETWORKDAYS(J36,K36,'H - Teacher Unpaid Days Off'!A:A) -> 0 | AM36: 0 | AN36: 0 | AO36: =NETWORKDAYS(J36,K36,'H - Para Unpaid Days Off'!A:A) -> 0 | AP36: 0 | AQ36: 0 | AR36: 0 | AS36: =NETWORKDAYS(J36,K36,'H - Guidance Counselor Days Off'!A:A) -> 0 | AT36: 0 | AU36: =NETWORKDAYS(J36,K36,'H- School Psychologist Days Off'!A:A) -> 0 | AV36: 0 | AW36: 0 | AX36: 0 | AY36: =IF(Table2[[#This Row],[Health Insurance Taken]]="","",(DATEDIF(Table2[[#This Row],[Start Date]],Table2[[#This Row],[End Date]],"m"))+1) ->  | BA36: 12 | BB36: =IF(Table2[[#This Row],[Adjust Month total greater than 12]]<0,0,Table2[[#This Row],[Adjust Month total greater than 12]]) -> 12 | BC36: =IF(E36="","",VLOOKUP(E36,'H - Classifications'!A:D,4,FALSE)) ->  | BD36: =IF(U36="","0",(((M36*L36)/BC36)*U36)*(1+'H - Benefit Rates'!$B$7)) ->  | BE36: =IF(U36="","0",IF(N36="yes",ROUND(BD36*'H - Benefit Rates'!$B$5,2),ROUND(BD36*'H - Benefit Rates'!$B$1,2))) ->  | BF36: =IF(U36="","0",ROUND('H - Benefit Rates'!$B$2*BD36,2)) ->  | BG36: =('H - Benefit Rates'!$B$3/12)*BB36 -> 7368 | BK36: =IF(Table2[[#This Row],[SA Pre Approved Amount]]="","",Table2[[#This Row],[Total Salary and Benefits]]-Table2[[#This Row],[SA Pre Approved Amount]]) -> 
R37: =IF(E37="","",VLOOKUP(E37,'H - Classifications'!A:F,6,FALSE)) ->  | S37: =IF(R37="","",Table2[[#This Row],[Functional Area2]]&"-"&Table2[[#This Row],[GL Account]]) ->  | T37: =IF(E37="","",INDEX('H - Functional Areas'!B:B,MATCH(Table2[[#This Row],[Functional Area]],'H - Functional Areas'!C:C,0))) ->  | U37: =IF(Table2[[#This Row],[Type of Personnel Expense]]="Special Activity Payroll","",IF(SUM(AM37,AN37,AP37,AQ37,AR37,AT37,AV37,AW37,AX37)>Table2[[#This Row],[121]],Table2[[#This Row],[121]],SUM(AM37,AN37,AP37,AQ37,AR37,AT37,AV37,AW37,AX37))) -> 0 | Z37: =IF(M37="","",('H - Benefit Rates'!$B$4/12*'Personnel Expenditures'!BB37)*'Personnel Expenditures'!L37) ->  | AA37: =IF(B37="","",V37*'H - Benefit Rates'!$B$6) ->  | AB37: =IF(Table2[[#This Row],[Type of Personnel Expense]]="","",'Budget Overview'!$A$2) ->  | AC37: =Table2[[#This Row],[Special Activity Pay Rate]] -> 0 | AD37: =IF(Table2[[#This Row],[SA - Pay Rate]]="","",Table2[[#This Row],[SA - Pay Rate]]*Table2[[#This Row],[Number of Special Activity Hours]]) -> 0 | AE37: =IF(Table2[[#This Row],[SA - Pay Rate]]="","",Table2[[#This Row],[SA - Total Salary]]*'H - Benefit Rates'!$B$1) -> 0 | AF37: =IF(Table2[[#This Row],[SA - Pay Rate]]="","",Table2[[#This Row],[SA - Total Salary]]*'H - Benefit Rates'!$B$2) -> 0 | AG37: =IF(Table2[[#This Row],[SA - Pay Rate]]="","",Table2[[#This Row],[SA - Total Salary]]*'H - Benefit Rates'!$B$6) -> 0 | AH37: 0 | AJ37: =IF(B37="","",ROUND(SUM(Table2[[#This Row],[SA - Total Salary and Benefits]:[FTP - Total Salary and Benefits]]),2)) ->  | AK37: =IF(E37="","",VLOOKUP(E37,'H - Classifications'!A:D,3,FALSE)) ->  | AL37: =NETWORKDAYS(J37,K37,'H - Teacher Unpaid Days Off'!A:A) -> 0 | AM37: 0 | AN37: 0 | AO37: =NETWORKDAYS(J37,K37,'H - Para Unpaid Days Off'!A:A) -> 0 | AP37: 0 | AQ37: 0 | AR37: 0 | AS37: =NETWORKDAYS(J37,K37,'H - Guidance Counselor Days Off'!A:A) -> 0 | AT37: 0 | AU37: =NETWORKDAYS(J37,K37,'H- School Psychologist Days Off'!A:A) -> 0 | AV37: 0 | AW37: 0 | AX37: 0 | AY37: =IF(Table2[[#This Row],[Health Insurance Taken]]="","",(DATEDIF(Table2[[#This Row],[Start Date]],Table2[[#This Row],[End Date]],"m"))+1) ->  | BA37: 12 | BB37: =IF(Table2[[#This Row],[Adjust Month total greater than 12]]<0,0,Table2[[#This Row],[Adjust Month total greater than 12]]) -> 12 | BC37: =IF(E37="","",VLOOKUP(E37,'H - Classifications'!A:D,4,FALSE)) ->  | BD37: =IF(U37="","0",(((M37*L37)/BC37)*U37)*(1+'H - Benefit Rates'!$B$7)) ->  | BE37: =IF(U37="","0",IF(N37="yes",ROUND(BD37*'H - Benefit Rates'!$B$5,2),ROUND(BD37*'H - Benefit Rates'!$B$1,2))) ->  | BF37: =IF(U37="","0",ROUND('H - Benefit Rates'!$B$2*BD37,2)) ->  | BG37: =('H - Benefit Rates'!$B$3/12)*BB37 -> 7368 | BK37: =IF(Table2[[#This Row],[SA Pre Approved Amount]]="","",Table2[[#This Row],[Total Salary and Benefits]]-Table2[[#This Row],[SA Pre Approved Amount]]) -> 
R38: =IF(E38="","",VLOOKUP(E38,'H - Classifications'!A:F,6,FALSE)) ->  | S38: =IF(R38="","",Table2[[#This Row],[Functional Area2]]&"-"&Table2[[#This Row],[GL Account]]) ->  | T38: =IF(E38="","",INDEX('H - Functional Areas'!B:B,MATCH(Table2[[#This Row],[Functional Area]],'H - Functional Areas'!C:C,0))) ->  | U38: =IF(Table2[[#This Row],[Type of Personnel Expense]]="Special Activity Payroll","",IF(SUM(AM38,AN38,AP38,AQ38,AR38,AT38,AV38,AW38,AX38)>Table2[[#This Row],[121]],Table2[[#This Row],[121]],SUM(AM38,AN38,AP38,AQ38,AR38,AT38,AV38,AW38,AX38))) -> 0 | V38: =IF(BD38="","",SUM(AD38,BD38)) ->  | W38: =IF(BE38="","",SUM(AE38,BE38)) ->  | X38: =IF(BF38="","",SUM(AF38,BF38)) ->  | Y38: =IF(O38="","",IF(O38="no",0,BG38*L38)) ->  | Z38: =IF(M38="","",('H - Benefit Rates'!$B$4/12*'Personnel Expenditures'!BB38)*'Personnel Expenditures'!L38) ->  | AA38: =IF(B38="","",V38*'H - Benefit Rates'!$B$6) ->  | AB38: =IF(Table2[[#This Row],[Type of Personnel Expense]]="","",'Budget Overview'!$A$2) ->  | AC38: =Table2[[#This Row],[Special Activity Pay Rate]] -> 0 | AD38: =IF(Table2[[#This Row],[SA - Pay Rate]]="","",Table2[[#This Row],[SA - Pay Rate]]*Table2[[#This Row],[Number of Special Activity Hours]]) -> 0 | AE38: =IF(Table2[[#This Row],[SA - Pay Rate]]="","",Table2[[#This Row],[SA - Total Salary]]*'H - Benefit Rates'!$B$1) -> 0 | AF38: =IF(Table2[[#This Row],[SA - Pay Rate]]="","",Table2[[#This Row],[SA - Total Salary]]*'H - Benefit Rates'!$B$2) -> 0 | AG38: =IF(Table2[[#This Row],[SA - Pay Rate]]="","",Table2[[#This Row],[SA - Total Salary]]*'H - Benefit Rates'!$B$6) -> 0 | AH38: 0 | AI38: =IF(M38="","",ROUND(SUM(Z38,Y38,W38,BF38,BD38,AA38),2)) ->  | AJ38: =IF(B38="","",ROUND(SUM(Table2[[#This Row],[SA - Total Salary and Benefits]:[FTP - Total Salary and Benefits]]),2)) ->  | AK38: =IF(E38="","",VLOOKUP(E38,'H - Classifications'!A:D,3,FALSE)) ->  | AL38: =NETWORKDAYS(J38,K38,'H - Teacher Unpaid Days Off'!A:A) -> 0 | AM38: 0 | AN38: 0 | AO38: =NETWORKDAYS(J38,K38,'H - Para Unpaid Days Off'!A:A) -> 0 | AP38: 0 | AQ38: 0 | AR38: 0 | AS38: =NETWORKDAYS(J38,K38,'H - Guidance Counselor Days Off'!A:A) -> 0 | AT38: 0 | AU38: =NETWORKDAYS(J38,K38,'H- School Psychologist Days Off'!A:A) -> 0 | AV38: 0 | AW38: 0 | AX38: 0 | AY38: =IF(Table2[[#This Row],[Health Insurance Taken]]="","",(DATEDIF(Table2[[#This Row],[Start Date]],Table2[[#This Row],[End Date]],"m"))+1) ->  | AZ38: =IF(I38="yes",(AY38-3),AY38) ->  | BA38: 12 | BB38: =IF(Table2[[#This Row],[Adjust Month total greater than 12]]<0,0,Table2[[#This Row],[Adjust Month total greater than 12]]) -> 12 | BC38: =IF(E38="","",VLOOKUP(E38,'H - Classifications'!A:D,4,FALSE)) ->  | BD38: =IF(U38="","0",(((M38*L38)/BC38)*U38)*(1+'H - Benefit Rates'!$B$7)) ->  | BE38: =IF(U38="","0",IF(N38="yes",ROUND(BD38*'H - Benefit Rates'!$B$5,2),ROUND(BD38*'H - Benefit Rates'!$B$1,2))) ->  | BF38: =IF(U38="","0",ROUND('H - Benefit Rates'!$B$2*BD38,2)) ->  | BG38: =('H - Benefit Rates'!$B$3/12)*BB38 -> 7368 | BK38: =IF(Table2[[#This Row],[SA Pre Approved Amount]]="","",Table2[[#This Row],[Total Salary and Benefits]]-Table2[[#This Row],[SA Pre Approved Amount]]) -> 
R39: =IF(E39="","",VLOOKUP(E39,'H - Classifications'!A:F,6,FALSE)) ->  | S39: =IF(R39="","",Table2[[#This Row],[Functional Area2]]&"-"&Table2[[#This Row],[GL Account]]) ->  | T39: =IF(E39="","",INDEX('H - Functional Areas'!B:B,MATCH(Table2[[#This Row],[Functional Area]],'H - Functional Areas'!C:C,0))) ->  | U39: =IF(Table2[[#This Row],[Type of Personnel Expense]]="Special Activity Payroll","",IF(SUM(AM39,AN39,AP39,AQ39,AR39,AT39,AV39,AW39,AX39)>Table2[[#This Row],[121]],Table2[[#This Row],[121]],SUM(AM39,AN39,AP39,AQ39,AR39,AT39,AV39,AW39,AX39))) -> 0 | Z39: =IF(M39="","",('H - Benefit Rates'!$B$4/12*'Personnel Expenditures'!BB39)*'Personnel Expenditures'!L39) ->  | AA39: =IF(B39="","",V39*'H - Benefit Rates'!$B$6) ->  | AB39: =IF(Table2[[#This Row],[Type of Personnel Expense]]="","",'Budget Overview'!$A$2) ->  | AC39: =Table2[[#This Row],[Special Activity Pay Rate]] -> 0 | AD39: =IF(Table2[[#This Row],[SA - Pay Rate]]="","",Table2[[#This Row],[SA - Pay Rate]]*Table2[[#This Row],[Number of Special Activity Hours]]) -> 0 | AE39: =IF(Table2[[#This Row],[SA - Pay Rate]]="","",Table2[[#This Row],[SA - Total Salary]]*'H - Benefit Rates'!$B$1) -> 0 | AF39: =IF(Table2[[#This Row],[SA - Pay Rate]]="","",Table2[[#This Row],[SA - Total Salary]]*'H - Benefit Rates'!$B$2) -> 0 | AG39: =IF(Table2[[#This Row],[SA - Pay Rate]]="","",Table2[[#This Row],[SA - Total Salary]]*'H - Benefit Rates'!$B$6) -> 0 | AH39: 0 | AJ39: =IF(B39="","",ROUND(SUM(Table2[[#This Row],[SA - Total Salary and Benefits]:[FTP - Total Salary and Benefits]]),2)) ->  | AK39: =IF(E39="","",VLOOKUP(E39,'H - Classifications'!A:D,3,FALSE)) ->  | AL39: =NETWORKDAYS(J39,K39,'H - Teacher Unpaid Days Off'!A:A) -> 0 | AM39: 0 | AN39: 0 | AO39: =NETWORKDAYS(J39,K39,'H - Para Unpaid Days Off'!A:A) -> 0 | AP39: 0 | AQ39: 0 | AR39: 0 | AS39: =NETWORKDAYS(J39,K39,'H - Guidance Counselor Days Off'!A:A) -> 0 | AT39: 0 | AU39: =NETWORKDAYS(J39,K39,'H- School Psychologist Days Off'!A:A) -> 0 | AV39: 0 | AW39: 0 | AX39: 0 | AY39: =IF(Table2[[#This Row],[Health Insurance Taken]]="","",(DATEDIF(Table2[[#This Row],[Start Date]],Table2[[#This Row],[End Date]],"m"))+1) ->  | BA39: 12 | BB39: =IF(Table2[[#This Row],[Adjust Month total greater than 12]]<0,0,Table2[[#This Row],[Adjust Month total greater than 12]]) -> 12 | BC39: =IF(E39="","",VLOOKUP(E39,'H - Classifications'!A:D,4,FALSE)) ->  | BD39: =IF(U39="","0",(((M39*L39)/BC39)*U39)*(1+'H - Benefit Rates'!$B$7)) ->  | BE39: =IF(U39="","0",IF(N39="yes",ROUND(BD39*'H - Benefit Rates'!$B$5,2),ROUND(BD39*'H - Benefit Rates'!$B$1,2))) ->  | BF39: =IF(U39="","0",ROUND('H - Benefit Rates'!$B$2*BD39,2)) ->  | BG39: =('H - Benefit Rates'!$B$3/12)*BB39 -> 7368 | BK39: =IF(Table2[[#This Row],[SA Pre Approved Amount]]="","",Table2[[#This Row],[Total Salary and Benefits]]-Table2[[#This Row],[SA Pre Approved Amount]]) -> 
R40: =IF(E40="","",VLOOKUP(E40,'H - Classifications'!A:F,6,FALSE)) ->  | S40: =IF(R40="","",Table2[[#This Row],[Functional Area2]]&"-"&Table2[[#This Row],[GL Account]]) ->  | T40: =IF(E40="","",INDEX('H - Functional Areas'!B:B,MATCH(Table2[[#This Row],[Functional Area]],'H - Functional Areas'!C:C,0))) ->  | U40: =IF(Table2[[#This Row],[Type of Personnel Expense]]="Special Activity Payroll","",IF(SUM(AM40,AN40,AP40,AQ40,AR40,AT40,AV40,AW40,AX40)>Table2[[#This Row],[121]],Table2[[#This Row],[121]],SUM(AM40,AN40,AP40,AQ40,AR40,AT40,AV40,AW40,AX40))) -> 0 | Z40: =IF(M40="","",('H - Benefit Rates'!$B$4/12*'Personnel Expenditures'!BB40)*'Personnel Expenditures'!L40) ->  | AA40: =IF(B40="","",V40*'H - Benefit Rates'!$B$6) ->  | AB40: =IF(Table2[[#This Row],[Type of Personnel Expense]]="","",'Budget Overview'!$A$2) ->  | AC40: =Table2[[#This Row],[Special Activity Pay Rate]] -> 0 | AD40: =IF(Table2[[#This Row],[SA - Pay Rate]]="","",Table2[[#This Row],[SA - Pay Rate]]*Table2[[#This Row],[Number of Special Activity Hours]]) -> 0 | AE40: =IF(Table2[[#This Row],[SA - Pay Rate]]="","",Table2[[#This Row],[SA - Total Salary]]*'H - Benefit Rates'!$B$1) -> 0 | AF40: =IF(Table2[[#This Row],[SA - Pay Rate]]="","",Table2[[#This Row],[SA - Total Salary]]*'H - Benefit Rates'!$B$2) -> 0 | AG40: =IF(Table2[[#This Row],[SA - Pay Rate]]="","",Table2[[#This Row],[SA - Total Salary]]*'H - Benefit Rates'!$B$6) -> 0 | AH40: 0 | AJ40: =IF(B40="","",ROUND(SUM(Table2[[#This Row],[SA - Total Salary and Benefits]:[FTP - Total Salary and Benefits]]),2)) ->  | AK40: =IF(E40="","",VLOOKUP(E40,'H - Classifications'!A:D,3,FALSE)) ->  | AL40: =NETWORKDAYS(J40,K40,'H - Teacher Unpaid Days Off'!A:A) -> 0 | AM40: 0 | AN40: 0 | AO40: =NETWORKDAYS(J40,K40,'H - Para Unpaid Days Off'!A:A) -> 0 | AP40: 0 | AQ40: 0 | AR40: 0 | AS40: =NETWORKDAYS(J40,K40,'H - Guidance Counselor Days Off'!A:A) -> 0 | AT40: 0 | AU40: =NETWORKDAYS(J40,K40,'H- School Psychologist Days Off'!A:A) -> 0 | AV40: 0 | AW40: 0 | AX40: 0 | AY40: =IF(Table2[[#This Row],[Health Insurance Taken]]="","",(DATEDIF(Table2[[#This Row],[Start Date]],Table2[[#This Row],[End Date]],"m"))+1) ->  | BA40: 12 | BB40: =IF(Table2[[#This Row],[Adjust Month total greater than 12]]<0,0,Table2[[#This Row],[Adjust Month total greater than 12]]) -> 12 | BC40: =IF(E40="","",VLOOKUP(E40,'H - Classifications'!A:D,4,FALSE)) ->  | BD40: =IF(U40="","0",(((M40*L40)/BC40)*U40)*(1+'H - Benefit Rates'!$B$7)) ->  | BE40: =IF(U40="","0",IF(N40="yes",ROUND(BD40*'H - Benefit Rates'!$B$5,2),ROUND(BD40*'H - Benefit Rates'!$B$1,2))) ->  | BF40: =IF(U40="","0",ROUND('H - Benefit Rates'!$B$2*BD40,2)) ->  | BG40: =('H - Benefit Rates'!$B$3/12)*BB40 -> 7368 | BK40: =IF(Table2[[#This Row],[SA Pre Approved Amount]]="","",Table2[[#This Row],[Total Salary and Benefits]]-Table2[[#This Row],[SA Pre Approved Amount]]) -> 
R41: =IF(E41="","",VLOOKUP(E41,'H - Classifications'!A:F,6,FALSE)) ->  | S41: =IF(R41="","",Table2[[#This Row],[Functional Area2]]&"-"&Table2[[#This Row],[GL Account]]) ->  | T41: =IF(E41="","",INDEX('H - Functional Areas'!B:B,MATCH(Table2[[#This Row],[Functional Area]],'H - Functional Areas'!C:C,0))) ->  | U41: =IF(Table2[[#This Row],[Type of Personnel Expense]]="Special Activity Payroll","",IF(SUM(AM41,AN41,AP41,AQ41,AR41,AT41,AV41,AW41,AX41)>Table2[[#This Row],[121]],Table2[[#This Row],[121]],SUM(AM41,AN41,AP41,AQ41,AR41,AT41,AV41,AW41,AX41))) -> 0 | Z41: =IF(M41="","",('H - Benefit Rates'!$B$4/12*'Personnel Expenditures'!BB41)*'Personnel Expenditures'!L41) ->  | AA41: =IF(B41="","",V41*'H - Benefit Rates'!$B$6) ->  | AB41: =IF(Table2[[#This Row],[Type of Personnel Expense]]="","",'Budget Overview'!$A$2) ->  | AC41: =Table2[[#This Row],[Special Activity Pay Rate]] -> 0 | AD41: =IF(Table2[[#This Row],[SA - Pay Rate]]="","",Table2[[#This Row],[SA - Pay Rate]]*Table2[[#This Row],[Number of Special Activity Hours]]) -> 0 | AE41: =IF(Table2[[#This Row],[SA - Pay Rate]]="","",Table2[[#This Row],[SA - Total Salary]]*'H - Benefit Rates'!$B$1) -> 0 | AF41: =IF(Table2[[#This Row],[SA - Pay Rate]]="","",Table2[[#This Row],[SA - Total Salary]]*'H - Benefit Rates'!$B$2) -> 0 | AG41: =IF(Table2[[#This Row],[SA - Pay Rate]]="","",Table2[[#This Row],[SA - Total Salary]]*'H - Benefit Rates'!$B$6) -> 0 | AH41: 0 | AJ41: =IF(B41="","",ROUND(SUM(Table2[[#This Row],[SA - Total Salary and Benefits]:[FTP - Total Salary and Benefits]]),2)) ->  | AK41: =IF(E41="","",VLOOKUP(E41,'H - Classifications'!A:D,3,FALSE)) ->  | AL41: =NETWORKDAYS(J41,K41,'H - Teacher Unpaid Days Off'!A:A) -> 0 | AM41: 0 | AN41: 0 | AO41: =NETWORKDAYS(J41,K41,'H - Para Unpaid Days Off'!A:A) -> 0 | AP41: 0 | AQ41: 0 | AR41: 0 | AS41: =NETWORKDAYS(J41,K41,'H - Guidance Counselor Days Off'!A:A) -> 0 | AT41: 0 | AU41: =NETWORKDAYS(J41,K41,'H- School Psychologist Days Off'!A:A) -> 0 | AV41: 0 | AW41: 0 | AX41: 0 | AY41: =IF(Table2[[#This Row],[Health Insurance Taken]]="","",(DATEDIF(Table2[[#This Row],[Start Date]],Table2[[#This Row],[End Date]],"m"))+1) ->  | BA41: 12 | BB41: =IF(Table2[[#This Row],[Adjust Month total greater than 12]]<0,0,Table2[[#This Row],[Adjust Month total greater than 12]]) -> 12 | BC41: =IF(E41="","",VLOOKUP(E41,'H - Classifications'!A:D,4,FALSE)) ->  | BD41: =IF(U41="","0",(((M41*L41)/BC41)*U41)*(1+'H - Benefit Rates'!$B$7)) ->  | BE41: =IF(U41="","0",IF(N41="yes",ROUND(BD41*'H - Benefit Rates'!$B$5,2),ROUND(BD41*'H - Benefit Rates'!$B$1,2))) ->  | BF41: =IF(U41="","0",ROUND('H - Benefit Rates'!$B$2*BD41,2)) ->  | BG41: =('H - Benefit Rates'!$B$3/12)*BB41 -> 7368 | BK41: =IF(Table2[[#This Row],[SA Pre Approved Amount]]="","",Table2[[#This Row],[Total Salary and Benefits]]-Table2[[#This Row],[SA Pre Approved Amount]]) -> 
R42: =IF(E42="","",VLOOKUP(E42,'H - Classifications'!A:F,6,FALSE)) ->  | S42: =IF(R42="","",Table2[[#This Row],[Functional Area2]]&"-"&Table2[[#This Row],[GL Account]]) ->  | T42: =IF(E42="","",INDEX('H - Functional Areas'!B:B,MATCH(Table2[[#This Row],[Functional Area]],'H - Functional Areas'!C:C,0))) ->  | U42: =IF(Table2[[#This Row],[Type of Personnel Expense]]="Special Activity Payroll","",IF(SUM(AM42,AN42,AP42,AQ42,AR42,AT42,AV42,AW42,AX42)>Table2[[#This Row],[121]],Table2[[#This Row],[121]],SUM(AM42,AN42,AP42,AQ42,AR42,AT42,AV42,AW42,AX42))) -> 0 | Z42: =IF(M42="","",('H - Benefit Rates'!$B$4/12*'Personnel Expenditures'!BB42)*'Personnel Expenditures'!L42) ->  | AA42: =IF(B42="","",V42*'H - Benefit Rates'!$B$6) ->  | AB42: =IF(Table2[[#This Row],[Type of Personnel Expense]]="","",'Budget Overview'!$A$2) ->  | AC42: =Table2[[#This Row],[Special Activity Pay Rate]] -> 0 | AD42: =IF(Table2[[#This Row],[SA - Pay Rate]]="","",Table2[[#This Row],[SA - Pay Rate]]*Table2[[#This Row],[Number of Special Activity Hours]]) -> 0 | AE42: =IF(Table2[[#This Row],[SA - Pay Rate]]="","",Table2[[#This Row],[SA - Total Salary]]*'H - Benefit Rates'!$B$1) -> 0 | AF42: =IF(Table2[[#This Row],[SA - Pay Rate]]="","",Table2[[#This Row],[SA - Total Salary]]*'H - Benefit Rates'!$B$2) -> 0 | AG42: =IF(Table2[[#This Row],[SA - Pay Rate]]="","",Table2[[#This Row],[SA - Total Salary]]*'H - Benefit Rates'!$B$6) -> 0 | AH42: 0 | AJ42: =IF(B42="","",ROUND(SUM(Table2[[#This Row],[SA - Total Salary and Benefits]:[FTP - Total Salary and Benefits]]),2)) ->  | AK42: =IF(E42="","",VLOOKUP(E42,'H - Classifications'!A:D,3,FALSE)) ->  | AL42: =NETWORKDAYS(J42,K42,'H - Teacher Unpaid Days Off'!A:A) -> 0 | AM42: 0 | AN42: 0 | AO42: =NETWORKDAYS(J42,K42,'H - Para Unpaid Days Off'!A:A) -> 0 | AP42: 0 | AQ42: 0 | AR42: 0 | AS42: =NETWORKDAYS(J42,K42,'H - Guidance Counselor Days Off'!A:A) -> 0 | AT42: 0 | AU42: =NETWORKDAYS(J42,K42,'H- School Psychologist Days Off'!A:A) -> 0 | AV42: 0 | AW42: 0 | AX42: 0 | AY42: =IF(Table2[[#This Row],[Health Insurance Taken]]="","",(DATEDIF(Table2[[#This Row],[Start Date]],Table2[[#This Row],[End Date]],"m"))+1) ->  | BA42: 12 | BB42: =IF(Table2[[#This Row],[Adjust Month total greater than 12]]<0,0,Table2[[#This Row],[Adjust Month total greater than 12]]) -> 12 | BC42: =IF(E42="","",VLOOKUP(E42,'H - Classifications'!A:D,4,FALSE)) ->  | BD42: =IF(U42="","0",(((M42*L42)/BC42)*U42)*(1+'H - Benefit Rates'!$B$7)) ->  | BE42: =IF(U42="","0",IF(N42="yes",ROUND(BD42*'H - Benefit Rates'!$B$5,2),ROUND(BD42*'H - Benefit Rates'!$B$1,2))) ->  | BF42: =IF(U42="","0",ROUND('H - Benefit Rates'!$B$2*BD42,2)) ->  | BG42: =('H - Benefit Rates'!$B$3/12)*BB42 -> 7368 | BK42: =IF(Table2[[#This Row],[SA Pre Approved Amount]]="","",Table2[[#This Row],[Total Salary and Benefits]]-Table2[[#This Row],[SA Pre Approved Amount]]) -> 
R43: =IF(E43="","",VLOOKUP(E43,'H - Classifications'!A:F,6,FALSE)) ->  | S43: =IF(R43="","",Table2[[#This Row],[Functional Area2]]&"-"&Table2[[#This Row],[GL Account]]) ->  | T43: =IF(E43="","",INDEX('H - Functional Areas'!B:B,MATCH(Table2[[#This Row],[Functional Area]],'H - Functional Areas'!C:C,0))) ->  | U43: =IF(Table2[[#This Row],[Type of Personnel Expense]]="Special Activity Payroll","",IF(SUM(AM43,AN43,AP43,AQ43,AR43,AT43,AV43,AW43,AX43)>Table2[[#This Row],[121]],Table2[[#This Row],[121]],SUM(AM43,AN43,AP43,AQ43,AR43,AT43,AV43,AW43,AX43))) -> 0 | Z43: =IF(M43="","",('H - Benefit Rates'!$B$4/12*'Personnel Expenditures'!BB43)*'Personnel Expenditures'!L43) ->  | AA43: =IF(B43="","",V43*'H - Benefit Rates'!$B$6) ->  | AB43: =IF(Table2[[#This Row],[Type of Personnel Expense]]="","",'Budget Overview'!$A$2) ->  | AC43: =Table2[[#This Row],[Special Activity Pay Rate]] -> 0 | AD43: =IF(Table2[[#This Row],[SA - Pay Rate]]="","",Table2[[#This Row],[SA - Pay Rate]]*Table2[[#This Row],[Number of Special Activity Hours]]) -> 0 | AE43: =IF(Table2[[#This Row],[SA - Pay Rate]]="","",Table2[[#This Row],[SA - Total Salary]]*'H - Benefit Rates'!$B$1) -> 0 | AF43: =IF(Table2[[#This Row],[SA - Pay Rate]]="","",Table2[[#This Row],[SA - Total Salary]]*'H - Benefit Rates'!$B$2) -> 0 | AG43: =IF(Table2[[#This Row],[SA - Pay Rate]]="","",Table2[[#This Row],[SA - Total Salary]]*'H - Benefit Rates'!$B$6) -> 0 | AH43: 0 | AJ43: =IF(B43="","",ROUND(SUM(Table2[[#This Row],[SA - Total Salary and Benefits]:[FTP - Total Salary and Benefits]]),2)) ->  | AK43: =IF(E43="","",VLOOKUP(E43,'H - Classifications'!A:D,3,FALSE)) ->  | AL43: =NETWORKDAYS(J43,K43,'H - Teacher Unpaid Days Off'!A:A) -> 0 | AM43: 0 | AN43: 0 | AO43: =NETWORKDAYS(J43,K43,'H - Para Unpaid Days Off'!A:A) -> 0 | AP43: 0 | AQ43: 0 | AR43: 0 | AS43: =NETWORKDAYS(J43,K43,'H - Guidance Counselor Days Off'!A:A) -> 0 | AT43: 0 | AU43: =NETWORKDAYS(J43,K43,'H- School Psychologist Days Off'!A:A) -> 0 | AV43: 0 | AW43: 0 | AX43: 0 | AY43: =IF(Table2[[#This Row],[Health Insurance Taken]]="","",(DATEDIF(Table2[[#This Row],[Start Date]],Table2[[#This Row],[End Date]],"m"))+1) ->  | BA43: 12 | BB43: =IF(Table2[[#This Row],[Adjust Month total greater than 12]]<0,0,Table2[[#This Row],[Adjust Month total greater than 12]]) -> 12 | BC43: =IF(E43="","",VLOOKUP(E43,'H - Classifications'!A:D,4,FALSE)) ->  | BD43: =IF(U43="","0",(((M43*L43)/BC43)*U43)*(1+'H - Benefit Rates'!$B$7)) ->  | BE43: =IF(U43="","0",IF(N43="yes",ROUND(BD43*'H - Benefit Rates'!$B$5,2),ROUND(BD43*'H - Benefit Rates'!$B$1,2))) ->  | BF43: =IF(U43="","0",ROUND('H - Benefit Rates'!$B$2*BD43,2)) ->  | BG43: =('H - Benefit Rates'!$B$3/12)*BB43 -> 7368 | BK43: =IF(Table2[[#This Row],[SA Pre Approved Amount]]="","",Table2[[#This Row],[Total Salary and Benefits]]-Table2[[#This Row],[SA Pre Approved Amount]]) -> 
R44: =IF(E44="","",VLOOKUP(E44,'H - Classifications'!A:F,6,FALSE)) ->  | S44: =IF(R44="","",Table2[[#This Row],[Functional Area2]]&"-"&Table2[[#This Row],[GL Account]]) ->  | T44: =IF(E44="","",INDEX('H - Functional Areas'!B:B,MATCH(Table2[[#This Row],[Functional Area]],'H - Functional Areas'!C:C,0))) ->  | U44: =IF(Table2[[#This Row],[Type of Personnel Expense]]="Special Activity Payroll","",IF(SUM(AM44,AN44,AP44,AQ44,AR44,AT44,AV44,AW44,AX44)>Table2[[#This Row],[121]],Table2[[#This Row],[121]],SUM(AM44,AN44,AP44,AQ44,AR44,AT44,AV44,AW44,AX44))) -> 0 | Z44: =IF(M44="","",('H - Benefit Rates'!$B$4/12*'Personnel Expenditures'!BB44)*'Personnel Expenditures'!L44) ->  | AA44: =IF(B44="","",V44*'H - Benefit Rates'!$B$6) ->  | AB44: =IF(Table2[[#This Row],[Type of Personnel Expense]]="","",'Budget Overview'!$A$2) ->  | AC44: =Table2[[#This Row],[Special Activity Pay Rate]] -> 0 | AD44: =IF(Table2[[#This Row],[SA - Pay Rate]]="","",Table2[[#This Row],[SA - Pay Rate]]*Table2[[#This Row],[Number of Special Activity Hours]]) -> 0 | AE44: =IF(Table2[[#This Row],[SA - Pay Rate]]="","",Table2[[#This Row],[SA - Total Salary]]*'H - Benefit Rates'!$B$1) -> 0 | AF44: =IF(Table2[[#This Row],[SA - Pay Rate]]="","",Table2[[#This Row],[SA - Total Salary]]*'H - Benefit Rates'!$B$2) -> 0 | AG44: =IF(Table2[[#This Row],[SA - Pay Rate]]="","",Table2[[#This Row],[SA - Total Salary]]*'H - Benefit Rates'!$B$6) -> 0 | AH44: 0 | AJ44: =IF(B44="","",ROUND(SUM(Table2[[#This Row],[SA - Total Salary and Benefits]:[FTP - Total Salary and Benefits]]),2)) ->  | AK44: =IF(E44="","",VLOOKUP(E44,'H - Classifications'!A:D,3,FALSE)) ->  | AL44: =NETWORKDAYS(J44,K44,'H - Teacher Unpaid Days Off'!A:A) -> 0 | AM44: 0 | AN44: 0 | AO44: =NETWORKDAYS(J44,K44,'H - Para Unpaid Days Off'!A:A) -> 0 | AP44: 0 | AQ44: 0 | AR44: 0 | AS44: =NETWORKDAYS(J44,K44,'H - Guidance Counselor Days Off'!A:A) -> 0 | AT44: 0 | AU44: =NETWORKDAYS(J44,K44,'H- School Psychologist Days Off'!A:A) -> 0 | AV44: 0 | AW44: 0 | AX44: 0 | AY44: =IF(Table2[[#This Row],[Health Insurance Taken]]="","",(DATEDIF(Table2[[#This Row],[Start Date]],Table2[[#This Row],[End Date]],"m"))+1) ->  | BA44: 12 | BB44: =IF(Table2[[#This Row],[Adjust Month total greater than 12]]<0,0,Table2[[#This Row],[Adjust Month total greater than 12]]) -> 12 | BC44: =IF(E44="","",VLOOKUP(E44,'H - Classifications'!A:D,4,FALSE)) ->  | BD44: =IF(U44="","0",(((M44*L44)/BC44)*U44)*(1+'H - Benefit Rates'!$B$7)) ->  | BE44: =IF(U44="","0",IF(N44="yes",ROUND(BD44*'H - Benefit Rates'!$B$5,2),ROUND(BD44*'H - Benefit Rates'!$B$1,2))) ->  | BF44: =IF(U44="","0",ROUND('H - Benefit Rates'!$B$2*BD44,2)) ->  | BG44: =('H - Benefit Rates'!$B$3/12)*BB44 -> 7368 | BK44: =IF(Table2[[#This Row],[SA Pre Approved Amount]]="","",Table2[[#This Row],[Total Salary and Benefits]]-Table2[[#This Row],[SA Pre Approved Amount]]) -> 
R45: =IF(E45="","",VLOOKUP(E45,'H - Classifications'!A:F,6,FALSE)) ->  | S45: =IF(R45="","",Table2[[#This Row],[Functional Area2]]&"-"&Table2[[#This Row],[GL Account]]) ->  | T45: =IF(E45="","",INDEX('H - Functional Areas'!B:B,MATCH(Table2[[#This Row],[Functional Area]],'H - Functional Areas'!C:C,0))) ->  | U45: =IF(Table2[[#This Row],[Type of Personnel Expense]]="Special Activity Payroll","",IF(SUM(AM45,AN45,AP45,AQ45,AR45,AT45,AV45,AW45,AX45)>Table2[[#This Row],[121]],Table2[[#This Row],[121]],SUM(AM45,AN45,AP45,AQ45,AR45,AT45,AV45,AW45,AX45))) -> 0 | Z45: =IF(M45="","",('H - Benefit Rates'!$B$4/12*'Personnel Expenditures'!BB45)*'Personnel Expenditures'!L45) ->  | AA45: =IF(B45="","",V45*'H - Benefit Rates'!$B$6) ->  | AB45: =IF(Table2[[#This Row],[Type of Personnel Expense]]="","",'Budget Overview'!$A$2) ->  | AC45: =Table2[[#This Row],[Special Activity Pay Rate]] -> 0 | AD45: =IF(Table2[[#This Row],[SA - Pay Rate]]="","",Table2[[#This Row],[SA - Pay Rate]]*Table2[[#This Row],[Number of Special Activity Hours]]) -> 0 | AE45: =IF(Table2[[#This Row],[SA - Pay Rate]]="","",Table2[[#This Row],[SA - Total Salary]]*'H - Benefit Rates'!$B$1) -> 0 | AF45: =IF(Table2[[#This Row],[SA - Pay Rate]]="","",Table2[[#This Row],[SA - Total Salary]]*'H - Benefit Rates'!$B$2) -> 0 | AG45: =IF(Table2[[#This Row],[SA - Pay Rate]]="","",Table2[[#This Row],[SA - Total Salary]]*'H - Benefit Rates'!$B$6) -> 0 | AH45: 0 | AJ45: =IF(B45="","",ROUND(SUM(Table2[[#This Row],[SA - Total Salary and Benefits]:[FTP - Total Salary and Benefits]]),2)) ->  | AK45: =IF(E45="","",VLOOKUP(E45,'H - Classifications'!A:D,3,FALSE)) ->  | AL45: =NETWORKDAYS(J45,K45,'H - Teacher Unpaid Days Off'!A:A) -> 0 | AM45: 0 | AN45: 0 | AO45: =NETWORKDAYS(J45,K45,'H - Para Unpaid Days Off'!A:A) -> 0 | AP45: 0 | AQ45: 0 | AR45: 0 | AS45: =NETWORKDAYS(J45,K45,'H - Guidance Counselor Days Off'!A:A) -> 0 | AT45: 0 | AU45: =NETWORKDAYS(J45,K45,'H- School Psychologist Days Off'!A:A) -> 0 | AV45: 0 | AW45: 0 | AX45: 0 | AY45: =IF(Table2[[#This Row],[Health Insurance Taken]]="","",(DATEDIF(Table2[[#This Row],[Start Date]],Table2[[#This Row],[End Date]],"m"))+1) ->  | BA45: 12 | BB45: =IF(Table2[[#This Row],[Adjust Month total greater than 12]]<0,0,Table2[[#This Row],[Adjust Month total greater than 12]]) -> 12 | BC45: =IF(E45="","",VLOOKUP(E45,'H - Classifications'!A:D,4,FALSE)) ->  | BD45: =IF(U45="","0",(((M45*L45)/BC45)*U45)*(1+'H - Benefit Rates'!$B$7)) ->  | BE45: =IF(U45="","0",IF(N45="yes",ROUND(BD45*'H - Benefit Rates'!$B$5,2),ROUND(BD45*'H - Benefit Rates'!$B$1,2))) ->  | BF45: =IF(U45="","0",ROUND('H - Benefit Rates'!$B$2*BD45,2)) ->  | BG45: =('H - Benefit Rates'!$B$3/12)*BB45 -> 7368 | BK45: =IF(Table2[[#This Row],[SA Pre Approved Amount]]="","",Table2[[#This Row],[Total Salary and Benefits]]-Table2[[#This Row],[SA Pre Approved Amount]]) -> 
R46: =IF(E46="","",VLOOKUP(E46,'H - Classifications'!A:F,6,FALSE)) ->  | S46: =IF(R46="","",Table2[[#This Row],[Functional Area2]]&"-"&Table2[[#This Row],[GL Account]]) ->  | T46: =IF(E46="","",INDEX('H - Functional Areas'!B:B,MATCH(Table2[[#This Row],[Functional Area]],'H - Functional Areas'!C:C,0))) ->  | U46: =IF(Table2[[#This Row],[Type of Personnel Expense]]="Special Activity Payroll","",IF(SUM(AM46,AN46,AP46,AQ46,AR46,AT46,AV46,AW46,AX46)>Table2[[#This Row],[121]],Table2[[#This Row],[121]],SUM(AM46,AN46,AP46,AQ46,AR46,AT46,AV46,AW46,AX46))) -> 0 | Z46: =IF(M46="","",('H - Benefit Rates'!$B$4/12*'Personnel Expenditures'!BB46)*'Personnel Expenditures'!L46) ->  | AA46: =IF(B46="","",V46*'H - Benefit Rates'!$B$6) ->  | AB46: =IF(Table2[[#This Row],[Type of Personnel Expense]]="","",'Budget Overview'!$A$2) ->  | AC46: =Table2[[#This Row],[Special Activity Pay Rate]] -> 0 | AD46: =IF(Table2[[#This Row],[SA - Pay Rate]]="","",Table2[[#This Row],[SA - Pay Rate]]*Table2[[#This Row],[Number of Special Activity Hours]]) -> 0 | AE46: =IF(Table2[[#This Row],[SA - Pay Rate]]="","",Table2[[#This Row],[SA - Total Salary]]*'H - Benefit Rates'!$B$1) -> 0 | AF46: =IF(Table2[[#This Row],[SA - Pay Rate]]="","",Table2[[#This Row],[SA - Total Salary]]*'H - Benefit Rates'!$B$2) -> 0 | AG46: =IF(Table2[[#This Row],[SA - Pay Rate]]="","",Table2[[#This Row],[SA - Total Salary]]*'H - Benefit Rates'!$B$6) -> 0 | AH46: 0 | AJ46: =IF(B46="","",ROUND(SUM(Table2[[#This Row],[SA - Total Salary and Benefits]:[FTP - Total Salary and Benefits]]),2)) ->  | AK46: =IF(E46="","",VLOOKUP(E46,'H - Classifications'!A:D,3,FALSE)) ->  | AL46: =NETWORKDAYS(J46,K46,'H - Teacher Unpaid Days Off'!A:A) -> 0 | AM46: 0 | AN46: 0 | AO46: =NETWORKDAYS(J46,K46,'H - Para Unpaid Days Off'!A:A) -> 0 | AP46: 0 | AQ46: 0 | AR46: 0 | AS46: =NETWORKDAYS(J46,K46,'H - Guidance Counselor Days Off'!A:A) -> 0 | AT46: 0 | AU46: =NETWORKDAYS(J46,K46,'H- School Psychologist Days Off'!A:A) -> 0 | AV46: 0 | AW46: 0 | AX46: 0 | AY46: =IF(Table2[[#This Row],[Health Insurance Taken]]="","",(DATEDIF(Table2[[#This Row],[Start Date]],Table2[[#This Row],[End Date]],"m"))+1) ->  | BA46: 12 | BB46: =IF(Table2[[#This Row],[Adjust Month total greater than 12]]<0,0,Table2[[#This Row],[Adjust Month total greater than 12]]) -> 12 | BC46: =IF(E46="","",VLOOKUP(E46,'H - Classifications'!A:D,4,FALSE)) ->  | BD46: =IF(U46="","0",(((M46*L46)/BC46)*U46)*(1+'H - Benefit Rates'!$B$7)) ->  | BE46: =IF(U46="","0",IF(N46="yes",ROUND(BD46*'H - Benefit Rates'!$B$5,2),ROUND(BD46*'H - Benefit Rates'!$B$1,2))) ->  | BF46: =IF(U46="","0",ROUND('H - Benefit Rates'!$B$2*BD46,2)) ->  | BG46: =('H - Benefit Rates'!$B$3/12)*BB46 -> 7368 | BK46: =IF(Table2[[#This Row],[SA Pre Approved Amount]]="","",Table2[[#This Row],[Total Salary and Benefits]]-Table2[[#This Row],[SA Pre Approved Amount]]) -> 
R47: =IF(E47="","",VLOOKUP(E47,'H - Classifications'!A:F,6,FALSE)) ->  | S47: =IF(R47="","",Table2[[#This Row],[Functional Area2]]&"-"&Table2[[#This Row],[GL Account]]) ->  | T47: =IF(E47="","",INDEX('H - Functional Areas'!B:B,MATCH(Table2[[#This Row],[Functional Area]],'H - Functional Areas'!C:C,0))) ->  | U47: =IF(Table2[[#This Row],[Type of Personnel Expense]]="Special Activity Payroll","",IF(SUM(AM47,AN47,AP47,AQ47,AR47,AT47,AV47,AW47,AX47)>Table2[[#This Row],[121]],Table2[[#This Row],[121]],SUM(AM47,AN47,AP47,AQ47,AR47,AT47,AV47,AW47,AX47))) -> 0 | Z47: =IF(M47="","",('H - Benefit Rates'!$B$4/12*'Personnel Expenditures'!BB47)*'Personnel Expenditures'!L47) ->  | AA47: =IF(B47="","",V47*'H - Benefit Rates'!$B$6) ->  | AB47: =IF(Table2[[#This Row],[Type of Personnel Expense]]="","",'Budget Overview'!$A$2) ->  | AC47: =Table2[[#This Row],[Special Activity Pay Rate]] -> 0 | AD47: =IF(Table2[[#This Row],[SA - Pay Rate]]="","",Table2[[#This Row],[SA - Pay Rate]]*Table2[[#This Row],[Number of Special Activity Hours]]) -> 0 | AE47: =IF(Table2[[#This Row],[SA - Pay Rate]]="","",Table2[[#This Row],[SA - Total Salary]]*'H - Benefit Rates'!$B$1) -> 0 | AF47: =IF(Table2[[#This Row],[SA - Pay Rate]]="","",Table2[[#This Row],[SA - Total Salary]]*'H - Benefit Rates'!$B$2) -> 0 | AG47: =IF(Table2[[#This Row],[SA - Pay Rate]]="","",Table2[[#This Row],[SA - Total Salary]]*'H - Benefit Rates'!$B$6) -> 0 | AH47: 0 | AJ47: =IF(B47="","",ROUND(SUM(Table2[[#This Row],[SA - Total Salary and Benefits]:[FTP - Total Salary and Benefits]]),2)) ->  | AK47: =IF(E47="","",VLOOKUP(E47,'H - Classifications'!A:D,3,FALSE)) ->  | AL47: =NETWORKDAYS(J47,K47,'H - Teacher Unpaid Days Off'!A:A) -> 0 | AM47: 0 | AN47: 0 | AO47: =NETWORKDAYS(J47,K47,'H - Para Unpaid Days Off'!A:A) -> 0 | AP47: 0 | AQ47: 0 | AR47: 0 | AS47: =NETWORKDAYS(J47,K47,'H - Guidance Counselor Days Off'!A:A) -> 0 | AT47: 0 | AU47: =NETWORKDAYS(J47,K47,'H- School Psychologist Days Off'!A:A) -> 0 | AV47: 0 | AW47: 0 | AX47: 0 | AY47: =IF(Table2[[#This Row],[Health Insurance Taken]]="","",(DATEDIF(Table2[[#This Row],[Start Date]],Table2[[#This Row],[End Date]],"m"))+1) ->  | BA47: 12 | BB47: =IF(Table2[[#This Row],[Adjust Month total greater than 12]]<0,0,Table2[[#This Row],[Adjust Month total greater than 12]]) -> 12 | BC47: =IF(E47="","",VLOOKUP(E47,'H - Classifications'!A:D,4,FALSE)) ->  | BD47: =IF(U47="","0",(((M47*L47)/BC47)*U47)*(1+'H - Benefit Rates'!$B$7)) ->  | BE47: =IF(U47="","0",IF(N47="yes",ROUND(BD47*'H - Benefit Rates'!$B$5,2),ROUND(BD47*'H - Benefit Rates'!$B$1,2))) ->  | BF47: =IF(U47="","0",ROUND('H - Benefit Rates'!$B$2*BD47,2)) ->  | BG47: =('H - Benefit Rates'!$B$3/12)*BB47 -> 7368 | BK47: =IF(Table2[[#This Row],[SA Pre Approved Amount]]="","",Table2[[#This Row],[Total Salary and Benefits]]-Table2[[#This Row],[SA Pre Approved Amount]]) -> 
R48: =IF(E48="","",VLOOKUP(E48,'H - Classifications'!A:F,6,FALSE)) ->  | S48: =IF(R48="","",Table2[[#This Row],[Functional Area2]]&"-"&Table2[[#This Row],[GL Account]]) ->  | T48: =IF(E48="","",INDEX('H - Functional Areas'!B:B,MATCH(Table2[[#This Row],[Functional Area]],'H - Functional Areas'!C:C,0))) ->  | U48: =IF(Table2[[#This Row],[Type of Personnel Expense]]="Special Activity Payroll","",IF(SUM(AM48,AN48,AP48,AQ48,AR48,AT48,AV48,AW48,AX48)>Table2[[#This Row],[121]],Table2[[#This Row],[121]],SUM(AM48,AN48,AP48,AQ48,AR48,AT48,AV48,AW48,AX48))) -> 0 | Z48: =IF(M48="","",('H - Benefit Rates'!$B$4/12*'Personnel Expenditures'!BB48)*'Personnel Expenditures'!L48) ->  | AA48: =IF(B48="","",V48*'H - Benefit Rates'!$B$6) ->  | AB48: =IF(Table2[[#This Row],[Type of Personnel Expense]]="","",'Budget Overview'!$A$2) ->  | AC48: =Table2[[#This Row],[Special Activity Pay Rate]] -> 0 | AD48: =IF(Table2[[#This Row],[SA - Pay Rate]]="","",Table2[[#This Row],[SA - Pay Rate]]*Table2[[#This Row],[Number of Special Activity Hours]]) -> 0 | AE48: =IF(Table2[[#This Row],[SA - Pay Rate]]="","",Table2[[#This Row],[SA - Total Salary]]*'H - Benefit Rates'!$B$1) -> 0 | AF48: =IF(Table2[[#This Row],[SA - Pay Rate]]="","",Table2[[#This Row],[SA - Total Salary]]*'H - Benefit Rates'!$B$2) -> 0 | AG48: =IF(Table2[[#This Row],[SA - Pay Rate]]="","",Table2[[#This Row],[SA - Total Salary]]*'H - Benefit Rates'!$B$6) -> 0 | AH48: 0 | AJ48: =IF(B48="","",ROUND(SUM(Table2[[#This Row],[SA - Total Salary and Benefits]:[FTP - Total Salary and Benefits]]),2)) ->  | AK48: =IF(E48="","",VLOOKUP(E48,'H - Classifications'!A:D,3,FALSE)) ->  | AL48: =NETWORKDAYS(J48,K48,'H - Teacher Unpaid Days Off'!A:A) -> 0 | AM48: 0 | AN48: 0 | AO48: =NETWORKDAYS(J48,K48,'H - Para Unpaid Days Off'!A:A) -> 0 | AP48: 0 | AQ48: 0 | AR48: 0 | AS48: =NETWORKDAYS(J48,K48,'H - Guidance Counselor Days Off'!A:A) -> 0 | AT48: 0 | AU48: =NETWORKDAYS(J48,K48,'H- School Psychologist Days Off'!A:A) -> 0 | AV48: 0 | AW48: 0 | AX48: 0 | AY48: =IF(Table2[[#This Row],[Health Insurance Taken]]="","",(DATEDIF(Table2[[#This Row],[Start Date]],Table2[[#This Row],[End Date]],"m"))+1) ->  | BA48: 12 | BB48: =IF(Table2[[#This Row],[Adjust Month total greater than 12]]<0,0,Table2[[#This Row],[Adjust Month total greater than 12]]) -> 12 | BC48: =IF(E48="","",VLOOKUP(E48,'H - Classifications'!A:D,4,FALSE)) ->  | BD48: =IF(U48="","0",(((M48*L48)/BC48)*U48)*(1+'H - Benefit Rates'!$B$7)) ->  | BE48: =IF(U48="","0",IF(N48="yes",ROUND(BD48*'H - Benefit Rates'!$B$5,2),ROUND(BD48*'H - Benefit Rates'!$B$1,2))) ->  | BF48: =IF(U48="","0",ROUND('H - Benefit Rates'!$B$2*BD48,2)) ->  | BG48: =('H - Benefit Rates'!$B$3/12)*BB48 -> 7368 | BK48: =IF(Table2[[#This Row],[SA Pre Approved Amount]]="","",Table2[[#This Row],[Total Salary and Benefits]]-Table2[[#This Row],[SA Pre Approved Amount]]) -> 
R49: =IF(E49="","",VLOOKUP(E49,'H - Classifications'!A:F,6,FALSE)) ->  | S49: =IF(R49="","",Table2[[#This Row],[Functional Area2]]&"-"&Table2[[#This Row],[GL Account]]) ->  | T49: =IF(E49="","",INDEX('H - Functional Areas'!B:B,MATCH(Table2[[#This Row],[Functional Area]],'H - Functional Areas'!C:C,0))) ->  | U49: =IF(Table2[[#This Row],[Type of Personnel Expense]]="Special Activity Payroll","",IF(SUM(AM49,AN49,AP49,AQ49,AR49,AT49,AV49,AW49,AX49)>Table2[[#This Row],[121]],Table2[[#This Row],[121]],SUM(AM49,AN49,AP49,AQ49,AR49,AT49,AV49,AW49,AX49))) -> 0 | Z49: =IF(M49="","",('H - Benefit Rates'!$B$4/12*'Personnel Expenditures'!BB49)*'Personnel Expenditures'!L49) ->  | AA49: =IF(B49="","",V49*'H - Benefit Rates'!$B$6) ->  | AB49: =IF(Table2[[#This Row],[Type of Personnel Expense]]="","",'Budget Overview'!$A$2) ->  | AC49: =Table2[[#This Row],[Special Activity Pay Rate]] -> 0 | AD49: =IF(Table2[[#This Row],[SA - Pay Rate]]="","",Table2[[#This Row],[SA - Pay Rate]]*Table2[[#This Row],[Number of Special Activity Hours]]) -> 0 | AE49: =IF(Table2[[#This Row],[SA - Pay Rate]]="","",Table2[[#This Row],[SA - Total Salary]]*'H - Benefit Rates'!$B$1) -> 0 | AF49: =IF(Table2[[#This Row],[SA - Pay Rate]]="","",Table2[[#This Row],[SA - Total Salary]]*'H - Benefit Rates'!$B$2) -> 0 | AG49: =IF(Table2[[#This Row],[SA - Pay Rate]]="","",Table2[[#This Row],[SA - Total Salary]]*'H - Benefit Rates'!$B$6) -> 0 | AH49: 0 | AJ49: =IF(B49="","",ROUND(SUM(Table2[[#This Row],[SA - Total Salary and Benefits]:[FTP - Total Salary and Benefits]]),2)) ->  | AK49: =IF(E49="","",VLOOKUP(E49,'H - Classifications'!A:D,3,FALSE)) ->  | AL49: =NETWORKDAYS(J49,K49,'H - Teacher Unpaid Days Off'!A:A) -> 0 | AM49: 0 | AN49: 0 | AO49: =NETWORKDAYS(J49,K49,'H - Para Unpaid Days Off'!A:A) -> 0 | AP49: 0 | AQ49: 0 | AR49: 0 | AS49: =NETWORKDAYS(J49,K49,'H - Guidance Counselor Days Off'!A:A) -> 0 | AT49: 0 | AU49: =NETWORKDAYS(J49,K49,'H- School Psychologist Days Off'!A:A) -> 0 | AV49: 0 | AW49: 0 | AX49: 0 | AY49: =IF(Table2[[#This Row],[Health Insurance Taken]]="","",(DATEDIF(Table2[[#This Row],[Start Date]],Table2[[#This Row],[End Date]],"m"))+1) ->  | BA49: 12 | BB49: =IF(Table2[[#This Row],[Adjust Month total greater than 12]]<0,0,Table2[[#This Row],[Adjust Month total greater than 12]]) -> 12 | BC49: =IF(E49="","",VLOOKUP(E49,'H - Classifications'!A:D,4,FALSE)) ->  | BD49: =IF(U49="","0",(((M49*L49)/BC49)*U49)*(1+'H - Benefit Rates'!$B$7)) ->  | BE49: =IF(U49="","0",IF(N49="yes",ROUND(BD49*'H - Benefit Rates'!$B$5,2),ROUND(BD49*'H - Benefit Rates'!$B$1,2))) ->  | BF49: =IF(U49="","0",ROUND('H - Benefit Rates'!$B$2*BD49,2)) ->  | BG49: =('H - Benefit Rates'!$B$3/12)*BB49 -> 7368 | BK49: =IF(Table2[[#This Row],[SA Pre Approved Amount]]="","",Table2[[#This Row],[Total Salary and Benefits]]-Table2[[#This Row],[SA Pre Approved Amount]]) -> 
R50: =IF(E50="","",VLOOKUP(E50,'H - Classifications'!A:F,6,FALSE)) ->  | S50: =IF(R50="","",Table2[[#This Row],[Functional Area2]]&"-"&Table2[[#This Row],[GL Account]]) ->  | T50: =IF(E50="","",INDEX('H - Functional Areas'!B:B,MATCH(Table2[[#This Row],[Functional Area]],'H - Functional Areas'!C:C,0))) ->  | U50: =IF(Table2[[#This Row],[Type of Personnel Expense]]="Special Activity Payroll","",IF(SUM(AM50,AN50,AP50,AQ50,AR50,AT50,AV50,AW50,AX50)>Table2[[#This Row],[121]],Table2[[#This Row],[121]],SUM(AM50,AN50,AP50,AQ50,AR50,AT50,AV50,AW50,AX50))) -> 0 | Z50: =IF(M50="","",('H - Benefit Rates'!$B$4/12*'Personnel Expenditures'!BB50)*'Personnel Expenditures'!L50) ->  | AA50: =IF(B50="","",V50*'H - Benefit Rates'!$B$6) ->  | AB50: =IF(Table2[[#This Row],[Type of Personnel Expense]]="","",'Budget Overview'!$A$2) ->  | AC50: =Table2[[#This Row],[Special Activity Pay Rate]] -> 0 | AD50: =IF(Table2[[#This Row],[SA - Pay Rate]]="","",Table2[[#This Row],[SA - Pay Rate]]*Table2[[#This Row],[Number of Special Activity Hours]]) -> 0 | AE50: =IF(Table2[[#This Row],[SA - Pay Rate]]="","",Table2[[#This Row],[SA - Total Salary]]*'H - Benefit Rates'!$B$1) -> 0 | AF50: =IF(Table2[[#This Row],[SA - Pay Rate]]="","",Table2[[#This Row],[SA - Total Salary]]*'H - Benefit Rates'!$B$2) -> 0 | AG50: =IF(Table2[[#This Row],[SA - Pay Rate]]="","",Table2[[#This Row],[SA - Total Salary]]*'H - Benefit Rates'!$B$6) -> 0 | AH50: 0 | AJ50: =IF(B50="","",ROUND(SUM(Table2[[#This Row],[SA - Total Salary and Benefits]:[FTP - Total Salary and Benefits]]),2)) ->  | AK50: =IF(E50="","",VLOOKUP(E50,'H - Classifications'!A:D,3,FALSE)) ->  | AL50: =NETWORKDAYS(J50,K50,'H - Teacher Unpaid Days Off'!A:A) -> 0 | AM50: 0 | AN50: 0 | AO50: =NETWORKDAYS(J50,K50,'H - Para Unpaid Days Off'!A:A) -> 0 | AP50: 0 | AQ50: 0 | AR50: 0 | AS50: =NETWORKDAYS(J50,K50,'H - Guidance Counselor Days Off'!A:A) -> 0 | AT50: 0 | AU50: =NETWORKDAYS(J50,K50,'H- School Psychologist Days Off'!A:A) -> 0 | AV50: 0 | AW50: 0 | AX50: 0 | AY50: =IF(Table2[[#This Row],[Health Insurance Taken]]="","",(DATEDIF(Table2[[#This Row],[Start Date]],Table2[[#This Row],[End Date]],"m"))+1) ->  | BA50: 12 | BB50: =IF(Table2[[#This Row],[Adjust Month total greater than 12]]<0,0,Table2[[#This Row],[Adjust Month total greater than 12]]) -> 12 | BC50: =IF(E50="","",VLOOKUP(E50,'H - Classifications'!A:D,4,FALSE)) ->  | BD50: =IF(U50="","0",(((M50*L50)/BC50)*U50)*(1+'H - Benefit Rates'!$B$7)) ->  | BE50: =IF(U50="","0",IF(N50="yes",ROUND(BD50*'H - Benefit Rates'!$B$5,2),ROUND(BD50*'H - Benefit Rates'!$B$1,2))) ->  | BF50: =IF(U50="","0",ROUND('H - Benefit Rates'!$B$2*BD50,2)) ->  | BG50: =('H - Benefit Rates'!$B$3/12)*BB50 -> 7368 | BK50: =IF(Table2[[#This Row],[SA Pre Approved Amount]]="","",Table2[[#This Row],[Total Salary and Benefits]]-Table2[[#This Row],[SA Pre Approved Amount]]) -> 
R51: =IF(E51="","",VLOOKUP(E51,'H - Classifications'!A:F,6,FALSE)) ->  | S51: =IF(R51="","",Table2[[#This Row],[Functional Area2]]&"-"&Table2[[#This Row],[GL Account]]) ->  | T51: =IF(E51="","",INDEX('H - Functional Areas'!B:B,MATCH(Table2[[#This Row],[Functional Area]],'H - Functional Areas'!C:C,0))) ->  | U51: =IF(Table2[[#This Row],[Type of Personnel Expense]]="Special Activity Payroll","",IF(SUM(AM51,AN51,AP51,AQ51,AR51,AT51,AV51,AW51,AX51)>Table2[[#This Row],[121]],Table2[[#This Row],[121]],SUM(AM51,AN51,AP51,AQ51,AR51,AT51,AV51,AW51,AX51))) -> 0 | Z51: =IF(M51="","",('H - Benefit Rates'!$B$4/12*'Personnel Expenditures'!BB51)*'Personnel Expenditures'!L51) ->  | AA51: =IF(B51="","",V51*'H - Benefit Rates'!$B$6) ->  | AB51: =IF(Table2[[#This Row],[Type of Personnel Expense]]="","",'Budget Overview'!$A$2) ->  | AC51: =Table2[[#This Row],[Special Activity Pay Rate]] -> 0 | AD51: =IF(Table2[[#This Row],[SA - Pay Rate]]="","",Table2[[#This Row],[SA - Pay Rate]]*Table2[[#This Row],[Number of Special Activity Hours]]) -> 0 | AE51: =IF(Table2[[#This Row],[SA - Pay Rate]]="","",Table2[[#This Row],[SA - Total Salary]]*'H - Benefit Rates'!$B$1) -> 0 | AF51: =IF(Table2[[#This Row],[SA - Pay Rate]]="","",Table2[[#This Row],[SA - Total Salary]]*'H - Benefit Rates'!$B$2) -> 0 | AG51: =IF(Table2[[#This Row],[SA - Pay Rate]]="","",Table2[[#This Row],[SA - Total Salary]]*'H - Benefit Rates'!$B$6) -> 0 | AH51: 0 | AJ51: =IF(B51="","",ROUND(SUM(Table2[[#This Row],[SA - Total Salary and Benefits]:[FTP - Total Salary and Benefits]]),2)) ->  | AK51: =IF(E51="","",VLOOKUP(E51,'H - Classifications'!A:D,3,FALSE)) ->  | AL51: =NETWORKDAYS(J51,K51,'H - Teacher Unpaid Days Off'!A:A) -> 0 | AM51: 0 | AN51: 0 | AO51: =NETWORKDAYS(J51,K51,'H - Para Unpaid Days Off'!A:A) -> 0 | AP51: 0 | AQ51: 0 | AR51: 0 | AS51: =NETWORKDAYS(J51,K51,'H - Guidance Counselor Days Off'!A:A) -> 0 | AT51: 0 | AU51: =NETWORKDAYS(J51,K51,'H- School Psychologist Days Off'!A:A) -> 0 | AV51: 0 | AW51: 0 | AX51: 0 | AY51: =IF(Table2[[#This Row],[Health Insurance Taken]]="","",(DATEDIF(Table2[[#This Row],[Start Date]],Table2[[#This Row],[End Date]],"m"))+1) ->  | BA51: 12 | BB51: =IF(Table2[[#This Row],[Adjust Month total greater than 12]]<0,0,Table2[[#This Row],[Adjust Month total greater than 12]]) -> 12 | BC51: =IF(E51="","",VLOOKUP(E51,'H - Classifications'!A:D,4,FALSE)) ->  | BD51: =IF(U51="","0",(((M51*L51)/BC51)*U51)*(1+'H - Benefit Rates'!$B$7)) ->  | BE51: =IF(U51="","0",IF(N51="yes",ROUND(BD51*'H - Benefit Rates'!$B$5,2),ROUND(BD51*'H - Benefit Rates'!$B$1,2))) ->  | BF51: =IF(U51="","0",ROUND('H - Benefit Rates'!$B$2*BD51,2)) ->  | BG51: =('H - Benefit Rates'!$B$3/12)*BB51 -> 7368 | BK51: =IF(Table2[[#This Row],[SA Pre Approved Amount]]="","",Table2[[#This Row],[Total Salary and Benefits]]-Table2[[#This Row],[SA Pre Approved Amount]]) -> 
R52: =IF(E52="","",VLOOKUP(E52,'H - Classifications'!A:F,6,FALSE)) ->  | S52: =IF(R52="","",Table2[[#This Row],[Functional Area2]]&"-"&Table2[[#This Row],[GL Account]]) ->  | T52: =IF(E52="","",INDEX('H - Functional Areas'!B:B,MATCH(Table2[[#This Row],[Functional Area]],'H - Functional Areas'!C:C,0))) ->  | U52: =IF(Table2[[#This Row],[Type of Personnel Expense]]="Special Activity Payroll","",IF(SUM(AM52,AN52,AP52,AQ52,AR52,AT52,AV52,AW52,AX52)>Table2[[#This Row],[121]],Table2[[#This Row],[121]],SUM(AM52,AN52,AP52,AQ52,AR52,AT52,AV52,AW52,AX52))) -> 0 | Z52: =IF(M52="","",('H - Benefit Rates'!$B$4/12*'Personnel Expenditures'!BB52)*'Personnel Expenditures'!L52) ->  | AA52: =IF(B52="","",V52*'H - Benefit Rates'!$B$6) ->  | AB52: =IF(Table2[[#This Row],[Type of Personnel Expense]]="","",'Budget Overview'!$A$2) ->  | AC52: =Table2[[#This Row],[Special Activity Pay Rate]] -> 0 | AD52: =IF(Table2[[#This Row],[SA - Pay Rate]]="","",Table2[[#This Row],[SA - Pay Rate]]*Table2[[#This Row],[Number of Special Activity Hours]]) -> 0 | AE52: =IF(Table2[[#This Row],[SA - Pay Rate]]="","",Table2[[#This Row],[SA - Total Salary]]*'H - Benefit Rates'!$B$1) -> 0 | AF52: =IF(Table2[[#This Row],[SA - Pay Rate]]="","",Table2[[#This Row],[SA - Total Salary]]*'H - Benefit Rates'!$B$2) -> 0 | AG52: =IF(Table2[[#This Row],[SA - Pay Rate]]="","",Table2[[#This Row],[SA - Total Salary]]*'H - Benefit Rates'!$B$6) -> 0 | AH52: 0 | AJ52: =IF(B52="","",ROUND(SUM(Table2[[#This Row],[SA - Total Salary and Benefits]:[FTP - Total Salary and Benefits]]),2)) ->  | AK52: =IF(E52="","",VLOOKUP(E52,'H - Classifications'!A:D,3,FALSE)) ->  | AL52: =NETWORKDAYS(J52,K52,'H - Teacher Unpaid Days Off'!A:A) -> 0 | AM52: 0 | AN52: 0 | AO52: =NETWORKDAYS(J52,K52,'H - Para Unpaid Days Off'!A:A) -> 0 | AP52: 0 | AQ52: 0 | AR52: 0 | AS52: =NETWORKDAYS(J52,K52,'H - Guidance Counselor Days Off'!A:A) -> 0 | AT52: 0 | AU52: =NETWORKDAYS(J52,K52,'H- School Psychologist Days Off'!A:A) -> 0 | AV52: 0 | AW52: 0 | AX52: 0 | AY52: =IF(Table2[[#This Row],[Health Insurance Taken]]="","",(DATEDIF(Table2[[#This Row],[Start Date]],Table2[[#This Row],[End Date]],"m"))+1) ->  | BA52: 12 | BB52: =IF(Table2[[#This Row],[Adjust Month total greater than 12]]<0,0,Table2[[#This Row],[Adjust Month total greater than 12]]) -> 12 | BC52: =IF(E52="","",VLOOKUP(E52,'H - Classifications'!A:D,4,FALSE)) ->  | BD52: =IF(U52="","0",(((M52*L52)/BC52)*U52)*(1+'H - Benefit Rates'!$B$7)) ->  | BE52: =IF(U52="","0",IF(N52="yes",ROUND(BD52*'H - Benefit Rates'!$B$5,2),ROUND(BD52*'H - Benefit Rates'!$B$1,2))) ->  | BF52: =IF(U52="","0",ROUND('H - Benefit Rates'!$B$2*BD52,2)) ->  | BG52: =('H - Benefit Rates'!$B$3/12)*BB52 -> 7368 | BK52: =IF(Table2[[#This Row],[SA Pre Approved Amount]]="","",Table2[[#This Row],[Total Salary and Benefits]]-Table2[[#This Row],[SA Pre Approved Amount]]) -> 
R53: =IF(E53="","",VLOOKUP(E53,'H - Classifications'!A:F,6,FALSE)) ->  | S53: =IF(R53="","",Table2[[#This Row],[Functional Area2]]&"-"&Table2[[#This Row],[GL Account]]) ->  | T53: =IF(E53="","",INDEX('H - Functional Areas'!B:B,MATCH(Table2[[#This Row],[Functional Area]],'H - Functional Areas'!C:C,0))) ->  | U53: =IF(Table2[[#This Row],[Type of Personnel Expense]]="Special Activity Payroll","",IF(SUM(AM53,AN53,AP53,AQ53,AR53,AT53,AV53,AW53,AX53)>Table2[[#This Row],[121]],Table2[[#This Row],[121]],SUM(AM53,AN53,AP53,AQ53,AR53,AT53,AV53,AW53,AX53))) -> 0 | Z53: =IF(M53="","",('H - Benefit Rates'!$B$4/12*'Personnel Expenditures'!BB53)*'Personnel Expenditures'!L53) ->  | AA53: =IF(B53="","",V53*'H - Benefit Rates'!$B$6) ->  | AB53: =IF(Table2[[#This Row],[Type of Personnel Expense]]="","",'Budget Overview'!$A$2) ->  | AC53: =Table2[[#This Row],[Special Activity Pay Rate]] -> 0 | AD53: =IF(Table2[[#This Row],[SA - Pay Rate]]="","",Table2[[#This Row],[SA - Pay Rate]]*Table2[[#This Row],[Number of Special Activity Hours]]) -> 0 | AE53: =IF(Table2[[#This Row],[SA - Pay Rate]]="","",Table2[[#This Row],[SA - Total Salary]]*'H - Benefit Rates'!$B$1) -> 0 | AF53: =IF(Table2[[#This Row],[SA - Pay Rate]]="","",Table2[[#This Row],[SA - Total Salary]]*'H - Benefit Rates'!$B$2) -> 0 | AG53: =IF(Table2[[#This Row],[SA - Pay Rate]]="","",Table2[[#This Row],[SA - Total Salary]]*'H - Benefit Rates'!$B$6) -> 0 | AH53: 0 | AJ53: =IF(B53="","",ROUND(SUM(Table2[[#This Row],[SA - Total Salary and Benefits]:[FTP - Total Salary and Benefits]]),2)) ->  | AK53: =IF(E53="","",VLOOKUP(E53,'H - Classifications'!A:D,3,FALSE)) ->  | AL53: =NETWORKDAYS(J53,K53,'H - Teacher Unpaid Days Off'!A:A) -> 0 | AM53: 0 | AN53: 0 | AO53: =NETWORKDAYS(J53,K53,'H - Para Unpaid Days Off'!A:A) -> 0 | AP53: 0 | AQ53: 0 | AR53: 0 | AS53: =NETWORKDAYS(J53,K53,'H - Guidance Counselor Days Off'!A:A) -> 0 | AT53: 0 | AU53: =NETWORKDAYS(J53,K53,'H- School Psychologist Days Off'!A:A) -> 0 | AV53: 0 | AW53: 0 | AX53: 0 | AY53: =IF(Table2[[#This Row],[Health Insurance Taken]]="","",(DATEDIF(Table2[[#This Row],[Start Date]],Table2[[#This Row],[End Date]],"m"))+1) ->  | BA53: 12 | BB53: =IF(Table2[[#This Row],[Adjust Month total greater than 12]]<0,0,Table2[[#This Row],[Adjust Month total greater than 12]]) -> 12 | BC53: =IF(E53="","",VLOOKUP(E53,'H - Classifications'!A:D,4,FALSE)) ->  | BD53: =IF(U53="","0",(((M53*L53)/BC53)*U53)*(1+'H - Benefit Rates'!$B$7)) ->  | BE53: =IF(U53="","0",IF(N53="yes",ROUND(BD53*'H - Benefit Rates'!$B$5,2),ROUND(BD53*'H - Benefit Rates'!$B$1,2))) ->  | BF53: =IF(U53="","0",ROUND('H - Benefit Rates'!$B$2*BD53,2)) ->  | BG53: =('H - Benefit Rates'!$B$3/12)*BB53 -> 7368 | BK53: =IF(Table2[[#This Row],[SA Pre Approved Amount]]="","",Table2[[#This Row],[Total Salary and Benefits]]-Table2[[#This Row],[SA Pre Approved Amount]]) -> 
R54: =IF(E54="","",VLOOKUP(E54,'H - Classifications'!A:F,6,FALSE)) ->  | S54: =IF(R54="","",Table2[[#This Row],[Functional Area2]]&"-"&Table2[[#This Row],[GL Account]]) ->  | T54: =IF(E54="","",INDEX('H - Functional Areas'!B:B,MATCH(Table2[[#This Row],[Functional Area]],'H - Functional Areas'!C:C,0))) ->  | U54: =IF(Table2[[#This Row],[Type of Personnel Expense]]="Special Activity Payroll","",IF(SUM(AM54,AN54,AP54,AQ54,AR54,AT54,AV54,AW54,AX54)>Table2[[#This Row],[121]],Table2[[#This Row],[121]],SUM(AM54,AN54,AP54,AQ54,AR54,AT54,AV54,AW54,AX54))) -> 0 | Z54: =IF(M54="","",('H - Benefit Rates'!$B$4/12*'Personnel Expenditures'!BB54)*'Personnel Expenditures'!L54) ->  | AA54: =IF(B54="","",V54*'H - Benefit Rates'!$B$6) ->  | AB54: =IF(Table2[[#This Row],[Type of Personnel Expense]]="","",'Budget Overview'!$A$2) ->  | AC54: =Table2[[#This Row],[Special Activity Pay Rate]] -> 0 | AD54: =IF(Table2[[#This Row],[SA - Pay Rate]]="","",Table2[[#This Row],[SA - Pay Rate]]*Table2[[#This Row],[Number of Special Activity Hours]]) -> 0 | AE54: =IF(Table2[[#This Row],[SA - Pay Rate]]="","",Table2[[#This Row],[SA - Total Salary]]*'H - Benefit Rates'!$B$1) -> 0 | AF54: =IF(Table2[[#This Row],[SA - Pay Rate]]="","",Table2[[#This Row],[SA - Total Salary]]*'H - Benefit Rates'!$B$2) -> 0 | AG54: =IF(Table2[[#This Row],[SA - Pay Rate]]="","",Table2[[#This Row],[SA - Total Salary]]*'H - Benefit Rates'!$B$6) -> 0 | AH54: 0 | AJ54: =IF(B54="","",ROUND(SUM(Table2[[#This Row],[SA - Total Salary and Benefits]:[FTP - Total Salary and Benefits]]),2)) ->  | AK54: =IF(E54="","",VLOOKUP(E54,'H - Classifications'!A:D,3,FALSE)) ->  | AL54: =NETWORKDAYS(J54,K54,'H - Teacher Unpaid Days Off'!A:A) -> 0 | AM54: 0 | AN54: 0 | AO54: =NETWORKDAYS(J54,K54,'H - Para Unpaid Days Off'!A:A) -> 0 | AP54: 0 | AQ54: 0 | AR54: 0 | AS54: =NETWORKDAYS(J54,K54,'H - Guidance Counselor Days Off'!A:A) -> 0 | AT54: 0 | AU54: =NETWORKDAYS(J54,K54,'H- School Psychologist Days Off'!A:A) -> 0 | AV54: 0 | AW54: 0 | AX54: 0 | AY54: =IF(Table2[[#This Row],[Health Insurance Taken]]="","",(DATEDIF(Table2[[#This Row],[Start Date]],Table2[[#This Row],[End Date]],"m"))+1) ->  | BA54: 12 | BB54: =IF(Table2[[#This Row],[Adjust Month total greater than 12]]<0,0,Table2[[#This Row],[Adjust Month total greater than 12]]) -> 12 | BC54: =IF(E54="","",VLOOKUP(E54,'H - Classifications'!A:D,4,FALSE)) ->  | BD54: =IF(U54="","0",(((M54*L54)/BC54)*U54)*(1+'H - Benefit Rates'!$B$7)) ->  | BE54: =IF(U54="","0",IF(N54="yes",ROUND(BD54*'H - Benefit Rates'!$B$5,2),ROUND(BD54*'H - Benefit Rates'!$B$1,2))) ->  | BF54: =IF(U54="","0",ROUND('H - Benefit Rates'!$B$2*BD54,2)) ->  | BG54: =('H - Benefit Rates'!$B$3/12)*BB54 -> 7368 | BK54: =IF(Table2[[#This Row],[SA Pre Approved Amount]]="","",Table2[[#This Row],[Total Salary and Benefits]]-Table2[[#This Row],[SA Pre Approved Amount]]) -> 
R55: =IF(E55="","",VLOOKUP(E55,'H - Classifications'!A:F,6,FALSE)) ->  | S55: =IF(R55="","",Table2[[#This Row],[Functional Area2]]&"-"&Table2[[#This Row],[GL Account]]) ->  | T55: =IF(E55="","",INDEX('H - Functional Areas'!B:B,MATCH(Table2[[#This Row],[Functional Area]],'H - Functional Areas'!C:C,0))) ->  | U55: =IF(Table2[[#This Row],[Type of Personnel Expense]]="Special Activity Payroll","",IF(SUM(AM55,AN55,AP55,AQ55,AR55,AT55,AV55,AW55,AX55)>Table2[[#This Row],[121]],Table2[[#This Row],[121]],SUM(AM55,AN55,AP55,AQ55,AR55,AT55,AV55,AW55,AX55))) -> 0 | Z55: =IF(M55="","",('H - Benefit Rates'!$B$4/12*'Personnel Expenditures'!BB55)*'Personnel Expenditures'!L55) ->  | AA55: =IF(B55="","",V55*'H - Benefit Rates'!$B$6) ->  | AB55: =IF(Table2[[#This Row],[Type of Personnel Expense]]="","",'Budget Overview'!$A$2) ->  | AC55: =Table2[[#This Row],[Special Activity Pay Rate]] -> 0 | AD55: =IF(Table2[[#This Row],[SA - Pay Rate]]="","",Table2[[#This Row],[SA - Pay Rate]]*Table2[[#This Row],[Number of Special Activity Hours]]) -> 0 | AE55: =IF(Table2[[#This Row],[SA - Pay Rate]]="","",Table2[[#This Row],[SA - Total Salary]]*'H - Benefit Rates'!$B$1) -> 0 | AF55: =IF(Table2[[#This Row],[SA - Pay Rate]]="","",Table2[[#This Row],[SA - Total Salary]]*'H - Benefit Rates'!$B$2) -> 0 | AG55: =IF(Table2[[#This Row],[SA - Pay Rate]]="","",Table2[[#This Row],[SA - Total Salary]]*'H - Benefit Rates'!$B$6) -> 0 | AH55: 0 | AJ55: =IF(B55="","",ROUND(SUM(Table2[[#This Row],[SA - Total Salary and Benefits]:[FTP - Total Salary and Benefits]]),2)) ->  | AK55: =IF(E55="","",VLOOKUP(E55,'H - Classifications'!A:D,3,FALSE)) ->  | AL55: =NETWORKDAYS(J55,K55,'H - Teacher Unpaid Days Off'!A:A) -> 0 | AM55: 0 | AN55: 0 | AO55: =NETWORKDAYS(J55,K55,'H - Para Unpaid Days Off'!A:A) -> 0 | AP55: 0 | AQ55: 0 | AR55: 0 | AS55: =NETWORKDAYS(J55,K55,'H - Guidance Counselor Days Off'!A:A) -> 0 | AT55: 0 | AU55: =NETWORKDAYS(J55,K55,'H- School Psychologist Days Off'!A:A) -> 0 | AV55: 0 | AW55: 0 | AX55: 0 | AY55: =IF(Table2[[#This Row],[Health Insurance Taken]]="","",(DATEDIF(Table2[[#This Row],[Start Date]],Table2[[#This Row],[End Date]],"m"))+1) ->  | BA55: 12 | BB55: =IF(Table2[[#This Row],[Adjust Month total greater than 12]]<0,0,Table2[[#This Row],[Adjust Month total greater than 12]]) -> 12 | BC55: =IF(E55="","",VLOOKUP(E55,'H - Classifications'!A:D,4,FALSE)) ->  | BD55: =IF(U55="","0",(((M55*L55)/BC55)*U55)*(1+'H - Benefit Rates'!$B$7)) ->  | BE55: =IF(U55="","0",IF(N55="yes",ROUND(BD55*'H - Benefit Rates'!$B$5,2),ROUND(BD55*'H - Benefit Rates'!$B$1,2))) ->  | BF55: =IF(U55="","0",ROUND('H - Benefit Rates'!$B$2*BD55,2)) ->  | BG55: =('H - Benefit Rates'!$B$3/12)*BB55 -> 7368 | BK55: =IF(Table2[[#This Row],[SA Pre Approved Amount]]="","",Table2[[#This Row],[Total Salary and Benefits]]-Table2[[#This Row],[SA Pre Approved Amount]]) -> 
A56: School TTI | R56: =IF(E56="","",VLOOKUP(E56,'H - Classifications'!A:F,6,FALSE)) ->  | S56: =IF(R56="","",Table2[[#This Row],[Functional Area2]]&"-"&Table2[[#This Row],[GL Account]]) ->  | T56: =IF(E56="","",INDEX('H - Functional Areas'!B:B,MATCH(Table2[[#This Row],[Functional Area]],'H - Functional Areas'!C:C,0))) ->  | U56: =IF(Table2[[#This Row],[Type of Personnel Expense]]="Special Activity Payroll","",IF(SUM(AM56,AN56,AP56,AQ56,AR56,AT56,AV56,AW56,AX56)>Table2[[#This Row],[121]],Table2[[#This Row],[121]],SUM(AM56,AN56,AP56,AQ56,AR56,AT56,AV56,AW56,AX56))) -> 0 | Z56: =IF(M56="","",('H - Benefit Rates'!$B$4/12*'Personnel Expenditures'!BB56)*'Personnel Expenditures'!L56) ->  | AA56: =IF(B56="","",V56*'H - Benefit Rates'!$B$6) ->  | AB56: =IF(Table2[[#This Row],[Type of Personnel Expense]]="","",'Budget Overview'!$A$2) ->  | AC56: =Table2[[#This Row],[Special Activity Pay Rate]] -> 0 | AD56: =IF(Table2[[#This Row],[SA - Pay Rate]]="","",Table2[[#This Row],[SA - Pay Rate]]*Table2[[#This Row],[Number of Special Activity Hours]]) -> 0 | AE56: =IF(Table2[[#This Row],[SA - Pay Rate]]="","",Table2[[#This Row],[SA - Total Salary]]*'H - Benefit Rates'!$B$1) -> 0 | AF56: =IF(Table2[[#This Row],[SA - Pay Rate]]="","",Table2[[#This Row],[SA - Total Salary]]*'H - Benefit Rates'!$B$2) -> 0 | AG56: =IF(Table2[[#This Row],[SA - Pay Rate]]="","",Table2[[#This Row],[SA - Total Salary]]*'H - Benefit Rates'!$B$6) -> 0 | AH56: 0 | AJ56: =IF(B56="","",ROUND(SUM(Table2[[#This Row],[SA - Total Salary and Benefits]:[FTP - Total Salary and Benefits]]),2)) ->  | AK56: =IF(E56="","",VLOOKUP(E56,'H - Classifications'!A:D,3,FALSE)) ->  | AL56: =NETWORKDAYS(J56,K56,'H - Teacher Unpaid Days Off'!A:A) -> 0 | AM56: 0 | AN56: 0 | AO56: =NETWORKDAYS(J56,K56,'H - Para Unpaid Days Off'!A:A) -> 0 | AP56: 0 | AQ56: 0 | AR56: 0 | AS56: =NETWORKDAYS(J56,K56,'H - Guidance Counselor Days Off'!A:A) -> 0 | AT56: 0 | AU56: =NETWORKDAYS(J56,K56,'H- School Psychologist Days Off'!A:A) -> 0 | AV56: 0 | AW56: 0 | AX56: 0 | AY56: =IF(Table2[[#This Row],[Health Insurance Taken]]="","",(DATEDIF(Table2[[#This Row],[Start Date]],Table2[[#This Row],[End Date]],"m"))+1) ->  | BA56: 12 | BB56: =IF(Table2[[#This Row],[Adjust Month total greater than 12]]<0,0,Table2[[#This Row],[Adjust Month total greater than 12]]) -> 12 | BC56: =IF(E56="","",VLOOKUP(E56,'H - Classifications'!A:D,4,FALSE)) ->  | BD56: =IF(U56="","0",(((M56*L56)/BC56)*U56)*(1+'H - Benefit Rates'!$B$7)) ->  | BE56: =IF(U56="","0",IF(N56="yes",ROUND(BD56*'H - Benefit Rates'!$B$5,2),ROUND(BD56*'H - Benefit Rates'!$B$1,2))) ->  | BF56: =IF(U56="","0",ROUND('H - Benefit Rates'!$B$2*BD56,2)) ->  | BG56: =('H - Benefit Rates'!$B$3/12)*BB56 -> 7368 | BK56: =IF(Table2[[#This Row],[SA Pre Approved Amount]]="","",Table2[[#This Row],[Total Salary and Benefits]]-Table2[[#This Row],[SA Pre Approved Amount]]) -> 
A57: District TTI | R57: =IF(E57="","",VLOOKUP(E57,'H - Classifications'!A:F,6,FALSE)) ->  | S57: =IF(R57="","",Table2[[#This Row],[Functional Area2]]&"-"&Table2[[#This Row],[GL Account]]) ->  | T57: =IF(E57="","",INDEX('H - Functional Areas'!B:B,MATCH(Table2[[#This Row],[Functional Area]],'H - Functional Areas'!C:C,0))) ->  | U57: =IF(Table2[[#This Row],[Type of Personnel Expense]]="Special Activity Payroll","",IF(SUM(AM57,AN57,AP57,AQ57,AR57,AT57,AV57,AW57,AX57)>Table2[[#This Row],[121]],Table2[[#This Row],[121]],SUM(AM57,AN57,AP57,AQ57,AR57,AT57,AV57,AW57,AX57))) -> 0 | V57: =IF(BD57="","",SUM(AD57,BD57)) ->  | Y57: =IF(O57="","",IF(O57="no",0,BG57*L57)) ->  | Z57: =IF(M57="","",('H - Benefit Rates'!$B$4/12*'Personnel Expenditures'!BB57)*'Personnel Expenditures'!L57) ->  | AA57: =IF(B57="","",V57*'H - Benefit Rates'!$B$6) ->  | AB57: =IF(Table2[[#This Row],[Type of Personnel Expense]]="","",'Budget Overview'!$A$2) ->  | AC57: =Table2[[#This Row],[Special Activity Pay Rate]] -> 0 | AD57: =IF(Table2[[#This Row],[SA - Pay Rate]]="","",Table2[[#This Row],[SA - Pay Rate]]*Table2[[#This Row],[Number of Special Activity Hours]]) -> 0 | AE57: =IF(Table2[[#This Row],[SA - Pay Rate]]="","",Table2[[#This Row],[SA - Total Salary]]*'H - Benefit Rates'!$B$1) -> 0 | AF57: =IF(Table2[[#This Row],[SA - Pay Rate]]="","",Table2[[#This Row],[SA - Total Salary]]*'H - Benefit Rates'!$B$2) -> 0 | AG57: =IF(Table2[[#This Row],[SA - Pay Rate]]="","",Table2[[#This Row],[SA - Total Salary]]*'H - Benefit Rates'!$B$6) -> 0 | AH57: =SUM(AD57,AE57,AF57,AG57) -> 0 | AI57: =IF(M57="","",ROUND(SUM(Z57,Y57,W57,BF57,BD57,AA57),2)) ->  | AJ57: =IF(B57="","",ROUND(SUM(Table2[[#This Row],[SA - Total Salary and Benefits]:[FTP - Total Salary and Benefits]]),2)) ->  | AK57: =IF(E57="","",VLOOKUP(E57,'H - Classifications'!A:D,3,FALSE)) ->  | AL57: =NETWORKDAYS(J57,K57,'H - Teacher Unpaid Days Off'!A:A) -> 0 | AM57: =IF(AK57=1,AL57,0) -> 0 | AN57: =IF(AK57=2,AL57,0) -> 0 | AO57: =NETWORKDAYS(J57,K57,'H - Para Unpaid Days Off'!A:A) -> 0 | AP57: =IF(AK57=3,AO57,0) -> 0 | AQ57: =IF(AK57=6,AO57,0) -> 0 | AR57: =IF(AK57=8,AO57,0) -> 0 | AS57: =NETWORKDAYS(J57,K57,'H - Guidance Counselor Days Off'!A:A) -> 0 | AT57: =IF(AK57=4,AS57,0) -> 0 | AU57: =NETWORKDAYS(J57,K57,'H- School Psychologist Days Off'!A:A) -> 0 | AV57: =IF(AK57=5,AU57,0) -> 0 | AW57: =IF(AK57=7,AL57,0) -> 0 | AX57: =IF(AK57=9,AL57,0) -> 0 | AY57: =IF(Table2[[#This Row],[Health Insurance Taken]]="","",(DATEDIF(Table2[[#This Row],[Start Date]],Table2[[#This Row],[End Date]],"m"))+1) ->  | AZ57: =IF(I57="yes",(AY57-3),AY57) ->  | BA57: =IF(AZ57>12,12,AZ57) -> 12 | BB57: =IF(Table2[[#This Row],[Adjust Month total greater than 12]]<0,0,Table2[[#This Row],[Adjust Month total greater than 12]]) -> 12 | BC57: =IF(E57="","",VLOOKUP(E57,'H - Classifications'!A:D,4,FALSE)) ->  | BD57: =IF(U57="","0",(((M57*L57)/BC57)*U57)*(1+'H - Benefit Rates'!$B$7)) ->  | BE57: =IF(U57="","0",IF(N57="yes",ROUND(BD57*'H - Benefit Rates'!$B$5,2),ROUND(BD57*'H - Benefit Rates'!$B$1,2))) ->  | BF57: =IF(U57="","0",ROUND('H - Benefit Rates'!$B$2*BD57,2)) ->  | BG57: =('H - Benefit Rates'!$B$3/12)*BB57 -> 7368 | BK57: =IF(Table2[[#This Row],[SA Pre Approved Amount]]="","",Table2[[#This Row],[Total Salary and Benefits]]-Table2[[#This Row],[SA Pre Approved Amount]]) -> 
A58: SIG | R58: =IF(E58="","",VLOOKUP(E58,'H - Classifications'!A:F,6,FALSE)) ->  | S58: =IF(R58="","",Table2[[#This Row],[Functional Area2]]&"-"&Table2[[#This Row],[GL Account]]) ->  | T58: =IF(E58="","",INDEX('H - Functional Areas'!B:B,MATCH(Table2[[#This Row],[Functional Area]],'H - Functional Areas'!C:C,0))) ->  | U58: =IF(Table2[[#This Row],[Type of Personnel Expense]]="Special Activity Payroll","",IF(SUM(AM58,AN58,AP58,AQ58,AR58,AT58,AV58,AW58,AX58)>Table2[[#This Row],[121]],Table2[[#This Row],[121]],SUM(AM58,AN58,AP58,AQ58,AR58,AT58,AV58,AW58,AX58))) -> 0 | Y58: =IF(O58="","",IF(O58="no",0,BG58*L58)) ->  | Z58: =IF(M58="","",('H - Benefit Rates'!$B$4/12*'Personnel Expenditures'!BB58)*'Personnel Expenditures'!L58) ->  | AA58: =IF(B58="","",V58*'H - Benefit Rates'!$B$6) ->  | AB58: =IF(Table2[[#This Row],[Type of Personnel Expense]]="","",'Budget Overview'!$A$2) ->  | AC58: =Table2[[#This Row],[Special Activity Pay Rate]] -> 0 | AD58: =IF(Table2[[#This Row],[SA - Pay Rate]]="","",Table2[[#This Row],[SA - Pay Rate]]*Table2[[#This Row],[Number of Special Activity Hours]]) -> 0 | AE58: =IF(Table2[[#This Row],[SA - Pay Rate]]="","",Table2[[#This Row],[SA - Total Salary]]*'H - Benefit Rates'!$B$1) -> 0 | AF58: =IF(Table2[[#This Row],[SA - Pay Rate]]="","",Table2[[#This Row],[SA - Total Salary]]*'H - Benefit Rates'!$B$2) -> 0 | AG58: =IF(Table2[[#This Row],[SA - Pay Rate]]="","",Table2[[#This Row],[SA - Total Salary]]*'H - Benefit Rates'!$B$6) -> 0 | AH58: =SUM(AD58,AE58,AF58,AG58) -> 0 | AI58: =IF(M58="","",ROUND(SUM(Z58,Y58,W58,BF58,BD58,AA58),2)) ->  | AJ58: =IF(B58="","",ROUND(SUM(Table2[[#This Row],[SA - Total Salary and Benefits]:[FTP - Total Salary and Benefits]]),2)) ->  | AK58: =IF(E58="","",VLOOKUP(E58,'H - Classifications'!A:D,3,FALSE)) ->  | AL58: =NETWORKDAYS(J58,K58,'H - Teacher Unpaid Days Off'!A:A) -> 0 | AM58: =IF(AK58=1,AL58,0) -> 0 | AN58: =IF(AK58=2,AL58,0) -> 0 | AO58: =NETWORKDAYS(J58,K58,'H - Para Unpaid Days Off'!A:A) -> 0 | AP58: =IF(AK58=3,AO58,0) -> 0 | AQ58: =IF(AK58=6,AO58,0) -> 0 | AR58: =IF(AK58=8,AO58,0) -> 0 | AS58: =NETWORKDAYS(J58,K58,'H - Guidance Counselor Days Off'!A:A) -> 0 | AT58: =IF(AK58=4,AS58,0) -> 0 | AU58: =NETWORKDAYS(J58,K58,'H- School Psychologist Days Off'!A:A) -> 0 | AV58: =IF(AK58=5,AU58,0) -> 0 | AW58: =IF(AK58=7,AL58,0) -> 0 | AX58: =IF(AK58=9,AL58,0) -> 0 | AY58: =IF(Table2[[#This Row],[Health Insurance Taken]]="","",(DATEDIF(Table2[[#This Row],[Start Date]],Table2[[#This Row],[End Date]],"m"))+1) ->  | AZ58: =IF(I58="yes",(AY58-3),AY58) ->  | BA58: =IF(AZ58>12,12,AZ58) -> 12 | BB58: =IF(Table2[[#This Row],[Adjust Month total greater than 12]]<0,0,Table2[[#This Row],[Adjust Month total greater than 12]]) -> 12 | BC58: =IF(E58="","",VLOOKUP(E58,'H - Classifications'!A:D,4,FALSE)) ->  | BD58: =IF(U58="","0",(((M58*L58)/BC58)*U58)*(1+'H - Benefit Rates'!$B$7)) ->  | BE58: =IF(U58="","0",IF(N58="yes",ROUND(BD58*'H - Benefit Rates'!$B$5,2),ROUND(BD58*'H - Benefit Rates'!$B$1,2))) ->  | BF58: =IF(U58="","0",ROUND('H - Benefit Rates'!$B$2*BD58,2)) ->  | BG58: =('H - Benefit Rates'!$B$3/12)*BB58 -> 7368 | BK58: =IF(Table2[[#This Row],[SA Pre Approved Amount]]="","",Table2[[#This Row],[Total Salary and Benefits]]-Table2[[#This Row],[SA Pre Approved Amount]]) -> 

Sheet H - Classifications (hidden)
A1: Classroom Teacher | B1: 5100 | C1: 1 | D1: 196 | E1: 5100-4120000 | F1: 4120000 | G1: ='H - Benefit Rates'!$B$8 -> 21
A2: Non Classroom Teacher | B2: 5100 | C2: 1 | D2: 196 | E2: 5100-4130000 | F2: 4130000 | G2: ='H - Benefit Rates'!$B$8 -> 21
A3: Student Success Coach | B3: 5100 | C3: 1 | D3: 196 | E3: 5100-4130000 | F3: 4130000 | G3: ='H - Benefit Rates'!$B$8 -> 21
A4: Instructional Coach | B4: 6400 | C4: 9 | D4: 196 | E4: 6400-4130000 | F4: 4130000 | G4: ='H - Benefit Rates'!$B$8 -> 21
A5: Testing Coordinator | B5: 5100 | C5: 1 | D5: 196 | E5: 5100-4130000 | F5: 41300000 | G5: 21
A6: Reading Interventionist | B6: 5100 | C6: 1 | D6: 196 | E6: 5100-4130000 | F6: 4130000 | G6: ='H - Benefit Rates'!$B$8 -> 21
A7: Behavioral Interventionist | B7: 5100 | C7: 1 | D7: 196 | E7: 5100-4130000 | F7: 4130000 | G7: ='H - Benefit Rates'!$B$8 -> 21
A8: Math Interventionist | B8: 5100 | C8: 1 | D8: 196 | E8: 5100-4130000 | F8: 4130000 | G8: ='H - Benefit Rates'!$B$8 -> 21
A9: Science Interventionist | B9: 5100 | C9: 1 | D9: 196 | E9: 5100-4130000 | F9: 4130000 | G9: ='H - Benefit Rates'!$B$8 -> 21
A10: Network Manager | B10: 5100 | C10: 2 | D10: 196 | E10: 5100-4130000 | F10: 4130000 | G10: ='H - Benefit Rates'!$B$8 -> 21
A11: Network Para | B11: 5100 | C11: 3 | D11: 186 | E11: 5100-4150000 | F11: 4150000 | G11: ='H - Benefit Rates'!$B$9 -> 15
A12: Computer Lab Para | B12: 5100 | C12: 3 | D12: 186 | E12: 5100-4150000 | F12: 4150000 | G12: ='H - Benefit Rates'!$B$9 -> 15
A13: Computer Lab Para -R | B13: 5100 | C13: 3 | D13: 186 | E13: 5100-4150000 | F13: 4150000 | G13: ='H - Benefit Rates'!$B$9 -> 15
A14: Classroom Para | B14: 5100 | C14: 3 | D14: 186 | E14: 5100-4150000 | F14: 4150000 | G14: ='H - Benefit Rates'!$B$9 -> 15
A15: Classroom Para -R | B15: 5100 | C15: 3 | D15: 186 | E15: 5100-4150000 | F15: 4150000 | G15: ='H - Benefit Rates'!$B$9 -> 15
A16: Migrant Para | B16: 5100 | C16: 3 | D16: 186 | E16: 5100-4150000 | F16: 4150000 | G16: 15
A17: Guidance Counselor | B17: 6120 | C17: 4 | D17: 210 | E17: 6120-4130000 | F17: 4130000 | G17: ='H - Benefit Rates'!$B$11 -> 21
A18: Career Counselor | B18: 6120 | C18: 9 | D18: 196 | E18: 6120-4130000 | F18: 4130000 | G18: ='H - Benefit Rates'!$B$11 -> 21
A19: School Psychologist | B19: 6120 | C19: 5 | D19: 196 | E19: 6120-4130000 | F19: 4130000 | G19: ='H - Benefit Rates'!$B$10 -> 25
A20: Parent Involv. Para | B20: 6150 | C20: 6 | D20: 186 | E20: 6150-4150000 | F20: 4150000 | G20: ='H - Benefit Rates'!$B$9 -> 15
A21: Parent Involv. Para -R | B21: 6150 | C21: 6 | D21: 186 | E21: 6150-4150000 | F21: 4150000 | G21: ='H - Benefit Rates'!$B$9 -> 15
A22: Media Specialist | B22: 6200 | C22: 7 | D22: 196 | E22: 6200-4130000 | F22: 4130000 | G22: ='H - Benefit Rates'!$B$8 -> 21
A23: Media Para | B23: 6200 | C23: 8 | D23: 186 | E23: 6200-4150000 | F23: 4150000 | G23: ='H - Benefit Rates'!$B$9 -> 15
A24: Media Para -R | B24: 6200 | C24: 8 | D24: 186 | E24: 6200-4150000 | F24: 4150000 | G24: ='H - Benefit Rates'!$B$9 -> 15
A25: Para - Outreach Facilitator | B25: 5100 | C25: 3 | D25: 186 | E25: 5100-4150000 | F25: 4150000 | G25: ='H - Benefit Rates'!$B$9 -> 15
A26: ESE Network Manager | B26: 5200 | C26: 2 | D26: 196 | E26: 5200-4130000 | F26: 4130000 | G26: ='H - Benefit Rates'!$B$8 -> 21
A27: ESE Para | B27: 5200 | C27: 3 | D27: 186 | E27: 5200-4150000 | F27: 4150000 | G27: ='H - Benefit Rates'!$B$9 -> 15
A28: ESE Teacher | B28: 5200 | C28: 1 | D28: 196 | E28: 5200-4120000 | F28: 4120000 | G28: ='H - Benefit Rates'!$B$8 -> 21
A29: Workforce Teacher | B29: 5300 | C29: 1 | D29: 196 | E29: 5300-4120000 | F29: 4120000 | G29: 21
A30: Literacy Coach | B30: 6400 | C30: 9 | D30: 196 | E30: 6400-4130000 | F30: 4130000 | G30: ='H - Benefit Rates'!$B$8 -> 21
A31: Math Coach | B31: 6400 | C31: 9 | D31: 196 | E31: 6400-4130000 | F31: 4130000 | G31: ='H - Benefit Rates'!$B$8 -> 21
A32: Math/Science Coach | B32: 6400 | C32: 9 | D32: 196 | E32: 6400-4130000 | F32: 4130000 | G32: ='H - Benefit Rates'!$B$8 -> 21
A33: Social Studies Coach | B33: 6400 | C33: 9 | D33: 196 | E33: 6400-4130000 | F33: 4130000 | G33: ='H - Benefit Rates'!$B$8 -> 21
A34: Science Coach | B34: 6400 | C34: 9 | D34: 196 | E34: 6400-4130000 | F34: 4130000 | G34: ='H - Benefit Rates'!$B$8 -> 21
A35: Secretary | C35: 10 | D35: 186 | F35: 4160000 | G35: ='H - Benefit Rates'!$B$8 -> 21
A36: Secretary Overtime | C36: 11 | D36: 186 | F36: 4162000 | G36: ='H - Benefit Rates'!$B$8 -> 21
A37: Para Overtime | C37: 12 | D37: 186 | F37: 4152000 | G37: 15
A38: Café Worker | C38: 14 | D38: 186 | F38: 4160000 | G38: 15
A39: Café Overtime | C39: 15 | D39: 186 | F39: 4162000 | G39: 15
A40: Administrator | C40: 13 | D40: 186 | F40: 4110000 | G40: 25

Sheet H - Benefit Rates (hidden)
A1: Retirement | B1: 0.0826
A2: Social Security | B2: 0.0765
A3: Health Insurance | B3: 7368
A4: Life Insurance | B4: 19.2
A5: DROP | B5: 0.1403 | AL5: =IF(AK5="no", 0,'H - Benefit Rates'!B3) -> 7368
A6: Workers Comp | B6: 0.0056
A7: Raise | B7: 0.01
A8: Teacher Hourly Estimate | B8: 21
A9: Para Hourly Estimate | B9: 15
A10: School Psychologist Hourly Estimate | B10: 25
A11: Guidance Counselor Hourly Estimate | B11: 21
A12: Substitute Daily Rate | B12: 108.8

Sheet H - Pivots (hidden)
A1: GL Account | B1: (All)
A3: Row Labels | B3: Sum of Total Cost of Expenditure
A4: Substitutes | B4: 0.06151781932
A5: Supplies | B5: 0.179762362
A6: Full Time Personnel | B6: 0.7587198187
A7: Grand Total | B7: 1
A14: Row Labels | B14: Sum of Total Cost of Expenditure
A15: Substitutes | B15: 8704
A16: Supplies | B16: 25434.12
A17: Full Time Personnel | B17: 107349.34
A18: Grand Total | B18: 141487.46
A24: Funding | B24: School TTI
A26: Functional Area | B26: Retirement 4210000 | C26: Social Security 4220000 | D26: Health Insurance 42310000 | E26: Life Insurance 42320000 | F26: Worker Comp 4240000
A27: 5900 - Extended Learning | B27: 1089.71702 | C27: 1009.24155 | D27: 0 | E27: 0 | F27: 73.87912
A28: 6400 - Staff Development | B28: 6696.35 | C28: 6201.82 | D28: 12894 | E28: 33.6 | F28: 453.9896326
A29: (blank) | D29: 0 | E29: 0 | F29: 0
A37: Funding | B37: School TTI
A38: Totals of Salaries by Functional Area and GL Account
A39: Functional Area-GL Account | B39: Title I Paid Salary Totals
A41: 5900-4120000 | B41: 3592.7
A42: 5900-4130000 | B42: 9600
A43: 6400-4130000 | B43: 81069.57724
A57: Row Labels | B57: Sum of Total Cost of Expenditure
A58: Grand Total
A72: Row Labels | B72: Sum of Total Cost of Expenditure
A73: 5100 - Instructional | B73: 45593.71
A74: 6150 - Family Engagement | B74: 5830.41
A75: 6400 - Staff Development | B75: 58704
A76: (blank) | B76: 150840.88
A77: 5900 - Extended Learning | B77: 3800
A78: 7800 - Transportation | B78: 13000
A79: Grand Total | B79: 277769
A92: Value for Expenditure Tab - Full Time Personnel
A93: Funding | B93: School TTI
A95: Row Labels | B95: Sum of Total Salary and Benefits
A96: Full Time Personnel | B96: 107349.34
A97: Grand Total | B97: 107349.34
A113: Value for Expenditure Tab - Special Activity Payroll
A114: Funding | B114: School TTI
A116: Row Labels | B116: Sum of Total Salary and Benefits
A117: Special Activity Payroll | B117: 15365.54
A118: Grand Total | B118: 15365.54
A132: Function | B132: 6150
A134: Sum of Cost
A135: 0
A148: Funding | B148: School TTI
A149: Type of Personnel Expense | B149: (All)
A151: Row Labels | B151: Sum of SA Unapproved Amount
A152: 5900 - Extended Learning | B152: 0
A153: (blank) | B153: 0
A154: 6400 - Staff Development | B154: 0
A155: Grand Total | B155: 0
A170: Funding | B170: School TTI
A171: Type of Personnel Expense | B171: (blank)
A173: Row Labels | B173: Sum of SA Unapproved Amount
A174: Grand Total

Sheet Expenditures
B1: Title I Planned Expenditures 2018-2019
B2: ='Budget Overview'!A1 -> Tenoroc High | D2: ='Budget Overview'!A2 -> 1051 | E2: Remaining Unplanned Total Balance | H2: ='Budget Overview'!H9 -> 0 | M2: Guidance
N3: Office Use Only
A4: School Number | B4: Description | C4: Strategy | D4: Type of Expenditure | E4: Functional Area | F4: GL Account | G4: Amount of Expenditure (Not Subs) | H4: Number of Subs Per Day | I4: Number of Sub Days | J4: Functional Area Actual | K4: GL Account Actual | L4: Total Sub Pay | M4: Total Cost of Expenditure | N4: In SIP Budget? | O4: Notes
A5: ='Budget Overview'!$A$2 -> 1051 | B5: Full Time Personnel | D5: Full Time Personnel | G5: =GETPIVOTDATA("Total Salary and Benefits",'H - Pivots'!$A$95) -> 107349.34 | J5: =INDEX('H - Functional Areas'!B:B,MATCH(Table100[Functional Area],'H - Functional Areas'!C:C,0)) ->  | K5: =INDEX('H - GL Accounts'!A:A,MATCH(Table100[GL Account],'H - GL Accounts'!C:C,0)) ->  | L5: =IF(Table100[Type of Expenditure]="Substitutes",(Table100[[#This Row],[Number of Subs Per Day]]*Table100[[#This Row],[Number of Sub Days]])*'H - Benefit Rates'!$B$12,0) -> 0 | M5: =IF(Table100[[#This Row],[Description]]="","",SUM(G5,L5)) -> 107349.34
A6: ='Budget Overview'!$A$2 -> 1051 | B6: Special Activity Payroll | D6: Special Activity | G6: =GETPIVOTDATA("Total Salary and Benefits",'H - Pivots'!$A$116) -> 15365.54 | J6: =INDEX('H - Functional Areas'!B:B,MATCH(Table100[Functional Area],'H - Functional Areas'!C:C,0)) ->  | K6: =INDEX('H - GL Accounts'!A:A,MATCH(Table100[GL Account],'H - GL Accounts'!C:C,0)) ->  | L6: =IF(Table100[Type of Expenditure]="Substitutes",(Table100[[#This Row],[Number of Subs Per Day]]*Table100[[#This Row],[Number of Sub Days]])*'H - Benefit Rates'!$B$12,0) -> 0 | M6: =IF(Table100[[#This Row],[Description]]="","",SUM(G6,L6)) -> 15365.54
A7: ='Budget Overview'!$A$2 -> 1051 | B7: District Coach and Curriculum Specialist Cost Sharing | D7: Cost Sharing | G7: =-'Budget Overview'!B8 -> 28126 | J7: =INDEX('H - Functional Areas'!B:B,MATCH(Table100[Functional Area],'H - Functional Areas'!C:C,0)) ->  | K7: =INDEX('H - GL Accounts'!A:A,MATCH(Table100[GL Account],'H - GL Accounts'!C:C,0)) ->  | L7: =IF(Table100[Type of Expenditure]="Substitutes",(Table100[[#This Row],[Number of Subs Per Day]]*Table100[[#This Row],[Number of Sub Days]])*'H - Benefit Rates'!$B$12,0) -> 0 | M7: =IF(Table100[[#This Row],[Description]]="","",SUM(G7,L7)) -> 28126
A8: ='Budget Overview'!$A$2 -> 1051 | B8: SAT School Day Test | D8: Extended Learning (Tutoring, Summer Learning) | E8: 5100 - Instructional | F8: 4730000 - Dues and Fees | G8: 4000 | J8: =INDEX('H - Functional Areas'!B:B,MATCH(Table100[Functional Area],'H - Functional Areas'!C:C,0)) -> 5100 | K8: =INDEX('H - GL Accounts'!A:A,MATCH(Table100[GL Account],'H - GL Accounts'!C:C,0)) -> 4730000 | L8: =IF(Table100[Type of Expenditure]="Substitutes",(Table100[[#This Row],[Number of Subs Per Day]]*Table100[[#This Row],[Number of Sub Days]])*'H - Benefit Rates'!$B$12,0) -> 0 | M8: =IF(Table100[[#This Row],[Description]]="","",SUM(G8,L8)) -> 4000
A9: ='Budget Overview'!$A$2 -> 1051 | B9: AVID College Visits | D9: Field Trips | E9: 7800 - Transportation | F9: 4790000 - Buses - Field Trips/Tutoring | G9: 10000 | J9: =INDEX('H - Functional Areas'!B:B,MATCH(Table100[Functional Area],'H - Functional Areas'!C:C,0)) -> 7800 | K9: =INDEX('H - GL Accounts'!A:A,MATCH(Table100[GL Account],'H - GL Accounts'!C:C,0)) -> 4790000 | L9: =IF(Table100[Type of Expenditure]="Substitutes",(Table100[[#This Row],[Number of Subs Per Day]]*Table100[[#This Row],[Number of Sub Days]])*'H - Benefit Rates'!$B$12,0) -> 0 | M9: =IF(Table100[[#This Row],[Description]]="","",SUM(G9,L9)) -> 10000
A10: ='Budget Overview'!$A$2 -> 1051 | B10: AVID Training and Summer Institute | D10: Travel | E10: 6400 - Staff Development | F10: 4330000 - Travel - Training, Field Trip Admission Fees | G10: 50000 | J10: =INDEX('H - Functional Areas'!B:B,MATCH(Table100[Functional Area],'H - Functional Areas'!C:C,0)) -> 6400 | K10: =INDEX('H - GL Accounts'!A:A,MATCH(Table100[GL Account],'H - GL Accounts'!C:C,0)) -> 4330000 | L10: =IF(Table100[Type of Expenditure]="Substitutes",(Table100[[#This Row],[Number of Subs Per Day]]*Table100[[#This Row],[Number of Sub Days]])*'H - Benefit Rates'!$B$12,0) -> 0 | M10: =IF(Table100[[#This Row],[Description]]="","",SUM(G10,L10)) -> 50000
A11: ='Budget Overview'!$A$2 -> 1051 | B11: Professional Development | D11: Substitutes | E11: 6400 - Staff Development | F11: 4310300 - Substitutes | H11: 10 | I11: 8 | J11: =INDEX('H - Functional Areas'!B:B,MATCH(Table100[Functional Area],'H - Functional Areas'!C:C,0)) -> 6400 | K11: =INDEX('H - GL Accounts'!A:A,MATCH(Table100[GL Account],'H - GL Accounts'!C:C,0)) -> 4310300 | L11: =IF(Table100[Type of Expenditure]="Substitutes",(Table100[[#This Row],[Number of Subs Per Day]]*Table100[[#This Row],[Number of Sub Days]])*'H - Benefit Rates'!$B$12,0) -> 8704 | M11: =IF(Table100[[#This Row],[Description]]="","",SUM(G11,L11)) -> 8704 | O11: 8/28 RAN Achieve300 $544.00
A12: ='Budget Overview'!$A$2 -> 1051 | B12: Student Binders | D12: Supplies | E12: 5100 - Instructional | F12: 4510000 - Supplies, Print Shop, Classroom Libraries | G12: 3500 | J12: =INDEX('H - Functional Areas'!B:B,MATCH(Table100[Functional Area],'H - Functional Areas'!C:C,0)) -> 5100 | K12: =INDEX('H - GL Accounts'!A:A,MATCH(Table100[GL Account],'H - GL Accounts'!C:C,0)) -> 4510000 | L12: =IF(Table100[Type of Expenditure]="Substitutes",(Table100[[#This Row],[Number of Subs Per Day]]*Table100[[#This Row],[Number of Sub Days]])*'H - Benefit Rates'!$B$12,0) -> 0 | M12: =IF(Table100[[#This Row],[Description]]="","",SUM(G12,L12)) -> 3500
A13: ='Budget Overview'!$A$2 -> 1051 | B13: Student agendas | D13: Supplies | E13: 6150 - Family Engagement | F13: 4510000 - Supplies, Print Shop, Classroom Libraries | G13: 3000 | J13: =INDEX('H - Functional Areas'!B:B,MATCH(Table100[Functional Area],'H - Functional Areas'!C:C,0)) -> 6150 | K13: =INDEX('H - GL Accounts'!A:A,MATCH(Table100[GL Account],'H - GL Accounts'!C:C,0)) -> 4510000 | L13: =IF(Table100[Type of Expenditure]="Substitutes",(Table100[[#This Row],[Number of Subs Per Day]]*Table100[[#This Row],[Number of Sub Days]])*'H - Benefit Rates'!$B$12,0) -> 0 | M13: =IF(Table100[[#This Row],[Description]]="","",SUM(G13,L13)) -> 3000 | O13: Req#10722658 $1,861.22
A14: ='Budget Overview'!$A$2 -> 1051 | B14: Check and Connect | D14: Extended Learning (Tutoring, Summer Learning) | E14: 5100 - Instructional | F14: 4330000 - Travel - Training, Field Trip Admission Fees | G14: 2200 | J14: =INDEX('H - Functional Areas'!B:B,MATCH(Table100[Functional Area],'H - Functional Areas'!C:C,0)) -> 5100 | K14: =INDEX('H - GL Accounts'!A:A,MATCH(Table100[GL Account],'H - GL Accounts'!C:C,0)) -> 4330000 | L14: =IF(Table100[Type of Expenditure]="Substitutes",(Table100[[#This Row],[Number of Subs Per Day]]*Table100[[#This Row],[Number of Sub Days]])*'H - Benefit Rates'!$B$12,0) -> 0 | M14: =IF(Table100[[#This Row],[Description]]="","",SUM(G14,L14)) -> 2200
A15: ='Budget Overview'!$A$2 -> 1051 | B15: Buses for summer school | D15: Extended Learning (Tutoring, Summer Learning) | E15: 5900 - Extended Learning | F15: 4790000 - Buses - Field Trips/Tutoring | G15: 3800 | J15: =INDEX('H - Functional Areas'!B:B,MATCH(Table100[Functional Area],'H - Functional Areas'!C:C,0)) -> 5900 | K15: =INDEX('H - GL Accounts'!A:A,MATCH(Table100[GL Account],'H - GL Accounts'!C:C,0)) -> 4790000 | L15: =IF(Table100[Type of Expenditure]="Substitutes",(Table100[[#This Row],[Number of Subs Per Day]]*Table100[[#This Row],[Number of Sub Days]])*'H - Benefit Rates'!$B$12,0) -> 0 | M15: =IF(Table100[[#This Row],[Description]]="","",SUM(G15,L15)) -> 3800
A16: ='Budget Overview'!$A$2 -> 1051 | B16: Curriculum field trips | D16: Field Trips | E16: 7800 - Transportation | F16: 4790000 - Buses - Field Trips/Tutoring | G16: 3000 | J16: =INDEX('H - Functional Areas'!B:B,MATCH(Table100[Functional Area],'H - Functional Areas'!C:C,0)) -> 7800 | K16: =INDEX('H - GL Accounts'!A:A,MATCH(Table100[GL Account],'H - GL Accounts'!C:C,0)) -> 4790000 | L16: =IF(Table100[Type of Expenditure]="Substitutes",(Table100[[#This Row],[Number of Subs Per Day]]*Table100[[#This Row],[Number of Sub Days]])*'H - Benefit Rates'!$B$12,0) -> 0 | M16: =IF(Table100[[#This Row],[Description]]="","",SUM(G16,L16)) -> 3000
A17: ='Budget Overview'!$A$2 -> 1051 | B17: Seniors, ASCEND and AP Capstone resources and trips | D17: Supplies | E17: 5100 - Instructional | F17: 4510000 - Supplies, Print Shop, Classroom Libraries | G17: 12000 | J17: =INDEX('H - Functional Areas'!B:B,MATCH(Table100[Functional Area],'H - Functional Areas'!C:C,0)) -> 5100 | K17: =INDEX('H - GL Accounts'!A:A,MATCH(Table100[GL Account],'H - GL Accounts'!C:C,0)) -> 4510000 | L17: =IF(Table100[Type of Expenditure]="Substitutes",(Table100[[#This Row],[Number of Subs Per Day]]*Table100[[#This Row],[Number of Sub Days]])*'H - Benefit Rates'!$B$12,0) -> 0 | M17: =IF(Table100[[#This Row],[Description]]="","",SUM(G17,L17)) -> 12000
A18: ='Budget Overview'!$A$2 -> 1051 | B18: Teacher supplies | D18: Supplies | E18: 5100 - Instructional | F18: 4510000 - Supplies, Print Shop, Classroom Libraries | G18: 4103.71 | J18: =INDEX('H - Functional Areas'!B:B,MATCH(Table100[Functional Area],'H - Functional Areas'!C:C,0)) -> 5100 | K18: =INDEX('H - GL Accounts'!A:A,MATCH(Table100[GL Account],'H - GL Accounts'!C:C,0)) -> 4510000 | L18: =IF(Table100[Type of Expenditure]="Substitutes",(Table100[[#This Row],[Number of Subs Per Day]]*Table100[[#This Row],[Number of Sub Days]])*'H - Benefit Rates'!$B$12,0) -> 0 | M18: =IF(Table100[[#This Row],[Description]]="","",SUM(G18,L18)) -> 4103.71
A19: ='Budget Overview'!$A$2 -> 1051 | B19: PFE supplies | D19: Supplies | E19: 6150 - Family Engagement | F19: 4510000 - Supplies, Print Shop, Classroom Libraries | G19: 2830.41 | J19: =INDEX('H - Functional Areas'!B:B,MATCH(Table100[Functional Area],'H - Functional Areas'!C:C,0)) -> 6150 | K19: =INDEX('H - GL Accounts'!A:A,MATCH(Table100[GL Account],'H - GL Accounts'!C:C,0)) -> 4510000 | L19: =IF(Table100[Type of Expenditure]="Substitutes",(Table100[[#This Row],[Number of Subs Per Day]]*Table100[[#This Row],[Number of Sub Days]])*'H - Benefit Rates'!$B$12,0) -> 0 | M19: =IF(Table100[[#This Row],[Description]]="","",SUM(G19,L19)) -> 2830.41
A20: ='Budget Overview'!$A$2 -> 1051 | B20: DESF | D20: Consultants | E20: 5100 - Instructional | F20: 4310000 - Prof. & Tech. Services, Consultants | G20: 15524 | J20: =INDEX('H - Functional Areas'!B:B,MATCH(Table100[Functional Area],'H - Functional Areas'!C:C,0)) -> 5100 | K20: =INDEX('H - GL Accounts'!A:A,MATCH(Table100[GL Account],'H - GL Accounts'!C:C,0)) -> 4310000 | L20: =IF(Table100[Type of Expenditure]="Substitutes",(Table100[[#This Row],[Number of Subs Per Day]]*Table100[[#This Row],[Number of Sub Days]])*'H - Benefit Rates'!$B$12,0) -> 0 | M20: =IF(Table100[[#This Row],[Description]]="","",SUM(G20,L20)) -> 15524 | O20: Regional approved 8/2/18
A21: ='Budget Overview'!$A$2 -> 1051 | B21: Stacking chairs | D21: Furniture and Equipment | E21: 5100 - Instructional | F21: 4642000 - Non Capitalized Furniture, Fixture and Equipment | G21: 4266 | J21: =INDEX('H - Functional Areas'!B:B,MATCH(Table100[Functional Area],'H - Functional Areas'!C:C,0)) -> 5100 | K21: =INDEX('H - GL Accounts'!A:A,MATCH(Table100[GL Account],'H - GL Accounts'!C:C,0)) -> 4642000 | L21: =IF(Table100[Type of Expenditure]="Substitutes",(Table100[[#This Row],[Number of Subs Per Day]]*Table100[[#This Row],[Number of Sub Days]])*'H - Benefit Rates'!$B$12,0) -> 0 | M21: =IF(Table100[[#This Row],[Description]]="","",SUM(G21,L21)) -> 4266 | O21: Regional approved; Req#10722660 $4,266.00
A22: ='Budget Overview'!$A$2 -> 1051 | J22: =INDEX('H - Functional Areas'!B:B,MATCH(Table100[Functional Area],'H - Functional Areas'!C:C,0)) ->  | K22: =INDEX('H - GL Accounts'!A:A,MATCH(Table100[GL Account],'H - GL Accounts'!C:C,0)) ->  | L22: =IF(Table100[Type of Expenditure]="Substitutes",(Table100[[#This Row],[Number of Subs Per Day]]*Table100[[#This Row],[Number of Sub Days]])*'H - Benefit Rates'!$B$12,0) -> 0 | M22: =IF(Table100[[#This Row],[Description]]="","",SUM(G22,L22)) -> 
A23: ='Budget Overview'!$A$2 -> 1051 | J23: =INDEX('H - Functional Areas'!B:B,MATCH(Table100[Functional Area],'H - Functional Areas'!C:C,0)) ->  | K23: =INDEX('H - GL Accounts'!A:A,MATCH(Table100[GL Account],'H - GL Accounts'!C:C,0)) ->  | L23: =IF(Table100[Type of Expenditure]="Substitutes",(Table100[[#This Row],[Number of Subs Per Day]]*Table100[[#This Row],[Number of Sub Days]])*'H - Benefit Rates'!$B$12,0) -> 0 | M23: =IF(Table100[[#This Row],[Description]]="","",SUM(G23,L23)) -> 
A24: ='Budget Overview'!$A$2 -> 1051 | J24: =INDEX('H - Functional Areas'!B:B,MATCH(Table100[Functional Area],'H - Functional Areas'!C:C,0)) ->  | K24: =INDEX('H - GL Accounts'!A:A,MATCH(Table100[GL Account],'H - GL Accounts'!C:C,0)) ->  | L24: =IF(Table100[Type of Expenditure]="Substitutes",(Table100[[#This Row],[Number of Subs Per Day]]*Table100[[#This Row],[Number of Sub Days]])*'H - Benefit Rates'!$B$12,0) -> 0 | M24: =IF(Table100[[#This Row],[Description]]="","",SUM(G24,L24)) -> 
A25: ='Budget Overview'!$A$2 -> 1051 | J25: =INDEX('H - Functional Areas'!B:B,MATCH(Table100[Functional Area],'H - Functional Areas'!C:C,0)) ->  | K25: =INDEX('H - GL Accounts'!A:A,MATCH(Table100[GL Account],'H - GL Accounts'!C:C,0)) ->  | L25: =IF(Table100[Type of Expenditure]="Substitutes",(Table100[[#This Row],[Number of Subs Per Day]]*Table100[[#This Row],[Number of Sub Days]])*'H - Benefit Rates'!$B$12,0) -> 0 | M25: =IF(Table100[[#This Row],[Description]]="","",SUM(G25,L25)) -> 
A26: ='Budget Overview'!$A$2 -> 1051 | J26: =INDEX('H - Functional Areas'!B:B,MATCH(Table100[Functional Area],'H - Functional Areas'!C:C,0)) ->  | K26: =INDEX('H - GL Accounts'!A:A,MATCH(Table100[GL Account],'H - GL Accounts'!C:C,0)) ->  | L26: =IF(Table100[Type of Expenditure]="Substitutes",(Table100[[#This Row],[Number of Subs Per Day]]*Table100[[#This Row],[Number of Sub Days]])*'H - Benefit Rates'!$B$12,0) -> 0 | M26: =IF(Table100[[#This Row],[Description]]="","",SUM(G26,L26)) -> 
A27: ='Budget Overview'!$A$2 -> 1051 | J27: =INDEX('H - Functional Areas'!B:B,MATCH(Table100[Functional Area],'H - Functional Areas'!C:C,0)) ->  | K27: =INDEX('H - GL Accounts'!A:A,MATCH(Table100[GL Account],'H - GL Accounts'!C:C,0)) ->  | L27: =IF(Table100[Type of Expenditure]="Substitutes",(Table100[[#This Row],[Number of Subs Per Day]]*Table100[[#This Row],[Number of Sub Days]])*'H - Benefit Rates'!$B$12,0) -> 0 | M27: =IF(Table100[[#This Row],[Description]]="","",SUM(G27,L27)) -> 
A28: ='Budget Overview'!$A$2 -> 1051 | J28: =INDEX('H - Functional Areas'!B:B,MATCH(Table100[Functional Area],'H - Functional Areas'!C:C,0)) ->  | K28: =INDEX('H - GL Accounts'!A:A,MATCH(Table100[GL Account],'H - GL Accounts'!C:C,0)) ->  | L28: =IF(Table100[Type of Expenditure]="Substitutes",(Table100[[#This Row],[Number of Subs Per Day]]*Table100[[#This Row],[Number of Sub Days]])*'H - Benefit Rates'!$B$12,0) -> 0 | M28: =IF(Table100[[#This Row],[Description]]="","",SUM(G28,L28)) -> 
A29: ='Budget Overview'!$A$2 -> 1051 | J29: =INDEX('H - Functional Areas'!B:B,MATCH(Table100[Functional Area],'H - Functional Areas'!C:C,0)) ->  | K29: =INDEX('H - GL Accounts'!A:A,MATCH(Table100[GL Account],'H - GL Accounts'!C:C,0)) ->  | L29: =IF(Table100[Type of Expenditure]="Substitutes",(Table100[[#This Row],[Number of Subs Per Day]]*Table100[[#This Row],[Number of Sub Days]])*'H - Benefit Rates'!$B$12,0) -> 0 | M29: =IF(Table100[[#This Row],[Description]]="","",SUM(G29,L29)) -> 
A30: ='Budget Overview'!$A$2 -> 1051 | J30: =INDEX('H - Functional Areas'!B:B,MATCH(Table100[Functional Area],'H - Functional Areas'!C:C,0)) ->  | K30: =INDEX('H - GL Accounts'!A:A,MATCH(Table100[GL Account],'H - GL Accounts'!C:C,0)) ->  | L30: =IF(Table100[Type of Expenditure]="Substitutes",(Table100[[#This Row],[Number of Subs Per Day]]*Table100[[#This Row],[Number of Sub Days]])*'H - Benefit Rates'!$B$12,0) -> 0 | M30: =IF(Table100[[#This Row],[Description]]="","",SUM(G30,L30)) -> 
A31: ='Budget Overview'!$A$2 -> 1051 | J31: =INDEX('H - Functional Areas'!B:B,MATCH(Table100[Functional Area],'H - Functional Areas'!C:C,0)) ->  | K31: =INDEX('H - GL Accounts'!A:A,MATCH(Table100[GL Account],'H - GL Accounts'!C:C,0)) ->  | L31: =IF(Table100[Type of Expenditure]="Substitutes",(Table100[[#This Row],[Number of Subs Per Day]]*Table100[[#This Row],[Number of Sub Days]])*'H - Benefit Rates'!$B$12,0) -> 0 | M31: =IF(Table100[[#This Row],[Description]]="","",SUM(G31,L31)) -> 
A32: ='Budget Overview'!$A$2 -> 1051 | J32: =INDEX('H - Functional Areas'!B:B,MATCH(Table100[Functional Area],'H - Functional Areas'!C:C,0)) ->  | K32: =INDEX('H - GL Accounts'!A:A,MATCH(Table100[GL Account],'H - GL Accounts'!C:C,0)) ->  | L32: =IF(Table100[Type of Expenditure]="Substitutes",(Table100[[#This Row],[Number of Subs Per Day]]*Table100[[#This Row],[Number of Sub Days]])*'H - Benefit Rates'!$B$12,0) -> 0 | M32: =IF(Table100[[#This Row],[Description]]="","",SUM(G32,L32)) -> 
A33: ='Budget Overview'!$A$2 -> 1051 | J33: =INDEX('H - Functional Areas'!B:B,MATCH(Table100[Functional Area],'H - Functional Areas'!C:C,0)) ->  | K33: =INDEX('H - GL Accounts'!A:A,MATCH(Table100[GL Account],'H - GL Accounts'!C:C,0)) ->  | L33: =IF(Table100[Type of Expenditure]="Substitutes",(Table100[[#This Row],[Number of Subs Per Day]]*Table100[[#This Row],[Number of Sub Days]])*'H - Benefit Rates'!$B$12,0) -> 0 | M33: =IF(Table100[[#This Row],[Description]]="","",SUM(G33,L33)) -> 
A34: ='Budget Overview'!$A$2 -> 1051 | J34: =INDEX('H - Functional Areas'!B:B,MATCH(Table100[Functional Area],'H - Functional Areas'!C:C,0)) ->  | K34: =INDEX('H - GL Accounts'!A:A,MATCH(Table100[GL Account],'H - GL Accounts'!C:C,0)) ->  | L34: =IF(Table100[Type of Expenditure]="Substitutes",(Table100[[#This Row],[Number of Subs Per Day]]*Table100[[#This Row],[Number of Sub Days]])*'H - Benefit Rates'!$B$12,0) -> 0 | M34: =IF(Table100[[#This Row],[Description]]="","",SUM(G34,L34)) -> 
A35: ='Budget Overview'!$A$2 -> 1051 | J35: =INDEX('H - Functional Areas'!B:B,MATCH(Table100[Functional Area],'H - Functional Areas'!C:C,0)) ->  | K35: =INDEX('H - GL Accounts'!A:A,MATCH(Table100[GL Account],'H - GL Accounts'!C:C,0)) ->  | L35: =IF(Table100[Type of Expenditure]="Substitutes",(Table100[[#This Row],[Number of Subs Per Day]]*Table100[[#This Row],[Number of Sub Days]])*'H - Benefit Rates'!$B$12,0) -> 0 | M35: =IF(Table100[[#This Row],[Description]]="","",SUM(G35,L35)) -> 
A36: ='Budget Overview'!$A$2 -> 1051 | J36: =INDEX('H - Functional Areas'!B:B,MATCH(Table100[Functional Area],'H - Functional Areas'!C:C,0)) ->  | K36: =INDEX('H - GL Accounts'!A:A,MATCH(Table100[GL Account],'H - GL Accounts'!C:C,0)) ->  | L36: =IF(Table100[Type of Expenditure]="Substitutes",(Table100[[#This Row],[Number of Subs Per Day]]*Table100[[#This Row],[Number of Sub Days]])*'H - Benefit Rates'!$B$12,0) -> 0 | M36: =IF(Table100[[#This Row],[Description]]="","",SUM(G36,L36)) -> 
A37: ='Budget Overview'!$A$2 -> 1051 | J37: =INDEX('H - Functional Areas'!B:B,MATCH(Table100[Functional Area],'H - Functional Areas'!C:C,0)) ->  | K37: =INDEX('H - GL Accounts'!A:A,MATCH(Table100[GL Account],'H - GL Accounts'!C:C,0)) ->  | L37: =IF(Table100[Type of Expenditure]="Substitutes",(Table100[[#This Row],[Number of Subs Per Day]]*Table100[[#This Row],[Number of Sub Days]])*'H - Benefit Rates'!$B$12,0) -> 0 | M37: =IF(Table100[[#This Row],[Description]]="","",SUM(G37,L37)) -> 
A38: ='Budget Overview'!$A$2 -> 1051 | J38: =INDEX('H - Functional Areas'!B:B,MATCH(Table100[Functional Area],'H - Functional Areas'!C:C,0)) ->  | K38: =INDEX('H - GL Accounts'!A:A,MATCH(Table100[GL Account],'H - GL Accounts'!C:C,0)) ->  | L38: =IF(Table100[Type of Expenditure]="Substitutes",(Table100[[#This Row],[Number of Subs Per Day]]*Table100[[#This Row],[Number of Sub Days]])*'H - Benefit Rates'!$B$12,0) -> 0 | M38: =IF(Table100[[#This Row],[Description]]="","",SUM(G38,L38)) -> 
A39: ='Budget Overview'!$A$2 -> 1051 | J39: =INDEX('H - Functional Areas'!B:B,MATCH(Table100[Functional Area],'H - Functional Areas'!C:C,0)) ->  | K39: =INDEX('H - GL Accounts'!A:A,MATCH(Table100[GL Account],'H - GL Accounts'!C:C,0)) ->  | L39: =IF(Table100[Type of Expenditure]="Substitutes",(Table100[[#This Row],[Number of Subs Per Day]]*Table100[[#This Row],[Number of Sub Days]])*'H - Benefit Rates'!$B$12,0) -> 0 | M39: =IF(Table100[[#This Row],[Description]]="","",SUM(G39,L39)) -> 
A40: ='Budget Overview'!$A$2 -> 1051 | J40: =INDEX('H - Functional Areas'!B:B,MATCH(Table100[Functional Area],'H - Functional Areas'!C:C,0)) ->  | K40: =INDEX('H - GL Accounts'!A:A,MATCH(Table100[GL Account],'H - GL Accounts'!C:C,0)) ->  | L40: =IF(Table100[Type of Expenditure]="Substitutes",(Table100[[#This Row],[Number of Subs Per Day]]*Table100[[#This Row],[Number of Sub Days]])*'H - Benefit Rates'!$B$12,0) -> 0 | M40: =IF(Table100[[#This Row],[Description]]="","",SUM(G40,L40)) -> 
A41: ='Budget Overview'!$A$2 -> 1051 | J41: =INDEX('H - Functional Areas'!B:B,MATCH(Table100[Functional Area],'H - Functional Areas'!C:C,0)) ->  | K41: =INDEX('H - GL Accounts'!A:A,MATCH(Table100[GL Account],'H - GL Accounts'!C:C,0)) ->  | L41: =IF(Table100[Type of Expenditure]="Substitutes",(Table100[[#This Row],[Number of Subs Per Day]]*Table100[[#This Row],[Number of Sub Days]])*'H - Benefit Rates'!$B$12,0) -> 0 | M41: =IF(Table100[[#This Row],[Description]]="","",SUM(G41,L41)) -> 
A42: ='Budget Overview'!$A$2 -> 1051 | J42: =INDEX('H - Functional Areas'!B:B,MATCH(Table100[Functional Area],'H - Functional Areas'!C:C,0)) ->  | K42: =INDEX('H - GL Accounts'!A:A,MATCH(Table100[GL Account],'H - GL Accounts'!C:C,0)) ->  | L42: =IF(Table100[Type of Expenditure]="Substitutes",(Table100[[#This Row],[Number of Subs Per Day]]*Table100[[#This Row],[Number of Sub Days]])*'H - Benefit Rates'!$B$12,0) -> 0 | M42: =IF(Table100[[#This Row],[Description]]="","",SUM(G42,L42)) -> 
A43: ='Budget Overview'!$A$2 -> 1051 | J43: =INDEX('H - Functional Areas'!B:B,MATCH(Table100[Functional Area],'H - Functional Areas'!C:C,0)) ->  | K43: =INDEX('H - GL Accounts'!A:A,MATCH(Table100[GL Account],'H - GL Accounts'!C:C,0)) ->  | L43: =IF(Table100[Type of Expenditure]="Substitutes",(Table100[[#This Row],[Number of Subs Per Day]]*Table100[[#This Row],[Number of Sub Days]])*'H - Benefit Rates'!$B$12,0) -> 0 | M43: =IF(Table100[[#This Row],[Description]]="","",SUM(G43,L43)) -> 
A44: ='Budget Overview'!$A$2 -> 1051 | J44: =INDEX('H - Functional Areas'!B:B,MATCH(Table100[Functional Area],'H - Functional Areas'!C:C,0)) ->  | K44: =INDEX('H - GL Accounts'!A:A,MATCH(Table100[GL Account],'H - GL Accounts'!C:C,0)) ->  | L44: =IF(Table100[Type of Expenditure]="Substitutes",(Table100[[#This Row],[Number of Subs Per Day]]*Table100[[#This Row],[Number of Sub Days]])*'H - Benefit Rates'!$B$12,0) -> 0 | M44: =IF(Table100[[#This Row],[Description]]="","",SUM(G44,L44)) -> 
A45: ='Budget Overview'!$A$2 -> 1051 | J45: =INDEX('H - Functional Areas'!B:B,MATCH(Table100[Functional Area],'H - Functional Areas'!C:C,0)) ->  | K45: =INDEX('H - GL Accounts'!A:A,MATCH(Table100[GL Account],'H - GL Accounts'!C:C,0)) ->  | L45: =IF(Table100[Type of Expenditure]="Substitutes",(Table100[[#This Row],[Number of Subs Per Day]]*Table100[[#This Row],[Number of Sub Days]])*'H - Benefit Rates'!$B$12,0) -> 0 | M45: =IF(Table100[[#This Row],[Description]]="","",SUM(G45,L45)) -> 
A46: ='Budget Overview'!$A$2 -> 1051 | J46: =INDEX('H - Functional Areas'!B:B,MATCH(Table100[Functional Area],'H - Functional Areas'!C:C,0)) ->  | K46: =INDEX('H - GL Accounts'!A:A,MATCH(Table100[GL Account],'H - GL Accounts'!C:C,0)) ->  | L46: =IF(Table100[Type of Expenditure]="Substitutes",(Table100[[#This Row],[Number of Subs Per Day]]*Table100[[#This Row],[Number of Sub Days]])*'H - Benefit Rates'!$B$12,0) -> 0 | M46: =IF(Table100[[#This Row],[Description]]="","",SUM(G46,L46)) -> 
A47: ='Budget Overview'!$A$2 -> 1051 | J47: =INDEX('H - Functional Areas'!B:B,MATCH(Table100[Functional Area],'H - Functional Areas'!C:C,0)) ->  | K47: =INDEX('H - GL Accounts'!A:A,MATCH(Table100[GL Account],'H - GL Accounts'!C:C,0)) ->  | L47: =IF(Table100[Type of Expenditure]="Substitutes",(Table100[[#This Row],[Number of Subs Per Day]]*Table100[[#This Row],[Number of Sub Days]])*'H - Benefit Rates'!$B$12,0) -> 0 | M47: =IF(Table100[[#This Row],[Description]]="","",SUM(G47,L47)) -> 
A48: ='Budget Overview'!$A$2 -> 1051 | J48: =INDEX('H - Functional Areas'!B:B,MATCH(Table100[Functional Area],'H - Functional Areas'!C:C,0)) ->  | K48: =INDEX('H - GL Accounts'!A:A,MATCH(Table100[GL Account],'H - GL Accounts'!C:C,0)) ->  | L48: =IF(Table100[Type of Expenditure]="Substitutes",(Table100[[#This Row],[Number of Subs Per Day]]*Table100[[#This Row],[Number of Sub Days]])*'H - Benefit Rates'!$B$12,0) -> 0 | M48: =IF(Table100[[#This Row],[Description]]="","",SUM(G48,L48)) -> 
A49: ='Budget Overview'!$A$2 -> 1051 | J49: =INDEX('H - Functional Areas'!B:B,MATCH(Table100[Functional Area],'H - Functional Areas'!C:C,0)) ->  | K49: =INDEX('H - GL Accounts'!A:A,MATCH(Table100[GL Account],'H - GL Accounts'!C:C,0)) ->  | L49: =IF(Table100[Type of Expenditure]="Substitutes",(Table100[[#This Row],[Number of Subs Per Day]]*Table100[[#This Row],[Number of Sub Days]])*'H - Benefit Rates'!$B$12,0) -> 0 | M49: =IF(Table100[[#This Row],[Description]]="","",SUM(G49,L49)) -> 
A50: ='Budget Overview'!$A$2 -> 1051 | J50: =INDEX('H - Functional Areas'!B:B,MATCH(Table100[Functional Area],'H - Functional Areas'!C:C,0)) ->  | K50: =INDEX('H - GL Accounts'!A:A,MATCH(Table100[GL Account],'H - GL Accounts'!C:C,0)) ->  | L50: =IF(Table100[Type of Expenditure]="Substitutes",(Table100[[#This Row],[Number of Subs Per Day]]*Table100[[#This Row],[Number of Sub Days]])*'H - Benefit Rates'!$B$12,0) -> 0 | M50: =IF(Table100[[#This Row],[Description]]="","",SUM(G50,L50)) -> 
A51: ='Budget Overview'!$A$2 -> 1051 | J51: =INDEX('H - Functional Areas'!B:B,MATCH(Table100[Functional Area],'H - Functional Areas'!C:C,0)) ->  | K51: =INDEX('H - GL Accounts'!A:A,MATCH(Table100[GL Account],'H - GL Accounts'!C:C,0)) ->  | L51: =IF(Table100[Type of Expenditure]="Substitutes",(Table100[[#This Row],[Number of Subs Per Day]]*Table100[[#This Row],[Number of Sub Days]])*'H - Benefit Rates'!$B$12,0) -> 0 | M51: =IF(Table100[[#This Row],[Description]]="","",SUM(G51,L51)) -> 
A52: ='Budget Overview'!$A$2 -> 1051 | J52: =INDEX('H - Functional Areas'!B:B,MATCH(Table100[Functional Area],'H - Functional Areas'!C:C,0)) ->  | K52: =INDEX('H - GL Accounts'!A:A,MATCH(Table100[GL Account],'H - GL Accounts'!C:C,0)) ->  | L52: =IF(Table100[Type of Expenditure]="Substitutes",(Table100[[#This Row],[Number of Subs Per Day]]*Table100[[#This Row],[Number of Sub Days]])*'H - Benefit Rates'!$B$12,0) -> 0 | M52: =IF(Table100[[#This Row],[Description]]="","",SUM(G52,L52)) -> 
A53: ='Budget Overview'!$A$2 -> 1051 | J53: =INDEX('H - Functional Areas'!B:B,MATCH(Table100[Functional Area],'H - Functional Areas'!C:C,0)) ->  | K53: =INDEX('H - GL Accounts'!A:A,MATCH(Table100[GL Account],'H - GL Accounts'!C:C,0)) ->  | L53: =IF(Table100[Type of Expenditure]="Substitutes",(Table100[[#This Row],[Number of Subs Per Day]]*Table100[[#This Row],[Number of Sub Days]])*'H - Benefit Rates'!$B$12,0) -> 0 | M53: =IF(Table100[[#This Row],[Description]]="","",SUM(G53,L53)) -> 
A54: ='Budget Overview'!$A$2 -> 1051 | J54: =INDEX('H - Functional Areas'!B:B,MATCH(Table100[Functional Area],'H - Functional Areas'!C:C,0)) ->  | K54: =INDEX('H - GL Accounts'!A:A,MATCH(Table100[GL Account],'H - GL Accounts'!C:C,0)) ->  | L54: =IF(Table100[Type of Expenditure]="Substitutes",(Table100[[#This Row],[Number of Subs Per Day]]*Table100[[#This Row],[Number of Sub Days]])*'H - Benefit Rates'!$B$12,0) -> 0 | M54: =IF(Table100[[#This Row],[Description]]="","",SUM(G54,L54)) -> 
A55: ='Budget Overview'!$A$2 -> 1051 | J55: =INDEX('H - Functional Areas'!B:B,MATCH(Table100[Functional Area],'H - Functional Areas'!C:C,0)) ->  | K55: =INDEX('H - GL Accounts'!A:A,MATCH(Table100[GL Account],'H - GL Accounts'!C:C,0)) ->  | L55: =IF(Table100[Type of Expenditure]="Substitutes",(Table100[[#This Row],[Number of Subs Per Day]]*Table100[[#This Row],[Number of Sub Days]])*'H - Benefit Rates'!$B$12,0) -> 0 | M55: =IF(Table100[[#This Row],[Description]]="","",SUM(G55,L55)) -> 
A56: ='Budget Overview'!$A$2 -> 1051 | J56: =INDEX('H - Functional Areas'!B:B,MATCH(Table100[Functional Area],'H - Functional Areas'!C:C,0)) ->  | K56: =INDEX('H - GL Accounts'!A:A,MATCH(Table100[GL Account],'H - GL Accounts'!C:C,0)) ->  | L56: =IF(Table100[Type of Expenditure]="Substitutes",(Table100[[#This Row],[Number of Subs Per Day]]*Table100[[#This Row],[Number of Sub Days]])*'H - Benefit Rates'!$B$12,0) -> 0 | M56: =IF(Table100[[#This Row],[Description]]="","",SUM(G56,L56)) -> 
A57: ='Budget Overview'!$A$2 -> 1051 | J57: =INDEX('H - Functional Areas'!B:B,MATCH(Table100[Functional Area],'H - Functional Areas'!C:C,0)) ->  | K57: =INDEX('H - GL Accounts'!A:A,MATCH(Table100[GL Account],'H - GL Accounts'!C:C,0)) ->  | L57: =IF(Table100[Type of Expenditure]="Substitutes",(Table100[[#This Row],[Number of Subs Per Day]]*Table100[[#This Row],[Number of Sub Days]])*'H - Benefit Rates'!$B$12,0) -> 0 | M57: =IF(Table100[[#This Row],[Description]]="","",SUM(G57,L57)) -> 
A58: ='Budget Overview'!$A$2 -> 1051 | J58: =INDEX('H - Functional Areas'!B:B,MATCH(Table100[Functional Area],'H - Functional Areas'!C:C,0)) ->  | K58: =INDEX('H - GL Accounts'!A:A,MATCH(Table100[GL Account],'H - GL Accounts'!C:C,0)) ->  | L58: =IF(Table100[Type of Expenditure]="Substitutes",(Table100[[#This Row],[Number of Subs Per Day]]*Table100[[#This Row],[Number of Sub Days]])*'H - Benefit Rates'!$B$12,0) -> 0 | M58: =IF(Table100[[#This Row],[Description]]="","",SUM(G58,L58)) -> 
A59: ='Budget Overview'!$A$2 -> 1051 | J59: =INDEX('H - Functional Areas'!B:B,MATCH(Table100[Functional Area],'H - Functional Areas'!C:C,0)) ->  | K59: =INDEX('H - GL Accounts'!A:A,MATCH(Table100[GL Account],'H - GL Accounts'!C:C,0)) ->  | L59: =IF(Table100[Type of Expenditure]="Substitutes",(Table100[[#This Row],[Number of Subs Per Day]]*Table100[[#This Row],[Number of Sub Days]])*'H - Benefit Rates'!$B$12,0) -> 0 | M59: =IF(Table100[[#This Row],[Description]]="","",SUM(G59,L59)) -> 
A60: ='Budget Overview'!$A$2 -> 1051 | J60: =INDEX('H - Functional Areas'!B:B,MATCH(Table100[Functional Area],'H - Functional Areas'!C:C,0)) ->  | K60: =INDEX('H - GL Accounts'!A:A,MATCH(Table100[GL Account],'H - GL Accounts'!C:C,0)) ->  | L60: =IF(Table100[Type of Expenditure]="Substitutes",(Table100[[#This Row],[Number of Subs Per Day]]*Table100[[#This Row],[Number of Sub Days]])*'H - Benefit Rates'!$B$12,0) -> 0 | M60: =IF(Table100[[#This Row],[Description]]="","",SUM(G60,L60)) -> 
A61: ='Budget Overview'!$A$2 -> 1051 | J61: =INDEX('H - Functional Areas'!B:B,MATCH(Table100[Functional Area],'H - Functional Areas'!C:C,0)) ->  | K61: =INDEX('H - GL Accounts'!A:A,MATCH(Table100[GL Account],'H - GL Accounts'!C:C,0)) ->  | L61: =IF(Table100[Type of Expenditure]="Substitutes",(Table100[[#This Row],[Number of Subs Per Day]]*Table100[[#This Row],[Number of Sub Days]])*'H - Benefit Rates'!$B$12,0) -> 0 | M61: =IF(Table100[[#This Row],[Description]]="","",SUM(G61,L61)) -> 
A62: ='Budget Overview'!$A$2 -> 1051 | J62: =INDEX('H - Functional Areas'!B:B,MATCH(Table100[Functional Area],'H - Functional Areas'!C:C,0)) ->  | K62: =INDEX('H - GL Accounts'!A:A,MATCH(Table100[GL Account],'H - GL Accounts'!C:C,0)) ->  | L62: =IF(Table100[Type of Expenditure]="Substitutes",(Table100[[#This Row],[Number of Subs Per Day]]*Table100[[#This Row],[Number of Sub Days]])*'H - Benefit Rates'!$B$12,0) -> 0 | M62: =IF(Table100[[#This Row],[Description]]="","",SUM(G62,L62)) -> 
A63: ='Budget Overview'!$A$2 -> 1051 | J63: =INDEX('H - Functional Areas'!B:B,MATCH(Table100[Functional Area],'H - Functional Areas'!C:C,0)) ->  | K63: =INDEX('H - GL Accounts'!A:A,MATCH(Table100[GL Account],'H - GL Accounts'!C:C,0)) ->  | L63: =IF(Table100[Type of Expenditure]="Substitutes",(Table100[[#This Row],[Number of Subs Per Day]]*Table100[[#This Row],[Number of Sub Days]])*'H - Benefit Rates'!$B$12,0) -> 0 | M63: =IF(Table100[[#This Row],[Description]]="","",SUM(G63,L63)) -> 
A64: ='Budget Overview'!$A$2 -> 1051 | J64: =INDEX('H - Functional Areas'!B:B,MATCH(Table100[Functional Area],'H - Functional Areas'!C:C,0)) ->  | K64: =INDEX('H - GL Accounts'!A:A,MATCH(Table100[GL Account],'H - GL Accounts'!C:C,0)) ->  | L64: =IF(Table100[Type of Expenditure]="Substitutes",(Table100[[#This Row],[Number of Subs Per Day]]*Table100[[#This Row],[Number of Sub Days]])*'H - Benefit Rates'!$B$12,0) -> 0 | M64: =IF(Table100[[#This Row],[Description]]="","",SUM(G64,L64)) -> 
A65: ='Budget Overview'!$A$2 -> 1051 | J65: =INDEX('H - Functional Areas'!B:B,MATCH(Table100[Functional Area],'H - Functional Areas'!C:C,0)) ->  | K65: =INDEX('H - GL Accounts'!A:A,MATCH(Table100[GL Account],'H - GL Accounts'!C:C,0)) ->  | L65: =IF(Table100[Type of Expenditure]="Substitutes",(Table100[[#This Row],[Number of Subs Per Day]]*Table100[[#This Row],[Number of Sub Days]])*'H - Benefit Rates'!$B$12,0) -> 0 | M65: =IF(Table100[[#This Row],[Description]]="","",SUM(G65,L65)) -> 
A66: ='Budget Overview'!$A$2 -> 1051 | J66: =INDEX('H - Functional Areas'!B:B,MATCH(Table100[Functional Area],'H - Functional Areas'!C:C,0)) ->  | K66: =INDEX('H - GL Accounts'!A:A,MATCH(Table100[GL Account],'H - GL Accounts'!C:C,0)) ->  | L66: =IF(Table100[Type of Expenditure]="Substitutes",(Table100[[#This Row],[Number of Subs Per Day]]*Table100[[#This Row],[Number of Sub Days]])*'H - Benefit Rates'!$B$12,0) -> 0 | M66: =IF(Table100[[#This Row],[Description]]="","",SUM(G66,L66)) -> 
A67: ='Budget Overview'!$A$2 -> 1051 | J67: =INDEX('H - Functional Areas'!B:B,MATCH(Table100[Functional Area],'H - Functional Areas'!C:C,0)) ->  | K67: =INDEX('H - GL Accounts'!A:A,MATCH(Table100[GL Account],'H - GL Accounts'!C:C,0)) ->  | L67: =IF(Table100[Type of Expenditure]="Substitutes",(Table100[[#This Row],[Number of Subs Per Day]]*Table100[[#This Row],[Number of Sub Days]])*'H - Benefit Rates'!$B$12,0) -> 0 | M67: =IF(Table100[[#This Row],[Description]]="","",SUM(G67,L67)) -> 
A68: ='Budget Overview'!$A$2 -> 1051 | J68: =INDEX('H - Functional Areas'!B:B,MATCH(Table100[Functional Area],'H - Functional Areas'!C:C,0)) ->  | K68: =INDEX('H - GL Accounts'!A:A,MATCH(Table100[GL Account],'H - GL Accounts'!C:C,0)) ->  | L68: =IF(Table100[Type of Expenditure]="Substitutes",(Table100[[#This Row],[Number of Subs Per Day]]*Table100[[#This Row],[Number of Sub Days]])*'H - Benefit Rates'!$B$12,0) -> 0 | M68: =IF(Table100[[#This Row],[Description]]="","",SUM(G68,L68)) -> 
A69: ='Budget Overview'!$A$2 -> 1051 | J69: =INDEX('H - Functional Areas'!B:B,MATCH(Table100[Functional Area],'H - Functional Areas'!C:C,0)) ->  | K69: =INDEX('H - GL Accounts'!A:A,MATCH(Table100[GL Account],'H - GL Accounts'!C:C,0)) ->  | L69: =IF(Table100[Type of Expenditure]="Substitutes",(Table100[[#This Row],[Number of Subs Per Day]]*Table100[[#This Row],[Number of Sub Days]])*'H - Benefit Rates'!$B$12,0) -> 0 | M69: =IF(Table100[[#This Row],[Description]]="","",SUM(G69,L69)) -> 
A70: ='Budget Overview'!$A$2 -> 1051 | J70: =INDEX('H - Functional Areas'!B:B,MATCH(Table100[Functional Area],'H - Functional Areas'!C:C,0)) ->  | K70: =INDEX('H - GL Accounts'!A:A,MATCH(Table100[GL Account],'H - GL Accounts'!C:C,0)) ->  | L70: =IF(Table100[Type of Expenditure]="Substitutes",(Table100[[#This Row],[Number of Subs Per Day]]*Table100[[#This Row],[Number of Sub Days]])*'H - Benefit Rates'!$B$12,0) -> 0 | M70: =IF(Table100[[#This Row],[Description]]="","",SUM(G70,L70)) -> 
A71: ='Budget Overview'!$A$2 -> 1051 | J71: =INDEX('H - Functional Areas'!B:B,MATCH(Table100[Functional Area],'H - Functional Areas'!C:C,0)) ->  | K71: =INDEX('H - GL Accounts'!A:A,MATCH(Table100[GL Account],'H - GL Accounts'!C:C,0)) ->  | L71: =IF(Table100[Type of Expenditure]="Substitutes",(Table100[[#This Row],[Number of Subs Per Day]]*Table100[[#This Row],[Number of Sub Days]])*'H - Benefit Rates'!$B$12,0) -> 0 | M71: =IF(Table100[[#This Row],[Description]]="","",SUM(G71,L71)) -> 
A72: ='Budget Overview'!$A$2 -> 1051 | J72: =INDEX('H - Functional Areas'!B:B,MATCH(Table100[Functional Area],'H - Functional Areas'!C:C,0)) ->  | K72: =INDEX('H - GL Accounts'!A:A,MATCH(Table100[GL Account],'H - GL Accounts'!C:C,0)) ->  | L72: =IF(Table100[Type of Expenditure]="Substitutes",(Table100[[#This Row],[Number of Subs Per Day]]*Table100[[#This Row],[Number of Sub Days]])*'H - Benefit Rates'!$B$12,0) -> 0 | M72: =IF(Table100[[#This Row],[Description]]="","",SUM(G72,L72)) -> 
A73: ='Budget Overview'!$A$2 -> 1051 | J73: =INDEX('H - Functional Areas'!B:B,MATCH(Table100[Functional Area],'H - Functional Areas'!C:C,0)) ->  | K73: =INDEX('H - GL Accounts'!A:A,MATCH(Table100[GL Account],'H - GL Accounts'!C:C,0)) ->  | L73: =IF(Table100[Type of Expenditure]="Substitutes",(Table100[[#This Row],[Number of Subs Per Day]]*Table100[[#This Row],[Number of Sub Days]])*'H - Benefit Rates'!$B$12,0) -> 0 | M73: =IF(Table100[[#This Row],[Description]]="","",SUM(G73,L73)) -> 
A74: ='Budget Overview'!$A$2 -> 1051 | J74: =INDEX('H - Functional Areas'!B:B,MATCH(Table100[Functional Area],'H - Functional Areas'!C:C,0)) ->  | K74: =INDEX('H - GL Accounts'!A:A,MATCH(Table100[GL Account],'H - GL Accounts'!C:C,0)) ->  | L74: =IF(Table100[Type of Expenditure]="Substitutes",(Table100[[#This Row],[Number of Subs Per Day]]*Table100[[#This Row],[Number of Sub Days]])*'H - Benefit Rates'!$B$12,0) -> 0 | M74: =IF(Table100[[#This Row],[Description]]="","",SUM(G74,L74)) -> 
A75: ='Budget Overview'!$A$2 -> 1051 | J75: =INDEX('H - Functional Areas'!B:B,MATCH(Table100[Functional Area],'H - Functional Areas'!C:C,0)) ->  | K75: =INDEX('H - GL Accounts'!A:A,MATCH(Table100[GL Account],'H - GL Accounts'!C:C,0)) ->  | L75: =IF(Table100[Type of Expenditure]="Substitutes",(Table100[[#This Row],[Number of Subs Per Day]]*Table100[[#This Row],[Number of Sub Days]])*'H - Benefit Rates'!$B$12,0) -> 0 | M75: =IF(Table100[[#This Row],[Description]]="","",SUM(G75,L75)) -> 
A76: ='Budget Overview'!$A$2 -> 1051 | J76: =INDEX('H - Functional Areas'!B:B,MATCH(Table100[Functional Area],'H - Functional Areas'!C:C,0)) ->  | K76: =INDEX('H - GL Accounts'!A:A,MATCH(Table100[GL Account],'H - GL Accounts'!C:C,0)) ->  | L76: =IF(Table100[Type of Expenditure]="Substitutes",(Table100[[#This Row],[Number of Subs Per Day]]*Table100[[#This Row],[Number of Sub Days]])*'H - Benefit Rates'!$B$12,0) -> 0 | M76: =IF(Table100[[#This Row],[Description]]="","",SUM(G76,L76)) -> 
A77: ='Budget Overview'!$A$2 -> 1051 | J77: =INDEX('H - Functional Areas'!B:B,MATCH(Table100[Functional Area],'H - Functional Areas'!C:C,0)) ->  | K77: =INDEX('H - GL Accounts'!A:A,MATCH(Table100[GL Account],'H - GL Accounts'!C:C,0)) ->  | L77: =IF(Table100[Type of Expenditure]="Substitutes",(Table100[[#This Row],[Number of Subs Per Day]]*Table100[[#This Row],[Number of Sub Days]])*'H - Benefit Rates'!$B$12,0) -> 0 | M77: =IF(Table100[[#This Row],[Description]]="","",SUM(G77,L77)) -> 
A78: ='Budget Overview'!$A$2 -> 1051 | J78: =INDEX('H - Functional Areas'!B:B,MATCH(Table100[Functional Area],'H - Functional Areas'!C:C,0)) ->  | K78: =INDEX('H - GL Accounts'!A:A,MATCH(Table100[GL Account],'H - GL Accounts'!C:C,0)) ->  | L78: =IF(Table100[Type of Expenditure]="Substitutes",(Table100[[#This Row],[Number of Subs Per Day]]*Table100[[#This Row],[Number of Sub Days]])*'H - Benefit Rates'!$B$12,0) -> 0 | M78: =IF(Table100[[#This Row],[Description]]="","",SUM(G78,L78)) -> 
A79: ='Budget Overview'!$A$2 -> 1051 | J79: =INDEX('H - Functional Areas'!B:B,MATCH(Table100[Functional Area],'H - Functional Areas'!C:C,0)) ->  | K79: =INDEX('H - GL Accounts'!A:A,MATCH(Table100[GL Account],'H - GL Accounts'!C:C,0)) ->  | L79: =IF(Table100[Type of Expenditure]="Substitutes",(Table100[[#This Row],[Number of Subs Per Day]]*Table100[[#This Row],[Number of Sub Days]])*'H - Benefit Rates'!$B$12,0) -> 0 | M79: =IF(Table100[[#This Row],[Description]]="","",SUM(G79,L79)) -> 
A80: ='Budget Overview'!$A$2 -> 1051 | J80: =INDEX('H - Functional Areas'!B:B,MATCH(Table100[Functional Area],'H - Functional Areas'!C:C,0)) ->  | K80: =INDEX('H - GL Accounts'!A:A,MATCH(Table100[GL Account],'H - GL Accounts'!C:C,0)) ->  | L80: =IF(Table100[Type of Expenditure]="Substitutes",(Table100[[#This Row],[Number of Subs Per Day]]*Table100[[#This Row],[Number of Sub Days]])*'H - Benefit Rates'!$B$12,0) -> 0 | M80: =IF(Table100[[#This Row],[Description]]="","",SUM(G80,L80)) -> 
A81: ='Budget Overview'!$A$2 -> 1051 | J81: =INDEX('H - Functional Areas'!B:B,MATCH(Table100[Functional Area],'H - Functional Areas'!C:C,0)) ->  | K81: =INDEX('H - GL Accounts'!A:A,MATCH(Table100[GL Account],'H - GL Accounts'!C:C,0)) ->  | L81: =IF(Table100[Type of Expenditure]="Substitutes",(Table100[[#This Row],[Number of Subs Per Day]]*Table100[[#This Row],[Number of Sub Days]])*'H - Benefit Rates'!$B$12,0) -> 0 | M81: =IF(Table100[[#This Row],[Description]]="","",SUM(G81,L81)) -> 
A82: ='Budget Overview'!$A$2 -> 1051 | J82: =INDEX('H - Functional Areas'!B:B,MATCH(Table100[Functional Area],'H - Functional Areas'!C:C,0)) ->  | K82: =INDEX('H - GL Accounts'!A:A,MATCH(Table100[GL Account],'H - GL Accounts'!C:C,0)) ->  | L82: =IF(Table100[Type of Expenditure]="Substitutes",(Table100[[#This Row],[Number of Subs Per Day]]*Table100[[#This Row],[Number of Sub Days]])*'H - Benefit Rates'!$B$12,0) -> 0 | M82: =IF(Table100[[#This Row],[Description]]="","",SUM(G82,L82)) -> 
A83: ='Budget Overview'!$A$2 -> 1051 | J83: =INDEX('H - Functional Areas'!B:B,MATCH(Table100[Functional Area],'H - Functional Areas'!C:C,0)) ->  | K83: =INDEX('H - GL Accounts'!A:A,MATCH(Table100[GL Account],'H - GL Accounts'!C:C,0)) ->  | L83: =IF(Table100[Type of Expenditure]="Substitutes",(Table100[[#This Row],[Number of Subs Per Day]]*Table100[[#This Row],[Number of Sub Days]])*'H - Benefit Rates'!$B$12,0) -> 0 | M83: =IF(Table100[[#This Row],[Description]]="","",SUM(G83,L83)) -> 
A84: ='Budget Overview'!$A$2 -> 1051 | J84: =INDEX('H - Functional Areas'!B:B,MATCH(Table100[Functional Area],'H - Functional Areas'!C:C,0)) ->  | K84: =INDEX('H - GL Accounts'!A:A,MATCH(Table100[GL Account],'H - GL Accounts'!C:C,0)) ->  | L84: =IF(Table100[Type of Expenditure]="Substitutes",(Table100[[#This Row],[Number of Subs Per Day]]*Table100[[#This Row],[Number of Sub Days]])*'H - Benefit Rates'!$B$12,0) -> 0 | M84: =IF(Table100[[#This Row],[Description]]="","",SUM(G84,L84)) -> 
A85: ='Budget Overview'!$A$2 -> 1051 | J85: =INDEX('H - Functional Areas'!B:B,MATCH(Table100[Functional Area],'H - Functional Areas'!C:C,0)) ->  | K85: =INDEX('H - GL Accounts'!A:A,MATCH(Table100[GL Account],'H - GL Accounts'!C:C,0)) ->  | L85: =IF(Table100[Type of Expenditure]="Substitutes",(Table100[[#This Row],[Number of Subs Per Day]]*Table100[[#This Row],[Number of Sub Days]])*'H - Benefit Rates'!$B$12,0) -> 0 | M85: =IF(Table100[[#This Row],[Description]]="","",SUM(G85,L85)) -> 
A86: ='Budget Overview'!$A$2 -> 1051 | J86: =INDEX('H - Functional Areas'!B:B,MATCH(Table100[Functional Area],'H - Functional Areas'!C:C,0)) ->  | K86: =INDEX('H - GL Accounts'!A:A,MATCH(Table100[GL Account],'H - GL Accounts'!C:C,0)) ->  | L86: =IF(Table100[Type of Expenditure]="Substitutes",(Table100[[#This Row],[Number of Subs Per Day]]*Table100[[#This Row],[Number of Sub Days]])*'H - Benefit Rates'!$B$12,0) -> 0 | M86: =IF(Table100[[#This Row],[Description]]="","",SUM(G86,L86)) -> 
A87: ='Budget Overview'!$A$2 -> 1051 | J87: =INDEX('H - Functional Areas'!B:B,MATCH(Table100[Functional Area],'H - Functional Areas'!C:C,0)) ->  | K87: =INDEX('H - GL Accounts'!A:A,MATCH(Table100[GL Account],'H - GL Accounts'!C:C,0)) ->  | L87: =IF(Table100[Type of Expenditure]="Substitutes",(Table100[[#This Row],[Number of Subs Per Day]]*Table100[[#This Row],[Number of Sub Days]])*'H - Benefit Rates'!$B$12,0) -> 0 | M87: =IF(Table100[[#This Row],[Description]]="","",SUM(G87,L87)) -> 
A88: ='Budget Overview'!$A$2 -> 1051 | J88: =INDEX('H - Functional Areas'!B:B,MATCH(Table100[Functional Area],'H - Functional Areas'!C:C,0)) ->  | K88: =INDEX('H - GL Accounts'!A:A,MATCH(Table100[GL Account],'H - GL Accounts'!C:C,0)) ->  | L88: =IF(Table100[Type of Expenditure]="Substitutes",(Table100[[#This Row],[Number of Subs Per Day]]*Table100[[#This Row],[Number of Sub Days]])*'H - Benefit Rates'!$B$12,0) -> 0 | M88: =IF(Table100[[#This Row],[Description]]="","",SUM(G88,L88)) -> 
A89: ='Budget Overview'!$A$2 -> 1051 | J89: =INDEX('H - Functional Areas'!B:B,MATCH(Table100[Functional Area],'H - Functional Areas'!C:C,0)) ->  | K89: =INDEX('H - GL Accounts'!A:A,MATCH(Table100[GL Account],'H - GL Accounts'!C:C,0)) ->  | L89: =IF(Table100[Type of Expenditure]="Substitutes",(Table100[[#This Row],[Number of Subs Per Day]]*Table100[[#This Row],[Number of Sub Days]])*'H - Benefit Rates'!$B$12,0) -> 0 | M89: =IF(Table100[[#This Row],[Description]]="","",SUM(G89,L89)) -> 
A90: ='Budget Overview'!$A$2 -> 1051 | J90: =INDEX('H - Functional Areas'!B:B,MATCH(Table100[Functional Area],'H - Functional Areas'!C:C,0)) ->  | K90: =INDEX('H - GL Accounts'!A:A,MATCH(Table100[GL Account],'H - GL Accounts'!C:C,0)) ->  | L90: =IF(Table100[Type of Expenditure]="Substitutes",(Table100[[#This Row],[Number of Subs Per Day]]*Table100[[#This Row],[Number of Sub Days]])*'H - Benefit Rates'!$B$12,0) -> 0 | M90: =IF(Table100[[#This Row],[Description]]="","",SUM(G90,L90)) -> 
A91: ='Budget Overview'!$A$2 -> 1051 | J91: =INDEX('H - Functional Areas'!B:B,MATCH(Table100[Functional Area],'H - Functional Areas'!C:C,0)) ->  | K91: =INDEX('H - GL Accounts'!A:A,MATCH(Table100[GL Account],'H - GL Accounts'!C:C,0)) ->  | L91: =IF(Table100[Type of Expenditure]="Substitutes",(Table100[[#This Row],[Number of Subs Per Day]]*Table100[[#This Row],[Number of Sub Days]])*'H - Benefit Rates'!$B$12,0) -> 0 | M91: =IF(Table100[[#This Row],[Description]]="","",SUM(G91,L91)) -> 
A92: ='Budget Overview'!$A$2 -> 1051 | J92: =INDEX('H - Functional Areas'!B:B,MATCH(Table100[Functional Area],'H - Functional Areas'!C:C,0)) ->  | K92: =INDEX('H - GL Accounts'!A:A,MATCH(Table100[GL Account],'H - GL Accounts'!C:C,0)) ->  | L92: =IF(Table100[Type of Expenditure]="Substitutes",(Table100[[#This Row],[Number of Subs Per Day]]*Table100[[#This Row],[Number of Sub Days]])*'H - Benefit Rates'!$B$12,0) -> 0 | M92: =IF(Table100[[#This Row],[Description]]="","",SUM(G92,L92)) -> 
A93: ='Budget Overview'!$A$2 -> 1051 | J93: =INDEX('H - Functional Areas'!B:B,MATCH(Table100[Functional Area],'H - Functional Areas'!C:C,0)) ->  | K93: =INDEX('H - GL Accounts'!A:A,MATCH(Table100[GL Account],'H - GL Accounts'!C:C,0)) ->  | L93: =IF(Table100[Type of Expenditure]="Substitutes",(Table100[[#This Row],[Number of Subs Per Day]]*Table100[[#This Row],[Number of Sub Days]])*'H - Benefit Rates'!$B$12,0) -> 0 | M93: =IF(Table100[[#This Row],[Description]]="","",SUM(G93,L93)) -> 
A94: ='Budget Overview'!$A$2 -> 1051 | J94: =INDEX('H - Functional Areas'!B:B,MATCH(Table100[Functional Area],'H - Functional Areas'!C:C,0)) ->  | K94: =INDEX('H - GL Accounts'!A:A,MATCH(Table100[GL Account],'H - GL Accounts'!C:C,0)) ->  | L94: =IF(Table100[Type of Expenditure]="Substitutes",(Table100[[#This Row],[Number of Subs Per Day]]*Table100[[#This Row],[Number of Sub Days]])*'H - Benefit Rates'!$B$12,0) -> 0 | M94: =IF(Table100[[#This Row],[Description]]="","",SUM(G94,L94)) -> 
A95: ='Budget Overview'!$A$2 -> 1051 | J95: =INDEX('H - Functional Areas'!B:B,MATCH(Table100[Functional Area],'H - Functional Areas'!C:C,0)) ->  | K95: =INDEX('H - GL Accounts'!A:A,MATCH(Table100[GL Account],'H - GL Accounts'!C:C,0)) ->  | L95: =IF(Table100[Type of Expenditure]="Substitutes",(Table100[[#This Row],[Number of Subs Per Day]]*Table100[[#This Row],[Number of Sub Days]])*'H - Benefit Rates'!$B$12,0) -> 0 | M95: =IF(Table100[[#This Row],[Description]]="","",SUM(G95,L95)) -> 
A96: ='Budget Overview'!$A$2 -> 1051 | J96: =INDEX('H - Functional Areas'!B:B,MATCH(Table100[Functional Area],'H - Functional Areas'!C:C,0)) ->  | K96: =INDEX('H - GL Accounts'!A:A,MATCH(Table100[GL Account],'H - GL Accounts'!C:C,0)) ->  | L96: =IF(Table100[Type of Expenditure]="Substitutes",(Table100[[#This Row],[Number of Subs Per Day]]*Table100[[#This Row],[Number of Sub Days]])*'H - Benefit Rates'!$B$12,0) -> 0 | M96: =IF(Table100[[#This Row],[Description]]="","",SUM(G96,L96)) -> 
A97: ='Budget Overview'!$A$2 -> 1051 | J97: =INDEX('H - Functional Areas'!B:B,MATCH(Table100[Functional Area],'H - Functional Areas'!C:C,0)) ->  | K97: =INDEX('H - GL Accounts'!A:A,MATCH(Table100[GL Account],'H - GL Accounts'!C:C,0)) ->  | L97: =IF(Table100[Type of Expenditure]="Substitutes",(Table100[[#This Row],[Number of Subs Per Day]]*Table100[[#This Row],[Number of Sub Days]])*'H - Benefit Rates'!$B$12,0) -> 0 | M97: =IF(Table100[[#This Row],[Description]]="","",SUM(G97,L97)) -> 
A98: ='Budget Overview'!$A$2 -> 1051 | J98: =INDEX('H - Functional Areas'!B:B,MATCH(Table100[Functional Area],'H - Functional Areas'!C:C,0)) ->  | K98: =INDEX('H - GL Accounts'!A:A,MATCH(Table100[GL Account],'H - GL Accounts'!C:C,0)) ->  | L98: =IF(Table100[Type of Expenditure]="Substitutes",(Table100[[#This Row],[Number of Subs Per Day]]*Table100[[#This Row],[Number of Sub Days]])*'H - Benefit Rates'!$B$12,0) -> 0 | M98: =IF(Table100[[#This Row],[Description]]="","",SUM(G98,L98)) -> 
A99: ='Budget Overview'!$A$2 -> 1051 | J99: =INDEX('H - Functional Areas'!B:B,MATCH(Table100[Functional Area],'H - Functional Areas'!C:C,0)) ->  | K99: =INDEX('H - GL Accounts'!A:A,MATCH(Table100[GL Account],'H - GL Accounts'!C:C,0)) ->  | L99: =IF(Table100[Type of Expenditure]="Substitutes",(Table100[[#This Row],[Number of Subs Per Day]]*Table100[[#This Row],[Number of Sub Days]])*'H - Benefit Rates'!$B$12,0) -> 0 | M99: =IF(Table100[[#This Row],[Description]]="","",SUM(G99,L99)) -> 
A100: ='Budget Overview'!$A$2 -> 1051 | J100: =INDEX('H - Functional Areas'!B:B,MATCH(Table100[Functional Area],'H - Functional Areas'!C:C,0)) ->  | K100: =INDEX('H - GL Accounts'!A:A,MATCH(Table100[GL Account],'H - GL Accounts'!C:C,0)) ->  | L100: =IF(Table100[Type of Expenditure]="Substitutes",(Table100[[#This Row],[Number of Subs Per Day]]*Table100[[#This Row],[Number of Sub Days]])*'H - Benefit Rates'!$B$12,0) -> 0 | M100: =IF(Table100[[#This Row],[Description]]="","",SUM(G100,L100)) -> 
A101: ='Budget Overview'!$A$2 -> 1051 | J101: =INDEX('H - Functional Areas'!B:B,MATCH(Table100[Functional Area],'H - Functional Areas'!C:C,0)) ->  | K101: =INDEX('H - GL Accounts'!A:A,MATCH(Table100[GL Account],'H - GL Accounts'!C:C,0)) ->  | L101: =IF(Table100[Type of Expenditure]="Substitutes",(Table100[[#This Row],[Number of Subs Per Day]]*Table100[[#This Row],[Number of Sub Days]])*'H - Benefit Rates'!$B$12,0) -> 0 | M101: =IF(Table100[[#This Row],[Description]]="","",SUM(G101,L101)) -> 
A102: ='Budget Overview'!$A$2 -> 1051 | J102: =INDEX('H - Functional Areas'!B:B,MATCH(Table100[Functional Area],'H - Functional Areas'!C:C,0)) ->  | K102: =INDEX('H - GL Accounts'!A:A,MATCH(Table100[GL Account],'H - GL Accounts'!C:C,0)) ->  | L102: =IF(Table100[Type of Expenditure]="Substitutes",(Table100[[#This Row],[Number of Subs Per Day]]*Table100[[#This Row],[Number of Sub Days]])*'H - Benefit Rates'!$B$12,0) -> 0 | M102: =IF(Table100[[#This Row],[Description]]="","",SUM(G102,L102)) -> 

Sheet H - Functional Areas (hidden)
A1: Column1 | B1: Column2 | C1: Func Description
A2: Instructional | B2: 5100 | C2: 5100 - Instructional
A3: ESE | B3: 5200 | C3: 5200 - ESE
A4: Workforce | B4: 5300 | C4: 5300 - Workforce
A5: Adult Education | B5: 5400 | C5: 5400 - Adult Education
A6: Early Learning | B6: 5500 | C6: 5500 - Early Learning
A7: Extended Learning | B7: 5900 | C7: 5900 - Extended Learning
A8: Guidance (Migrant) | B8: 6110 | C8: 6110 - Guidance (Migrant)
A9: Guidance | B9: 6120 | C9: 6120 - Guidance
A10: Family Engagement | B10: 6150 | C10: 6150 - Family Engagement
A11: Media Services | B11: 6200 | C11: 6200 - Media Services
A12: Curriculum Planning | B12: 6300 | C12: 6300 - Curriculum Planning
A13: Staff Development | B13: 6400 | C13: 6400 - Staff Development
A14: Administration | B14: 7730 | C14: 7730 - Administration
A15: Transportation | B15: 7800 | C15: 7800 - Transportation

Sheet H- Types of Expenditures (hidden)
A1: Substitutes
A2: Resources (Manipulatives, Workbooks, etc)
A3: Extended Learning (Tutoring, Summer Learning)
A4: Technology Items
A5: Furniture and Equipment
A6: Online Subscriptions
A7: Periodical Subscriptions
A8: Supplies
A9: Classroom Libraries
A10: Media Center Library Books
A11: Consultants
A12: Field Trips
A13: Maintenance Agreements
A14: Postage
A15: Printing
A16: Travel

Sheet H - GL Accounts (hidden)
A1: 4310000 | B1: Prof. & Tech. Services, Consultants | C1: =A1&" "&"-"&" "&B1 -> 4310000 - Prof. & Tech. Services, Consultants
A2: 4310300 | B2: Substitutes | C2: 4310300 - Substitutes
A3: 4319000 | B3: Tech Related Prof. & Tech. Services | C3: 4319000 - Tech Related Prof. & Tech. Services
A4: 4330000 | B4: Travel - Training, Field Trip Admission Fees | C4: 4330000 - Travel - Training, Field Trip Admission Fees
A5: 4350000 | B5: Repairs and Maintenance | C5: 4350000 - Repairs and Maintenance
A6: 4359000 | B6: Tech Related Repairs and Maintenance | C6: 4359000 - Tech Related Repairs and Maintenance
A7: 4360002 | B7: Rentals, Charter Buses | C7: 4360002 - Rentals, Charter Buses
A8: 4369000 | B8: Rentals - Technology | C8: 4369000 - Rentals - Technology
A9: 4370000 | B9: Communications, Postage | C9: 4370000 - Communications, Postage
A10: 4379000 | B10: Telephone and Other Data Communication | C10: 4379000 - Telephone and Other Data Communication
A11: 4390000 | B11: Other Purchased Services, Outside Print Orders | C11: 4390000 - Other Purchased Services, Outside Print Orders
A12: 4399000 | B12: Tech Related Other Purchased Services | C12: 4399000 - Tech Related Other Purchased Services
A13: 4450000 | B13: Gasoline | C13: 4450000 - Gasoline
A14: 4510000 | B14: Supplies, Print Shop, Classroom Libraries | C14: 4510000 - Supplies, Print Shop, Classroom Libraries
A15: 4519900 | B15: Supplies - Technology | C15: 4519900 - Supplies - Technology
A16: 4520000 | B16: Textbooks | C16: 4520000 - Textbooks
A17: 4525900 | B17: Textbooks - Technology Related | C17: 4525900 - Textbooks - Technology Related
A18: 4529000 | B18: Technology Related Textbooks | C18: 4529000 - Technology Related Textbooks
A19: 4530000 | B19: Periodicals | C19: 4530000 - Periodicals
A20: 4539000 | B20: Periodicals - Electronic | C20: 4539000 - Periodicals - Electronic
A21: 4540000 | B21: Oil and Grease | C21: 4540000 - Oil and Grease
A22: 4550000 | B22: Repair Parts | C22: 4550000 - Repair Parts
A23: 4560000 | B23: Tires and Lube | C23: 4560000 - Tires and Lube
A24: 4610000 | B24: Media Center Books | C24: 4610000 - Media Center Books
A25: 4621000 | B25: Capitalized AV Materials | C25: 4621000 - Capitalized AV Materials
A26: 4622000 | B26: Non Capitalized AV Materials | C26: 4622000 - Non Capitalized AV Materials
A27: 4641000 | B27: Capitalized Furniture, Fixture and Equipment | C27: 4641000 - Capitalized Furniture, Fixture and Equipment
A28: 4642000 | B28: Non Capitalized Furniture, Fixture and Equipment | C28: 4642000 - Non Capitalized Furniture, Fixture and Equipment
A29: 4643000 | B29: Capitalized Computer Hardware | C29: 4643000 - Capitalized Computer Hardware
A30: 4644000 | B30: Non Capitalized Computer Hardware | C30: 4644000 - Non Capitalized Computer Hardware
A31: 4648000 | B31: Tech Related Capitalized Furniture, Fixture and Equipment | C31: 4648000 - Tech Related Capitalized Furniture, Fixture and Equipment
A32: 4649000 | B32: Tech Related Non Capitalized Furniture, Fixture, and Equipment | C32: 4649000 - Tech Related Non Capitalized Furniture, Fixture, and Equipment
A33: 4652000 | B33: Other Motor Vehicles | C33: 4652000 - Other Motor Vehicles
A34: 4691000 | B34: Capitalized Software | C34: 4691000 - Capitalized Software
A35: 4692000 | B35: Non Capitalized Software | C35: 4692000 - Non Capitalized Software
A36: 4730000 | B36: Dues and Fees | C36: 4730000 - Dues and Fees
A37: 4799000 | B37: Technology Realted Other - Misc | C37: 4799000 - Technology Realted Other - Misc
A38: 4790000 | B38: Buses - Field Trips/Tutoring | C38: 4790000 - Buses - Field Trips/Tutoring

Sheet Funds Management
V1: Title I Funds Management Report
V2: ='Budget Overview'!A1 -> Tenoroc High
A3: Grant | B3: Grant Description | C3: Fund | D3: Fund Name | E3: Funded Program | F3: Funded Program Desc | G3: WBS Element | H3: Funds Center | I3: Funds Center Name | J3: Func Area Rollup | K3: FArea Rollup Desc | L3: FA-CI | M3: FA-CI2 | N3: Indiv. Salary Totals | O3: PI Totals | P3: Class | Q3: Salary - Budget | R3: Budget - Other | S3: Encumberances - Other | T3: Actuals - Other | U3: Balance - Other | V3: Functional Area | W3: Functional Area Desc | X3: AVC Rollup | Y3: Description | Z3: Commitment Item | AA3: Commit. Item Desc | AB3: Budget | AC3: Actual Cost of Employees | AD3: Money to Move | AE3: Encumbrances | AF3: Actuals | AG3: Balance
A4: NR | B4: Not-Relevant | C4: 42041019 | D4: TITLE I 19 | E4: G42041019-01 | F4: TT119-PUBLIC SCHOOLS | H4: 1051000000 | I4: Tenoroc High School | J4: 5000 | K4: AVC Instruction | L4: =V4&"-"&Z4 -> 5100-4330000 | M4: 5100-4330000 | N4: =IFERROR(INDEX('FM Calculations'!$C$1:$C$600,MATCH(Table1[[#This Row],[FA-CI2]],'FM Calculations'!$A$1:$A$600,0)),0) -> 0 | O4: =IF('Funds Management'!$V4="6150",SUM('Funds Management'!$AE4:$AF4),0) -> 0 | P4: =IFERROR(INDEX('FM Calculations'!B:B,MATCH('Funds Management'!L:L,'FM Calculations'!A:A,0)),0) -> 0 | Q4: =IF('Funds Management'!$P4="S",'Funds Management'!$AB4,0) -> 0 | R4: =IF('Funds Management'!$P4=0,'Funds Management'!$AB4,0) -> 21000 | S4: =IF('Funds Management'!$P4=0,'Funds Management'!$AE4,0) -> 0 | T4: =IF('Funds Management'!$P4=0,'Funds Management'!$AF4,0) -> 0 | U4: =IF('Funds Management'!$P4=0,'Funds Management'!$AG4,0) -> 21000 | V4: 5100 | W4: I-Basic Instruction | X4: 43 | Y4: Purchased Services | Z4: 4330000 | AA4: Travel | AB4: 21000 | AC4: =IF(Table1[[#This Row],[Class]]="S",Table1[[#This Row],[Indiv. Salary Totals]],"") ->  | AD4: =IF(Table1[[#This Row],[Class]]="s",Table1[[#This Row],[Budget]]-Table1[[#This Row],[Actual Cost of Employees]],"") ->  | AE4: 0 | AF4: 0 | AG4: 21000
A5: NR | B5: Not-Relevant | C5: 42041019 | D5: TITLE I 19 | E5: G42041019-01 | F5: TT119-PUBLIC SCHOOLS | H5: 1051000000 | I5: Tenoroc High School | J5: 5000 | K5: AVC Instruction | L5: 5100-4510000 | M5: 5100-4510000 | N5: =IFERROR(INDEX('FM Calculations'!$C$1:$C$600,MATCH(Table1[[#This Row],[FA-CI2]],'FM Calculations'!$A$1:$A$600,0)),0) -> 0 | O5: =IF('Funds Management'!$V5="6150",SUM('Funds Management'!$AE5:$AF5),0) -> 0 | P5: =IFERROR(INDEX('FM Calculations'!B:B,MATCH('Funds Management'!L:L,'FM Calculations'!A:A,0)),0) -> 0 | Q5: =IF('Funds Management'!$P5="S",'Funds Management'!$AB5,0) -> 0 | R5: =IF('Funds Management'!$P5=0,'Funds Management'!$AB5,0) -> 21265.24 | S5: =IF('Funds Management'!$P5=0,'Funds Management'!$AE5,0) -> 0 | T5: =IF('Funds Management'!$P5=0,'Funds Management'!$AF5,0) -> 0 | U5: =IF('Funds Management'!$P5=0,'Funds Management'!$AG5,0) -> 21265.24 | V5: 5100 | W5: I-Basic Instruction | X5: 45 | Y5: Materials and Supplies | Z5: 4510000 | AA5: Supplies | AB5: 21265.24 | AC5: =IF(Table1[[#This Row],[Class]]="S",Table1[[#This Row],[Indiv. Salary Totals]],"") ->  | AD5: =IF(Table1[[#This Row],[Class]]="s",Table1[[#This Row],[Budget]]-Table1[[#This Row],[Actual Cost of Employees]],"") ->  | AE5: 0 | AF5: 0 | AG5: 21265.24
A6: NR | B6: Not-Relevant | C6: 42041019 | D6: TITLE I 19 | E6: G42041019-01 | F6: TT119-PUBLIC SCHOOLS | H6: 1051000000 | I6: Tenoroc High School | J6: 5000 | K6: AVC Instruction | L6: 5100-4642000 | M6: 5100-4642000 | N6: =IFERROR(INDEX('FM Calculations'!$C$1:$C$600,MATCH(Table1[[#This Row],[FA-CI2]],'FM Calculations'!$A$1:$A$600,0)),0) -> 0 | O6: =IF('Funds Management'!$V6="6150",SUM('Funds Management'!$AE6:$AF6),0) -> 0 | P6: =IFERROR(INDEX('FM Calculations'!B:B,MATCH('Funds Management'!L:L,'FM Calculations'!A:A,0)),0) -> 0 | Q6: =IF('Funds Management'!$P6="S",'Funds Management'!$AB6,0) -> 0 | R6: =IF('Funds Management'!$P6=0,'Funds Management'!$AB6,0) -> 4266 | S6: =IF('Funds Management'!$P6=0,'Funds Management'!$AE6,0) -> 4266 | T6: =IF('Funds Management'!$P6=0,'Funds Management'!$AF6,0) -> 0 | U6: =IF('Funds Management'!$P6=0,'Funds Management'!$AG6,0) -> 0 | V6: 5100 | W6: I-Basic Instruction | X6: 46 | Y6: Capital Outlay | Z6: 4642000 | AA6: Noncap F.F. & E. | AB6: 4266 | AC6: =IF(Table1[[#This Row],[Class]]="S",Table1[[#This Row],[Indiv. Salary Totals]],"") ->  | AD6: =IF(Table1[[#This Row],[Class]]="s",Table1[[#This Row],[Budget]]-Table1[[#This Row],[Actual Cost of Employees]],"") ->  | AE6: 4266 | AF6: 0 | AG6: 0
A7: NR | B7: Not-Relevant | C7: 42041019 | D7: TITLE I 19 | E7: G42041019-01 | F7: TT119-PUBLIC SCHOOLS | H7: 1051000000 | I7: Tenoroc High School | J7: 5000 | K7: AVC Instruction | L7: 5100-4730000 | M7: 5100-4730000 | N7: =IFERROR(INDEX('FM Calculations'!$C$1:$C$600,MATCH(Table1[[#This Row],[FA-CI2]],'FM Calculations'!$A$1:$A$600,0)),0) -> 0 | O7: =IF('Funds Management'!$V7="6150",SUM('Funds Management'!$AE7:$AF7),0) -> 0 | P7: =IFERROR(INDEX('FM Calculations'!B:B,MATCH('Funds Management'!L:L,'FM Calculations'!A:A,0)),0) -> 0 | Q7: =IF('Funds Management'!$P7="S",'Funds Management'!$AB7,0) -> 0 | R7: =IF('Funds Management'!$P7=0,'Funds Management'!$AB7,0) -> 4000 | S7: =IF('Funds Management'!$P7=0,'Funds Management'!$AE7,0) -> 0 | T7: =IF('Funds Management'!$P7=0,'Funds Management'!$AF7,0) -> 0 | U7: =IF('Funds Management'!$P7=0,'Funds Management'!$AG7,0) -> 4000 | V7: 5100 | W7: I-Basic Instruction | X7: 47 | Y7: Other Expenses | Z7: 4730000 | AA7: Dues and Fees | AB7: 4000 | AC7: =IF(Table1[[#This Row],[Class]]="S",Table1[[#This Row],[Indiv. Salary Totals]],"") ->  | AD7: =IF(Table1[[#This Row],[Class]]="s",Table1[[#This Row],[Budget]]-Table1[[#This Row],[Actual Cost of Employees]],"") ->  | AE7: 0 | AF7: 0 | AG7: 4000
A8: NR | B8: Not-Relevant | C8: 42041019 | D8: TITLE I 19 | E8: G42041019-01 | F8: TT119-PUBLIC SCHOOLS | H8: 1051000000 | I8: Tenoroc High School | J8: 5000 | K8: AVC Instruction | L8: 5100-4790000 | M8: 5100-4790000 | N8: =IFERROR(INDEX('FM Calculations'!$C$1:$C$600,MATCH(Table1[[#This Row],[FA-CI2]],'FM Calculations'!$A$1:$A$600,0)),0) -> 0 | O8: =IF('Funds Management'!$V8="6150",SUM('Funds Management'!$AE8:$AF8),0) -> 0 | P8: =IFERROR(INDEX('FM Calculations'!B:B,MATCH('Funds Management'!L:L,'FM Calculations'!A:A,0)),0) -> 0 | Q8: =IF('Funds Management'!$P8="S",'Funds Management'!$AB8,0) -> 0 | R8: =IF('Funds Management'!$P8=0,'Funds Management'!$AB8,0) -> 10000 | S8: =IF('Funds Management'!$P8=0,'Funds Management'!$AE8,0) -> 0 | T8: =IF('Funds Management'!$P8=0,'Funds Management'!$AF8,0) -> 0 | U8: =IF('Funds Management'!$P8=0,'Funds Management'!$AG8,0) -> 10000 | V8: 5100 | W8: I-Basic Instruction | X8: 47 | Y8: Other Expenses | Z8: 4790000 | AA8: Field Trips | AB8: 10000 | AC8: =IF(Table1[[#This Row],[Class]]="S",Table1[[#This Row],[Indiv. Salary Totals]],"") ->  | AD8: =IF(Table1[[#This Row],[Class]]="s",Table1[[#This Row],[Budget]]-Table1[[#This Row],[Actual Cost of Employees]],"") ->  | AE8: 0 | AF8: 0 | AG8: 10000
A9: NR | B9: Not-Relevant | C9: 42041019 | D9: TITLE I 19 | E9: G42041019-01 | F9: TT119-PUBLIC SCHOOLS | H9: 1051000000 | I9: Tenoroc High School | J9: 6100 | K9: AVC G-Pupil Personnel Srv | L9: 6150-4510000 | M9: 6150-4510000 | N9: =IFERROR(INDEX('FM Calculations'!$C$1:$C$600,MATCH(Table1[[#This Row],[FA-CI2]],'FM Calculations'!$A$1:$A$600,0)),0) -> 0 | O9: =IF('Funds Management'!$V9="6150",SUM('Funds Management'!$AE9:$AF9),0) -> 1861.22 | P9: =IFERROR(INDEX('FM Calculations'!B:B,MATCH('Funds Management'!L:L,'FM Calculations'!A:A,0)),0) -> 0 | Q9: =IF('Funds Management'!$P9="S",'Funds Management'!$AB9,0) -> 0 | R9: =IF('Funds Management'!$P9=0,'Funds Management'!$AB9,0) -> 3203 | S9: =IF('Funds Management'!$P9=0,'Funds Management'!$AE9,0) -> 1861.22 | T9: =IF('Funds Management'!$P9=0,'Funds Management'!$AF9,0) -> 0 | U9: =IF('Funds Management'!$P9=0,'Funds Management'!$AG9,0) -> 1341.78 | V9: 6150 | W9: P-Parental Involvement | X9: 45 | Y9: Materials and Supplies | Z9: 4510000 | AA9: Supplies | AB9: 3203 | AC9: =IF(Table1[[#This Row],[Class]]="S",Table1[[#This Row],[Indiv. Salary Totals]],"") ->  | AD9: =IF(Table1[[#This Row],[Class]]="s",Table1[[#This Row],[Budget]]-Table1[[#This Row],[Actual Cost of Employees]],"") ->  | AE9: 1861.22 | AF9: 0 | AG9: 1341.78
A10: NR | B10: Not-Relevant | C10: 42041019 | D10: TITLE I 19 | E10: G42041019-01 | F10: TT119-PUBLIC SCHOOLS | H10: 1051000000 | I10: Tenoroc High School | J10: 6300 | K10: C-Curriculum Development | L10: 6300-4310000 | M10: 6300-4310000 | N10: =IFERROR(INDEX('FM Calculations'!$C$1:$C$600,MATCH(Table1[[#This Row],[FA-CI2]],'FM Calculations'!$A$1:$A$600,0)),0) -> 0 | O10: =IF('Funds Management'!$V10="6150",SUM('Funds Management'!$AE10:$AF10),0) -> 0 | P10: =IFERROR(INDEX('FM Calculations'!B:B,MATCH('Funds Management'!L:L,'FM Calculations'!A:A,0)),0) -> 0 | Q10: =IF('Funds Management'!$P10="S",'Funds Management'!$AB10,0) -> 0 | R10: =IF('Funds Management'!$P10=0,'Funds Management'!$AB10,0) -> 8120.09 | S10: =IF('Funds Management'!$P10=0,'Funds Management'!$AE10,0) -> 0 | T10: =IF('Funds Management'!$P10=0,'Funds Management'!$AF10,0) -> 8120.09 | U10: =IF('Funds Management'!$P10=0,'Funds Management'!$AG10,0) -> 0 | V10: 6300 | W10: C-Curriculum Development | X10: 43 | Y10: Purchased Services | Z10: 4310000 | AA10: Prof & Tech Svcs | AB10: 8120.09 | AC10: =IF(Table1[[#This Row],[Class]]="S",Table1[[#This Row],[Indiv. Salary Totals]],"") ->  | AD10: =IF(Table1[[#This Row],[Class]]="s",Table1[[#This Row],[Budget]]-Table1[[#This Row],[Actual Cost of Employees]],"") ->  | AE10: 0 | AF10: 8120.09 | AG10: 0
A11: NR | B11: Not-Relevant | C11: 42041019 | D11: TITLE I 19 | E11: G42041019-01 | F11: TT119-PUBLIC SCHOOLS | H11: 1051000000 | I11: Tenoroc High School | J11: 6300 | K11: C-Curriculum Development | L11: 6300-4310300 | M11: 6300-4310300 | N11: =IFERROR(INDEX('FM Calculations'!$C$1:$C$600,MATCH(Table1[[#This Row],[FA-CI2]],'FM Calculations'!$A$1:$A$600,0)),0) -> 0 | O11: =IF('Funds Management'!$V11="6150",SUM('Funds Management'!$AE11:$AF11),0) -> 0 | P11: =IFERROR(INDEX('FM Calculations'!B:B,MATCH('Funds Management'!L:L,'FM Calculations'!A:A,0)),0) -> 0 | Q11: =IF('Funds Management'!$P11="S",'Funds Management'!$AB11,0) -> 0 | R11: =IF('Funds Management'!$P11=0,'Funds Management'!$AB11,0) -> 0 | S11: =IF('Funds Management'!$P11=0,'Funds Management'!$AE11,0) -> 0 | T11: =IF('Funds Management'!$P11=0,'Funds Management'!$AF11,0) -> 0 | U11: =IF('Funds Management'!$P11=0,'Funds Management'!$AG11,0) -> 0 | V11: 6300 | W11: C-Curriculum Development | X11: 43 | Y11: Purchased Services | Z11: 4310300 | AA11: PROF/TECH-SUB & PARA | AB11: 0 | AC11: =IF(Table1[[#This Row],[Class]]="S",Table1[[#This Row],[Indiv. Salary Totals]],"") ->  | AD11: =IF(Table1[[#This Row],[Class]]="s",Table1[[#This Row],[Budget]]-Table1[[#This Row],[Actual Cost of Employees]],"") ->  | AE11: 0 | AF11: 0 | AG11: 0
A12: NR | B12: Not-Relevant | C12: 42041019 | D12: TITLE I 19 | E12: G42041019-01 | F12: TT119-PUBLIC SCHOOLS | H12: 1051000000 | I12: Tenoroc High School | J12: 6400 | K12: D-Instructional Staff Trn | L12: 6400-4130000 | M12: 6400-4130000 | N12: =IFERROR(INDEX('FM Calculations'!$C$1:$C$600,MATCH(Table1[[#This Row],[FA-CI2]],'FM Calculations'!$A$1:$A$600,0)),0) -> 81069.57724 | O12: =IF('Funds Management'!$V12="6150",SUM('Funds Management'!$AE12:$AF12),0) -> 0 | P12: =IFERROR(INDEX('FM Calculations'!B:B,MATCH('Funds Management'!L:L,'FM Calculations'!A:A,0)),0) -> S | Q12: =IF('Funds Management'!$P12="S",'Funds Management'!$AB12,0) -> 96478 | R12: =IF('Funds Management'!$P12=0,'Funds Management'!$AB12,0) -> 0 | S12: =IF('Funds Management'!$P12=0,'Funds Management'!$AE12,0) -> 0 | T12: =IF('Funds Management'!$P12=0,'Funds Management'!$AF12,0) -> 0 | U12: =IF('Funds Management'!$P12=0,'Funds Management'!$AG12,0) -> 0 | V12: 6400 | W12: D-Instructional Staff Trn | X12: 41 | Y12: Salaries | Z12: 4130000 | AA12: Oth Cert Instr Pers | AB12: 96478 | AC12: =IF(Table1[[#This Row],[Class]]="S",Table1[[#This Row],[Indiv. Salary Totals]],"") -> 81069.57724 | AD12: =IF(Table1[[#This Row],[Class]]="s",Table1[[#This Row],[Budget]]-Table1[[#This Row],[Actual Cost of Employees]],"") -> 15408.42276 | AE12: 0 | AF12: 0 | AG12: 96478
A13: NR | B13: Not-Relevant | C13: 42041019 | D13: TITLE I 19 | E13: G42041019-01 | F13: TT119-PUBLIC SCHOOLS | H13: 1051000000 | I13: Tenoroc High School | J13: 6400 | K13: D-Instructional Staff Trn | L13: 6400-4210000 | M13: 6400-4210000 | N13: =IFERROR(INDEX('FM Calculations'!$C$1:$C$600,MATCH(Table1[[#This Row],[FA-CI2]],'FM Calculations'!$A$1:$A$600,0)),0) -> 6696.35 | O13: =IF('Funds Management'!$V13="6150",SUM('Funds Management'!$AE13:$AF13),0) -> 0 | P13: =IFERROR(INDEX('FM Calculations'!B:B,MATCH('Funds Management'!L:L,'FM Calculations'!A:A,0)),0) -> S | Q13: =IF('Funds Management'!$P13="S",'Funds Management'!$AB13,0) -> 7969 | R13: =IF('Funds Management'!$P13=0,'Funds Management'!$AB13,0) -> 0 | S13: =IF('Funds Management'!$P13=0,'Funds Management'!$AE13,0) -> 0 | T13: =IF('Funds Management'!$P13=0,'Funds Management'!$AF13,0) -> 0 | U13: =IF('Funds Management'!$P13=0,'Funds Management'!$AG13,0) -> 0 | V13: 6400 | W13: D-Instructional Staff Trn | X13: 42 | Y13: Employee Benefits | Z13: 4210000 | AA13: Retirement | AB13: 7969 | AC13: =IF(Table1[[#This Row],[Class]]="S",Table1[[#This Row],[Indiv. Salary Totals]],"") -> 6696.35 | AD13: =IF(Table1[[#This Row],[Class]]="s",Table1[[#This Row],[Budget]]-Table1[[#This Row],[Actual Cost of Employees]],"") -> 1272.65 | AE13: 0 | AF13: 0 | AG13: 7969
A14: NR | B14: Not-Relevant | C14: 42041019 | D14: TITLE I 19 | E14: G42041019-01 | F14: TT119-PUBLIC SCHOOLS | H14: 1051000000 | I14: Tenoroc High School | J14: 6400 | K14: D-Instructional Staff Trn | L14: 6400-4220000 | M14: 6400-4220000 | N14: =IFERROR(INDEX('FM Calculations'!$C$1:$C$600,MATCH(Table1[[#This Row],[FA-CI2]],'FM Calculations'!$A$1:$A$600,0)),0) -> 6201.82 | O14: =IF('Funds Management'!$V14="6150",SUM('Funds Management'!$AE14:$AF14),0) -> 0 | P14: =IFERROR(INDEX('FM Calculations'!B:B,MATCH('Funds Management'!L:L,'FM Calculations'!A:A,0)),0) -> S | Q14: =IF('Funds Management'!$P14="S",'Funds Management'!$AB14,0) -> 7381 | R14: =IF('Funds Management'!$P14=0,'Funds Management'!$AB14,0) -> 0 | S14: =IF('Funds Management'!$P14=0,'Funds Management'!$AE14,0) -> 0 | T14: =IF('Funds Management'!$P14=0,'Funds Management'!$AF14,0) -> 0 | U14: =IF('Funds Management'!$P14=0,'Funds Management'!$AG14,0) -> 0 | V14: 6400 | W14: D-Instructional Staff Trn | X14: 42 | Y14: Employee Benefits | Z14: 4220000 | AA14: Emp Benefits-S.S. | AB14: 7381 | AC14: =IF(Table1[[#This Row],[Class]]="S",Table1[[#This Row],[Indiv. Salary Totals]],"") -> 6201.82 | AD14: =IF(Table1[[#This Row],[Class]]="s",Table1[[#This Row],[Budget]]-Table1[[#This Row],[Actual Cost of Employees]],"") -> 1179.18 | AE14: 0 | AF14: 0 | AG14: 7381
A15: NR | B15: Not-Relevant | C15: 42041019 | D15: TITLE I 19 | E15: G42041019-01 | F15: TT119-PUBLIC SCHOOLS | H15: 1051000000 | I15: Tenoroc High School | J15: 6400 | K15: D-Instructional Staff Trn | L15: 6400-4231000 | M15: 6400-4231000 | N15: =IFERROR(INDEX('FM Calculations'!$C$1:$C$600,MATCH(Table1[[#This Row],[FA-CI2]],'FM Calculations'!$A$1:$A$600,0)),0) -> 12894 | O15: =IF('Funds Management'!$V15="6150",SUM('Funds Management'!$AE15:$AF15),0) -> 0 | P15: =IFERROR(INDEX('FM Calculations'!B:B,MATCH('Funds Management'!L:L,'FM Calculations'!A:A,0)),0) -> S | Q15: =IF('Funds Management'!$P15="S",'Funds Management'!$AB15,0) -> 14736 | R15: =IF('Funds Management'!$P15=0,'Funds Management'!$AB15,0) -> 0 | S15: =IF('Funds Management'!$P15=0,'Funds Management'!$AE15,0) -> 0 | T15: =IF('Funds Management'!$P15=0,'Funds Management'!$AF15,0) -> 0 | U15: =IF('Funds Management'!$P15=0,'Funds Management'!$AG15,0) -> 0 | V15: 6400 | W15: D-Instructional Staff Trn | X15: 42 | Y15: Employee Benefits | Z15: 4231000 | AA15: Group Insur.-Health | AB15: 14736 | AC15: =IF(Table1[[#This Row],[Class]]="S",Table1[[#This Row],[Indiv. Salary Totals]],"") -> 12894 | AD15: =IF(Table1[[#This Row],[Class]]="s",Table1[[#This Row],[Budget]]-Table1[[#This Row],[Actual Cost of Employees]],"") -> 1842 | AE15: 0 | AF15: 0 | AG15: 14736
A16: NR | B16: Not-Relevant | C16: 42041019 | D16: TITLE I 19 | E16: G42041019-01 | F16: TT119-PUBLIC SCHOOLS | H16: 1051000000 | I16: Tenoroc High School | J16: 6400 | K16: D-Instructional Staff Trn | L16: 6400-4232000 | M16: 6400-4232000 | N16: =IFERROR(INDEX('FM Calculations'!$C$1:$C$600,MATCH(Table1[[#This Row],[FA-CI2]],'FM Calculations'!$A$1:$A$600,0)),0) -> 33.6 | O16: =IF('Funds Management'!$V16="6150",SUM('Funds Management'!$AE16:$AF16),0) -> 0 | P16: =IFERROR(INDEX('FM Calculations'!B:B,MATCH('Funds Management'!L:L,'FM Calculations'!A:A,0)),0) -> S | Q16: =IF('Funds Management'!$P16="S",'Funds Management'!$AB16,0) -> 38 | R16: =IF('Funds Management'!$P16=0,'Funds Management'!$AB16,0) -> 0 | S16: =IF('Funds Management'!$P16=0,'Funds Management'!$AE16,0) -> 0 | T16: =IF('Funds Management'!$P16=0,'Funds Management'!$AF16,0) -> 0 | U16: =IF('Funds Management'!$P16=0,'Funds Management'!$AG16,0) -> 0 | V16: 6400 | W16: D-Instructional Staff Trn | X16: 42 | Y16: Employee Benefits | Z16: 4232000 | AA16: Group Insurance-Life | AB16: 38 | AC16: =IF(Table1[[#This Row],[Class]]="S",Table1[[#This Row],[Indiv. Salary Totals]],"") -> 33.6 | AD16: =IF(Table1[[#This Row],[Class]]="s",Table1[[#This Row],[Budget]]-Table1[[#This Row],[Actual Cost of Employees]],"") -> 4.4 | AE16: 0 | AF16: 0 | AG16: 38
A17: NR | B17: Not-Relevant | C17: 42041019 | D17: TITLE I 19 | E17: G42041019-01 | F17: TT119-PUBLIC SCHOOLS | H17: 1051000000 | I17: Tenoroc High School | J17: 6400 | K17: D-Instructional Staff Trn | L17: 6400-4240000 | M17: 6400-4240000 | N17: =IFERROR(INDEX('FM Calculations'!$C$1:$C$600,MATCH(Table1[[#This Row],[FA-CI2]],'FM Calculations'!$A$1:$A$600,0)),0) -> 453.9896326 | O17: =IF('Funds Management'!$V17="6150",SUM('Funds Management'!$AE17:$AF17),0) -> 0 | P17: =IFERROR(INDEX('FM Calculations'!B:B,MATCH('Funds Management'!L:L,'FM Calculations'!A:A,0)),0) -> S | Q17: =IF('Funds Management'!$P17="S",'Funds Management'!$AB17,0) -> 540 | R17: =IF('Funds Management'!$P17=0,'Funds Management'!$AB17,0) -> 0 | S17: =IF('Funds Management'!$P17=0,'Funds Management'!$AE17,0) -> 0 | T17: =IF('Funds Management'!$P17=0,'Funds Management'!$AF17,0) -> 0 | U17: =IF('Funds Management'!$P17=0,'Funds Management'!$AG17,0) -> 0 | V17: 6400 | W17: D-Instructional Staff Trn | X17: 42 | Y17: Employee Benefits | Z17: 4240000 | AA17: Worker's Comp | AB17: 540 | AC17: =IF(Table1[[#This Row],[Class]]="S",Table1[[#This Row],[Indiv. Salary Totals]],"") -> 453.9896326 | AD17: =IF(Table1[[#This Row],[Class]]="s",Table1[[#This Row],[Budget]]-Table1[[#This Row],[Actual Cost of Employees]],"") -> 86.01036743 | AE17: 0 | AF17: 0 | AG17: 540
A18: NR | B18: Not-Relevant | C18: 42041019 | D18: TITLE I 19 | E18: G42041019-01 | F18: TT119-PUBLIC SCHOOLS | H18: 1051000000 | I18: Tenoroc High School | J18: 6400 | K18: D-Instructional Staff Trn | L18: 6400-4310000 | M18: 6400-4310000 | N18: =IFERROR(INDEX('FM Calculations'!$C$1:$C$600,MATCH(Table1[[#This Row],[FA-CI2]],'FM Calculations'!$A$1:$A$600,0)),0) -> 0 | O18: =IF('Funds Management'!$V18="6150",SUM('Funds Management'!$AE18:$AF18),0) -> 0 | P18: =IFERROR(INDEX('FM Calculations'!B:B,MATCH('Funds Management'!L:L,'FM Calculations'!A:A,0)),0) -> 0 | Q18: =IF('Funds Management'!$P18="S",'Funds Management'!$AB18,0) -> 0 | R18: =IF('Funds Management'!$P18=0,'Funds Management'!$AB18,0) -> 20068.67 | S18: =IF('Funds Management'!$P18=0,'Funds Management'!$AE18,0) -> 0 | T18: =IF('Funds Management'!$P18=0,'Funds Management'!$AF18,0) -> 20068.67 | U18: =IF('Funds Management'!$P18=0,'Funds Management'!$AG18,0) -> 0 | V18: 6400 | W18: D-Instructional Staff Trn | X18: 43 | Y18: Purchased Services | Z18: 4310000 | AA18: Prof & Tech Svcs | AB18: 20068.67 | AC18: =IF(Table1[[#This Row],[Class]]="S",Table1[[#This Row],[Indiv. Salary Totals]],"") ->  | AD18: =IF(Table1[[#This Row],[Class]]="s",Table1[[#This Row],[Budget]]-Table1[[#This Row],[Actual Cost of Employees]],"") ->  | AE18: 0 | AF18: 20068.67 | AG18: 0
A19: NR | B19: Not-Relevant | C19: 42041019 | D19: TITLE I 19 | E19: G42041019-01 | F19: TT119-PUBLIC SCHOOLS | H19: 1051000000 | I19: Tenoroc High School | J19: 6400 | K19: D-Instructional Staff Trn | L19: 6400-4310300 | M19: 6400-4310300 | N19: =IFERROR(INDEX('FM Calculations'!$C$1:$C$600,MATCH(Table1[[#This Row],[FA-CI2]],'FM Calculations'!$A$1:$A$600,0)),0) -> 0 | O19: =IF('Funds Management'!$V19="6150",SUM('Funds Management'!$AE19:$AF19),0) -> 0 | P19: =IFERROR(INDEX('FM Calculations'!B:B,MATCH('Funds Management'!L:L,'FM Calculations'!A:A,0)),0) -> 0 | Q19: =IF('Funds Management'!$P19="S",'Funds Management'!$AB19,0) -> 0 | R19: =IF('Funds Management'!$P19=0,'Funds Management'!$AB19,0) -> 8704 | S19: =IF('Funds Management'!$P19=0,'Funds Management'!$AE19,0) -> 0 | T19: =IF('Funds Management'!$P19=0,'Funds Management'!$AF19,0) -> 0 | U19: =IF('Funds Management'!$P19=0,'Funds Management'!$AG19,0) -> 8704 | V19: 6400 | W19: D-Instructional Staff Trn | X19: 43 | Y19: Purchased Services | Z19: 4310300 | AA19: PROF/TECH-SUB & PARA | AB19: 8704 | AC19: =IF(Table1[[#This Row],[Class]]="S",Table1[[#This Row],[Indiv. Salary Totals]],"") ->  | AD19: =IF(Table1[[#This Row],[Class]]="s",Table1[[#This Row],[Budget]]-Table1[[#This Row],[Actual Cost of Employees]],"") ->  | AE19: 0 | AF19: 0 | AG19: 8704
A20: NR | B20: Not-Relevant | C20: 42041019 | D20: TITLE I 19 | E20: G42041019-01 | F20: TT119-PUBLIC SCHOOLS | H20: 1051000000 | I20: Tenoroc High School | J20: 6400 | K20: D-Instructional Staff Trn | L20: 6400-4330000 | M20: 6400-4330000 | N20: =IFERROR(INDEX('FM Calculations'!$C$1:$C$600,MATCH(Table1[[#This Row],[FA-CI2]],'FM Calculations'!$A$1:$A$600,0)),0) -> 0 | O20: =IF('Funds Management'!$V20="6150",SUM('Funds Management'!$AE20:$AF20),0) -> 0 | P20: =IFERROR(INDEX('FM Calculations'!B:B,MATCH('Funds Management'!L:L,'FM Calculations'!A:A,0)),0) -> 0 | Q20: =IF('Funds Management'!$P20="S",'Funds Management'!$AB20,0) -> 0 | R20: =IF('Funds Management'!$P20=0,'Funds Management'!$AB20,0) -> 50000 | S20: =IF('Funds Management'!$P20=0,'Funds Management'!$AE20,0) -> 0 | T20: =IF('Funds Management'!$P20=0,'Funds Management'!$AF20,0) -> 0 | U20: =IF('Funds Management'!$P20=0,'Funds Management'!$AG20,0) -> 50000 | V20: 6400 | W20: D-Instructional Staff Trn | X20: 43 | Y20: Purchased Services | Z20: 4330000 | AA20: Travel | AB20: 50000 | AC20: =IF(Table1[[#This Row],[Class]]="S",Table1[[#This Row],[Indiv. Salary Totals]],"") ->  | AD20: =IF(Table1[[#This Row],[Class]]="s",Table1[[#This Row],[Budget]]-Table1[[#This Row],[Actual Cost of Employees]],"") ->  | AE20: 0 | AF20: 0 | AG20: 50000

Sheet Remaining Balance
A1: Title I Budget
A2: Remaining Balance
A3: ='Budget Overview'!A1 -> Tenoroc High
A4: 2018-2019
A6: Projected Personnel Salary and Benefits (Personnel Tab) | G6: =SUM(Expenditures!M5,Expenditures!M6) -> 122714.88
A8: Budgeted Personnel Salary and Benefits (SAP) | G8: =SUM('Funds Management'!Q:Q) -> 127142
A10: Projected Special Activity Payroll Salary and Benefits (Personnel Tab) | G10: =GETPIVOTDATA("Total Salary and Benefits",'H - Pivots'!$A$116) -> 15365.54
A11: Unapproved Special Activity Total | G11: =GETPIVOTDATA("SA Unapproved Amount",'H - Pivots'!$A$151) -> 0
A12: Actual Special Activity Payroll Expenditures (Not included in calculation of excess funds below) | G12: =IFERROR(GETPIVOTDATA("[Measures].[Sum of Total]",'Special Activity Expenditures'!$K$32),0) -> 0
C13: =IF((G10-G12)<0,"Warning-SA Payrolls Exceed Budgeted Amount","") -> 
A14: Funds Budgeted for Salary and Benefits Exceed Amount Projected When Negative | G14: =G8-G6 -> 4427.12
A16: Funds Remaining in Non-Salary and Benefit Lines on Funds Management Report | G16: =SUM('Funds Management'!U:U) -> 116311.02
A18: Overall Remaining Balance | G18: =G16+G14 -> 120738.14
C19: =IF(G18<0,"Warning-Negative Balance","") -> 
A20: Parent Involvement Minimum Requirement Remaining | G20: ='Budget Overview'!B7-SUM('Funds Management'!O:O) -> 1341.78 | H20: 20
A21: Parent Involvement Minimum Requirement Remaining Unspent (SAP) | G21: =IF(G20>0,G20,0) -> 1341.78
C22: =IF(G21>0,"Warning-Parent Involvement Minimum Not Yet Met","") -> Warning-Parent Involvement Minimum Not Yet Met
A23: Remaining Unspent Non-Parent Involvement Balance (SAP) (Includes Unplanned Special Activity Balance) | G23: =G18-G21+G11 -> 119396.36
C24: =IF(G23<0,"Warning-Negative Balance","") -> 
A28: The data on this sheet may not include pending expenditures that have not yet appeared on the Funds Management Report. Compare the expenditures listed on your school's Funds Management Report with known expenditures to ensure accuracy of this data.

Sheet H-RB Summary (hidden)
A1: Location Name | B1: Location Number | C1: Remaining PI Minimum | D1: Remaining Unspent Non-Parent Involvement Balance | E1: Remaining Unplanned | F1: Remaining Balance - Special Activity Planned
A2: =Expenditures!B2 -> Tenoroc High | B2: =Expenditures!D2 -> 1051 | C2: ='Remaining Balance'!G21 -> 1341.78 | D2: ='Remaining Balance'!G23 -> 119396.36 | E2: =Expenditures!H2 -> 0 | F2: ='Remaining Balance'!G23-Expenditures!G6 -> 104030.82

Sheet Special Activity Expenditures
A1: Special Activity Payroll Expenditures
A2: Title I, School Wide 2018-2019
A3: ='Budget Overview'!A1 -> Tenoroc High
A5: Special Activity Description | B5: Month | C5: Total | D5: Date | E5: Notes
B6: January
B7: February
B8: March
B9: April
B10: May
B11: June
B12: July
B13: August
B14: September
B15: October | G15: Type of Personnel Expense | H15: (blank)
B16: November | G16: Funding | H16: School TTI
B17: December
G18: Description | H18: Total Planned | I18: Amount Unspent
G19: (blank) | H19: 0 | I19: =IFERROR(H19-(INDEX(X:X,MATCH(G:G,K:K,0))),"") -> 0
J24: =IFERROR(VALUE(I24),"") -> 
L32: Column Labels
K33: Row Labels | L33: (blank) | M33: April | N33: August | O33: December | P33: February | Q33: January | R33: July | S33: June | T33: March | U33: May | V33: November | W33: October | X33: September | Y33: Grand Total
K34: (blank)
K35: Grand Total
I51: =IFERROR(H51-(INDEX(X:X,MATCH(G:G,K:K,0))),"") -> 
I83: =IFERROR(H83-(INDEX(X:X,MATCH(G:G,K:K,0))),"") -> 
J84: =IFERROR(VALUE(I84),"") -> 
I115: =IFERROR(H115-(INDEX(X:X,MATCH(G:G,K:K,0))),"") -> 

Sheet Comparison Sheet (hidden)
A1: Comparison Sheet - Salary Analysis/Fund Management Report | H1: Total Budgeted | J1: Total Projected | L1: Total Difference
A2: Title I Schoolwide Funds 2018-2019 | H2: =SUM(H8:H188) -> 127142 | J2: =SUM(J8:J188) -> 122714.8746 | L2: =SUM(L8:L188) -> 4427.125433
B3: School Name | C3: ='Budget Overview'!A1 -> Tenoroc High
H5: Amount Budgeted | J5: Title I Paid Employees
A6: Description | C6: Function | F6: GL Acct | H6: on Fund Mgmt Rpt | J6: Anticipated Actual Expense | L6: Difference
C7: 5100 | H7: Funds Management Report | J7: Personnel Expenditures | L7: Money to move
A8: Salaries - Teachers | C8: Instructional | D8: 5100 | E8: =D8&"-"&F8 -> 5100-4120000 | F8: 4120000 | H8: =IFERROR(INDEX('Funds Management'!Q:Q,MATCH('Comparison Sheet'!E8,'Funds Management'!M:M,0)),0) -> 0 | J8: =IFERROR(INDEX('FM Calculations'!C:C,MATCH('Comparison Sheet'!E:E,'FM Calculations'!A:A,0)),0) -> 0 | L8: =SUM(H8-J8) -> 0
A9: Salaries - Network Manager, Interventionists, SSC | C9: Instructional | D9: 5100 | E9: =D9&"-"&F9 -> 5100-4130000 | F9: 4130000 | H9: =IFERROR(INDEX('Funds Management'!Q:Q,MATCH('Comparison Sheet'!E9,'Funds Management'!M:M,0)),0) -> 0 | J9: =IFERROR(INDEX('FM Calculations'!C:C,MATCH('Comparison Sheet'!E:E,'FM Calculations'!A:A,0)),0) -> 0 | L9: =SUM(H9-J9) -> 0
A10: Salaries - Paraprofessionals | C10: Instructional | D10: 5100 | E10: 5100-4150000 | F10: 4150000 | H10: =IFERROR(INDEX('Funds Management'!Q:Q,MATCH('Comparison Sheet'!E10,'Funds Management'!M:M,0)),0) -> 0 | J10: =IFERROR(INDEX('FM Calculations'!C:C,MATCH('Comparison Sheet'!E:E,'FM Calculations'!A:A,0)),0) -> 0 | L10: 0
A11: Salaries - Paraprofessionals Overtime | C11: Instructional | D11: 5100 | E11: 5100-4152000 | F11: 4152000 | H11: =IFERROR(INDEX('Funds Management'!Q:Q,MATCH('Comparison Sheet'!E11,'Funds Management'!M:M,0)),0) -> 0 | J11: =IFERROR(INDEX('FM Calculations'!C:C,MATCH('Comparison Sheet'!E:E,'FM Calculations'!A:A,0)),0) -> 0 | L11: 0
A12: Salaries - Secretaries | C12: Instructional | D12: 5100 | E12: 5100-4160000 | F12: 4160000 | H12: =IFERROR(INDEX('Funds Management'!Q:Q,MATCH('Comparison Sheet'!E12,'Funds Management'!M:M,0)),0) -> 0 | J12: =IFERROR(INDEX('FM Calculations'!C:C,MATCH('Comparison Sheet'!E:E,'FM Calculations'!A:A,0)),0) -> 0 | L12: 0
A13: Salaries - Secretaries Overtime | C13: Instructional | D13: 5100 | E13: 5100-4162000 | F13: 4162000 | H13: =IFERROR(INDEX('Funds Management'!Q:Q,MATCH('Comparison Sheet'!E13,'Funds Management'!M:M,0)),0) -> 0 | J13: =IFERROR(INDEX('FM Calculations'!C:C,MATCH('Comparison Sheet'!E:E,'FM Calculations'!A:A,0)),0) -> 0 | L13: 0
A14: Retirement | C14: Instructional | D14: 5100 | E14: 5100-4210000 | F14: 4210000 | H14: =IFERROR(INDEX('Funds Management'!Q:Q,MATCH('Comparison Sheet'!E14,'Funds Management'!M:M,0)),0) -> 0 | J14: =IFERROR(INDEX('FM Calculations'!C:C,MATCH('Comparison Sheet'!E:E,'FM Calculations'!A:A,0)),0) -> 0 | L14: 0
A15: Social Security | C15: Instructional | D15: 5100 | E15: 5100-4220000 | F15: 4220000 | H15: =IFERROR(INDEX('Funds Management'!Q:Q,MATCH('Comparison Sheet'!E15,'Funds Management'!M:M,0)),0) -> 0 | J15: =IFERROR(INDEX('FM Calculations'!C:C,MATCH('Comparison Sheet'!E:E,'FM Calculations'!A:A,0)),0) -> 0 | L15: 0
A16: Health Insurance | C16: Instructional | D16: 5100 | E16: 5100-4231000 | F16: 4231000 | H16: =IFERROR(INDEX('Funds Management'!Q:Q,MATCH('Comparison Sheet'!E16,'Funds Management'!M:M,0)),0) -> 0 | J16: =IFERROR(INDEX('FM Calculations'!C:C,MATCH('Comparison Sheet'!E:E,'FM Calculations'!A:A,0)),0) -> 0 | L16: 0
A17: Life Insurance | C17: Instructional | D17: 5100 | E17: 5100-4232000 | F17: 4232000 | H17: =IFERROR(INDEX('Funds Management'!Q:Q,MATCH('Comparison Sheet'!E17,'Funds Management'!M:M,0)),0) -> 0 | J17: =IFERROR(INDEX('FM Calculations'!C:C,MATCH('Comparison Sheet'!E:E,'FM Calculations'!A:A,0)),0) -> 0 | L17: 0
A18: Workers Compensation | C18: Instructional | D18: 5100 | E18: 5100-4240000 | F18: 4240000 | H18: =IFERROR(INDEX('Funds Management'!Q:Q,MATCH('Comparison Sheet'!E18,'Funds Management'!M:M,0)),0) -> 0 | J18: =IFERROR(INDEX('FM Calculations'!C:C,MATCH('Comparison Sheet'!E:E,'FM Calculations'!A:A,0)),0) -> 0 | L18: 0
H19: =IFERROR(INDEX('Funds Management'!Q:Q,MATCH('Comparison Sheet'!E19,'Funds Management'!M:M,0)),0) -> 0
C20: 5200 | H20: =IFERROR(INDEX('Funds Management'!Q:Q,MATCH('Comparison Sheet'!E20,'Funds Management'!M:M,0)),0) -> 0
A21: Salaries - Teachers | C21: ESE | D21: 5200 | E21: =D21&"-"&F21 -> 5200-4120000 | F21: 4120000 | H21: =IFERROR(INDEX('Funds Management'!Q:Q,MATCH('Comparison Sheet'!E21,'Funds Management'!M:M,0)),0) -> 0 | J21: =IFERROR(INDEX('FM Calculations'!C:C,MATCH('Comparison Sheet'!E:E,'FM Calculations'!A:A,0)),0) -> 0 | L21: 0
A22: Salaries - Network Manager, Interventionists, SSC | C22: ESE | D22: 5200 | E22: =D22&"-"&F22 -> 5200-4130000 | F22: 4130000 | H22: =IFERROR(INDEX('Funds Management'!Q:Q,MATCH('Comparison Sheet'!E22,'Funds Management'!M:M,0)),0) -> 0 | J22: =IFERROR(INDEX('FM Calculations'!C:C,MATCH('Comparison Sheet'!E:E,'FM Calculations'!A:A,0)),0) -> 0 | L22: 0
A23: Salaries - Paraprofessionals | C23: ESE | D23: 5200 | E23: 5200-4150000 | F23: 4150000 | H23: =IFERROR(INDEX('Funds Management'!Q:Q,MATCH('Comparison Sheet'!E23,'Funds Management'!M:M,0)),0) -> 0 | J23: =IFERROR(INDEX('FM Calculations'!C:C,MATCH('Comparison Sheet'!E:E,'FM Calculations'!A:A,0)),0) -> 0 | L23: 0
A24: Salaries - Paraprofessionals Overtime | C24: ESE | D24: 5200 | E24: 5200-4152000 | F24: 4152000 | H24: =IFERROR(INDEX('Funds Management'!Q:Q,MATCH('Comparison Sheet'!E24,'Funds Management'!M:M,0)),0) -> 0 | J24: =IFERROR(INDEX('FM Calculations'!C:C,MATCH('Comparison Sheet'!E:E,'FM Calculations'!A:A,0)),0) -> 0 | L24: 0
A25: Salaries - Secretaries | C25: ESE | D25: 5200 | E25: 5200-4160000 | F25: 4160000 | H25: =IFERROR(INDEX('Funds Management'!Q:Q,MATCH('Comparison Sheet'!E25,'Funds Management'!M:M,0)),0) -> 0 | J25: =IFERROR(INDEX('FM Calculations'!C:C,MATCH('Comparison Sheet'!E:E,'FM Calculations'!A:A,0)),0) -> 0 | L25: 0
A26: Salaries - Secretaries Overtime | C26: ESE | D26: 5200 | E26: 5200-4162000 | F26: 4162000 | H26: =IFERROR(INDEX('Funds Management'!Q:Q,MATCH('Comparison Sheet'!E26,'Funds Management'!M:M,0)),0) -> 0 | J26: =IFERROR(INDEX('FM Calculations'!C:C,MATCH('Comparison Sheet'!E:E,'FM Calculations'!A:A,0)),0) -> 0 | L26: 0
A27: Retirement | C27: ESE | D27: 5200 | E27: 5200-4210000 | F27: 4210000 | H27: =IFERROR(INDEX('Funds Management'!Q:Q,MATCH('Comparison Sheet'!E27,'Funds Management'!M:M,0)),0) -> 0 | J27: =IFERROR(INDEX('FM Calculations'!C:C,MATCH('Comparison Sheet'!E:E,'FM Calculations'!A:A,0)),0) -> 0 | L27: 0
A28: Social Security | C28: ESE | D28: 5200 | E28: 5200-4220000 | F28: 4220000 | H28: =IFERROR(INDEX('Funds Management'!Q:Q,MATCH('Comparison Sheet'!E28,'Funds Management'!M:M,0)),0) -> 0 | J28: =IFERROR(INDEX('FM Calculations'!C:C,MATCH('Comparison Sheet'!E:E,'FM Calculations'!A:A,0)),0) -> 0 | L28: 0
A29: Health Insurance | C29: ESE | D29: 5200 | E29: 5200-4231000 | F29: 4231000 | H29: =IFERROR(INDEX('Funds Management'!Q:Q,MATCH('Comparison Sheet'!E29,'Funds Management'!M:M,0)),0) -> 0 | J29: =IFERROR(INDEX('FM Calculations'!C:C,MATCH('Comparison Sheet'!E:E,'FM Calculations'!A:A,0)),0) -> 0 | L29: 0
A30: Life Insurance | C30: ESE | D30: 5200 | E30: 5200-4232000 | F30: 4232000 | H30: =IFERROR(INDEX('Funds Management'!Q:Q,MATCH('Comparison Sheet'!E30,'Funds Management'!M:M,0)),0) -> 0 | J30: =IFERROR(INDEX('FM Calculations'!C:C,MATCH('Comparison Sheet'!E:E,'FM Calculations'!A:A,0)),0) -> 0 | L30: 0
A31: Workers Compensation | C31: ESE | D31: 5200 | E31: 5200-4240000 | F31: 4240000 | H31: =IFERROR(INDEX('Funds Management'!Q:Q,MATCH('Comparison Sheet'!E31,'Funds Management'!M:M,0)),0) -> 0 | J31: =IFERROR(INDEX('FM Calculations'!C:C,MATCH('Comparison Sheet'!E:E,'FM Calculations'!A:A,0)),0) -> 0 | L31: 0
H32: =IFERROR(INDEX('Funds Management'!Q:Q,MATCH('Comparison Sheet'!E32,'Funds Management'!M:M,0)),0) -> 0
C33: 5300 | H33: =IFERROR(INDEX('Funds Management'!Q:Q,MATCH('Comparison Sheet'!E33,'Funds Management'!M:M,0)),0) -> 0
A34: Salaries - Teachers | C34: Workforce | D34: 5300 | E34: 5300-4120000 | F34: 4120000 | H34: =IFERROR(INDEX('Funds Management'!Q:Q,MATCH('Comparison Sheet'!E34,'Funds Management'!M:M,0)),0) -> 0 | J34: =IFERROR(INDEX('FM Calculations'!C:C,MATCH('Comparison Sheet'!E:E,'FM Calculations'!A:A,0)),0) -> 0 | L34: 0
A35: Salaries - Network Manager, Interventionists, SSC | C35: Workforce | D35: 5300 | E35: 5300-4130000 | F35: 4130000 | H35: =IFERROR(INDEX('Funds Management'!Q:Q,MATCH('Comparison Sheet'!E35,'Funds Management'!M:M,0)),0) -> 0 | J35: =IFERROR(INDEX('FM Calculations'!C:C,MATCH('Comparison Sheet'!E:E,'FM Calculations'!A:A,0)),0) -> 0 | L35: =SUM(H35-J35) -> 0
A36: Salaries - Paraprofessionals | C36: Workforce | D36: 5300 | E36: 5300-4150000 | F36: 4150000 | H36: =IFERROR(INDEX('Funds Management'!Q:Q,MATCH('Comparison Sheet'!E36,'Funds Management'!M:M,0)),0) -> 0 | J36: =IFERROR(INDEX('FM Calculations'!C:C,MATCH('Comparison Sheet'!E:E,'FM Calculations'!A:A,0)),0) -> 0 | L36: 0
A37: Salaries - Paraprofessionals Overtime | C37: Workforce | D37: 5300 | E37: 5300-4152000 | F37: 4152000 | H37: =IFERROR(INDEX('Funds Management'!Q:Q,MATCH('Comparison Sheet'!E37,'Funds Management'!M:M,0)),0) -> 0 | J37: =IFERROR(INDEX('FM Calculations'!C:C,MATCH('Comparison Sheet'!E:E,'FM Calculations'!A:A,0)),0) -> 0 | L37: 0
A38: Salaries - Secretaries | C38: Workforce | D38: 5300 | E38: 5300-4160000 | F38: 4160000 | H38: =IFERROR(INDEX('Funds Management'!Q:Q,MATCH('Comparison Sheet'!E38,'Funds Management'!M:M,0)),0) -> 0 | J38: =IFERROR(INDEX('FM Calculations'!C:C,MATCH('Comparison Sheet'!E:E,'FM Calculations'!A:A,0)),0) -> 0 | L38: 0
A39: Salaries - Secretaries Overtime | C39: Workforce | D39: 5300 | E39: 5300-4162000 | F39: 4162000 | H39: =IFERROR(INDEX('Funds Management'!Q:Q,MATCH('Comparison Sheet'!E39,'Funds Management'!M:M,0)),0) -> 0 | J39: =IFERROR(INDEX('FM Calculations'!C:C,MATCH('Comparison Sheet'!E:E,'FM Calculations'!A:A,0)),0) -> 0 | L39: 0
A40: Retirement | C40: Workforce | D40: 5300 | E40: 5300-4210000 | F40: 4210000 | H40: =IFERROR(INDEX('Funds Management'!Q:Q,MATCH('Comparison Sheet'!E40,'Funds Management'!M:M,0)),0) -> 0 | J40: =IFERROR(INDEX('FM Calculations'!C:C,MATCH('Comparison Sheet'!E:E,'FM Calculations'!A:A,0)),0) -> 0 | L40: 0
A41: Social Security | C41: Workforce | D41: 5300 | E41: 5300-4220000 | F41: 4220000 | H41: =IFERROR(INDEX('Funds Management'!Q:Q,MATCH('Comparison Sheet'!E41,'Funds Management'!M:M,0)),0) -> 0 | J41: =IFERROR(INDEX('FM Calculations'!C:C,MATCH('Comparison Sheet'!E:E,'FM Calculations'!A:A,0)),0) -> 0 | L41: 0
A42: Health Insurance | C42: Workforce | D42: 5300 | E42: 5300-4231000 | F42: 4231000 | H42: =IFERROR(INDEX('Funds Management'!Q:Q,MATCH('Comparison Sheet'!E42,'Funds Management'!M:M,0)),0) -> 0 | J42: =IFERROR(INDEX('FM Calculations'!C:C,MATCH('Comparison Sheet'!E:E,'FM Calculations'!A:A,0)),0) -> 0 | L42: 0
A43: Life Insurance | C43: Workforce | D43: 5300 | E43: 5300-4232000 | F43: 4232000 | H43: =IFERROR(INDEX('Funds Management'!Q:Q,MATCH('Comparison Sheet'!E43,'Funds Management'!M:M,0)),0) -> 0 | J43: =IFERROR(INDEX('FM Calculations'!C:C,MATCH('Comparison Sheet'!E:E,'FM Calculations'!A:A,0)),0) -> 0 | L43: 0
A44: Workers Compensation | C44: Workforce | D44: 5300 | E44: 5300-4240000 | F44: 4240000 | H44: =IFERROR(INDEX('Funds Management'!Q:Q,MATCH('Comparison Sheet'!E44,'Funds Management'!M:M,0)),0) -> 0 | J44: =IFERROR(INDEX('FM Calculations'!C:C,MATCH('Comparison Sheet'!E:E,'FM Calculations'!A:A,0)),0) -> 0 | L44: 0
H45: =IFERROR(INDEX('Funds Management'!Q:Q,MATCH('Comparison Sheet'!E45,'Funds Management'!M:M,0)),0) -> 0
C46: 5400 | H46: =IFERROR(INDEX('Funds Management'!Q:Q,MATCH('Comparison Sheet'!E46,'Funds Management'!M:M,0)),0) -> 0
A47: Salaries - Teachers | C47: Adult Education | D47: 5400 | E47: =D47&"-"&F47 -> 5400-4120000 | F47: 4120000 | H47: =IFERROR(INDEX('Funds Management'!Q:Q,MATCH('Comparison Sheet'!E47,'Funds Management'!M:M,0)),0) -> 0 | J47: =IFERROR(INDEX('FM Calculations'!C:C,MATCH('Comparison Sheet'!E:E,'FM Calculations'!A:A,0)),0) -> 0 | L47: 0
A48: Salaries - Network Manager, Interventionists, SSC | C48: Adult Education | D48: 5400 | E48: =D48&"-"&F48 -> 5400-4130000 | F48: 4130000 | H48: =IFERROR(INDEX('Funds Management'!Q:Q,MATCH('Comparison Sheet'!E48,'Funds Management'!M:M,0)),0) -> 0 | J48: =IFERROR(INDEX('FM Calculations'!C:C,MATCH('Comparison Sheet'!E:E,'FM Calculations'!A:A,0)),0) -> 0 | L48: 0
A49: Salaries - Paraprofessionals | C49: Adult Education | D49: 5400 | E49: 5400-4150000 | F49: 4150000 | H49: =IFERROR(INDEX('Funds Management'!Q:Q,MATCH('Comparison Sheet'!E49,'Funds Management'!M:M,0)),0) -> 0 | J49: =IFERROR(INDEX('FM Calculations'!C:C,MATCH('Comparison Sheet'!E:E,'FM Calculations'!A:A,0)),0) -> 0 | L49: 0
A50: Salaries - Paraprofessionals Overtime | C50: Adult Education | D50: 5400 | E50: 5400-4152000 | F50: 4152000 | H50: =IFERROR(INDEX('Funds Management'!Q:Q,MATCH('Comparison Sheet'!E50,'Funds Management'!M:M,0)),0) -> 0 | J50: =IFERROR(INDEX('FM Calculations'!C:C,MATCH('Comparison Sheet'!E:E,'FM Calculations'!A:A,0)),0) -> 0 | L50: 0
A51: Salaries - Secretaries | C51: Adult Education | D51: 5400 | E51: 5400-4160000 | F51: 4160000 | H51: =IFERROR(INDEX('Funds Management'!Q:Q,MATCH('Comparison Sheet'!E51,'Funds Management'!M:M,0)),0) -> 0 | J51: =IFERROR(INDEX('FM Calculations'!C:C,MATCH('Comparison Sheet'!E:E,'FM Calculations'!A:A,0)),0) -> 0 | L51: 0
A52: Salaries - Secretaries Overtime | C52: Adult Education | D52: 5400 | E52: 5400-4162000 | F52: 4162000 | H52: =IFERROR(INDEX('Funds Management'!Q:Q,MATCH('Comparison Sheet'!E52,'Funds Management'!M:M,0)),0) -> 0 | J52: =IFERROR(INDEX('FM Calculations'!C:C,MATCH('Comparison Sheet'!E:E,'FM Calculations'!A:A,0)),0) -> 0 | L52: 0
A53: Retirement | C53: Adult Education | D53: 5400 | E53: 5400-4210000 | F53: 4210000 | H53: =IFERROR(INDEX('Funds Management'!Q:Q,MATCH('Comparison Sheet'!E53,'Funds Management'!M:M,0)),0) -> 0 | J53: =IFERROR(INDEX('FM Calculations'!C:C,MATCH('Comparison Sheet'!E:E,'FM Calculations'!A:A,0)),0) -> 0 | L53: 0
A54: Social Security | C54: Adult Education | D54: 5400 | E54: 5400-4220000 | F54: 4220000 | H54: =IFERROR(INDEX('Funds Management'!Q:Q,MATCH('Comparison Sheet'!E54,'Funds Management'!M:M,0)),0) -> 0 | J54: =IFERROR(INDEX('FM Calculations'!C:C,MATCH('Comparison Sheet'!E:E,'FM Calculations'!A:A,0)),0) -> 0 | L54: 0
A55: Health Insurance | C55: Adult Education | D55: 5400 | E55: 5400-4231000 | F55: 4231000 | H55: =IFERROR(INDEX('Funds Management'!Q:Q,MATCH('Comparison Sheet'!E55,'Funds Management'!M:M,0)),0) -> 0 | J55: =IFERROR(INDEX('FM Calculations'!C:C,MATCH('Comparison Sheet'!E:E,'FM Calculations'!A:A,0)),0) -> 0 | L55: 0
A56: Life Insurance | C56: Adult Education | D56: 5400 | E56: 5400-4232000 | F56: 4232000 | H56: =IFERROR(INDEX('Funds Management'!Q:Q,MATCH('Comparison Sheet'!E56,'Funds Management'!M:M,0)),0) -> 0 | J56: =IFERROR(INDEX('FM Calculations'!C:C,MATCH('Comparison Sheet'!E:E,'FM Calculations'!A:A,0)),0) -> 0 | L56: 0
A57: Workers Compensation | C57: Adult Education | D57: 5400 | E57: 5400-4240000 | F57: 4240000 | H57: =IFERROR(INDEX('Funds Management'!Q:Q,MATCH('Comparison Sheet'!E57,'Funds Management'!M:M,0)),0) -> 0 | J57: =IFERROR(INDEX('FM Calculations'!C:C,MATCH('Comparison Sheet'!E:E,'FM Calculations'!A:A,0)),0) -> 0 | L57: 0
H58: =IFERROR(INDEX('Funds Management'!Q:Q,MATCH('Comparison Sheet'!E58,'Funds Management'!M:M,0)),0) -> 0
C59: 5500 | H59: =IFERROR(INDEX('Funds Management'!Q:Q,MATCH('Comparison Sheet'!E59,'Funds Management'!M:M,0)),0) -> 0
A60: Salaries - Teachers | C60: Early Learning | D60: 5500 | E60: =D60&"-"&F60 -> 5500-4120000 | F60: 4120000 | H60: =IFERROR(INDEX('Funds Management'!Q:Q,MATCH('Comparison Sheet'!E60,'Funds Management'!M:M,0)),0) -> 0 | J60: =IFERROR(INDEX('FM Calculations'!C:C,MATCH('Comparison Sheet'!E:E,'FM Calculations'!A:A,0)),0) -> 0 | L60: 0
A61: Salaries - Network Manager, Interventionists, SSC | C61: Early Learning | D61: 5500 | E61: =D61&"-"&F61 -> 5500-4130000 | F61: 4130000 | H61: =IFERROR(INDEX('Funds Management'!Q:Q,MATCH('Comparison Sheet'!E61,'Funds Management'!M:M,0)),0) -> 0 | J61: =IFERROR(INDEX('FM Calculations'!C:C,MATCH('Comparison Sheet'!E:E,'FM Calculations'!A:A,0)),0) -> 0 | L61: 0
A62: Salaries - Paraprofessionals | C62: Early Learning | D62: 5500 | E62: 5500-4150000 | F62: 4150000 | H62: =IFERROR(INDEX('Funds Management'!Q:Q,MATCH('Comparison Sheet'!E62,'Funds Management'!M:M,0)),0) -> 0 | J62: =IFERROR(INDEX('FM Calculations'!C:C,MATCH('Comparison Sheet'!E:E,'FM Calculations'!A:A,0)),0) -> 0 | L62: 0
A63: Salaries - Paraprofessionals Overtime | C63: Early Learning | D63: 5500 | E63: 5500-4152000 | F63: 4152000 | H63: =IFERROR(INDEX('Funds Management'!Q:Q,MATCH('Comparison Sheet'!E63,'Funds Management'!M:M,0)),0) -> 0 | J63: =IFERROR(INDEX('FM Calculations'!C:C,MATCH('Comparison Sheet'!E:E,'FM Calculations'!A:A,0)),0) -> 0 | L63: 0
A64: Salaries - Secretaries | C64: Early Learning | D64: 5500 | E64: 5500-4160000 | F64: 4160000 | H64: =IFERROR(INDEX('Funds Management'!Q:Q,MATCH('Comparison Sheet'!E64,'Funds Management'!M:M,0)),0) -> 0 | J64: =IFERROR(INDEX('FM Calculations'!C:C,MATCH('Comparison Sheet'!E:E,'FM Calculations'!A:A,0)),0) -> 0 | L64: 0
A65: Salaries - Secretaries Overtime | C65: Early Learning | D65: 5500 | E65: 5500-4162000 | F65: 4162000 | H65: =IFERROR(INDEX('Funds Management'!Q:Q,MATCH('Comparison Sheet'!E65,'Funds Management'!M:M,0)),0) -> 0 | J65: =IFERROR(INDEX('FM Calculations'!C:C,MATCH('Comparison Sheet'!E:E,'FM Calculations'!A:A,0)),0) -> 0 | L65: 0
A66: Retirement | C66: Early Learning | D66: 5500 | E66: 5500-4210000 | F66: 4210000 | H66: =IFERROR(INDEX('Funds Management'!Q:Q,MATCH('Comparison Sheet'!E66,'Funds Management'!M:M,0)),0) -> 0 | J66: =IFERROR(INDEX('FM Calculations'!C:C,MATCH('Comparison Sheet'!E:E,'FM Calculations'!A:A,0)),0) -> 0 | L66: 0
A67: Social Security | C67: Early Learning | D67: 5500 | E67: 5500-4220000 | F67: 4220000 | H67: =IFERROR(INDEX('Funds Management'!Q:Q,MATCH('Comparison Sheet'!E67,'Funds Management'!M:M,0)),0) -> 0 | J67: =IFERROR(INDEX('FM Calculations'!C:C,MATCH('Comparison Sheet'!E:E,'FM Calculations'!A:A,0)),0) -> 0 | L67: 0
A68: Health Insurance | C68: Early Learning | D68: 5500 | E68: 5500-4231000 | F68: 4231000 | H68: =IFERROR(INDEX('Funds Management'!Q:Q,MATCH('Comparison Sheet'!E68,'Funds Management'!M:M,0)),0) -> 0 | J68: =IFERROR(INDEX('FM Calculations'!C:C,MATCH('Comparison Sheet'!E:E,'FM Calculations'!A:A,0)),0) -> 0 | L68: 0
A69: Life Insurance | C69: Early Learning | D69: 5500 | E69: 5500-4232000 | F69: 4232000 | H69: =IFERROR(INDEX('Funds Management'!Q:Q,MATCH('Comparison Sheet'!E69,'Funds Management'!M:M,0)),0) -> 0 | J69: =IFERROR(INDEX('FM Calculations'!C:C,MATCH('Comparison Sheet'!E:E,'FM Calculations'!A:A,0)),0) -> 0 | L69: 0
A70: Workers Compensation | C70: Early Learning | D70: 5500 | E70: 5500-4240000 | F70: 4240000 | H70: =IFERROR(INDEX('Funds Management'!Q:Q,MATCH('Comparison Sheet'!E70,'Funds Management'!M:M,0)),0) -> 0 | J70: =IFERROR(INDEX('FM Calculations'!C:C,MATCH('Comparison Sheet'!E:E,'FM Calculations'!A:A,0)),0) -> 0 | L70: 0
H71: =IFERROR(INDEX('Funds Management'!Q:Q,MATCH('Comparison Sheet'!E71,'Funds Management'!M:M,0)),0) -> 0
C72: 5900 | H72: =IFERROR(INDEX('Funds Management'!Q:Q,MATCH('Comparison Sheet'!E72,'Funds Management'!M:M,0)),0) -> 0
A73: Salaries - Teachers | C73: Extended Learning | D73: 5900 | E73: =D73&"-"&F73 -> 5900-4120000 | F73: 4120000 | H73: =IFERROR(INDEX('Funds Management'!Q:Q,MATCH('Comparison Sheet'!E73,'Funds Management'!M:M,0)),0) -> 0 | J73: =IFERROR(INDEX('FM Calculations'!C:C,MATCH('Comparison Sheet'!E:E,'FM Calculations'!A:A,0)),0) -> 3592.7 | L73: -3592.7
A74: Salaries - Network Manager, Interventionists, SSC | C74: Instructional | D74: 5900 | E74: =D74&"-"&F74 -> 5900-4130000 | F74: 4130000 | H74: =IFERROR(INDEX('Funds Management'!Q:Q,MATCH('Comparison Sheet'!E74,'Funds Management'!M:M,0)),0) -> 0 | J74: =IFERROR(INDEX('FM Calculations'!C:C,MATCH('Comparison Sheet'!E:E,'FM Calculations'!A:A,0)),0) -> 9600 | L74: -9600
A75: Salaries - Paraprofessionals | C75: Instructional | D75: 5900 | E75: 5900-4150000 | F75: 4150000 | H75: =IFERROR(INDEX('Funds Management'!Q:Q,MATCH('Comparison Sheet'!E75,'Funds Management'!M:M,0)),0) -> 0 | J75: =IFERROR(INDEX('FM Calculations'!C:C,MATCH('Comparison Sheet'!E:E,'FM Calculations'!A:A,0)),0) -> 0 | L75: 0
A76: Salaries - Paraprofessionals Overtime | C76: Instructional | D76: 5900 | E76: 5900-4152000 | F76: 4152000 | H76: =IFERROR(INDEX('Funds Management'!Q:Q,MATCH('Comparison Sheet'!E76,'Funds Management'!M:M,0)),0) -> 0 | J76: =IFERROR(INDEX('FM Calculations'!C:C,MATCH('Comparison Sheet'!E:E,'FM Calculations'!A:A,0)),0) -> 0 | L76: 0
A77: Salaries - Secretaries | C77: Instructional | D77: 5900 | E77: 5900-4160000 | F77: 4160000 | H77: =IFERROR(INDEX('Funds Management'!Q:Q,MATCH('Comparison Sheet'!E77,'Funds Management'!M:M,0)),0) -> 0 | J77: =IFERROR(INDEX('FM Calculations'!C:C,MATCH('Comparison Sheet'!E:E,'FM Calculations'!A:A,0)),0) -> 0 | L77: 0
A78: Salaries - Secretaries Overtime | C78: Instructional | D78: 5900 | E78: 5900-4162000 | F78: 4162000 | H78: =IFERROR(INDEX('Funds Management'!Q:Q,MATCH('Comparison Sheet'!E78,'Funds Management'!M:M,0)),0) -> 0 | J78: =IFERROR(INDEX('FM Calculations'!C:C,MATCH('Comparison Sheet'!E:E,'FM Calculations'!A:A,0)),0) -> 0 | L78: 0
A79: Retirement | C79: Instructional | D79: 5900 | E79: 5900-4210000 | F79: 4210000 | H79: =IFERROR(INDEX('Funds Management'!Q:Q,MATCH('Comparison Sheet'!E79,'Funds Management'!M:M,0)),0) -> 0 | J79: =IFERROR(INDEX('FM Calculations'!C:C,MATCH('Comparison Sheet'!E:E,'FM Calculations'!A:A,0)),0) -> 1089.71702 | L79: -1089.71702
A80: Social Security | C80: Instructional | D80: 5900 | E80: 5900-4220000 | F80: 4220000 | H80: =IFERROR(INDEX('Funds Management'!Q:Q,MATCH('Comparison Sheet'!E80,'Funds Management'!M:M,0)),0) -> 0 | J80: =IFERROR(INDEX('FM Calculations'!C:C,MATCH('Comparison Sheet'!E:E,'FM Calculations'!A:A,0)),0) -> 1009.24155 | L80: -1009.24155
A81: Health Insurance | C81: Instructional | D81: 5900 | E81: 5900-4231000 | F81: 4231000 | H81: =IFERROR(INDEX('Funds Management'!Q:Q,MATCH('Comparison Sheet'!E81,'Funds Management'!M:M,0)),0) -> 0 | J81: =IFERROR(INDEX('FM Calculations'!C:C,MATCH('Comparison Sheet'!E:E,'FM Calculations'!A:A,0)),0) -> 0 | L81: 0
A82: Life Insurance | C82: Instructional | D82: 5900 | E82: 5900-4232000 | F82: 4232000 | H82: =IFERROR(INDEX('Funds Management'!Q:Q,MATCH('Comparison Sheet'!E82,'Funds Management'!M:M,0)),0) -> 0 | J82: =IFERROR(INDEX('FM Calculations'!C:C,MATCH('Comparison Sheet'!E:E,'FM Calculations'!A:A,0)),0) -> 0 | L82: 0
A83: Workers Compensation | C83: Instructional | D83: 5900 | E83: 5900-4240000 | F83: 4240000 | H83: =IFERROR(INDEX('Funds Management'!Q:Q,MATCH('Comparison Sheet'!E83,'Funds Management'!M:M,0)),0) -> 0 | J83: =IFERROR(INDEX('FM Calculations'!C:C,MATCH('Comparison Sheet'!E:E,'FM Calculations'!A:A,0)),0) -> 73.87912 | L83: -73.87912
H84: =IFERROR(INDEX('Funds Management'!Q:Q,MATCH('Comparison Sheet'!E84,'Funds Management'!M:M,0)),0) -> 0
C85: 6110 | H85: =IFERROR(INDEX('Funds Management'!Q:Q,MATCH('Comparison Sheet'!E85,'Funds Management'!M:M,0)),0) -> 0
A86: Salaries - Teachers | C86: Attendance and Social Work | D86: 6110 | E86: =D86&"-"&F86 -> 6110-4120000 | F86: 4120000 | H86: =IFERROR(INDEX('Funds Management'!Q:Q,MATCH('Comparison Sheet'!E86,'Funds Management'!M:M,0)),0) -> 0 | J86: =IFERROR(INDEX('FM Calculations'!C:C,MATCH('Comparison Sheet'!E:E,'FM Calculations'!A:A,0)),0) -> 0 | L86: =SUM(H86-J86) -> 0
A87: Salaries - Network Manager, Interventionists, SSC | C87: Attendance and Social Work | D87: 6110 | E87: =D87&"-"&F87 -> 6110-4130000 | F87: 4130000 | H87: =IFERROR(INDEX('Funds Management'!Q:Q,MATCH('Comparison Sheet'!E87,'Funds Management'!M:M,0)),0) -> 0 | J87: =IFERROR(INDEX('FM Calculations'!C:C,MATCH('Comparison Sheet'!E:E,'FM Calculations'!A:A,0)),0) -> 0 | L87: 0
A88: Salaries - Paraprofessionals | C88: Attendance and Social Work | D88: 6110 | E88: 6110-4150000 | F88: 4150000 | H88: =IFERROR(INDEX('Funds Management'!Q:Q,MATCH('Comparison Sheet'!E88,'Funds Management'!M:M,0)),0) -> 0 | J88: =IFERROR(INDEX('FM Calculations'!C:C,MATCH('Comparison Sheet'!E:E,'FM Calculations'!A:A,0)),0) -> 0 | L88: 0
A89: Salaries - Paraprofessionals Overtime | C89: Attendance and Social Work | D89: 6110 | E89: 6110-4152000 | F89: 4152000 | H89: =IFERROR(INDEX('Funds Management'!Q:Q,MATCH('Comparison Sheet'!E89,'Funds Management'!M:M,0)),0) -> 0 | J89: =IFERROR(INDEX('FM Calculations'!C:C,MATCH('Comparison Sheet'!E:E,'FM Calculations'!A:A,0)),0) -> 0 | L89: 0
A90: Salaries - Secretaries | C90: Attendance and Social Work | D90: 6110 | E90: 6110-4160000 | F90: 4160000 | H90: =IFERROR(INDEX('Funds Management'!Q:Q,MATCH('Comparison Sheet'!E90,'Funds Management'!M:M,0)),0) -> 0 | J90: =IFERROR(INDEX('FM Calculations'!C:C,MATCH('Comparison Sheet'!E:E,'FM Calculations'!A:A,0)),0) -> 0 | L90: 0
A91: Salaries - Secretaries Overtime | C91: Attendance and Social Work | D91: 6110 | E91: 6110-4162000 | F91: 4162000 | H91: =IFERROR(INDEX('Funds Management'!Q:Q,MATCH('Comparison Sheet'!E91,'Funds Management'!M:M,0)),0) -> 0 | J91: =IFERROR(INDEX('FM Calculations'!C:C,MATCH('Comparison Sheet'!E:E,'FM Calculations'!A:A,0)),0) -> 0 | L91: 0
A92: Retirement | C92: Attendance and Social Work | D92: 6110 | E92: 6110-4210000 | F92: 4210000 | H92: =IFERROR(INDEX('Funds Management'!Q:Q,MATCH('Comparison Sheet'!E92,'Funds Management'!M:M,0)),0) -> 0 | J92: =IFERROR(INDEX('FM Calculations'!C:C,MATCH('Comparison Sheet'!E:E,'FM Calculations'!A:A,0)),0) -> 0 | L92: 0
A93: Social Security | C93: Attendance and Social Work | D93: 6110 | E93: 6110-4220000 | F93: 4220000 | H93: =IFERROR(INDEX('Funds Management'!Q:Q,MATCH('Comparison Sheet'!E93,'Funds Management'!M:M,0)),0) -> 0 | J93: =IFERROR(INDEX('FM Calculations'!C:C,MATCH('Comparison Sheet'!E:E,'FM Calculations'!A:A,0)),0) -> 0 | L93: 0
A94: Health Insurance | C94: Attendance and Social Work | D94: 6110 | E94: 6110-4231000 | F94: 4231000 | H94: =IFERROR(INDEX('Funds Management'!Q:Q,MATCH('Comparison Sheet'!E94,'Funds Management'!M:M,0)),0) -> 0 | J94: =IFERROR(INDEX('FM Calculations'!C:C,MATCH('Comparison Sheet'!E:E,'FM Calculations'!A:A,0)),0) -> 0 | L94: 0
A95: Life Insurance | C95: Attendance and Social Work | D95: 6110 | E95: 6110-4232000 | F95: 4232000 | H95: =IFERROR(INDEX('Funds Management'!Q:Q,MATCH('Comparison Sheet'!E95,'Funds Management'!M:M,0)),0) -> 0 | J95: =IFERROR(INDEX('FM Calculations'!C:C,MATCH('Comparison Sheet'!E:E,'FM Calculations'!A:A,0)),0) -> 0 | L95: 0
A96: Workers Compensation | C96: Attendance and Social Work | D96: 6110 | E96: 6110-4240000 | F96: 4240000 | H96: =IFERROR(INDEX('Funds Management'!Q:Q,MATCH('Comparison Sheet'!E96,'Funds Management'!M:M,0)),0) -> 0 | J96: =IFERROR(INDEX('FM Calculations'!C:C,MATCH('Comparison Sheet'!E:E,'FM Calculations'!A:A,0)),0) -> 0 | L96: 0
H97: =IFERROR(INDEX('Funds Management'!Q:Q,MATCH('Comparison Sheet'!E97,'Funds Management'!M:M,0)),0) -> 0
C98: 6120 | H98: =IFERROR(INDEX('Funds Management'!Q:Q,MATCH('Comparison Sheet'!E98,'Funds Management'!M:M,0)),0) -> 0
